Workbook

Sheet password (hidden)
A1: ecossl

Sheet Cover Page
B5: Risk Evaluation for 1,1-Dichloroethane -
B7: Supplemental Information File:
B9: TRV Calculator
B11: CASRN: 75-34-3

Sheet READ ME
A1: TRV Calculator Tool Notes/Instructions
A2: This spreadsheet tool is meant to be used in conjunction with EPA's Guidance for Developing Ecological Soil Screening Levels (OSWER Directive 92857-55), Attachments 4-3 and 4-5 (Eco-SSL Standard Operating Procedures [SOPs] # 4: Wildlife TRV Literature Review, Data Extraction and Coding and 6: Derivation of Wildlife Toxicity Reference Value [TRV]).
A3: https://www.epa.gov/chemical-research/guidance-developing-ecological-soil-screening-levels
A5: If body weight or ingestion rate (food or water) is not reported in a study, this tool will look up a default body weight based on the reported age or lifestage and/or will calculate an ingestion rate based on body weight and organism type.
A6: This tool will also convert the NOAEL Dose and/or LOAEL Dose to units of mg/kg/day. However, it does allow for manually entry as well if that is preferred.
A7: Manually Entered Fields
A8: Field | B8: Notes/Instructions
A9: Effect Group | B9: In previous spreadsheets this field was a sub-header within the table instead of a separate field. For this tool to work correctly this information needs to be provided for each row as a separate field.
B10: This tool is currently set up to graph the following effect groups:
B11: Accumulation (ACC) | D11: Growth (GRO) | F11: Physiology (PHY)
B12: Behavior (BEH) | D12: Pathology (PTH) | F12: Reproduction (REP)
B13: Biochemical (BIO) | D13: Population (POP) | F13: Survival (SUR)
B14: Please use the above terms to ensure that the tool functions properly (e.g., use "Survival (SUR)" instead of "Mortality (MOR)").
A15: Result # | B15: After all data has been entered in this tab, sort the data based on the "Endpoint Number" field. Then, each row should be assigned a sequential number beginning with "1" in row 5.
A16: Ref N. | B16: Each study should be assigned a unique reference number in this field. Note that studies with multiple end points, effect groups, species, etc. should have data entered on multiple rows and should have the same reference number assigned in this field.
A17: Reference | B17: The citation for the study that the data was extracted from should be entered in this field.
A18: Chemical Form | B18: e.g., DDE and p,p’DDT, Cadmium chloride and Cadmium sulfate, etc.
A19: MW% | B19: % Molecular Weight (e.g., purity); If the exposure is reported as pure contaminant, the User enters the number 100.
B20: For organic chemicals, the study should be reviewed for information on the purity of the tested material.
B21: Toxicological studies administer metals using compounds which contain various amounts of the metal by weight. Some studies report concentrations (or doses) as units of metal per amount of exposure medium (water or diet) (e.g., mg of Co per kg of diet), while others report concentrations (or doses) based on the compound used (e.g., mg of cobalt chloride per kg of diet).
B22: For example, if the administered compound is cadmium chloride, then only 61.32 percent by weight was delivered as cadmium (based on the MW for cadmium chloride of 183.32 g/mol and the MW for cadmium of 112.41 g/mol).
A23: Test Species | B23: This field should be populated with a more general species type (e.g., simplified common name) outside of the parentheses (the scientific name MUST be populated within parentheses to the right). The specific organism type should be populated in a different field.
B24: Example: the Short-tailed vole (Microtus agrestis) should only have "vole (Microtus agrestis)" recorded in this field.
B25: This tool is currently set up to calculate Ingestion rates for the following categorgies:
B26: cat | C26: duck | D26: hamster | E26: pheasant | F26: rabbit | G26: sparrow
B27: cattle | C27: eagle | D27: horse | E27: owl | F27: rat | G27: starling
B28: chicken | C28: finch | D28: kestrel | E28: pigeon | F28: blackbird | G28: turkey
B29: dog | C29: gerbil | D29: mink | E29: pig | F29: sheep | G29: vole
B30: dove | C30: guinea pig | D30: mouse | E30: quail | F30: shrew
B31: Please use the above terms if they apply to the study organism (e.g., use "cattle" instead of "cow").
A32: Specific Organism Type | B32: This field should be populated with the Specific Organism type (e.g., strain). Some examples include "Sprague-Dawley" (rat), "B6C3F1" (mouse), "Short-tailed" (vole). If no Specific Organism Type is available, this field can be left blank/null or can be populated with "unspecified".
B33: Column K in the Reference tab lists all Specific Organism Types that this tool supports.
B34: This field is used to pull in the default body weight of study organisms when the body weight is not reported.
A35: Phase # | B35: The study phase is the basic unit of experimental design for the Wildlife TRV Database. This field should be coded sequentially, starting at 1 for each study.
B36: Multiple study phases are present if the study reports different results for any of the following parameters:
B37: -test organism (different species /strain or lifestage)
B38: -chemical form (e.g. DDE and p,p’DDT, Cadmium chloride and Cadmium sulfate, etc.)
B39: -range of chemical doses or concentrations
B40: -test location
B41: -exposure type
B42: -control type
B43: -total number of doses
B44: -application frequency
B45: -basal diet type or route of exposure
A46: # of Conc/Doses | B46: Number of concentrations or doses tested; The total number of different concentrations or doses administered to the test organism is entered for the specific phase in the numeric field provided. The total number of concentrations (or doses) includes the control(s).
B47: For example, for a study which has four exposure groups of 5, 10, 20, 50 mg/kg and a valid control, the number 5 would be entered.
B48: A study must have at least two concentrations or doses (i.e., a valid control and one exposure group) to be used for derivation of Wildlife TRVs.
A49: Conc/Doses | B49: The test concentration is the amount of contaminant to which the test organism is exposed per unit of exposure medium (water, diet or other medium). The test dose is the amount of contaminant administered to the test organism per unit of body weight in a specified period of time.
B50: Doses are preferred over concentrations for the purpose of establishing a wildlife TRV, but they are not reported in many toxicological studies.
B51: If both dry and wet weight concentrations or doses are provided in the study, use the dry weight values, as this is the more conservative measurement.
B52: The User should enter either the reported exposure concentrations or doses, but not both, in the field.
B53: The concentrations or doses are separated by a forward-slash in the text box provided. The control(s) should be included as the first in the series (eg.: 0 / 5 / 10 / 20 / 50), and should always be zero.
A54: Conc/Dose Units | B54: The tool is set up to look for the following units - all others will report an error and will require manual calculation of Doses:
B55: % in diet | C55: g/kg diet | D55: mg/g | E55: mg/kg diet | F55: mg/org/d | G55: ug/g bw/d | H55: ug/L
B56: % in water | C56: g/L | D56: mg/g bw/d | E56: mg/kg/bw/d | F56: ng/g diet | G56: ug/g diet | H56: ug/org/d
B57: % water | C57: g/org/d | D57: mg/g diet | E57: mg/kg/d | F57: ppm in mg/kg | G57: ug/kg
B58: g/d | C58: g/org/day | D58: mg/kg | E58: mg/L | F58: ppm in mg/L | G58: ug/kg bw/d
B59: g/kg bw/d | C59: mg/d | D59: mg/kg bw/d | E59: mg/ml | F59: ug/g | G59: ug/kg diet
B60: Units such as mg/kg bw and mg/org are not supported by this calculator tool. Conc/Doses reported in this type of format should be checked to confirm that it is in daily dosing. If this is true, then units such as mg/kg bw/d or mg/org/d can be used to auto-generate the NOAEL/LOAEL dose.
B61: See the 'Reference' tab for calculations done in this tool to convert doses from the above units to mg/kg/day.
A62: Wet Weight Reported? | B62: If the study reports that the dietary exposure concentrations are expressed on a wet weight basis, then the User should enter “Yes”.
B63: If the dietary concentration units are reported as dry weight, enter "No".
B64: If the dietary concentration units are not specified as wet weight or dry weight, enter "NR" for Not Reported.
B65: Also enter “NR” if a drinking water, gavage or other oral study is being entered.
B66: For studies where NR is entered, the entered results are assumed to be reported in dry weight and are not converted by the application. This is assumed to be conservative as conversion to dry-weight results in higher LOAEL and NOAEL dose values.
A67: Percent Moisture | B67: If the percent moisture in the exposure media is reported, the User enters the percent moisture in the numeric field provided.
B68: For example, if the percent moisture for laboratory rat chow is reported as 3 percent, the number 3 is entered.
B69: The number 100 should be entered for drinking water studies.
A70: Application Frequency | B70: The frequency of the exposure application should use the following codes:
B71: ADL | C71: Ad libitum; without limit or restraint
B72: CON | C72: Continual; non-pulsed
B73: DLY | C73: Daily; dosing regime not specified
B74: EOD | C74: Every other day
B75: X | C75: Dosed x time(s) per study period; e.g. 1 time = 1X
B76: X per h | C76: X times per hour
B77: X per d | C77: X times per day
B78: X per w | C78: X times per week
B79: X per mo | C79: X times per month
B80: NR | C80: Not Reported
A81: Method of Analysis | B81: This field enables the User to indicate whether the tested concentrations (or doses) were quantified or if nominal (target) values are reported using the following codes:
B82: M | C82: Measured; Exposure and/or observation concentrations or doses are verified by analytical methods and are reported as quantitative measured values.
B83: U | C83: Unmeasured; Exposure and/or observation concentrations or doses are clearly identified as nominal values; or when the author does not report any information about whether the concentrations were measured or nominal, i.e. unmeasured is used as a default value when there is no information provided about the contaminant concentrations.
B84: UX | C84: Unmeasured but Verified; Unmeasured exposure concentrations or doses are clearly identified as nominal values. The author reports that contaminant analysis was done to verify the nominal values, but analytical results are not reported in the article.
A85: Route of Exposure | B85: The method by which the contaminant is administered to the test organism.
B86: The following are special cases that might be encountered in coding exposure type and route:
B87: FD | C87: contaminant incorporated into the food
B88: DR | C88: contaminant incorporated into the drinking water
B89: CH | C89: choice of treated or untreated food or drinking water
B90: GV | C90: gavage
B91: OR | C91: other oral (e.g., capsule)
B92: If the publication only indicates “diet” as an exposure, the User should choose “FD” (contaminant incorporated into the food) for the exposure route.
A93: Exposure Duration | B93: The exposure duration for a specific endpoint is entered in the numeric field provided.
B94: For example, if contaminant exposure lasts for ten weeks, the User enters the number 10.
A95: Duration Units | B95: Exposure duration units should be entered using the following codes:
B96: s | C96: second
B97: mi | C97: minute
B98: h | C98: hour
B99: d | C99: day
B100: w | C100: week
B101: mo | C101: month
B102: yr | C102: year
B103: lf | C103: lifetime
B104: NR | C104: Not Reported
A105: Age | B105: When the age in a study is a range, please use a hyphen to separate the two values. For example, if the age is one to four years enter "1-4" in this field (excel formatting may require you to add ` before so it does not convert this value to a date).
A106: Age Units | B106: Age units should be entered using the following codes:
B107: s | C107: second
B108: mi | C108: minute
B109: h | C109: hour
B110: d | C110: day
B111: w | C111: week
B112: mo | C112: month
B113: yr | C113: year
B114: lf | C114: lifetime
B115: NR | C115: Not Reported
A116: Lifestage | B116: Use the following codes to indicate the lifestage of the test organism:
B117: AD | C117: adult
B118: EG | C118: egg
B119: EM | C119: embryo
B120: IM | C120: immature
B121: JV | C121: juvenile; includes yearling, fledgling, hatchling, weanling
B122: LB | C122: egg laying bird
B123: MA | C123: mature
B124: NR | C124: Not Reported
B125: SA | C125: subadult
B126: SI | C126: sexually immature
B127: SM | C127: sexually mature
B128: YO | C128: young
B129: YY | C129: young of year
B130: GE | C130: Gestational Exposures
B131: LC | C131: Lactation
B132: If the lifestage is not specified, the User should refer to Table 20 of Attachment 4-3 or enter "NR" for Not Reported.
A133: Sex | B133: Use the following codes to indicate the sex of the test organism:
B134: M | C134: male
B135: F | C135: female
B136: BH | C136: Both male and female
B137: NR | C137: Not Reported
A138: Control Type | B138: The effects of contaminant exposure are evaluated by comparing groups of exposed organisms to one or more groups of untreated organisms. These untreated organisms are designated as the controls.
B139: M | C139: multiple valid controls
B140: H | C140: historic control (invalid; control data collected before exposure of treated organisms)
B141: K | C141: insufficient info on controls presented (invalid)
B142: P | C142: Positive control (invalid)
B143: V | C143: valid (carrier, vehicle or solvent control)
B144: Z | C144: no control (invalid)
B145: B | C145: baseline or background control (invalid)
B146: C | C146: concurrent control (valid)
B147: NR | C147: not reported (invalid)
A148: Test Location | B148: Use the following codes to enter the appropriate location or setting in which the experiment is reported to be conducted:
B149: FieldA | C149: Field, Artifical
B150: FieldN | C150: Field, Natural
B151: FieldU | C151: Field - Unable to determine whether natural or artificial setting
B152: Lab | C152: Laboratory indoor setting
B153: NR | C153: Not Reported
A154: Endpoint Number | B154: This field is used to sort results on the 'Data Entry' tab for use in generating the data plot figure (on the 'Figure' tab). The figure should be organized by General Effect Group in the following order:
B155: Biochemical (BIO)
B156: Behavior (BEH)
B157: Physiology (PHY)
B158: Pathology (PTH)
B159: Reproduction (REP)
B160: Growth (GRO)
B161: Survival (SUR)
B162: Data not used
B163: For example, if a chemical has data entered for GRO, BEH, REP, SUR and Data not used, 1 would be entered in this field for all BEH records, 2 would be entered in this field for all REP records, 3 would be entered for all GRO records, 4 would be entered for all SUR records and 5 would be entered for all records classified as "Data not used"
A164: Effect Type | B164: See the 'Effect Type&Measure-Resp Site' tab for the appropriate codes for this field.
A165: Effect Measure | B165: See the 'Effect Type&Measure-Resp Site' tab for the appropriate codes for this field.
A166: Response Site | B166: The response site is the specific location (e.g., organ or tissue) where an effect is observed.
B167: The response site for mortality (MOR) or behavioral (BEH) effects is not applicable.
B168: See the 'Effect Type&Measure-Resp Site' tab for the appropriate codes for this field.
A169: Study NOAEL | B169: This field should NOT be adjusted for %MW. This adjustment is made when the Dose is calculated in the tool.
A170: Study LOAEL | B170: This field should NOT be adjusted for %MW. This adjustment is made when the Dose is calculated in the tool.
A171: Reported Body Weight (kg) | B171: If no body weight is reported in the study, please enter "NR".
A172: Reported Ingestion Rate (in kg or L/day) | B172: If no ingestion rate is reported in the study, please enter "NR".
A174: Auto-Generated Fields
A175: Field
A176: Application freq (d/w) | B176: When 'Application frequency' field has units of "per w" reported, then the number of days is divided by 7 and applied as a factor to the dose calculations, all other units have a factor of 1 applied
A177: Lifestage | B177: This field pulls from the manually entered "Lifestage" field: GE=adult, JV=juvenile, NR=adult
A178: Sex | B178: This field pulls from the manually entered 'Sex' field: F = F, M = M, B = B, NR = B
A179: BW (kg) | B179: This field pulls from the manually entered 'Reported Body Weight' field. If a body weight is reported it is pulled in, if "NR" is entered a default body weight is pulled in based on the test species, specific organism type, sex, and age/lifestage.
B180: When the age is reported as a range, the body weight value is based on the maximum age in that range.
A182: FIR (kg/day) | B182: This field pulls from the manually entered 'Reported Ingestion Rate' field. If an ingestion rate is reported it is pulled in, if "NR" is entered a default ingestion rate is calculate based on the body weight in the auto-generated 'BW (kg)' field.
A184: Error Messages
A185: BW Error Message | B185: This Error Message will be triggered if a body weight is not reported and the test species, specific organism type, sex, and age/lifestage manualy entered does not match an entry in Table 20 of Attachment 4-3 of the EcoSSL guidance.
B186: The user will need to manually enter a body weight into column AX (cell[s] that needs manual entry will be highlighted in red).
A187: Unit Error Message | B187: This Error Message will be triggered if the 'Conc/Dose Units' field is populated with a unit that is not supported by this tool (see a list of suppported units beginning in Row 22 of this sheet).
B188: The user will need to manually calculate the Dose in mg/kg/day and populate these values in column AY and/or AZ (cell[s] that needs manual entry will be highlighted in red).

Sheet Effect Type&Measure-Resp Site
A1: Effect Type Codes, Effect Measure Codes and Definitions from Table 17 of Attachment 4-3 of the EcoSSL Guidance | F1: Response Site Codes from Table 18 of Attachment 4-3 of the EcoSSL Guidance
A2: Effect Group | B2: Effect Type | C2: Effect Measure Code | D2: Effect Measure Definition | F2: Code | G2: Response Site
A3: BEHAVIOR (BEH) | B3: Avoidance Effect (AVO) | C3: CHEM | D3: contaminant avoidance | F3: AG | G3: Accessory Gland
A4: BEHAVIOR (BEH) | B4: Avoidance Effect (AVO) | C4: FOOD | D4: food avoidance | F4: AD | G4: Adipose Tissue
A5: BEHAVIOR (BEH) | B5: Avoidance Effect (AVO) | C5: STIM | D5: stimulus avoidance | F5: AR | G5: Adrenal Gland
A6: BEHAVIOR (BEH) | B6: Avoidance Effect (AVO) | C6: WATR | D6: water avoidance | F6: AS | G6: Air Sac
A7: BEHAVIOR (BEH) | B7: General Behavior (BEH) | C7: ACTP | D7: accuracy of learned behavior | F7: AL | G7: Albumen (egg white)
A8: BEHAVIOR (BEH) | B8: General Behavior (BEH) | C8: ACTV | D8: activity, general | F8: AT | G8: Alimentary Tract
A9: BEHAVIOR (BEH) | B9: General Behavior (BEH) | C9: AGGT | D9: aggression | F9: AF | G9: Amniotic Fluid
A10: BEHAVIOR (BEH) | B10: General Behavior (BEH) | C10: AMBU | D10: ambulatory/circadian rhythm | F10: AP | G10: Appendages
A11: BEHAVIOR (BEH) | B11: General Behavior (BEH) | C11: EQUL | D11: balance and equilibrium | F11: BI | G11: Bile
A12: BEHAVIOR (BEH) | B12: General Behavior (BEH) | C12: GBHV | D12: behavioral changes | F12: BL | G12: Blood
A13: BEHAVIOR (BEH) | B13: General Behavior (BEH) | C13: LOCO | D13: distance | F13: BV | G13: Blood Vessel
A14: BEHAVIOR (BEH) | B14: General Behavior (BEH) | C14: DPLY | D14: displaying behavior | F14: BO | G14: Bone
A15: BEHAVIOR (BEH) | B15: General Behavior (BEH) | C15: DRMT | D15: dormant, adverse condition | F15: BM | G15: Bone Marrow
A16: BEHAVIOR (BEH) | B16: General Behavior (BEH) | C16: FRZG | D16: freezing behavior | F16: BR | G16: Brain
A17: BEHAVIOR (BEH) | B17: General Behavior (BEH) | C17: GBHV | D17: general behavior | F17: BT | G17: Breast
A18: BEHAVIOR (BEH) | B18: General Behavior (BEH) | C18: GPRD | D18: general production | F18: BU | G18: Bursa
A19: BEHAVIOR (BEH) | B19: General Behavior (BEH) | C19: INST | D19: induced sleeping time | F19: CA | G19: Cartilage
A20: BEHAVIOR (BEH) | B20: General Behavior (BEH) | C20: NMVM | D20: number of movements | F20: CH | G20: Cord, spinal
A21: BEHAVIOR (BEH) | B21: General Behavior (BEH) | C21: NVOC | D21: number of vocalizations | F21: CL | G21: Claw
A22: BEHAVIOR (BEH) | B22: General Behavior (BEH) | C22: RRSP | D22: righting response | F22: CG | G22: Cloacal gland
A23: BEHAVIOR (BEH) | B23: General Behavior (BEH) | C23: RSPT | D23: response time to stimulus | F23: CO | G23: Collagen
A24: BEHAVIOR (BEH) | B24: General Behavior (BEH) | C24: VCLF | D24: visual cliff | F24: CR | G24: Crop
A25: BEHAVIOR (BEH) | B25: Feeding Behavior (FDB) | C25: BGNB | D25: begging behavior | F25: DG | G25: Digestive Gland
A26: BEHAVIOR (BEH) | B26: Feeding Behavior (FDB) | C26: CAIN | D26: caloric intake | F26: DT | G26: Digestive Tract
A27: BEHAVIOR (BEH) | B27: Feeding Behavior (FDB) | C27: FCNS | D27: food consumption | F27: EG | G27: Egg
A28: BEHAVIOR (BEH) | B28: Feeding Behavior (FDB) | C28: FDNG | D28: feeding behavior | F28: EU | G28: Egg Cuticle
A29: BEHAVIOR (BEH) | B29: Feeding Behavior (FDB) | C29: FEFF | D29: feeding efficiency | F29: EM | G29: Embryo
A30: BEHAVIOR (BEH) | B30: Feeding Behavior (FDB) | C30: FSTR | D30: food storage | F30: EN | G30: Entrails
A31: BEHAVIOR (BEH) | B31: Feeding Behavior (FDB) | C31: FTIM | D31: feeding time | F31: ER | G31: Erythrocyte
A32: BEHAVIOR (BEH) | B32: Feeding Behavior (FDB) | C32: GFDB | D32: general feeding behavior | F32: ES | G32: Esophagus
A33: BEHAVIOR (BEH) | B33: Feeding Behavior (FDB) | C33: WCON | D33: water consumption | F33: EY | G33: Eye
A34: BIOCHEMISTRY (BIO) | B34: Biochemical (CHM) | C34: 5HAA | D34: 5-hydroxyindole acetic acid | F34: FE | G34: Feathers
A35: BIOCHEMISTRY (BIO) | B35: Biochemical (CHM) | C35: AABA | D35: alpha-aminobutyric acid | F35: FM | G35: Femur
A36: BIOCHEMISTRY (BIO) | B36: Biochemical (CHM) | C36: ALAN | D36: alanine | F36: FO | G36: Foot
A37: BIOCHEMISTRY (BIO) | B37: Biochemical (CHM) | C37: ALBM | D37: albumins | F37: FT | G37: Fetus
A38: BIOCHEMISTRY (BIO) | B38: Biochemical (CHM) | C38: ALBE | D38: albumen energy | F38: GB | G38: Gall Bladder
A39: BIOCHEMISTRY (BIO) | B39: Biochemical (CHM) | C39: AMAC | D39: amino acids, general term | F39: GT | G39: Gastrointestinal Tract
A40: BIOCHEMISTRY (BIO) | B40: Biochemical (CHM) | C40: AMMO | D40: ammonia | F40: GZ | G40: Gizzard
A41: BIOCHEMISTRY (BIO) | B41: Biochemical (CHM) | C41: AMNH | D41: p-amino hippurate | F41: GO | G41: Gonads
A42: BIOCHEMISTRY (BIO) | B42: Biochemical (CHM) | C42: ANBC | D42: aniline binding capability | F42: HA | G42: Hair
A43: BIOCHEMISTRY (BIO) | B43: Biochemical (CHM) | C43: ARGI | D43: arginine | F43: HD | G43: Head
A44: BIOCHEMISTRY (BIO) | B44: Biochemical (CHM) | C44: ASCA | D44: ascorbic acid | F44: HE | G44: Heart
A45: BIOCHEMISTRY (BIO) | B45: Biochemical (CHM) | C45: ASHC | D45: ash content | F45: HM | G45: Humerus
A46: BIOCHEMISTRY (BIO) | B46: Biochemical (CHM) | C46: ASIS | D46: amyloidosis | F46: HG | G46: Harderian Gland
A47: BIOCHEMISTRY (BIO) | B47: Biochemical (CHM) | C47: ASPA | D47: apartate | F47: HY | G47: Hypothalamus
A48: BIOCHEMISTRY (BIO) | B48: Biochemical (CHM) | C48: ATPT | D48: adenosine triphosphate | F48: IN | G48: Intestinal Tract
A49: BIOCHEMISTRY (BIO) | B49: Biochemical (CHM) | C49: B2MG | D49: beta2-microglobulin | F49: KI | G49: Kidney
A50: BIOCHEMISTRY (BIO) | B50: Biochemical (CHM) | C50: BASO | D50: basophil | F50: LD | G50: Lipid, Fat
A51: BIOCHEMISTRY (BIO) | B51: Biochemical (CHM) | C51: BIOT | D51: biotin content | F51: LG | G51: Leg
A52: BIOCHEMISTRY (BIO) | B52: Biochemical (CHM) | C52: BUNT | D52: blood urea nitrogen | F52: LI | G52: Liver
A53: BIOCHEMISTRY (BIO) | B53: Biochemical (CHM) | C53: CALC | D53: calcium | F53: LU | G53: Lungs
A54: BIOCHEMISTRY (BIO) | B54: Biochemical (CHM) | C54: CAPH | D54: calcium/phosphorus ratio | F54: MM | G54: Mammary Tissue
A55: BIOCHEMISTRY (BIO) | B55: Biochemical (CHM) | C55: CCHG | D55: cell changes | F55: MS | G55: Mesenteric Lymph Node
A56: BIOCHEMISTRY (BIO) | B56: Biochemical (CHM) | C56: CHLN | D56: choline | F56: MC | G56: Microsome
A57: BIOCHEMISTRY (BIO) | B57: Biochemical (CHM) | C57: CHLR | D57: chloride | F57: MK | G57: Milk, lactating females
A58: BIOCHEMISTRY (BIO) | B58: Biochemical (CHM) | C58: CHOL | D58: cholesterol | F58: MT | G58: Multiple Tissue/Organs
A59: BIOCHEMISTRY (BIO) | B59: Biochemical (CHM) | C59: CREA | D59: creatinine | F59: MU | G59: Muscle
A60: BIOCHEMISTRY (BIO) | B60: Biochemical (CHM) | C60: DISC | D60: dethylsuccinate hdyrolysis | F60: MB | G60: Muscle+Bone
A61: BIOCHEMISTRY (BIO) | B61: Biochemical (CHM) | C61: DTBL | D61: direct bilirubin (conjugated) | F61: MO | G61: Mucous
A62: BIOCHEMISTRY (BIO) | B62: Biochemical (CHM) | C62: EOSN | D62: eosinophil | F62: NG | G62: Nasal Gland
A63: BIOCHEMISTRY (BIO) | B63: Biochemical (CHM) | C63: ERTH | D63: erythoroblasts | F63: NE | G63: Nervous Tissue
A64: BIOCHEMISTRY (BIO) | B64: Biochemical (CHM) | C64: ESAA | D64: amino acids, essential | F64: NK | G64: Neck
A65: BIOCHEMISTRY (BIO) | B65: Biochemical (CHM) | C65: FECO | D65: iron content (do not code) | F65: NR | G65: Not Reported
A66: BIOCHEMISTRY (BIO) | B66: Biochemical (CHM) | C66: FEPR | D66: free erythrocyte protoporphyrins | F66: OL | G66: Olfactory
A67: BIOCHEMISTRY (BIO) | B67: Biochemical (CHM) | C67: FFTA | D67: fatty acids, free | F67: OV | G67: Ovaries
A68: BIOCHEMISTRY (BIO) | B68: Biochemical (CHM) | C68: GBCM | D68: general biochemical | F68: OD | G68: Oviduct
A69: BIOCHEMISTRY (BIO) | B69: Biochemical (CHM) | C69: GLCN | D69: glycine | F69: PS | G69: Pancreas
A70: BIOCHEMISTRY (BIO) | B70: Biochemical (CHM) | C70: GLTH | D70: glutathione | F70: PE | G70: Penis
A71: BIOCHEMISTRY (BIO) | B71: Biochemical (CHM) | C71: GLUC | D71: glucose | F71: PI | G71: Pituitary Gland
A72: BIOCHEMISTRY (BIO) | B72: Biochemical (CHM) | C72: GLYC | D72: glycogen | F72: PC | G72: Placenta
A73: BIOCHEMISTRY (BIO) | B73: Biochemical (CHM) | C73: GMIN | D73: glutamine | F73: PL | G73: Plasma
A74: BIOCHEMISTRY (BIO) | B74: Biochemical (CHM) | C74: HEME | D74: heme content | F74: PG | G74: Prostate Gland
A75: BIOCHEMISTRY (BIO) | B75: Biochemical (CHM) | C75: HEMT | D75: general hematology | F75: PR | G75: Proventriculus
A76: BIOCHEMISTRY (BIO) | B76: Biochemical (CHM) | C76: HIST | D76: histidine | F76: PY | G76: Progeny
A77: BIOCHEMISTRY (BIO) | B77: Biochemical (CHM) | C77: HMCT | D77: hematocrit (anemia) | F77: RC | G77: Rectum
A78: BIOCHEMISTRY (BIO) | B78: Biochemical (CHM) | C78: HMGL | D78: hemoglobin | F78: RT | G78: Reproductive Tissue
A79: BIOCHEMISTRY (BIO) | B79: Biochemical (CHM) | C79: IBIL | D79: indirect bilirubin (free) | F79: SV | G79: Seminal Vesicle
A80: BIOCHEMISTRY (BIO) | B80: Biochemical (CHM) | C80: ILEU | D80: isoleucine | F80: SE | G80: Sensory Organs
A81: BIOCHEMISTRY (BIO) | B81: Biochemical (CHM) | C81: LACT | D81: lactate | F81: SR | G81: Serum
A82: BIOCHEMISTRY (BIO) | B82: Biochemical (CHM) | C82: LCTA | D82: lactic acid | F82: SN | G82: Skeleton
A83: BIOCHEMISTRY (BIO) | B83: Biochemical (CHM) | C83: LEUC | D83: leucine | F83: SK | G83: Skin, Epidermis
A84: BIOCHEMISTRY (BIO) | B84: Biochemical (CHM) | C84: LEUK | D84: leukocytes | F84: SG | G84: Shell Gland
A85: BIOCHEMISTRY (BIO) | B85: Biochemical (CHM) | C85: LIPD | D85: lipid | F85: SL | G85: Shell
A86: BIOCHEMISTRY (BIO) | B86: Biochemical (CHM) | C86: LMPH | D86: lymphocyte | F86: SM | G86: Sperm
A87: BIOCHEMISTRY (BIO) | B87: Biochemical (CHM) | C87: LPSA | D87: lipid soluble antioxidants | F87: SP | G87: Spleen
A88: BIOCHEMISTRY (BIO) | B88: Biochemical (CHM) | C88: LYSI | D88: lysine | F88: SH | G88: Stomach
A89: BIOCHEMISTRY (BIO) | B89: Biochemical (CHM) | C89: MCHC | D89: mean corpuscular hemoglobin | F89: ST | G89: Soft Tissue
A90: BIOCHEMISTRY (BIO) | B90: Biochemical (CHM) | C90: MCPR | D90: microsomal proteins | F90: SX | G90: Submaxillary Gland
A91: BIOCHEMISTRY (BIO) | B91: Biochemical (CHM) | C91: MCPV | D91: mean corpuscular volume | F91: TA | G91: Tail
A92: BIOCHEMISTRY (BIO) | B92: Biochemical (CHM) | C92: METH | D92: methionine | F92: TE | G92: Testes
A93: BIOCHEMISTRY (BIO) | B93: Biochemical (CHM) | C93: MONO | D93: monocyte | F93: TG | G93: Thigh muscle
A94: BIOCHEMISTRY (BIO) | B94: Biochemical (CHM) | C94: NADP | D94: nicatinamide-adenine dinucleotide phosphate, reduced | F94: TH | G94: Teeth
A95: BIOCHEMISTRY (BIO) | B95: Biochemical (CHM) | C95: NEAA | D95: amino acides, nonessential | F95: TB | G95: Tibia
A96: BIOCHEMISTRY (BIO) | B96: Biochemical (CHM) | C96: NEFA | D96: fatty acids, nonesterified | F96: TI | G96: Tissue
A97: BIOCHEMISTRY (BIO) | B97: Biochemical (CHM) | C97: NEUT | D97: neutrophil | F97: TS | G97: Thymus
A98: BIOCHEMISTRY (BIO) | B98: Biochemical (CHM) | C98: ORNI | D98: ornithine | F98: TY | G98: Thyroid
A99: BIOCHEMISTRY (BIO) | B99: Biochemical (CHM) | C99: OSRS | D99: osmotic resistance/RBC | F99: UB | G99: Urinary Bladder
A100: BIOCHEMISTRY (BIO) | B100: Biochemical (CHM) | C100: PCLV | D100: packed cell volume | F100: UR | G100: Urine
A101: BIOCHEMISTRY (BIO) | B101: Biochemical (CHM) | C101: PHPH | D101: pH | F101: UT | G101: Uterus
A102: BIOCHEMISTRY (BIO) | B102: Biochemical (CHM) | C102: PHEN | D102: phenyalanine | F102: VA | G102: Vagina
A103: BIOCHEMISTRY (BIO) | B103: Biochemical (CHM) | C103: PPHT | D103: phosphate | F103: VD | G103: Vas Deferens
A104: BIOCHEMISTRY (BIO) | B104: Biochemical (CHM) | C104: PHSP | D104: phosphatide phosphorus | F104: VE | G104: Vertebra
A105: BIOCHEMISTRY (BIO) | B105: Biochemical (CHM) | C105: PCON | D105: phosphorus | F105: VI | G105: Viscera
A106: BIOCHEMISTRY (BIO) | B106: Biochemical (CHM) | C106: PHST | D106: phospholipid content, total | F106: WI | G106: Wings
A107: BIOCHEMISTRY (BIO) | B107: Biochemical (CHM) | C107: PORP | D107: porphyrin | F107: WO | G107: Whole Organism
A108: BIOCHEMISTRY (BIO) | B108: Biochemical (CHM) | C108: KCON | D108: potassium | F108: YO | G108: Yolk
A109: BIOCHEMISTRY (BIO) | B109: Biochemical (CHM) | C109: PRTO | D109: protoporhyrin | F109: XX | G109: Temporary code, requires validation
A110: BIOCHEMISTRY (BIO) | B110: Biochemical (CHM) | C110: PYRV | D110: pyruvate
A111: BIOCHEMISTRY (BIO) | B111: Biochemical (CHM) | C111: RGSH | D111: reduced gluthione
A112: BIOCHEMISTRY (BIO) | B112: Biochemical (CHM) | C112: NPSH | D112: nonprotein sulfhydryl
A113: BIOCHEMISTRY (BIO) | B113: Biochemical (CHM) | C113: RBCE | D113: red blood cell
A114: BIOCHEMISTRY (BIO) | B114: Biochemical (CHM) | C114: RBVL | D114: relative blood volume (volume/100g body weight)
A115: BIOCHEMISTRY (BIO) | B115: Biochemical (CHM) | C115: RETI | D115: reticulocytes
A116: BIOCHEMISTRY (BIO) | B116: Biochemical (CHM) | C116: SERI | D116: serine
A117: BIOCHEMISTRY (BIO) | B117: Biochemical (CHM) | C117: NACO | D117: sodium
A118: BIOCHEMISTRY (BIO) | B118: Biochemical (CHM) | C118: SOMC | D118: somatomedin C
A119: BIOCHEMISTRY (BIO) | B119: Biochemical (CHM) | C119: SPLO | D119: splenocytes
A120: BIOCHEMISTRY (BIO) | B120: Biochemical (CHM) | C120: SRTN | D120: serotonin
A121: BIOCHEMISTRY (BIO) | B121: Biochemical (CHM) | C121: TEAM | D121: tetraethylammonium
A122: BIOCHEMISTRY (BIO) | B122: Biochemical (CHM) | C122: TFAA | D122: amino acids, total free
A123: BIOCHEMISTRY (BIO) | B123: Biochemical (CHM) | C123: THBA | D123: thiobarbituric acid
A124: BIOCHEMISTRY (BIO) | B124: Biochemical (CHM) | C124: THIA | D124: thiamine
A125: BIOCHEMISTRY (BIO) | B125: Biochemical (CHM) | C125: THRE | D125: threonine
A126: BIOCHEMISTRY (BIO) | B126: Biochemical (CHM) | C126: THRM | D126: thrombocytes
A127: BIOCHEMISTRY (BIO) | B127: Biochemical (CHM) | C127: TLBL | D127: bilirubin, total
A128: BIOCHEMISTRY (BIO) | B128: Biochemical (CHM) | C128: PRTL | D128: protein, total
A129: BIOCHEMISTRY (BIO) | B129: Biochemical (CHM) | C129: TRIB | D129: tributyrin
A130: BIOCHEMISTRY (BIO) | B130: Biochemical (CHM) | C130: TRIG | D130: triglycerides
A131: BIOCHEMISTRY (BIO) | B131: Biochemical (CHM) | C131: TYRO | D131: tyrosine
A132: BIOCHEMISTRY (BIO) | B132: Biochemical (CHM) | C132: TRYP | D132: tryptophan
A133: BIOCHEMISTRY (BIO) | B133: Biochemical (CHM) | C133: TTAA | D133: amino acids, total
A134: BIOCHEMISTRY (BIO) | B134: Biochemical (CHM) | C134: TWBC | D134: white blood cell count, total
A135: BIOCHEMISTRY (BIO) | B135: Biochemical (CHM) | C135: UBWB | D135: white blood cell, undifferentiated blasts
A136: BIOCHEMISTRY (BIO) | B136: Biochemical (CHM) | C136: UREA | D136: urea
A137: BIOCHEMISTRY (BIO) | B137: Biochemical (CHM) | C137: URIC | D137: uric acid
A138: BIOCHEMISTRY (BIO) | B138: Biochemical (CHM) | C138: VALI | D138: valine
A139: BIOCHEMISTRY (BIO) | B139: Biochemical (CHM) | C139: VTD3 | D139: vitamin D3
A140: BIOCHEMISTRY (BIO) | B140: Biochemical (CHM) | C140: VTMA | D140: vitamin A
A141: BIOCHEMISTRY (BIO) | B141: Biochemical (CHM) | C141: ZNPR | D141: zinc protoporphyrin
A142: BIOCHEMISTRY (BIO) | B142: Enzyme (ENZ) | C142: 20HB | D142: 2-OH biphenyl hydroxylase
A143: BIOCHEMISTRY (BIO) | B143: Enzyme (ENZ) | C143: 40HB | D143: 4-OH biphenyl hydroxylase
A144: BIOCHEMISTRY (BIO) | B144: Enzyme (ENZ) | C144: 450R | D144: Cyt P450 reductase
A145: BIOCHEMISTRY (BIO) | B145: Enzyme (ENZ) | C145: DHYD | D145: NADPH dehydrogenase
A146: BIOCHEMISTRY (BIO) | B146: Enzyme (ENZ) | C146: AATT | D146: alanine aminotransferase
A147: BIOCHEMISTRY (BIO) | B147: Enzyme (ENZ) | C147: ACHE | D147: acetylcholinesterase
A148: BIOCHEMISTRY (BIO) | B148: Enzyme (ENZ) | C148: ACPH | D148: acid phosphatase
A149: BIOCHEMISTRY (BIO) | B149: Enzyme (ENZ) | C149: AEPX | D149: aldrin epoxidase
A150: BIOCHEMISTRY (BIO) | B150: Enzyme (ENZ) | C150: AHHD | D150: aryl hydrocarbon hydrolase
A151: BIOCHEMISTRY (BIO) | B151: Enzyme (ENZ) | C151: AHDX | D151: aniline hydroxylase
A152: BIOCHEMISTRY (BIO) | B152: Enzyme (ENZ) | C152: ALAD | D152: (delta) -aminolevulinic acid dehydrogenase
A153: BIOCHEMISTRY (BIO) | B153: Enzyme (ENZ) | C153: ALAS | D153: (gamma) y-ALA synthetase
A154: BIOCHEMISTRY (BIO) | B154: Enzyme (ENZ) | C154: ALDO | D154: aldolase
A155: BIOCHEMISTRY (BIO) | B155: Enzyme (ENZ) | C155: ALPH | D155: alkaline phosphatase
A156: BIOCHEMISTRY (BIO) | B156: Enzyme (ENZ) | C156: ANAE | D156: alpha naphthyl acetat esterase
A157: BIOCHEMISTRY (BIO) | B157: Enzyme (ENZ) | C157: APND | D157: aminopyin n-demethylase
A158: BIOCHEMISTRY (BIO) | B158: Enzyme (ENZ) | C158: ATRP | D158: alanine transpeptidase
A159: BIOCHEMISTRY (BIO) | B159: Enzyme (ENZ) | C159: ASAT | D159: aspartate aminotransferase
A160: BIOCHEMISTRY (BIO) | B160: Enzyme (ENZ) | C160: BAPH | D160: benzo(a)pyrene hydroxylase
A161: BIOCHEMISTRY (BIO) | B161: Enzyme (ENZ) | C161: BCHE | D161: buterylcholinesterase
A162: BIOCHEMISTRY (BIO) | B162: Enzyme (ENZ) | C162: BCOD | D162: butoxycoumurin O-dealkylase
A163: BIOCHEMISTRY (BIO) | B163: Enzyme (ENZ) | C163: BHXA | D163: benzpyrene hydroxylase
A164: BIOCHEMISTRY (BIO) | B164: Enzyme (ENZ) | C164: BPND | D164: benzphetamine-n-demethylase
A165: BIOCHEMISTRY (BIO) | B165: Enzyme (ENZ) | C165: BROD | D165: benzylresorufin O-deethylase
A166: BIOCHEMISTRY (BIO) | B166: Enzyme (ENZ) | C166: CAAH | D166: carbonic anhydrase
A167: BIOCHEMISTRY (BIO) | B167: Enzyme (ENZ) | C167: CACA | D167: choline acetyltransferase
A168: BIOCHEMISTRY (BIO) | B168: Enzyme (ENZ) | C168: CATP | D168: calcium ATPase
A169: BIOCHEMISTRY (BIO) | B169: Enzyme (ENZ) | C169: CYB5 | D169: cytochrome B-5
A170: BIOCHEMISTRY (BIO) | B170: Enzyme (ENZ) | C170: CCOX | D170: cytochrome C-oxidase
A171: BIOCHEMISTRY (BIO) | B171: Enzyme (ENZ) | C171: CEST\ | D171: chloinesterase
A172: BIOCHEMISTRY (BIO) | B172: Enzyme (ENZ) | C172: CRKI | D172: creatine kinase
A173: BIOCHEMISTRY (BIO) | B173: Enzyme (ENZ) | C173: NCCR | D173: NADPH cytochrome C reductase
A174: BIOCHEMISTRY (BIO) | B174: Enzyme (ENZ) | C174: EPHY | D174: epoxide hydrase
A175: BIOCHEMISTRY (BIO) | B175: Enzyme (ENZ) | C175: ECOD | D175: ethoxycoumurin O-deethylase
A176: BIOCHEMISTRY (BIO) | B176: Enzyme (ENZ) | C176: EROD | D176: 7-ethoxyresorufin O-deethylase
A177: BIOCHEMISTRY (BIO) | B177: Enzyme (ENZ) | C177: ESTE | D177: esterase
A178: BIOCHEMISTRY (BIO) | B178: Enzyme (ENZ) | C178: FDPA | D178: fructos-diphosphate aldolase
A179: BIOCHEMISTRY (BIO) | B179: Enzyme (ENZ) | C179: GENZ | D179: general enzyme
A180: BIOCHEMISTRY (BIO) | B180: Enzyme (ENZ) | C180: G6PD | D180: glucose-6-phosphate dehydrogenase
A181: BIOCHEMISTRY (BIO) | B181: Enzyme (ENZ) | C181: GGTR | D181: (gamma) Y-glutamyltransferase
A182: BIOCHEMISTRY (BIO) | B182: Enzyme (ENZ) | C182: GLAD | D182: glutamic acid dehydrogenase
A183: BIOCHEMISTRY (BIO) | B183: Enzyme (ENZ) | C183: GLPX | D183: gluathione peroxidase
A184: BIOCHEMISTRY (BIO) | B184: Enzyme (ENZ) | C184: GLRE | D184: gluthione reductase
A185: BIOCHEMISTRY (BIO) | B185: Enzyme (ENZ) | C185: GLTR | D185: glucouronyl transferase
A186: BIOCHEMISTRY (BIO) | B186: Enzyme (ENZ) | C186: GOTR | D186: glutamic-oxaloacetic transaminase
A187: BIOCHEMISTRY (BIO) | B187: Enzyme (ENZ) | C187: GPTR | D187: glutamic pyruvic transaminase
A188: BIOCHEMISTRY (BIO) | B188: Enzyme (ENZ) | C188: GSTR | D188: glutathione S-transferase
A189: BIOCHEMISTRY (BIO) | B189: Enzyme (ENZ) | C189: HXBH | D189: hexobarbital hydroxylase
A190: BIOCHEMISTRY (BIO) | B190: Enzyme (ENZ) | C190: LADH | D190: lactate dehydrogenase
A191: BIOCHEMISTRY (BIO) | B191: Enzyme (ENZ) | C191: LDMD | D191: lactate dehydrogenase/malic dehydrogenase ratio
A192: BIOCHEMISTRY (BIO) | B192: Enzyme (ENZ) | C192: MADH | D192: malic dehydrogenase
A193: BIOCHEMISTRY (BIO) | B193: Enzyme (ENZ) | C193: MCOD | D193: methoxycoumarin O-dealkylase
A194: BIOCHEMISTRY (BIO) | B194: Enzyme (ENZ) | C194: MG6P | D194: microsomal glucose 6-phosphatase
A195: BIOCHEMISTRY (BIO) | B195: Enzyme (ENZ) | C195: MAOA | D195: mono amino oxidase
A196: BIOCHEMISTRY (BIO) | B196: Enzyme (ENZ) | C196: MGAT | D196: magnesium ATPase
A197: BIOCHEMISTRY (BIO) | B197: Enzyme (ENZ) | C197: NKAT | D197: sodium potassium ATPase
A198: BIOCHEMISTRY (BIO) | B198: Enzyme (ENZ) | C198: ORCT | D198: ornithine carbamoyl transferase
A199: BIOCHEMISTRY (BIO) | B199: Enzyme (ENZ) | C199: P450 | D199: cytochrome P450 proteins
A200: BIOCHEMISTRY (BIO) | B200: Enzyme (ENZ) | C200: PBES | D200: phenyl benzoate esterase
... 181 more rows

Sheet Unit Conversions - IR - BW
A1: Unit Conversions | D1: Ingestion Rate Calculations | J1: Body Weight Values from Table 20 of Attachment 4-3 of the EcoSSL Guidance
A2: Dose Unit from Study | B2: NOAEL or LOAEL conversion to mg/kg/day | D2: Water: | J2: General Organism Type | K2: Specific Organism Type | L2: Sex in Table 20 | M2: Sex Assigned in Calculator Toola | N2: Lifestage in Table 20 | O2: Lifestage Assigned/Used in Calculator Tool | P2: Age in Table 20 | Q2: Age in Days (for use in Calculator Tool) | R2: Default BW in Table 20 (kg) | S2: Default BW Reference in Table 20
A3: ug/org/d | B3: Study NOAEL or LOAEL Dose(ug/org/d) * 1mg/1000ug * MW(%)/100% * 1/BW(kg) | D3: Water ingestion rates were calculated using the allometric equations from Calder Braun (1983). These equations are based on measured mean body weights and ingestion rates. | J3: cat | K3: unspecified | L3: M | M3: M/B | N3: juvenile | P3: weaning to 90 days | Q3: 28 - 89 | R3: 1.72 | S3: USEPA, 1987
A4: mg/kg bw/d | B4: Study NOAEL or LOAEL Dose(mg/kg bw/d) * MW(%)/100% | L4: M | M4: M/B | N4: sexually mature | O4: Juvenile | P4: 90 days to 1 year | Q4: 90 -364 | R4: 3.66 | S4: USEPA, 1987
A5: mg/kg/bw/d | B5: Study NOAEL or LOAEL Dose(mg/kg/bw/d) * MW(%)/100% | L5: M | M5: M/B | N5: adult | O5: Adult | P5: 1 year or older | Q5: ≥365 | R5: 4 | S5: USEPA, 1987
A6: mg/kg/d | B6: Study NOAEL or LOAEL Dose(mg/kg/d) * MW(%)/100% | D6: Bird - | E6: WIR = 0.059 * BW0.67 | L6: F | M6: F | N6: juvenile | P6: weaning to 90 days | Q6: 56 - 89 | R6: 1.49 | S6: USEPA, 1987
A7: ug/g bw/d | B7: Study NOAEL or LOAEL Dose(ug/g bw/d) * MW(%)/100% | D7: Mammal - | E7: WIR = 0.099 * BW0.9 | L7: F | M7: F | N7: sexually mature | O7: Juvenile | P7: 90 days to 1 year | Q7: 90 - 364 | R7: 2.96 | S7: USEPA, 1987
A8: mg/org/d | B8: Study NOAEL or LOAEL Dose(mg/org/d) * 1/BW(kg) * MW(%)/100% | E8: BW = body weight in kg | L8: F | M8: F | N8: adult | O8: Adult | P8: 1 year or older | Q8: ≥365 | R8: 3.1 | S8: USEPA, 1987
A9: mg/d | B9: Study NOAEL or LOAEL Dose(mg/d) * 1/BW(kg) * MW(%)/100% | E9: WIR = water ingestion rate in L/day | J9: cattle | K9: Beef | L9: BH | M9: M/F/B | N9: juvenile | O9: Juvenile | P9: weaning | Q9: 140 - 180 | R9: 220 | S9: Jurgens, 1972
A10: mg/kg diet | B10: Study NOAEL or LOAEL Dose(mg/kg diet) * MW(%)/100% * FIR(kg/day) * 1/BW(kg) | L10: BH | M10: M/F/B | N10: adult | O10: Adult | P10: > 1 year | Q10: >365 | R10: 454 | S10: Jurgens, 1972
A11: mg/L | B11: Study NOAEL or LOAEL Dose(mg/L) * MW(%)/100% * WIR(L/day) * 1/BW(kg) | D11: Food: | K11: Fresian | L11: F | M11: F | N11: juvenile | O11: Juvenile | P11: 10 months | Q11: 300 - 331 | R11: 99 | S11: Maro et al., 1980
A12: ppm in mg/kg | B12: Study NOAEL or LOAEL Dose(ppm in mg/kg) * MW(%)/100% * FIR(kg/day) *1/BW(kg) | D12: Food ingestion rates were calculated using the allometric equations from Nagy (2001). These equations are based on measured mean body weights and ingestion rates. | K12: Holstein | L12: F | M12: F | N12: Adult | O12: Adult | P12: Lactating, 58 months | Q12: ≥1740 | R12: 680 | S12: NRC (2001)
A13: mg/kg | B13: Study NOAEL or LOAEL Dose(mg/kg) * MW(%)/100% * FIR(kg/day) * 1/BW(kg) | K13: Jersey | L13: F | M13: F | N13: Adult | O13: Adult | P13: Lactating, 58 months | Q13: ≥1740 | R13: 454 | S13: NRC (2001)
A14: ug/g diet | B14: Study NOAEL or LOAEL Dose(ug/g diet) * MW(%)/100% * FIR(kg/day) * 1/ BW(kg) | K14: unspecified | L14: BH | M14: M/F/B | N14: juvenile | P14: 3 to 7 days | Q14: 3-7 | R14: 67 | S14: USEPA, 2005
A15: ug/g | B15: Study NOAEL or LOAEL Dose(ug/g) * MW(%)/100% * FIR(kg/day) * 1/BW(kg) | L15: BH | M15: M/F/B | N15: juvenile | P15: 6 to 8 weeks | Q15: 42 - 56 | R15: 119 | S15: USEPA, 2005
A16: ppm in mg/L | B16: Study NOAEL or LOAEL Dose(ppm in mg/L) * MW(%)/100% * WIR(L/day) * 1/BW(kg) | D16: FIR = (a * (BW*1000)b) / 1000 | L16: BH | M16: M/F/B | N16: juvenile | P16: 8 to 10 weeks | Q16: 56 - 77 | R16: 137 | S16: USEPA, 2005
A17: mg/ml | B17: Study NOAEL or LOAEL Dose(mg/ml) * 1000ml/1L * MW(%)/100% *WIR(L/day) * 1/BW(kg) | D17: a = organism specifc, see table below | L17: BH | M17: M/F/B | N17: juvenile | P17: 13 to 16 weeks | Q17: 91 - 119 | R17: 198 | S17: USEPA, 2005
A18: mg/g | B18: Study NOAEL or LOAEL Dose(mg/g) * 1000g/1kg * MW(%)/100% * FIR(kg/day) * 1/BW(kg) | D18: BW = body weight in kg | L18: BH | M18: M/F/B | N18: juvenile | O18: Juvenile | P18: 22 to 51 weeks | Q18: 154 - 364 | R18: 260 | S18: USEPA, 2005
A19: g/L | B19: Study NOAEL or LOAEL Dose(g/L) * 1000mg/1g * MW(%)/100% * WIR(L/day) * 1/BW(kg) | D19: b = organism specifc, see table below | J19: chicken | K19: domestic | L19: BH | M19: M/F/B | N19: juvenile | P19: 1 day | Q19: 1 | R19: 0.0397 | S19: Diaz et al 1994
A20: g/kg diet | B20: Study NOAEL or LOAEL Dose(g/kg diet) * 1000mg/1g * MW(%)/100% *FIR(kg/day) * 1/BW(kg) | D20: FIR = food ingestion rate in kg per day | L20: BH | M20: M/F/B | N20: juvenile | P20: 3 days | Q20: 3 | R20: 0.0543 | S20: Franson and Custer, 1982
A21: mg/g diet | B21: Study NOAEL or LOAEL Dose(mg/g diet) * 1000g/1kg * MW(%)/100% *FIR(kg/day) * 1/BW(kg) | D21: General Organism Type | E21: Nagy 2001 Group | F21: Notes | G21: a | H21: b | L21: BH | M21: M/F/B | N21: juvenile | P21: 7 days | Q21: 7 | R21: 0.084 | S21: Southern and Baker, 1981
A22: % in diet | B22: Study NOAEL or LOAEL Dose(% in diet) * 10000mg/kg * MW(%)/100% * FIR(kg/day) * 1/BW(kg) | D22: cat | E22: Carnivora | G22: 0.348 | H22: 0.859 | L22: BH | M22: M/F/B | N22: juvenile | P22: 14 days | Q22: 14 | R22: 0.328 | S22: Southern and Baker, 1981
A23: % in water | B23: Study NOAEL or LOAEL Dose(% in water)* 10000ml/L * MW(%)/100% * WIR(L/day) * 1/BW(kg) | D23: cattle | E23: Herbivores | G23: 2.606 | H23: 0.628 | L23: BH | M23: M/F/B | N23: juvenile | P23: 20 days | Q23: 20 | R23: 0.564 | S23: Donaldson and McGowan, 1989
A24: % water | B24: Study NOAEL or LOAEL Dose(% water)* 10000ml/L * MW(%)/100% * WIR(L/day) * 1/BW(kg) | D24: chicken | E24: All birds | F24: A | G24: 2.065 | H24: 0.689 | L24: BH | M24: M/F/B | N24: juvenile | O24: Juvenile | P24: 28 days | Q24: 28 | R24: 1.042 | S24: Diaz et al., 1994
A25: ug/kg bw/d | B25: Study NOAEL or LOAEL Dose(ug/kg bw/d) * 1mg/1000ug * MW(%)/100% | D25: dog | E25: Carnivora | G25: 0.348 | H25: 0.859 | K25: unspecified | L25: M | M25: M | N25: adult | O25: Adult | P25: Older than 30 days | Q25: >30 | R25: 1.3 | S25: Donaldson and McGowan, 1989
A26: g/kg bw/d | B26: Study NOAEL or LOAEL Dose(g/kg bw/d) * 1000mg/1g * MW(%)/100% | D26: dove | E26: All birds | F26: B | G26: 2.065 | H26: 0.689 | L26: F | M26: F/B | N26: adult | O26: Adult | P26: Older than 30 days | Q26: >30 | R26: 1.6 | S26: Donaldson and McGowan, 1989
A27: mg/g bw/d | B27: Study NOAEL or LOAEL Dose(mg/g bw/d) * 1000g/1kg * MW(%)/100% | D27: duck | E27: Omnivorous birds | G27: 2.094 | H27: 0.627 | J27: dog | K27: unspecified | L27: M | M27: M/B | N27: juvenile | P27: weaning to 90 days | Q27: 21 - 89 | R27: 2.4 | S27: USEPA, 1987
A28: g/d | B28: Study NOAEL or LOAEL Dose(g/d) * 1000mg/1g * MW(%)/100% * 1/BW(kg) | D28: eagle | E28: Carnivorous birds | G28: 3.048 | H28: 0.665 | L28: M | M28: M/B | N28: sexually mature | O28: Juvenile | P28: 90 days to 1 year | Q28: 90 - 364 | R28: 10.8 | S28: USEPA, 1987
A29: g/org/d | B29: Study NOAEL or LOAEL Dose(g/org/d) * 1000mg/1g * MW(%)/100% * 1/BW(kg) | D29: finch | E29: Passerines | G29: 2.438 | H29: 0.607 | L29: M | M29: M/F/B | N29: adult | O29: Adult | P29: 1 year or older | Q29: ≥365 | R29: 14 | S29: USEPA, 1987
A30: g/org/day | B30: Study NOAEL or LOAEL Dose(g/org/day) * 1000mg/1g * MW(%)/100% * 1/BW(kg) | D30: gerbil | E30: Rodentia | G30: 0.588 | H30: 0.864 | L30: F | M30: F | N30: juvenile | P30: weaning to 90 days | Q30: 21 - 89 | R30: 1.97 | S30: USEPA, 1987
A31: ug/kg | B31: Study NOAEL or LOAEL Dose(ug/kg) * 1mg/1000ug * MW(%)/100% * FIR(kg/day) * 1/BW(kg) | D31: guinea pig | E31: Rodentia | G31: 0.588 | H31: 0.864 | L31: F | M31: F | N31: sexually mature | O31: Juvenile | P31: 90 days to 1 year | Q31: 90 - 364 | R31: 10.1 | S31: USEPA, 1987
A32: ng/g diet | B32: Study NOAEL or LOAEL Dose(ng/g diet) * 1mg/1000000ng * 1000g/1kg * MW(%)/100% * FIR(kg/day) * 1/BW(kg) | D32: hamster | E32: Rodentia | G32: 0.588 | H32: 0.864 | J32: dove | K32: ringed turtle | L32: B | M32: M/F/B | N32: juvenile | P32: 0 days | Q32: 0 | R32: 0.01 | S32: Carriere et al., 1986
A33: ug/kg diet | B33: Study NOAEL or LOAEL Dose(ug/kg diet) * 1mg/1000ug * MW(%)/100% * FIR(kg/day) * 1/BW(kg) | D33: horse | E33: All mammals | G33: 0.794 | H33: 0.773 | L33: B | M33: M/F/B | N33: juvenile | P33: 7 days | Q33: 7 | R33: 0.057 | S33: Carriere et al., 1986; Kendall and Scanlon, 1981
A34: ug/L | B34: Study NOAEL or LOAEL Dose(ug/L) * 1mg/1000ug * MW(%)/100% * WIR(L/day) * 1/BW(kg) | D34: kestrel | E34: Carnivorous birds | G34: 3.048 | H34: 0.665 | L34: B | M34: M/F/B | N34: juvenile | P34: 14 days | Q34: 14 | R34: 0.092 | S34: Carriere et al., 1986; Kendall and Scanlon, 1981
A35: Notes: | D35: mink | E35: Carnivora | G35: 0.348 | H35: 0.859 | L35: B | M35: M/F/B | N35: juvenile | P35: 21 days | Q35: 21 | R35: 0.117 | S35: Carriere et al., 1986; Kendall and Scanlon, 1981
A36: BW | B36: Body Weight | D36: mouse | E36: Rodentia | G36: 0.588 | H36: 0.864 | L36: B | M36: M/F/B | N36: juvenile | O36: Juvenile | P36: 28 days | Q36: 28 | R36: 0.134 | S36: Carriere et al., 1986
A37: FIR | B37: Food Ingestion Rate | D37: pheasant | E37: All birds | F37: A | G37: 2.065 | H37: 0.689 | L37: B | M37: M/F/B | N37: adult | O37: Adult | P37: Adult | Q37: >28 | R37: 0.144 | S37: Carriere et al., 1986; Kendall and Scanlon, 1981; Keith and Mitchell, 1993
A38: LOAEL | B38: Lowest Observed Adverse Effect Level | D38: owl | E38: Carnivorous birds | G38: 3.048 | H38: 0.665 | J38: duck | K38: mallard | L38: JV | M38: M/F/B | N38: juvenile | P38: 10 days | Q38: 10 | R38: 0.092 | S38: USEPA, 1993
A39: MW | B39: Molecular Weight | D39: pigeon | E39: All birds | F39: B | G39: 2.065 | H39: 0.689 | L39: JV | M39: M/F/B | N39: juvenile | O39: Juvenile | P39: 30 days | Q39: 30 | R39: 0.46 | S39: USEPA, 1993
A40: NOAEL | B40: No Observed Adverse Effect Level | D40: pig | E40: All mammals | G40: 0.794 | H40: 0.773 | L40: F | M40: F | N40: adult | O40: Adult | P40: Adult | Q40: ≥84 | R40: 1.1 | S40: USEPA, 1993
A41: WIR | B41: Water Ingestion Rate | D41: quail | E41: All birds | F41: A | G41: 2.065 | H41: 0.689 | L41: M | M41: M/B | N41: adult | O41: Adult | P41: Adult | Q41: ≥84 | R41: 1.2 | S41: USEPA, 1993
D42: rabbit | E42: All mammals | G42: 0.794 | H42: 0.773 | K42: white pekin | L42: B | M42: M/F/B | N42: juvenile | P42: 0 days | Q42: 0 | R42: 0.06 | S42: NRC, 1994
D43: rat | E43: Rodentia | G43: 0.588 | H43: 0.864 | L43: B | M43: M/F/B | N43: juvenile | P43: 7 days | Q43: 7 | R43: 0.27 | S43: NRC, 1994
D44: blackbird | E44: Passerines | G44: 2.438 | H44: 0.607 | L44: F | M44: F | N44: juvenile | P44: 14 days | Q44: 14 | R44: 0.74 | S44: NRC, 1994
D45: sheep | E45: All mammals | G45: 0.794 | H45: 0.773 | L45: F | M45: F | N45: juvenile | P45: 21 days | Q45: 21 | R45: 1.28 | S45: NRC, 1994
D46: shrew | E46: Rodentia | G46: 0.588 | H46: 0.864 | L46: F | M46: F | N46: juvenile | P46: 28 days | Q46: 28 | R46: 1.82 | S46: NRC, 1994
D47: sparrow | E47: Passerines | G47: 2.438 | H47: 0.607 | L47: F | M47: F | N47: juvenile | P47: 35 days | Q47: 35 | R47: 2.3 | S47: NRC, 1994
D48: starling | E48: Passerines | G48: 2.438 | H48: 0.607 | L48: F | M48: F | N48: juvenile | P48: 42 days | Q48: 42 | R48: 2.73 | S48: NRC, 1994
D49: turkey | E49: All birds | F49: A | G49: 2.065 | H49: 0.689 | L49: F | M49: F | N49: juvenile | P49: 49 days | Q49: 49 | R49: 3.06 | S49: NRC, 1994
D50: vole | E50: Rodentia | G50: 0.588 | H50: 0.864 | L50: F | M50: F | N50: juvenile | O50: Juvenile | P50: 56 days | Q50: 56 | R50: 3.29 | S50: NRC, 1994
D51: Notes: | L51: M | M51: M/B | N51: juvenile | P51: 14 days | Q51: 14 | R51: 0.78 | S51: NRC, 1994
D52: A No FMI regression for galliformes | L52: M | M52: M/B | N52: juvenile | P52: 21 days | Q52: 21 | R52: 1.38 | S52: NRC, 1994
D53: B Doves will consume insects, but primary food is seeds, selected "all bird" | L53: M | M53: M/B | N53: juvenile | P53: 28 days | Q53: 28 | R53: 1.96 | S53: NRC, 1994
L54: M | M54: M/B | N54: juvenile | P54: 35 days | Q54: 35 | R54: 2.49 | S54: NRC, 1994
L55: M | M55: M/B | N55: juvenile | P55: 42 days | Q55: 42 | R55: 2.96 | S55: NRC, 1994
D56: Calder, W. A. (1981). "Scaling of physiological processes in homeothermic animals." Ann. Rev. Physiol. 43: 301-322. | L56: M | M56: M/B | N56: juvenile | P56: 49 days | Q56: 49 | R56: 3.34 | S56: NRC, 1994
L57: M | M57: M/B | N57: juvenile | O57: Juvenile | P57: 56 days | Q57: 56 | R57: 3.61 | S57: NRC, 1994
D58: Calder, W. A. and E. J. Braun (1983). "Scaling of osmotic regulation in mammals and birds." American Journal of Physiology 244: R601-R606. | J58: eagle | K58: bald eagle | L58: M | M58: M | N58: adult | O58: Adult | P58: Adult | Q58: >2007 | R58: 4.13 | S58: Dunning, 1993
L59: F | M59: F/B | N59: adult | O59: Adult | P59: Adult | Q59: >2007 | R59: 5.35 | S59: Dunning, 1993
D60: Chew, R. M. (1965). Water Metabolism in Mammals. Physiological Mammalogy. W. V. Mayer and R. G. Van Gelder. New York, Academic Press: 43-178. | J60: finch | K60: zebra finch | L60: B | M60: B | N60: adult | O60: Adult | P60: Adult | Q60: ≥90 | R60: 0.012 | S60: Dunning, 1993
J61: gerbil | K61: unspecified | L61: M | M61: M/B | N61: juvenile | P61: weaning to 90 days | Q61: 28 -89 | R61: 0.048 | S61: USEPA, 1987
L62: M | M62: M/B | N62: juvenile | O62: Juvenile | P62: 90 days to 1 year | Q62: 90 - 364 | R62: 0.084 | S62: USEPA, 1987
D63: Nagy, K. A. (2001). "Food requirements of wild animals: Predictive equations for free living mammals, reptiles, and birds." Nutrition Abstracts and Reviews Series B71: 21R-31R. | L63: M | M63: M/B | N63: adult | O63: Adult | P63: 1 year or older | Q63: ≥365 | R63: 0.1 | S63: USEPA, 1987
L64: F | M64: F | N64: juvenile | P64: weaning to 90 days | Q64: 28 -89 | R64: 0.04 | S64: USEPA, 1987
L65: F | M65: F | N65: juvenile | O65: Juvenile | P65: 90 days to 1 year | Q65: 90 - 364 | R65: 0.073 | S65: USEPA, 1987
L66: F | M66: F | N66: adult | O66: Adult | P66: 1 year or older | Q66: ≥365 | R66: 0.09 | S66: USEPA, 1987
J67: guinea pig | K67: unspecified | L67: M | M67: M/B | N67: juvenile | P67: weaning to 90 days | Q67: 21 -89 | R67: 0.48 | S67: USEPA, 1987
L68: M | M68: M/B | N68: juvenile | O68: Juvenile | P68: 90 days to 1 year | Q68: 90 - 364 | R68: 0.89 | S68: USEPA, 1987
L69: M | M69: M/B | N69: adult | O69: Adult | P69: 1 year or older | Q69: ≥365 | R69: 1 | S69: USEPA, 1987
L70: F | M70: F | N70: juvenile | P70: weaning to 90 days | Q70: 21 -89 | R70: 0.39 | S70: USEPA, 1987
L71: F | M71: F | N71: juvenile | O71: Juvenile | P71: 90 days to 1 year | Q71: 90 - 364 | R71: 0.86 | S71: USEPA, 1987
L72: F | M72: F | N72: adult | O72: Adult | P72: 1 year or older | Q72: ≥365 | R72: 0.9 | S72: USEPA, 1987
J73: hamster | K73: golden Syrian | L73: M | M73: M/B | N73: juvenile | P73: weaning to 90 days | Q73: 21 - 89 | R73: 0.097 | S73: USEPA, 1987
L74: M | M74: M | N74: juvenile | O74: Juvenile | P74: 90 days to 1 year | Q74: 90 - 364 | R74: 0.134 | S74: USEPA, 1987
L75: M | M75: M | N75: adult | O75: Adult | P75: 1 year or older | Q75: ≥365 | R75: 0.15 | S75: USEPA, 1987
L76: F | M76: F | N76: juvenile | P76: weaning to 90 days | Q76: 21 - 89 | R76: 0.095 | S76: USEPA, 1987
L77: F | M77: F/B | N77: juvenile | O77: Juvenile | P77: 90 days to 1 year | Q77: 90 - 364 | R77: 0.145 | S77: USEPA, 1987
L78: F | M78: F/B | N78: adult | O78: Adult | P78: 1 year or older | Q78: ≥365 | R78: 0.16 | S78: USEPA, 1987
K79: Chinese & Djungarain | L79: M | M79: M/B | N79: juvenile | P79: weaning to 90 days | Q79: 21 - 89 | R79: 0.03 | S79: USEPA, 1987
L80: M | M80: M/B | N80: juvenile | O80: Juvenile | P80: 90 days to 1 year | Q80: 90 - 364 | R80: 0.041 | S80: USEPA, 1987
L81: M | M81: M/B | N81: adult | O81: Adult | P81: 1 year or older | Q81: ≥365 | R81: 0.04 | S81: USEPA, 1987
L82: F | M82: F | N82: juvenile | P82: weaning to 90 days | Q82: 21 - 89 | R82: 0.025 | S82: USEPA, 1987
L83: F | M83: F | N83: juvenile | O83: Juvenile | P83: 90 days to 1 year | Q83: 90 - 364 | R83: 0.038 | S83: USEPA, 1987
L84: F | M84: F | N84: adult | O84: Adult | P84: 1 year or older | Q84: ≥365 | R84: 0.035 | S84: USEPA, 1987
K85: unspecified | L85: M | M85: M | N85: juvenile | P85: weaning to 90 days | Q85: 21 - 89 | R85: 0.0635 | S85: USEPA, 1987
L86: M | M86: M | N86: juvenile | O86: Juvenile | P86: 90 days to 1 year | Q86: 90 - 364 | R86: 0.0875 | S86: USEPA, 1987
L87: M | M87: M | N87: adult | O87: Adult | P87: 1 year or older | Q87: ≥365 | R87: 0.095 | S87: USEPA, 1987
L88: F | M88: F/B | N88: juvenile | P88: weaning to 90 days | Q88: 21 - 89 | R88: 0.2425 | S88: USEPA, 1987
L89: F | M89: F/B | N89: juvenile | O89: Juvenile | P89: 90 days to 1 year | Q89: 90 - 364 | R89: 0.5025 | S89: USEPA, 1987
L90: F | M90: F/B | N90: adult | O90: Adult | P90: 1 year or older | Q90: ≥365 | R90: 1.03 | S90: USEPA, 1987
J91: horse | K91: unspecified | L91: M | M91: M/B | N91: foal | P91: 2 to 5 months | Q91: 60 - 149 | R91: 181.44 | S91: Jurgens, 1993
L92: M | M92: M/B | N92: weanling | P92: 5 to 12 months | Q92: 150 - 364 | R92: 317.51 | S92: Jurgens, 1993
L93: M | M93: M/B | N93: yearling | O93: Juvenile | P93: 12 to 24 months | Q93: 365 - 729 | R93: 408.23 | S93: Jurgens, 1993
L94: B | M94: M/F/B | N94: adult | O94: Adult | P94: > 2 year | Q94: ≥730 | R94: 498.95 | S94: Jurgens, 1993
J95: kestrel | K95: American | L95: F | M95: F/B | N95: egg-laying | O95: Adult | P95: unspecified | Q95: ≥20 | R95: 0.138 | S95: Dunning, 1993
L96: M | M96: M | N96: adult | O96: Adult | P96: unspecified | Q96: ≥20 | R96: 0.114 | S96: Dunning, 1993
J97: mink | K97: unspecified | L97: M | M97: M/B | N97: juvenile | O97: Juvenile | P97: weaning to 49 days | Q97: 42 - 49 | R97: 1.02 | S97: USEPA 1993
K98: unspecified | L98: M | M98: M/B | N98: adult | O98: Adult | P98: > 1 year | Q98: >365 | R98: 1.18 | S98: USEPA 1993
K99: unspecified | L99: F | M99: F | N99: juvenile | O99: Juvenile | P99: weaning to 49 days | Q99: 42 - 49 | R99: 0.583 | S99: USEPA 1993
K100: unspecified | L100: F | M100: F | N100: adult | O100: Adult | P100: > 1 year | Q100: >365 | R100: 0.596 | S100: USEPA 1993
J101: mouse | K101: BAF1 | L101: M | M101: M/B | N101: juvenile | P101: weaning to 90 days | Q101: 21 - 89 | R101: 0.0223 | S101: USEPA, 1987
L102: M | M102: M/B | N102: juvenile | P102: 90 days to 1 year | Q102: 90 - 364 | R102: 0.0261 | S102: USEPA, 1987
L103: M | M103: M/B | N103: adult | O103: Adult | P103: 1 year or older | Q103: ≥365 | R103: 0.035 | S103: USEPA, 1987
L104: F | M104: F | N104: juvenile | P104: weaning to 90 days | Q104: 21 - 89 | R104: 0.0204 | S104: USEPA, 1987
L105: F | M105: F | N105: juvenile | P105: 90 days to 1 year | Q105: 90 - 364 | R105: 0.0222 | S105: USEPA, 1987
L106: F | M106: F | N106: adult | O106: Adult | P106: 1 year or older | Q106: ≥365 | R106: 0.03 | S106: USEPA, 1987
K107: B6C3F1 | L107: M | M107: M/B | N107: juvenile | P107: weaning to 90 days | Q107: 21 - 89 | R107: 0.0316 | S107: USEPA, 1987
L108: M | M108: M/B | N108: juvenile | O108: Juvenile | P108: 90 days to 1 year | Q108: 90 - 364 | R108: 0.0373 | S108: USEPA, 1987
L109: M | M109: M/B | N109: adult | O109: Adult | P109: 1 year or older | Q109: >365 | R109: 0.04 | S109: USEPA, 1987
L110: F | M110: F | N110: juvenile | P110: weaning to 90 days | Q110: 21 - 89 | R110: 0.0246 | S110: USEPA, 1987
L111: F | M111: F | N111: juvenile | O111: Juvenile | P111: 90 days to 1 year | Q111: 90 - 364 | R111: 0.0353 | S111: USEPA, 1987
L112: F | M112: F | N112: adult | O112: Adult | P112: 1 year or older | Q112: ≥365 | R112: 0.035 | S112: USEPA, 1987
K113: deer mouse | L113: M | M113: M/B | N113: adult | O113: Adult | P113: Adult | Q113: ≥42 | R113: 0.02 | S113: USEPA, 1993
L114: F | M114: F | N114: adult | O114: Adult | P114: Adult | Q114: ≥42 | R114: 0.019 | S114: USEPA, 1993
K115: unspecified | L115: M | M115: M/B | N115: juvenile | P115: weaning to 90 days | Q115: 21 - 89 | R115: 0.02695 | S115: USEPA, 1987
L116: M | M116: M/B | N116: juvenile | O116: Juvenile | P116: 90 days to 1 year | Q116: 90 - 364 | R116: 0.0317 | S116: USEPA, 1987
L117: M | M117: M/B | N117: adult | O117: Adult | P117: 1 year or older | Q117: ≥365 | R117: 0.0375 | S117: USEPA, 1987
L118: F | M118: F | N118: juvenile | P118: weaning to 90 days | Q118: 21 - 89 | R118: 0.0225 | S118: USEPA, 1987
L119: F | M119: F | N119: juvenile | O119: Juvenile | P119: 90 days to 1 year | Q119: 90 - 364 | R119: 0.02875 | S119: USEPA, 1987
L120: F | M120: F | N120: adult | O120: Adult | P120: 1 year or older | Q120: ≥365 | R120: 0.0325 | S120: USEPA, 1987
J121: pheasant | K121: ring-necked | L121: F | M121: F | N121: adult | O121: Adult | P121: Adult | Q121: ≥42 | R121: 0.95 | S121: Dunning, 1993
L122: M | M122: M/B | N122: adult | O122: Adult | P122: Adult | Q122: ≥42 | R122: 1.3 | S122: Dunning, 1993
J123: owl | K123: barn owl | L123: M | M123: M | N123: adult | O123: Adult | P123: Adult | Q123: ≥240 | R123: 0.479 | S123: Dunning, 1993
L124: F | M124: F/B | N124: adult | O124: Adult | P124: Adult | Q124: ≥240 | R124: 0.568 | S124: Dunning, 1993
J125: pigeon | K125: pigeon | L125: F | M125: F | N125: adult | O125: Adult | P125: Adult | Q125: ≥213 | R125: 0.34 | S125: Dunning, 1993
L126: M | M126: M/B | N126: adult | O126: Adult | P126: Adult | Q126: ≥213 | R126: 0.369 | S126: Dunning, 1993
J127: pig | K127: miniature | L127: M | M127: M/F/B | N127: adult | O127: Adult | P127: Adult | Q127: ≥365 | R127: 72.5 | S127: USEPA, 1987
K128: unspecified | L128: BH | M128: M/F/B | N128: juvenile | P128: 1 d | Q128: 1 | R128: 1.2 | S128: Spears et al, 1984
L129: BH | M129: M/F/B | N129: juvenile | P129: 21 to 25 days | Q129: 21 | R129: 6.6 | S129: USEPA 2005
L130: BH | M130: M/F/B | N130: juvenile | P130: 26 to 29 days | Q130: 26 | R130: 7.9 | S130: USEPA 2005
L131: BH | M131: M/F/B | N131: juvenile | P131: 30 TO 35 days | Q131: 30 | R131: 9.3 | S131: USEPA 2005
L132: BH | M132: M/F/B | N132: juvenile | P132: 36 to 66 days | Q132: 36 | R132: 31.5 | S132: USEPA 2005
L133: BH | M133: M/F/B | N133: juvenile | P133: 67 to 150 days | Q133: 67 | R133: 61 | S133: USEPA 2005
L134: BH | M134: M/F/B | N134: juvenile | O134: Juvenile | P134: 151 to 299 days | Q134: 151 | R134: 61 | S134: USEPA 2005
L135: F | M135: F/B | N135: Gestation | O135: Adult | P135: Adult | Q135: ≥300 | R135: 152 | S135: Cromwell et al., 1993
L136: BH | M136: M | N136: adult | O136: Adult | P136: > 299 days | Q136: ≥300 | R136: 104 | S136: USEPA 2005
J137: quail | K137: Japanese | L137: BH | M137: M/F/B | N137: juvenile | P137: 0 to 1 days | Q137: 0-1 | R137: 0.07045 | S137: USEPA, 2005
L138: BH | M138: M/F/B | N138: juvenile | P138: 7 to 8 days | Q138: 7-8 | R138: 0.103 | S138: USEPA, 2005
L139: BH | M139: M/F/B | N139: juvenile | P139: 14 to 28 days | Q139: 14-28 | R139: 0.12 | S139: USEPA, 2005
L140: BH | M140: M/F/B | N140: juvenile | O140: Juvenile | P140: 29 to 59 days | Q140: 29-59 | R140: 0.132 | S140: USEPA, 2005
L141: BH | M141: M/F/B | N141: juvenile | O141: Adult | P141: 60 to 154 days | Q141: ≥60 | R141: 0.135 | S141: USEPA, 2005
K142: bobwhite | L142: JV | M142: M/F/B | N142: juvenile | P142: 10 days | Q142: 10 | R142: 0.012 | S142: USEPA, 1993
L143: JV | M143: M/F/B | N143: juvenile | P143: 18 days | Q143: 18 | R143: 0.034 | S143: Landis Assoc. Inc, 1985
L144: JV | M144: M/F/B | N144: juvenile | O144: Juvenile | P144: 30 days | Q144: 30 | R144: 0.04 | S144: USEPA, 1993
L145: F | M145: F/B | N145: adult | O145: Adult | P145: Adult | Q145: ≥42 | R145: 0.17 | S145: USEPA, 1993
L146: M | M146: M | N146: adult | O146: Adult | P146: Adult | Q146: ≥42 | R146: 0.16 | S146: USEPA, 1993
J147: rabbit | K147: unspecified | L147: M | M147: M | N147: juvenile | P147: weaning to 90 days | Q147: 56-89 | R147: 2.86 | S147: USEPA, 1987
L148: M | M148: M | N148: juvenile | O148: Juvenile | P148: 90 days to 1 year | Q148: 90-364 | R148: 3.76 | S148: USEPA, 1987
L149: M | M149: M | N149: adult | O149: Adult | P149: 1 year or older | Q149: ≥365 | R149: 4 | S149: USEPA, 1987
L150: F | M150: F/B | N150: juvenile | P150: weaning to 90 days | Q150: 56-89 | R150: 3.1 | S150: USEPA, 1987
L151: F | M151: F/B | N151: juvenile | O151: Juvenile | P151: 90 days to 1 year | Q151: 90-364 | R151: 3.93 | S151: USEPA, 1987
L152: F | M152: F/B | N152: adult | O152: Adult | P152: 1 year or older | Q152: ≥365 | R152: 4.1 | S152: USEPA, 1987
J153: rat | K153: Fischer 344 | L153: M | M153: M/B | N153: juvenile | P153: weaning to 90 days | Q153: 21-89 | R153: 0.18 | S153: USEPA, 1987
L154: M | M154: M/B | N154: juvenile | O154: Juvenile | P154: 90 days to 1 year | Q154: 90-364 | R154: 0.38 | S154: USEPA, 1987
L155: M | M155: M/B | N155: adult | O155: Adult | P155: 1 year or older | Q155: ≥365 | R155: 0.4 | S155: USEPA, 1987
L156: F | M156: F | N156: juvenile | P156: weaning to 90 days | Q156: 21-89 | R156: 0.124 | S156: USEPA, 1987
L157: F | M157: F | N157: juvenile | O157: Juvenile | P157: 90 days to 1 year | Q157: 90-364 | R157: 0.229 | S157: USEPA, 1987
L158: F | M158: F | N158: adult | O158: Adult | P158: 1 year or older | Q158: ≥365 | R158: 0.25 | S158: USEPA, 1987
K159: Long-Evans | L159: M | M159: M/B | N159: juvenile | P159: weaning to 90 days | Q159: 21-89 | R159: 0.248 | S159: USEPA, 1987
L160: M | M160: M/B | N160: juvenile | O160: Juvenile | P160: 90 days to 1 year | Q160: 90-364 | R160: 0.472 | S160: USEPA, 1987
L161: M | M161: M/B | N161: adult | O161: Adult | P161: 1 year or older | Q161: ≥365 | R161: 0.5 | S161: USEPA, 1987
L162: F | M162: F | N162: juvenile | P162: weaning to 90 days | Q162: 21-89 | R162: 0.179 | S162: USEPA, 1987
L163: F | M163: F | N163: juvenile | O163: Juvenile | P163: 90 days to 1 year | Q163: 90-364 | R163: 0.344 | S163: USEPA, 1987
L164: F | M164: F | N164: adult | O164: Adult | P164: 1 year or older | Q164: ≥365 | R164: 0.35 | S164: USEPA, 1987
K165: Osborne-Mendel | L165: M | M165: M/B | N165: juvenile | P165: weaning to 90 days | Q165: 21-89 | R165: 0.263 | S165: USEPA, 1987
L166: M | M166: M/B | N166: juvenile | O166: Juvenile | P166: 90 days to 1 year | Q166: 90-364 | R166: 0.514 | S166: USEPA, 1987
L167: M | M167: M/B | N167: adult | O167: Adult | P167: 1 year or older | Q167: ≥365 | R167: 0.55 | S167: USEPA, 1987
L168: F | M168: F | N168: juvenile | P168: weaning to 90 days | Q168: 21-89 | R168: 0.201 | S168: USEPA, 1987
L169: F | M169: F | N169: juvenile | O169: Juvenile | P169: 90 days to 1 year | Q169: 90-364 | R169: 0.389 | S169: USEPA, 1987
L170: F | M170: F | N170: adult | O170: Adult | P170: 1 year or older | Q170: ≥365 | R170: 0.4 | S170: USEPA, 1987
K171: Sprague-Dawley | L171: M | M171: M/B | N171: juvenile | P171: weaning to 90 days | Q171: 21-89 | R171: 0.267 | S171: USEPA, 1987
L172: M | M172: M/B | N172: juvenile | O172: Juvenile | P172: 90 days to 1 year | Q172: 90-364 | R172: 0.523 | S172: USEPA, 1987
L173: M | M173: M/B | N173: adult | O173: Adult | P173: 1 year or older | Q173: ≥365 | R173: 0.6 | S173: USEPA, 1987
L174: F | M174: F | N174: juvenile | P174: weaning to 90 days | Q174: 21-89 | R174: 0.204 | S174: USEPA, 1987
L175: F | M175: F | N175: juvenile | O175: Juvenile | P175: 90 days to 1 year | Q175: 90-364 | R175: 0.338 | S175: USEPA, 1987
L176: F | M176: F | N176: adult | O176: Adult | P176: 1 year or older | Q176: ≥365 | R176: 0.35 | S176: USEPA, 1987
K177: Wistar | L177: M | M177: M/B | N177: juvenile | P177: weaning to 90 days | Q177: 21-89 | R177: 0.217 | S177: USEPA, 1987
L178: M | M178: M/B | N178: juvenile | O178: Juvenile | P178: 90 days to 1 year | Q178: 90-364 | R178: 0.462 | S178: USEPA, 1987
L179: M | M179: M/B | N179: adult | O179: Adult | P179: 1 year or older | Q179: ≥365 | R179: 0.5 | S179: USEPA, 1987
L180: F | M180: F | N180: juvenile | P180: weaning to 90 days | Q180: 21-89 | R180: 0.156 | S180: USEPA, 1987
L181: F | M181: F | N181: juvenile | O181: Juvenile | P181: 90 days to 1 year | Q181: 90-364 | R181: 0.297 | S181: USEPA, 1987
L182: F | M182: F | N182: adult | O182: Adult | P182: 1 year or older | Q182: ≥365 | R182: 0.32 | S182: USEPA, 1987
K183: unspecified | L183: M | M183: M/B | N183: juvenile | P183: weaning to 90 days | Q183: 21-89 | R183: 0.235 | S183: USEPA, 1987
L184: M | M184: M/B | N184: juvenile | O184: Juvenile | P184: 90 days to 1 year | Q184: 90-364 | R184: 0.4702 | S184: USEPA, 1987
L185: M | M185: M/B | N185: adult | O185: Adult | P185: 1 year or older | Q185: ≥365 | R185: 0.51 | S185: USEPA, 1987
L186: F | M186: F | N186: juvenile | P186: weaning to 90 days | Q186: 21-89 | R186: 0.2024 | S186: USEPA, 1987
L187: F | M187: F | N187: juvenile | O187: Juvenile | P187: 90 days to 1 year | Q187: 90-364 | R187: 0.3846 | S187: USEPA, 1987
L188: F | M188: F | N188: adult | O188: Adult | P188: 1 year or older | Q188: ≥365 | R188: 0.4 | S188: USEPA, 1987
J189: blackbird | K189: red winged | L189: M | M189: M/B | N189: adult | O189: Adult | P189: not specified | Q189: >365 | R189: 0.0636 | S189: Dunning, 1993
L190: F | M190: F | N190: adult | O190: Adult | P190: not specified | Q190: >365 | R190: 0.0415 | S190: Dunning, 1993
J191: sheep | K191: domestic | L191: BH | M191: M/F/B | N191: juvenile | O191: Juvenile | P191: 1 week | Q191: 7-13 | R191: 46.81 | S191: Steinheim et al., 2002
K192: unspecified | L192: BH | M192: M/F/B | N192: juvenile | P192: 112 to 189 days | Q192: 112-188 | R192: 34 | S192: USEPA, 2005
L193: BH | M193: M/F/B | N193: juvenile | P193: 189 to 224 days | Q193: 189-224 | R193: 40.6 | S193: USEPA, 2005
L194: BH | M194: M/F/B | N194: juvenile | O194: Juvenile | P194: 225 to 252 days | Q194: 225-252 | R194: 59.1 | S194: USEPA, 2005
L195: F | M195: F | N195: Gestation | O195: Adult | P195: Gestation | Q195: >252 | R195: 70 | S195: USEPA, 2005
L196: BH | M196: M | N196: adult | O196: Adult | P196: > 252 days | Q196: >252 | R196: 65.1 | S196: USEPA, 2005
K197: Clun forest | L197: BH | M197: M/F/B | N197: Juvenile | O197: Juvenile | P197: Juvenile | Q197: 0-364 | R197: 24 | S197: www.ansi.okstate.edu/br eeds/sheep/ based on data for related strain (Kerry Hill)
L198: M | M198: M/B | N198: Adult | O198: Adult | P198: Adult | Q198: ≥365 | R198: 91.5 | S198: www.ansi.okstate.edu/br eeds/sheep/ based on data for related strain (mean of Kerry Hill and Shropshire)
L199: F | M199: F | N199: Adult | O199: Adult | P199: Adult | Q199: ≥365 | R199: 73 | S199: www.ansi.okstate.edu/br eeds/sheep/ based on data for related strain (mean of Kerry Hill and Shropshire)
K200: Dala | L200: M | M200: M/B | N200: adult | O200: Adult | P200: Adult | Q200: ≥365 | R200: 115 | S200: Geertman, 2001
... 91 more rows

Sheet Data Entry
A1: Enter Data into this sheet. Once complete, sort based on the Endpoint Number and assign a Result #. Then click the Copy to Calculator button. Check Columns AX:AZ in the 'Calculator' tab for results that require manual entry.
B2: Fields with a Blue header must be populated for this spreadsheet tool to function correctly. Fields with Green header need to be populated for the spreadsheet tool to lookup a default body weight if one is not reported (see the 'READ ME' and 'Reference' tabs for more information.)
B3: Ref | E3: Exposure | AA3: Effects
A4: Effect Group (Select from dropdown within each cell) | B4: Result # | C4: Ref N. | D4: Reference | E4: Chemical Form | F4: MW% | G4: Test Species | H4: Specific Organism Type | I4: Phase # | J4: # of Conc/ Doses | K4: Conc/ Doses | L4: Conc/Dose Units | M4: Wet Weight Reported? | N4: Percent Moisture | O4: Application Frequency | P4: Method of Analyses | Q4: Route of Exposure | R4: Exposure Duration | S4: Duration Units | T4: Age | U4: Age Units | V4: Lifestage | W4: Sex | X4: Control Type | Y4: Test Location | Z4: Endpoint Number | AA4: Effect Type | AB4: Effect Measure | AC4: Response Site | AD4: Study NOAEL | AE4: Study LOAEL | AF4: Reported Body Weight (kg) (If not reported, enter "NR") | AG4: Reported Ingestion Rate (in kg or L/day) (If not reported, enter "NR") | AH4: Data Quality Determination | AI4: HERO ID | AJ4: 10% cutoff used for determining biologically significant body weight change? | AK4: Notes
A5: Behavior | B5: 1 | C5: 2 | D5: Muralidhara et al. 2001 | E5: 1,1-dichloroethane | F5: 99.99 | G5: Rat (Rattus norvegicus) | H5: Sprague-Dawley | I5: 2 | J5: 5 | K5: 0/0.5/1.0/2.0/4.0 | L5: g/kg bw/d | M5: NR | N5: NR | O5: 5 per w | P5: U | Q5: GV | R5: 13 | S5: w | T5: NR | U5: NR | V5: AD | W5: M | X5: V | Y5: Lab | Z5: 1 | AA5: BEH | AB5: GBHV | AC5: WO | AD5: 1 | AE5: 2 | AF5: 0.2 | AG5: NR | AH5: Medium | AI5: 644914 | AK5: "Moderate" CNS depression was observed in the 2 g/kg-bw/day group; The author provided a body weight range of 180-200g - the maximum (200g) was entered into the body weight field.
A6: Growth | B6: 2 | C6: 1 | D6: NCI 1978 | E6: 1,1-dichloroethane | F6: 99 | G6: Mouse (Mus musculus) | H6: B6C3F1 | I6: 1 | J6: 6 | K6: 0/1000/1780/3160/5620/10000 | L6: mg/kg/d | M6: NR | N6: NR | O6: 5 per w | P6: U | Q6: GV | R6: 6 | S6: w | T6: NR | U6: NR | V6: NR | W6: BH | X6: M | Y6: Lab | Z6: 2 | AA6: GRO | AB6: BDWT | AC6: WO | AD6: 10000 | AF6: NR | AG6: NR | AH6: High | AI6: 646679
A7: Growth | B7: 3 | C7: 1 | D7: NCI 1978 | E7: 1,1-dichloroethane | F7: 99 | G7: Mouse (Mus musculus) | H7: B6C3F1 | I7: 2 | J7: 3 | K7: 0/1442/2885 | L7: mg/kg/bw/d | M7: NR | N7: NR | O7: 5 per w | P7: U | Q7: GV | R7: 78 | S7: w | T7: 5 | U7: w | V7: JV | W7: M | X7: M | Y7: Lab | Z7: 2 | AA7: GRO | AB7: BDWT | AC7: WO | AD7: 2885 | AF7: NR | AG7: NR | AH7: High | AI7: 646679 | AK7: Time-weighted average dose entered as dosage changed at various points throughout the chronic study.
A8: Growth | B8: 4 | C8: 1 | D8: NCI 1978 | E8: 1,1-dichloroethane | F8: 99 | G8: Mouse (Mus musculus) | H8: B6C3F1 | I8: 3 | J8: 3 | K8: 0/1665/3331 | L8: mg/kg/bw/d | M8: NR | N8: NR | O8: 5 per w | P8: U | Q8: GV | R8: 78 | S8: w | T8: 5 | U8: w | V8: JV | W8: F | X8: M | Y8: Lab | Z8: 2 | AA8: GRO | AB8: BDWT | AC8: WO | AD8: 3331 | AF8: NR | AG8: NR | AH8: High | AI8: 646679 | AK8: Time-weighted average dose entered as dosage changed at various points throughout the chronic study.
A9: Growth | B9: 5 | C9: 2 | D9: Muralidhara et al. 2001 | E9: 1,1-dichloroethane | F9: 99.99 | G9: Rat (Rattus norvegicus) | H9: Sprague-Dawley | I9: 1 | J9: 4 | K9: 0/1/2/4 | L9: g/kg bw/d | M9: NR | N9: NR | O9: DLY | P9: U | Q9: GV | R9: 10 | S9: d | T9: NR | U9: NR | V9: AD | W9: M | X9: V | Y9: Lab | Z9: 2 | AA9: GRO | AB9: BDWT | AC9: WO | AE9: 1 | AF9: 0.3 | AG9: NR | AH9: High | AI9: 644914 | AK9: The LOAEL of 1 g/kg-bw/day is based on statistically significant differences reported by the authors between all treated groups and the control. This differs from the LOAEL set for human health of 2 g/kg-bw/day, which is based on a ≥10% decrease in body weight. The author provided a body weight range of 250-300g - the maximum (300g) was entered into the body weight field.
A10: Growth | B10: 6 | C10: 2 | D10: Muralidhara et al. 2001 | E10: 1,1-dichloroethane | F10: 99.99 | G10: Rat (Rattus norvegicus) | H10: Sprague-Dawley | I10: 2 | J10: 5 | K10: 0/0.5/1.0/2.0/4.0 | L10: g/kg bw/d | M10: NR | N10: NR | O10: 5 per w | P10: U | Q10: GV | R10: 13 | S10: w | T10: NR | U10: NR | V10: AD | W10: M | X10: V | Y10: Lab | Z10: 2 | AA10: GRO | AB10: BDWT | AC10: WO | AD10: 1 | AE10: 2 | AF10: 0.2 | AG10: NR | AH10: High | AI10: 644914 | AK10: The author provided a body weight range of 180-200g - the maximum (200g) was entered into the body weight field.
A11: Survival | B11: 7 | C11: 1 | D11: NCI 1978 | E11: 1,1-dichloroethane | F11: 99 | G11: Mouse (Mus musculus) | H11: B6C3F1 | I11: 3 | J11: 3 | K11: 0/1665/3331 | L11: mg/kg/bw/d | M11: NR | N11: NR | O11: 5 per w | P11: U | Q11: GV | R11: 78 | S11: w | T11: 5 | U11: w | V11: JV | W11: F | X11: M | Y11: Lab | Z11: 3 | AA11: MOR | AB11: MORT | AC11: WO | AD11: 1665 | AE11: 3331 | AF11: NR | AG11: NR | AH11: High | AI11: 646679 | AK11: Time-weighted average dose entered as dosage changed at various points throughout the chronic study
A12: Survival | B12: 8 | C12: 2 | D12: Muralidhara et al. 2001 | E12: 1,1-dichloroethane | F12: 99.99 | G12: Rat (Rattus norvegicus) | H12: Sprague-Dawley | I12: 2 | J12: 5 | K12: 0/0.5/1.0/2.0/4.0 | L12: g/kg bw/d | M12: NR | N12: NR | O12: 5 per w | P12: U | Q12: GV | R12: 13 | S12: w | T12: NR | U12: NR | V12: AD | W12: M | X12: V | Y12: Lab | Z12: 3 | AA12: MOR | AB12: MORT | AC12: WO | AD12: 2 | AE12: 4 | AF12: 0.2 | AG12: NR | AH12: High | AI12: 644914 | AK12: Fisher's exact test found no statistically significant difference between control mortality and mortality at dose=2.0g and a statistically significant difference between control mortality and mortality at dose=4.0g. The LOAEL may disagree with the LOAEL that was used for human health. The author provided a body weight range of 180-200g - the maximum (200g) was entered into the body weight field.

Sheet Calculator
A1: Copy cells A5:AG72 in the 'Data Entry' tab and paste into cells A6:AG73 in this tab. | AA1: BW ERROR MESSAGE: | AB1: =IF(ISERROR(VLOOKUP("X",BF6:BF73,1,FALSE))=TRUE,"NO ERROR","BODY WEIGHT NEEDS MANUAL ENTRY IN RED CELL(S) IN COLUMN AX") -> NO ERROR
AA2: UNIT ERROR MESSAGE: | AB2: =IF(OR(BG4="Yes",BH4="Yes"),"Conc/Dose Units entered do not allow for auto calculation, manual calculation neededmanual calculation needed in red cell(s) in columns AY and/or AZ.","NO ERROR") -> NO ERROR | AH2: hide | AI2: hide | AJ2: hide | AK2: hide | AL2: hide | AM2: hide | AN2: hide | AO2: hide | AP2: hide | AQ2: hide | AR2: hide | AS2: hide | BA2: hide | BB2: hide | BC2: hide | BD2: hide | BE2: hide | BF2: hide | BG2: hide | BH2: hide | BI2: hide | BJ2: hide | BK2: hide
A3: FIELDS COPIED FROM 'DATA ENTRY' TAB and Manually Entered Here: | AH3: AUTO-GENERATED FIELDS | AX3: Manual Entry if Errors Occur (cells will be highlighted red in these columns) | BG3: Error?
B4: Ref | E4: Exposure | AA4: Effects | BG4: =IF(ISERROR(VLOOKUP("X",BG6:BG73,1,FALSE))=TRUE,"No","Yes") -> No | BH4: =IF(ISERROR(VLOOKUP("X",BH6:BH73,1,FALSE))=TRUE,"No","Yes") -> No
A5: Effect Group | B5: Result # | C5: Ref N. | D5: Reference | E5: Chemical Form | F5: MW% | G5: Test Species | H5: Specific Organism Type | I5: Phase # | J5: # of Conc/ Doses | K5: Conc/ Doses | L5: Conc/Dose Units | M5: Wet Weight Reported? | N5: Percent Moisture | O5: Application Frequency | P5: Method of Analyses | Q5: Route of Exposure | R5: Exposure Duration | S5: Duration Units | T5: Age | U5: Age Units | V5: Lifestage | W5: Sex | X5: Control Type | Y5: Test Location | Z5: Endpoint Number | AA5: Effect Type | AB5: Effect Measure | AC5: Response Site | AD5: Study NOAEL | AE5: Study LOAEL | AF5: Reported Body Weight (kg) | AG5: Reported Ingestion Rate (in kg or L/day) | AH5: General Organism Type | AI5: Bird or Mammal? | AJ5: Specific Organism Type | AK5: Application freq (d/w) | AL5: Min age | AM5: Max age | AN5: Min age (days) | AO5: Max age (days) | AP5: Lifestage | AQ5: Sex | AR5: Show BW? | AS5: Show FIR? | AT5: BW (kg) | AU5: FIR (kg/day) or WIR (L/day) | AV5: NOAEL Dose (mg/kg/day)* | AW5: LOAEL Dose (mg/kg/day)* | AX5: If BW error message occurs, enter BW in kg in this column based on professional judgement | AY5: If Unit error message occurs, manually calculate the NOAEL Dose in mg/kg/day and enter in this column. | AZ5: If Unit error message occurs, manually calculate the LOAEL Dose in mg/kg/day and enter in this column. | BA5: BW (kg) | BB5: BW to use in dose calc | BC5: FIR (kg/day) or WIR (L/day) | BD5: NOAEL Dose (mg/kg/day)* | BE5: LOAEL Dose (mg/kg/day)* | BF5: BW Cond Formatting | BG5: NOAEL Dose Cond formatting | BH5: NOAEL Dose Cond formatting | BI5: FINAL NOAEL Dose (mg/kg/day)* | BJ5: FINAL LOAEL Dose (mg/kg/day)* | BK5: MW(%) to use in calcs
A6: Behavior | B6: 1 | C6: 2 | D6: Muralidhara et al. 2001 | E6: 1,1-dichloroethane | F6: 99.99 | G6: Rat (Rattus norvegicus) | H6: Sprague-Dawley | I6: 2 | J6: 5 | K6: 0/0.5/1.0/2.0/4.0 | L6: g/kg bw/d | M6: NR | N6: NR | O6: 5 per w | P6: U | Q6: GV | R6: 13 | S6: w | T6: NR | U6: NR | V6: AD | W6: M | X6: V | Y6: Lab | Z6: 1 | AA6: BEH | AB6: GBHV | AC6: WO | AD6: 1 | AE6: 2 | AF6: 0.2 | AG6: NR | AH6: =IF(A6="","",TRIM(LEFT(G6,FIND("(",G6)-2))) -> Rat | AI6: =VLOOKUP(AH6,Index!$L$2:$Q$30,6,FALSE) -> mammal | AJ6: =IF(A6="","",IF(OR(H6="",H6="unspecified"),"unspecified",H6)) -> Sprague-Dawley | AK6: =IF(RIGHT(O6,5)="per w",LEFT(O6,1)/7,1) -> 0.7142857143 | AL6: =IF(A6="","",IF(ISERROR(FIND("-",T6))=TRUE,T6,LEFT(T6,FIND("-",T6)-1))) -> NR | AM6: =IF(A6="","",IF(ISERROR(FIND("-",T6))=TRUE,T6,RIGHT(T6,LEN(T6)-FIND("-",T6)))) -> NR | AN6: =IF(A6="","",IF(U6="NR","NR",AL6*IF(U6="d",1,IF(U6="mo",30.5,IF(U6="w",7,IF(U6="yr",365,"ERROR")))))) -> NR | AO6: =IF(A6="","",IF(U6="NR","NR",AM6*IF(U6="d",1,IF(U6="mo",30.5,IF(U6="w",7,IF(U6="yr",365,"ERROR")))))) -> NR | AP6: =IF(A6="","",IF(V6="JV","juvenile","adult")) -> adult | AQ6: =IF(A6="","",IF(W6="M","M",IF(W6="F","F","B"))) -> M | AR6: =IF(AF6<>"NR","yes",IF(OR(L6="mg/kg bw/d",L6="mg/kg/bw/d",L6="mg/kg/d",L6="ug/g bw/d",L6="ug/kg bw/d",L6="g/kg bw/d",L6="mg/g bw/d"),"no","yes")) -> yes | AS6: =IF(AG6<>"NR","yes",IF(AR6="no","no",IF(OR(L6="mg/org/d",L6="mg/d",L6="g/d",L6="g/org/d",L6="g/org/day",L6="ug/org/d"),"no","yes"))) -> yes | AT6: =BB6 -> 0.2 | AU6: =IF(BC6="","",sigfig(BC6,4)) -> 0.05721 | AV6: =IF(BI6="","",IF(AND(BI6>=10,BI6<10000),MROUND(BI6,1),sigfig(BI6,2))) -> 714 | AW6: =IF(BJ6="","",IF(AND(BJ6>=10,BJ6<10000),MROUND(BJ6,1),sigfig(BJ6,2))) -> 1429 | BA6: =IF(A6="","",IF(AR6="no","",IF(ISERROR(IF(AF6<>"NR",AF6,IF(AM6="NR",IF(AQ6="B",VLOOKUP(AH6&AJ6&AP6,'Default BW IR-Formatted by LS'!$AB$4:$AF$83,5,FALSE),VLOOKUP(AH6&AJ6&AQ6&AP6,'Default BW IR-Formatted by LS'!$S$4:$X$124,6,FALSE)),VLOOKUP(AO6,INDIRECT("'Default BW IR-Formatted by age'!"&VLOOKUP(AH6&AJ6&AQ6,Index!$A$2:$E$151,5,FALSE)),2,TRUE))))=TRUE,"ERROR",IF(AF6<>"NR",AF6,IF(AM6="NR",IF(AQ6="B",VLOOKUP(AH6&AJ6&AP6,'Default BW IR-Formatted by LS'!$AB$4:$AF$83,5,FALSE),VLOOKUP(AH6&AJ6&AQ6&AP6,'Default BW IR-Formatted by LS'!$S$4:$X$124,6,FALSE)),VLOOKUP(AO6,INDIRECT("'Default BW IR-Formatted by age'!"&VLOOKUP(AH6&AJ6&AQ6,Index!$A$2:$E$151,5,FALSE)),2,TRUE)))))) -> 0.2 | BB6: =IF(OR(ISERROR(BA6)=TRUE,BA6="ERROR"),AX6,BA6) -> 0.2 | BC6: =IF(A6="","",IF(AS6="no","",IF(AG6<>"NR",AG6,IF(OR(L6="mg/L",L6="ppm in mg/L",L6="mg/ml",L6="% in water",L6="% water",L6="g/L",L6="ug/L"),IF(AI6="bird",0.059*BB6^0.67,0.099*BB6^0.9),(((BB6*1000)^VLOOKUP(AH6,Index!$L$2:$N$30,3,FALSE))*VLOOKUP(AH6,Index!$L$2:$N$30,2,FALSE))/1000)))) -> 0.05720938015 | BD6: =IF(AD6="","",IF(OR(L6="mg/kg bw/d",L6="mg/kg/bw/d",L6="mg/kg/d",L6="ug/g bw/d"),BK6/100*AD6*AK6,IF(OR(L6="mg/org/d",L6="mg/d"),BK6/100*AD6/BB6*AK6,IF(OR(L6="mg/kg diet",L6="mg/L",L6="ppm in mg/kg",L6="mg/kg",L6="ug/g diet",L6="ug/g",L6="ppm in mg/L"),BK6/100*AD6*BC6/BB6*AK6,IF(OR(L6="mg/ml",L6="mg/g",L6="g/L",L6="g/kg diet",L6="mg/g diet"),BK6/100*(AD6*1000)*BC6/BB6*AK6,IF(OR(L6="% in diet", L6="% in water", L6="% water"),BK6/100*(AD6*10000)*BC6/BB6*AK6,IF( L6="ug/kg bw/d",BK6/100*AD6/1000*AK6,IF(OR(L6="g/kg bw/d",L6="mg/g bw/d"),BK6/100*AD6*1000*AK6,IF(OR(L6="g/d",L6="g/org/d",L6="g/org/day"),BK6/100*AD6*1000/BB6*AK6,IF(OR(L6="ug/kg",L6="ng/g diet",L6="ug/kg diet",L6="ug/L"),BK6/100*AD6/1000*BC6/BB6*AK6,IF(L6="ug/org/d",BK6/100*AD6/1000/BB6*AK6,NA()))))))))))) -> 714.2857143 | BE6: =IF(AE6="","",IF(OR(L6="mg/kg bw/d",L6="mg/kg/bw/d",L6="mg/kg/d",L6="ug/g bw/d"),BK6/100*AE6*AK6,IF(OR(L6="mg/org/d",L6="mg/d"),BK6/100*AE6/BB6*AK6,IF(OR(L6="mg/kg diet",L6="mg/L",L6="ppm in mg/kg",L6="mg/kg",L6="ug/g diet",L6="ug/g",L6="ppm in mg/L"),BK6/100*AE6*BC6/BB6*AK6,IF(OR(L6="mg/ml",L6="mg/g",L6="g/L",L6="g/kg diet",L6="mg/g diet"),BK6/100*(AE6*1000)*BC6/BB6*AK6,IF(OR(L6="% in diet", L6="% in water", L6="% water"),BK6/100*(AE6*10000)*BC6/BB6*AK6,IF( L6="ug/kg bw/d",BK6/100*AE6/1000*AK6,IF(OR(L6="g/kg bw/d",L6="mg/g bw/d"),BK6/100*AE6*1000*AK6,IF(OR(L6="g/d",L6="g/org/d",L6="g/org/day"),BK6/100*AE6*1000/BB6*AK6,IF(OR(L6="ug/kg",L6="ng/g diet",L6="ug/kg diet",L6="ug/L"),BK6/100*AE6/1000*BC6/BB6*AK6,IF(L6="ug/org/d",BK6/100*AE6/1000/BB6*AK6,NA()))))))))))) -> 1428.571429 | BF6: =IF(AND(OR(ISERROR(BA6)=TRUE,BA6="ERROR"),AX6=""),"X","") ->  | BG6: =IF(BF6="X","",IF(AND(ISERROR(BD6)=TRUE,AY6=""),"X","")) ->  | BH6: =IF(BF6="X","",IF(AND(ISERROR(BE6)=TRUE,AZ6=""),"X","")) ->  | BI6: =IF(ISNUMBER(AY6)=TRUE,AY6,BD6) -> 714.2857143 | BJ6: 1428.571429 | BK6: =IF(F6>=90,100,F6) -> 100
A7: Growth | B7: 2 | C7: 1 | D7: NCI 1978 | E7: 1,1-dichloroethane | F7: 99 | G7: Mouse (Mus musculus) | H7: B6C3F1 | I7: 1 | J7: 6 | K7: 0/1000/1780/3160/5620/10000 | L7: mg/kg/d | M7: NR | N7: NR | O7: 5 per w | P7: U | Q7: GV | R7: 6 | S7: w | T7: NR | U7: NR | V7: NR | W7: BH | X7: M | Y7: Lab | Z7: 2 | AA7: GRO | AB7: BDWT | AC7: WO | AD7: 10000 | AF7: NR | AG7: NR | AH7: =IF(A7="","",TRIM(LEFT(G7,FIND("(",G7)-2))) -> Mouse | AI7: =VLOOKUP(AH7,Index!$L$2:$Q$30,6,FALSE) -> mammal | AJ7: =IF(A7="","",IF(OR(H7="",H7="unspecified"),"unspecified",H7)) -> B6C3F1 | AK7: 0.7142857143 | AL7: =IF(A7="","",IF(ISERROR(FIND("-",T7))=TRUE,T7,LEFT(T7,FIND("-",T7)-1))) -> NR | AM7: =IF(A7="","",IF(ISERROR(FIND("-",T7))=TRUE,T7,RIGHT(T7,LEN(T7)-FIND("-",T7)))) -> NR | AN7: =IF(A7="","",IF(U7="NR","NR",AL7*IF(U7="d",1,IF(U7="mo",30.5,IF(U7="w",7,IF(U7="yr",365,"ERROR")))))) -> NR | AO7: =IF(A7="","",IF(U7="NR","NR",AM7*IF(U7="d",1,IF(U7="mo",30.5,IF(U7="w",7,IF(U7="yr",365,"ERROR")))))) -> NR | AP7: =IF(A7="","",IF(V7="JV","juvenile","adult")) -> adult | AQ7: =IF(A7="","",IF(W7="M","M",IF(W7="F","F","B"))) -> B | AR7: =IF(AF7<>"NR","yes",IF(OR(L7="mg/kg bw/d",L7="mg/kg/bw/d",L7="mg/kg/d",L7="ug/g bw/d",L7="ug/kg bw/d",L7="g/kg bw/d",L7="mg/g bw/d"),"no","yes")) -> no | AS7: =IF(AG7<>"NR","yes",IF(AR7="no","no",IF(OR(L7="mg/org/d",L7="mg/d",L7="g/d",L7="g/org/d",L7="g/org/day",L7="ug/org/d"),"no","yes"))) -> no | AT7: =BB7 ->  | AU7: =IF(BC7="","",sigfig(BC7,4)) ->  | AV7: =IF(BI7="","",IF(AND(BI7>=10,BI7<10000),MROUND(BI7,1),sigfig(BI7,2))) -> 7143 | AW7: =IF(BJ7="","",IF(AND(BJ7>=10,BJ7<10000),MROUND(BJ7,1),sigfig(BJ7,2))) ->  | BA7: =IF(A7="","",IF(AR7="no","",IF(ISERROR(IF(AF7<>"NR",AF7,IF(AM7="NR",IF(AQ7="B",VLOOKUP(AH7&AJ7&AP7,'Default BW IR-Formatted by LS'!$AB$4:$AF$83,5,FALSE),VLOOKUP(AH7&AJ7&AQ7&AP7,'Default BW IR-Formatted by LS'!$S$4:$X$124,6,FALSE)),VLOOKUP(AO7,INDIRECT("'Default BW IR-Formatted by age'!"&VLOOKUP(AH7&AJ7&AQ7,Index!$A$2:$E$151,5,FALSE)),2,TRUE))))=TRUE,"ERROR",IF(AF7<>"NR",AF7,IF(AM7="NR",IF(AQ7="B",VLOOKUP(AH7&AJ7&AP7,'Default BW IR-Formatted by LS'!$AB$4:$AF$83,5,FALSE),VLOOKUP(AH7&AJ7&AQ7&AP7,'Default BW IR-Formatted by LS'!$S$4:$X$124,6,FALSE)),VLOOKUP(AO7,INDIRECT("'Default BW IR-Formatted by age'!"&VLOOKUP(AH7&AJ7&AQ7,Index!$A$2:$E$151,5,FALSE)),2,TRUE)))))) ->  | BC7: =IF(A7="","",IF(AS7="no","",IF(AG7<>"NR",AG7,IF(OR(L7="mg/L",L7="ppm in mg/L",L7="mg/ml",L7="% in water",L7="% water",L7="g/L",L7="ug/L"),IF(AI7="bird",0.059*BB7^0.67,0.099*BB7^0.9),(((BB7*1000)^VLOOKUP(AH7,Index!$L$2:$N$30,3,FALSE))*VLOOKUP(AH7,Index!$L$2:$N$30,2,FALSE))/1000)))) ->  | BD7: =IF(AD7="","",IF(OR(L7="mg/kg bw/d",L7="mg/kg/bw/d",L7="mg/kg/d",L7="ug/g bw/d"),BK7/100*AD7*AK7,IF(OR(L7="mg/org/d",L7="mg/d"),BK7/100*AD7/BB7*AK7,IF(OR(L7="mg/kg diet",L7="mg/L",L7="ppm in mg/kg",L7="mg/kg",L7="ug/g diet",L7="ug/g",L7="ppm in mg/L"),BK7/100*AD7*BC7/BB7*AK7,IF(OR(L7="mg/ml",L7="mg/g",L7="g/L",L7="g/kg diet",L7="mg/g diet"),BK7/100*(AD7*1000)*BC7/BB7*AK7,IF(OR(L7="% in diet", L7="% in water", L7="% water"),BK7/100*(AD7*10000)*BC7/BB7*AK7,IF( L7="ug/kg bw/d",BK7/100*AD7/1000*AK7,IF(OR(L7="g/kg bw/d",L7="mg/g bw/d"),BK7/100*AD7*1000*AK7,IF(OR(L7="g/d",L7="g/org/d",L7="g/org/day"),BK7/100*AD7*1000/BB7*AK7,IF(OR(L7="ug/kg",L7="ng/g diet",L7="ug/kg diet",L7="ug/L"),BK7/100*AD7/1000*BC7/BB7*AK7,IF(L7="ug/org/d",BK7/100*AD7/1000/BB7*AK7,NA()))))))))))) -> 7142.857143 | BE7: =IF(AE7="","",IF(OR(L7="mg/kg bw/d",L7="mg/kg/bw/d",L7="mg/kg/d",L7="ug/g bw/d"),BK7/100*AE7*AK7,IF(OR(L7="mg/org/d",L7="mg/d"),BK7/100*AE7/BB7*AK7,IF(OR(L7="mg/kg diet",L7="mg/L",L7="ppm in mg/kg",L7="mg/kg",L7="ug/g diet",L7="ug/g",L7="ppm in mg/L"),BK7/100*AE7*BC7/BB7*AK7,IF(OR(L7="mg/ml",L7="mg/g",L7="g/L",L7="g/kg diet",L7="mg/g diet"),BK7/100*(AE7*1000)*BC7/BB7*AK7,IF(OR(L7="% in diet", L7="% in water", L7="% water"),BK7/100*(AE7*10000)*BC7/BB7*AK7,IF( L7="ug/kg bw/d",BK7/100*AE7/1000*AK7,IF(OR(L7="g/kg bw/d",L7="mg/g bw/d"),BK7/100*AE7*1000*AK7,IF(OR(L7="g/d",L7="g/org/d",L7="g/org/day"),BK7/100*AE7*1000/BB7*AK7,IF(OR(L7="ug/kg",L7="ng/g diet",L7="ug/kg diet",L7="ug/L"),BK7/100*AE7/1000*BC7/BB7*AK7,IF(L7="ug/org/d",BK7/100*AE7/1000/BB7*AK7,NA()))))))))))) ->  | BF7: =IF(AND(OR(ISERROR(BA7)=TRUE,BA7="ERROR"),AX7=""),"X","") ->  | BG7: =IF(BF7="X","",IF(AND(ISERROR(BD7)=TRUE,AY7=""),"X","")) ->  | BH7: =IF(BF7="X","",IF(AND(ISERROR(BE7)=TRUE,AZ7=""),"X","")) ->  | BI7: 7142.857143 | BK7: 100
A8: Growth | B8: 3 | C8: 1 | D8: NCI 1978 | E8: 1,1-dichloroethane | F8: 99 | G8: Mouse (Mus musculus) | H8: B6C3F1 | I8: 2 | J8: 3 | K8: 0/1442/2885 | L8: mg/kg/bw/d | M8: NR | N8: NR | O8: 5 per w | P8: U | Q8: GV | R8: 78 | S8: w | T8: 5 | U8: w | V8: JV | W8: M | X8: M | Y8: Lab | Z8: 2 | AA8: GRO | AB8: BDWT | AC8: WO | AD8: 2885 | AF8: NR | AG8: NR | AH8: Mouse | AI8: =VLOOKUP(AH8,Index!$L$2:$Q$30,6,FALSE) -> mammal | AJ8: B6C3F1 | AK8: 0.7142857143 | AL8: 5 | AM8: 5 | AN8: 35 | AO8: 35 | AP8: juvenile | AQ8: M | AR8: no | AS8: no | AV8: 2061 | BA8: =IF(A8="","",IF(AR8="no","",IF(ISERROR(IF(AF8<>"NR",AF8,IF(AM8="NR",IF(AQ8="B",VLOOKUP(AH8&AJ8&AP8,'Default BW IR-Formatted by LS'!$AB$4:$AF$83,5,FALSE),VLOOKUP(AH8&AJ8&AQ8&AP8,'Default BW IR-Formatted by LS'!$S$4:$X$124,6,FALSE)),VLOOKUP(AO8,INDIRECT("'Default BW IR-Formatted by age'!"&VLOOKUP(AH8&AJ8&AQ8,Index!$A$2:$E$151,5,FALSE)),2,TRUE))))=TRUE,"ERROR",IF(AF8<>"NR",AF8,IF(AM8="NR",IF(AQ8="B",VLOOKUP(AH8&AJ8&AP8,'Default BW IR-Formatted by LS'!$AB$4:$AF$83,5,FALSE),VLOOKUP(AH8&AJ8&AQ8&AP8,'Default BW IR-Formatted by LS'!$S$4:$X$124,6,FALSE)),VLOOKUP(AO8,INDIRECT("'Default BW IR-Formatted by age'!"&VLOOKUP(AH8&AJ8&AQ8,Index!$A$2:$E$151,5,FALSE)),2,TRUE)))))) ->  | BC8: =IF(A8="","",IF(AS8="no","",IF(AG8<>"NR",AG8,IF(OR(L8="mg/L",L8="ppm in mg/L",L8="mg/ml",L8="% in water",L8="% water",L8="g/L",L8="ug/L"),IF(AI8="bird",0.059*BB8^0.67,0.099*BB8^0.9),(((BB8*1000)^VLOOKUP(AH8,Index!$L$2:$N$30,3,FALSE))*VLOOKUP(AH8,Index!$L$2:$N$30,2,FALSE))/1000)))) ->  | BD8: 2060.714286 | BI8: 2060.714286 | BK8: 100
A9: Growth | B9: 4 | C9: 1 | D9: NCI 1978 | E9: 1,1-dichloroethane | F9: 99 | G9: Mouse (Mus musculus) | H9: B6C3F1 | I9: 3 | J9: 3 | K9: 0/1665/3331 | L9: mg/kg/bw/d | M9: NR | N9: NR | O9: 5 per w | P9: U | Q9: GV | R9: 78 | S9: w | T9: 5 | U9: w | V9: JV | W9: F | X9: M | Y9: Lab | Z9: 2 | AA9: GRO | AB9: BDWT | AC9: WO | AD9: 3331 | AF9: NR | AG9: NR | AH9: Mouse | AI9: =VLOOKUP(AH9,Index!$L$2:$Q$30,6,FALSE) -> mammal | AJ9: B6C3F1 | AK9: 0.7142857143 | AL9: 5 | AM9: 5 | AN9: 35 | AO9: 35 | AP9: juvenile | AQ9: F | AR9: no | AS9: no | AV9: 2379 | BA9: =IF(A9="","",IF(AR9="no","",IF(ISERROR(IF(AF9<>"NR",AF9,IF(AM9="NR",IF(AQ9="B",VLOOKUP(AH9&AJ9&AP9,'Default BW IR-Formatted by LS'!$AB$4:$AF$83,5,FALSE),VLOOKUP(AH9&AJ9&AQ9&AP9,'Default BW IR-Formatted by LS'!$S$4:$X$124,6,FALSE)),VLOOKUP(AO9,INDIRECT("'Default BW IR-Formatted by age'!"&VLOOKUP(AH9&AJ9&AQ9,Index!$A$2:$E$151,5,FALSE)),2,TRUE))))=TRUE,"ERROR",IF(AF9<>"NR",AF9,IF(AM9="NR",IF(AQ9="B",VLOOKUP(AH9&AJ9&AP9,'Default BW IR-Formatted by LS'!$AB$4:$AF$83,5,FALSE),VLOOKUP(AH9&AJ9&AQ9&AP9,'Default BW IR-Formatted by LS'!$S$4:$X$124,6,FALSE)),VLOOKUP(AO9,INDIRECT("'Default BW IR-Formatted by age'!"&VLOOKUP(AH9&AJ9&AQ9,Index!$A$2:$E$151,5,FALSE)),2,TRUE)))))) ->  | BC9: =IF(A9="","",IF(AS9="no","",IF(AG9<>"NR",AG9,IF(OR(L9="mg/L",L9="ppm in mg/L",L9="mg/ml",L9="% in water",L9="% water",L9="g/L",L9="ug/L"),IF(AI9="bird",0.059*BB9^0.67,0.099*BB9^0.9),(((BB9*1000)^VLOOKUP(AH9,Index!$L$2:$N$30,3,FALSE))*VLOOKUP(AH9,Index!$L$2:$N$30,2,FALSE))/1000)))) ->  | BD9: 2379.285714 | BI9: 2379.285714 | BK9: 100
A10: Growth | B10: 5 | C10: 2 | D10: Muralidhara et al. 2001 | E10: 1,1-dichloroethane | F10: 99.99 | G10: Rat (Rattus norvegicus) | H10: Sprague-Dawley | I10: 1 | J10: 4 | K10: 0/1/2/4 | L10: g/kg bw/d | M10: NR | N10: NR | O10: DLY | P10: U | Q10: GV | R10: 10 | S10: d | T10: NR | U10: NR | V10: AD | W10: M | X10: V | Y10: Lab | Z10: 2 | AA10: GRO | AB10: BDWT | AC10: WO | AE10: 1 | AF10: 0.3 | AG10: NR | AH10: Rat | AI10: =VLOOKUP(AH10,Index!$L$2:$Q$30,6,FALSE) -> mammal | AJ10: Sprague-Dawley | AK10: 1 | AL10: NR | AM10: NR | AN10: NR | AO10: NR | AP10: adult | AQ10: M | AR10: yes | AS10: yes | AT10: 0.3 | AU10: 0.08121 | AW10: 1000 | BA10: =IF(A10="","",IF(AR10="no","",IF(ISERROR(IF(AF10<>"NR",AF10,IF(AM10="NR",IF(AQ10="B",VLOOKUP(AH10&AJ10&AP10,'Default BW IR-Formatted by LS'!$AB$4:$AF$83,5,FALSE),VLOOKUP(AH10&AJ10&AQ10&AP10,'Default BW IR-Formatted by LS'!$S$4:$X$124,6,FALSE)),VLOOKUP(AO10,INDIRECT("'Default BW IR-Formatted by age'!"&VLOOKUP(AH10&AJ10&AQ10,Index!$A$2:$E$151,5,FALSE)),2,TRUE))))=TRUE,"ERROR",IF(AF10<>"NR",AF10,IF(AM10="NR",IF(AQ10="B",VLOOKUP(AH10&AJ10&AP10,'Default BW IR-Formatted by LS'!$AB$4:$AF$83,5,FALSE),VLOOKUP(AH10&AJ10&AQ10&AP10,'Default BW IR-Formatted by LS'!$S$4:$X$124,6,FALSE)),VLOOKUP(AO10,INDIRECT("'Default BW IR-Formatted by age'!"&VLOOKUP(AH10&AJ10&AQ10,Index!$A$2:$E$151,5,FALSE)),2,TRUE)))))) -> 0.3 | BB10: 0.3 | BC10: =IF(A10="","",IF(AS10="no","",IF(AG10<>"NR",AG10,IF(OR(L10="mg/L",L10="ppm in mg/L",L10="mg/ml",L10="% in water",L10="% water",L10="g/L",L10="ug/L"),IF(AI10="bird",0.059*BB10^0.67,0.099*BB10^0.9),(((BB10*1000)^VLOOKUP(AH10,Index!$L$2:$N$30,3,FALSE))*VLOOKUP(AH10,Index!$L$2:$N$30,2,FALSE))/1000)))) -> 0.08121010839 | BE10: 1000 | BJ10: 1000 | BK10: 100
A11: Growth | B11: 6 | C11: 2 | D11: Muralidhara et al. 2001 | E11: 1,1-dichloroethane | F11: 99.99 | G11: Rat (Rattus norvegicus) | H11: Sprague-Dawley | I11: 2 | J11: 5 | K11: 0/0.5/1.0/2.0/4.0 | L11: g/kg bw/d | M11: NR | N11: NR | O11: 5 per w | P11: U | Q11: GV | R11: 13 | S11: w | T11: NR | U11: NR | V11: AD | W11: M | X11: V | Y11: Lab | Z11: 2 | AA11: GRO | AB11: BDWT | AC11: WO | AD11: 1 | AE11: 2 | AF11: 0.2 | AG11: NR | AH11: Rat | AI11: =VLOOKUP(AH11,Index!$L$2:$Q$30,6,FALSE) -> mammal | AJ11: Sprague-Dawley | AK11: 0.7142857143 | AL11: NR | AM11: NR | AN11: NR | AO11: NR | AP11: adult | AQ11: M | AR11: yes | AS11: yes | AT11: 0.2 | AU11: 0.05721 | AV11: 714 | AW11: 1429 | BA11: =IF(A11="","",IF(AR11="no","",IF(ISERROR(IF(AF11<>"NR",AF11,IF(AM11="NR",IF(AQ11="B",VLOOKUP(AH11&AJ11&AP11,'Default BW IR-Formatted by LS'!$AB$4:$AF$83,5,FALSE),VLOOKUP(AH11&AJ11&AQ11&AP11,'Default BW IR-Formatted by LS'!$S$4:$X$124,6,FALSE)),VLOOKUP(AO11,INDIRECT("'Default BW IR-Formatted by age'!"&VLOOKUP(AH11&AJ11&AQ11,Index!$A$2:$E$151,5,FALSE)),2,TRUE))))=TRUE,"ERROR",IF(AF11<>"NR",AF11,IF(AM11="NR",IF(AQ11="B",VLOOKUP(AH11&AJ11&AP11,'Default BW IR-Formatted by LS'!$AB$4:$AF$83,5,FALSE),VLOOKUP(AH11&AJ11&AQ11&AP11,'Default BW IR-Formatted by LS'!$S$4:$X$124,6,FALSE)),VLOOKUP(AO11,INDIRECT("'Default BW IR-Formatted by age'!"&VLOOKUP(AH11&AJ11&AQ11,Index!$A$2:$E$151,5,FALSE)),2,TRUE)))))) -> 0.2 | BB11: 0.2 | BC11: =IF(A11="","",IF(AS11="no","",IF(AG11<>"NR",AG11,IF(OR(L11="mg/L",L11="ppm in mg/L",L11="mg/ml",L11="% in water",L11="% water",L11="g/L",L11="ug/L"),IF(AI11="bird",0.059*BB11^0.67,0.099*BB11^0.9),(((BB11*1000)^VLOOKUP(AH11,Index!$L$2:$N$30,3,FALSE))*VLOOKUP(AH11,Index!$L$2:$N$30,2,FALSE))/1000)))) -> 0.05720938015 | BD11: 714.2857143 | BE11: 1428.571429 | BI11: 714.2857143 | BJ11: 1428.571429 | BK11: 100
A12: Survival | B12: 7 | C12: 1 | D12: NCI 1978 | E12: 1,1-dichloroethane | F12: 99 | G12: Mouse (Mus musculus) | H12: B6C3F1 | I12: 3 | J12: 3 | K12: 0/1665/3331 | L12: mg/kg/bw/d | M12: NR | N12: NR | O12: 5 per w | P12: U | Q12: GV | R12: 78 | S12: w | T12: 5 | U12: w | V12: JV | W12: F | X12: M | Y12: Lab | Z12: 3 | AA12: MOR | AB12: MORT | AC12: WO | AD12: 1665 | AE12: 3331 | AF12: NR | AG12: NR | AH12: Mouse | AI12: =VLOOKUP(AH12,Index!$L$2:$Q$30,6,FALSE) -> mammal | AJ12: B6C3F1 | AK12: 0.7142857143 | AL12: 5 | AM12: 5 | AN12: 35 | AO12: 35 | AP12: juvenile | AQ12: F | AR12: no | AS12: no | AV12: 1189 | AW12: 2379 | BA12: =IF(A12="","",IF(AR12="no","",IF(ISERROR(IF(AF12<>"NR",AF12,IF(AM12="NR",IF(AQ12="B",VLOOKUP(AH12&AJ12&AP12,'Default BW IR-Formatted by LS'!$AB$4:$AF$83,5,FALSE),VLOOKUP(AH12&AJ12&AQ12&AP12,'Default BW IR-Formatted by LS'!$S$4:$X$124,6,FALSE)),VLOOKUP(AO12,INDIRECT("'Default BW IR-Formatted by age'!"&VLOOKUP(AH12&AJ12&AQ12,Index!$A$2:$E$151,5,FALSE)),2,TRUE))))=TRUE,"ERROR",IF(AF12<>"NR",AF12,IF(AM12="NR",IF(AQ12="B",VLOOKUP(AH12&AJ12&AP12,'Default BW IR-Formatted by LS'!$AB$4:$AF$83,5,FALSE),VLOOKUP(AH12&AJ12&AQ12&AP12,'Default BW IR-Formatted by LS'!$S$4:$X$124,6,FALSE)),VLOOKUP(AO12,INDIRECT("'Default BW IR-Formatted by age'!"&VLOOKUP(AH12&AJ12&AQ12,Index!$A$2:$E$151,5,FALSE)),2,TRUE)))))) ->  | BC12: =IF(A12="","",IF(AS12="no","",IF(AG12<>"NR",AG12,IF(OR(L12="mg/L",L12="ppm in mg/L",L12="mg/ml",L12="% in water",L12="% water",L12="g/L",L12="ug/L"),IF(AI12="bird",0.059*BB12^0.67,0.099*BB12^0.9),(((BB12*1000)^VLOOKUP(AH12,Index!$L$2:$N$30,3,FALSE))*VLOOKUP(AH12,Index!$L$2:$N$30,2,FALSE))/1000)))) ->  | BD12: 1189.285714 | BE12: 2379.285714 | BI12: 1189.285714 | BJ12: 2379.285714 | BK12: 100
A13: Survival | B13: 8 | C13: 2 | D13: Muralidhara et al. 2001 | E13: 1,1-dichloroethane | F13: 99.99 | G13: Rat (Rattus norvegicus) | H13: Sprague-Dawley | I13: 2 | J13: 5 | K13: 0/0.5/1.0/2.0/4.0 | L13: g/kg bw/d | M13: NR | N13: NR | O13: 5 per w | P13: U | Q13: GV | R13: 13 | S13: w | T13: NR | U13: NR | V13: AD | W13: M | X13: V | Y13: Lab | Z13: 3 | AA13: MOR | AB13: MORT | AC13: WO | AD13: 2 | AE13: 4 | AF13: 0.2 | AG13: NR | AH13: Rat | AI13: =VLOOKUP(AH13,Index!$L$2:$Q$30,6,FALSE) -> mammal | AJ13: Sprague-Dawley | AK13: 0.7142857143 | AL13: NR | AM13: NR | AN13: NR | AO13: NR | AP13: adult | AQ13: M | AR13: yes | AS13: yes | AT13: 0.2 | AU13: 0.05721 | AV13: 1429 | AW13: 2857 | BA13: =IF(A13="","",IF(AR13="no","",IF(ISERROR(IF(AF13<>"NR",AF13,IF(AM13="NR",IF(AQ13="B",VLOOKUP(AH13&AJ13&AP13,'Default BW IR-Formatted by LS'!$AB$4:$AF$83,5,FALSE),VLOOKUP(AH13&AJ13&AQ13&AP13,'Default BW IR-Formatted by LS'!$S$4:$X$124,6,FALSE)),VLOOKUP(AO13,INDIRECT("'Default BW IR-Formatted by age'!"&VLOOKUP(AH13&AJ13&AQ13,Index!$A$2:$E$151,5,FALSE)),2,TRUE))))=TRUE,"ERROR",IF(AF13<>"NR",AF13,IF(AM13="NR",IF(AQ13="B",VLOOKUP(AH13&AJ13&AP13,'Default BW IR-Formatted by LS'!$AB$4:$AF$83,5,FALSE),VLOOKUP(AH13&AJ13&AQ13&AP13,'Default BW IR-Formatted by LS'!$S$4:$X$124,6,FALSE)),VLOOKUP(AO13,INDIRECT("'Default BW IR-Formatted by age'!"&VLOOKUP(AH13&AJ13&AQ13,Index!$A$2:$E$151,5,FALSE)),2,TRUE)))))) -> 0.2 | BB13: 0.2 | BC13: =IF(A13="","",IF(AS13="no","",IF(AG13<>"NR",AG13,IF(OR(L13="mg/L",L13="ppm in mg/L",L13="mg/ml",L13="% in water",L13="% water",L13="g/L",L13="ug/L"),IF(AI13="bird",0.059*BB13^0.67,0.099*BB13^0.9),(((BB13*1000)^VLOOKUP(AH13,Index!$L$2:$N$30,3,FALSE))*VLOOKUP(AH13,Index!$L$2:$N$30,2,FALSE))/1000)))) -> 0.05720938015 | BD13: 1428.571429 | BE13: 2857.142857 | BI13: 1428.571429 | BJ13: 2857.142857 | BK13: 100
AI14: =VLOOKUP(AH14,Index!$L$2:$Q$30,6,FALSE) ->  | AK14: 1 | AR14: yes | AS14: yes | BA14: =IF(A14="","",IF(AR14="no","",IF(ISERROR(IF(AF14<>"NR",AF14,IF(AM14="NR",IF(AQ14="B",VLOOKUP(AH14&AJ14&AP14,'Default BW IR-Formatted by LS'!$AB$4:$AF$83,5,FALSE),VLOOKUP(AH14&AJ14&AQ14&AP14,'Default BW IR-Formatted by LS'!$S$4:$X$124,6,FALSE)),VLOOKUP(AO14,INDIRECT("'Default BW IR-Formatted by age'!"&VLOOKUP(AH14&AJ14&AQ14,Index!$A$2:$E$151,5,FALSE)),2,TRUE))))=TRUE,"ERROR",IF(AF14<>"NR",AF14,IF(AM14="NR",IF(AQ14="B",VLOOKUP(AH14&AJ14&AP14,'Default BW IR-Formatted by LS'!$AB$4:$AF$83,5,FALSE),VLOOKUP(AH14&AJ14&AQ14&AP14,'Default BW IR-Formatted by LS'!$S$4:$X$124,6,FALSE)),VLOOKUP(AO14,INDIRECT("'Default BW IR-Formatted by age'!"&VLOOKUP(AH14&AJ14&AQ14,Index!$A$2:$E$151,5,FALSE)),2,TRUE)))))) ->  | BC14: =IF(A14="","",IF(AS14="no","",IF(AG14<>"NR",AG14,IF(OR(L14="mg/L",L14="ppm in mg/L",L14="mg/ml",L14="% in water",L14="% water",L14="g/L",L14="ug/L"),IF(AI14="bird",0.059*BB14^0.67,0.099*BB14^0.9),(((BB14*1000)^VLOOKUP(AH14,Index!$L$2:$N$30,3,FALSE))*VLOOKUP(AH14,Index!$L$2:$N$30,2,FALSE))/1000)))) ->  | BD14: =IF(AD14="","",IF(OR(L14="mg/kg bw/d",L14="mg/kg/bw/d",L14="mg/kg/d",L14="ug/g bw/d"),F14/100*AD14*AK14,IF(OR(L14="mg/org/d",L14="mg/d"),F14/100*AD14/BB14*AK14,IF(OR(L14="mg/kg diet",L14="mg/L",L14="ppm in mg/kg",L14="mg/kg",L14="ug/g diet",L14="ug/g",L14="ppm in mg/L"),F14/100*AD14*BC14/BB14*AK14,IF(OR(L14="mg/ml",L14="mg/g",L14="g/L",L14="g/kg diet",L14="mg/g diet"),F14/100*(AD14*1000)*BC14/BB14*AK14,IF(OR(L14="% in diet", L14="% in water", L14="% water"),F14/100*(AD14*10000)*BC14/BB14*AK14,IF( L14="ug/kg bw/d",F14/100*AD14/1000*AK14,IF(OR(L14="g/kg bw/d",L14="mg/g bw/d"),F14/100*AD14*1000*AK14,IF(OR(L14="g/d",L14="g/org/d",L14="g/org/day"),F14/100*AD14*1000/BB14*AK14,IF(OR(L14="ug/kg",L14="ng/g diet",L14="ug/kg diet",L14="ug/L"),F14/100*AD14/1000*BC14/BB14*AK14,IF(L14="ug/org/d",F14/100*AD14/1000/BB14*AK14,NA()))))))))))) ->  | BE14: =IF(AE14="","",IF(OR(L14="mg/kg bw/d",L14="mg/kg/bw/d",L14="mg/kg/d",L14="ug/g bw/d"),F14/100*AE14*AK14,IF(OR(L14="mg/org/d",L14="mg/d"),F14/100*AE14/BB14*AK14,IF(OR(L14="mg/kg diet",L14="mg/L",L14="ppm in mg/kg",L14="mg/kg",L14="ug/g diet",L14="ug/g",L14="ppm in mg/L"),F14/100*AE14*BC14/BB14*AK14,IF(OR(L14="mg/ml",L14="mg/g",L14="g/L",L14="g/kg diet",L14="mg/g diet"),F14/100*(AE14*1000)*BC14/BB14*AK14,IF(OR(L14="% in diet", L14="% in water", L14="% water"),F14/100*(AE14*10000)*BC14/BB14*AK14,IF( L14="ug/kg bw/d",F14/100*AE14/1000*AK14,IF(OR(L14="g/kg bw/d",L14="mg/g bw/d"),F14/100*AE14*1000*AK14,IF(OR(L14="g/d",L14="g/org/d",L14="g/org/day"),F14/100*AE14*1000/BB14*AK14,IF(OR(L14="ug/kg",L14="ng/g diet",L14="ug/kg diet",L14="ug/L"),F14/100*AE14/1000*BC14/BB14*AK14,IF(L14="ug/org/d",F14/100*AE14/1000/BB14*AK14,NA()))))))))))) ->  | BI14: =IF(ISNUMBER(AY14)=TRUE,AY14,BD14) ->  | BJ14: =IF(ISNUMBER(AZ14)=TRUE,AZ14,BE14) -> 
AI15: =VLOOKUP(AH15,Index!$L$2:$Q$30,6,FALSE) ->  | AK15: 1 | AR15: yes | AS15: yes | BA15: =IF(A15="","",IF(AR15="no","",IF(ISERROR(IF(AF15<>"NR",AF15,IF(AM15="NR",IF(AQ15="B",VLOOKUP(AH15&AJ15&AP15,'Default BW IR-Formatted by LS'!$AB$4:$AF$83,5,FALSE),VLOOKUP(AH15&AJ15&AQ15&AP15,'Default BW IR-Formatted by LS'!$S$4:$X$124,6,FALSE)),VLOOKUP(AO15,INDIRECT("'Default BW IR-Formatted by age'!"&VLOOKUP(AH15&AJ15&AQ15,Index!$A$2:$E$151,5,FALSE)),2,TRUE))))=TRUE,"ERROR",IF(AF15<>"NR",AF15,IF(AM15="NR",IF(AQ15="B",VLOOKUP(AH15&AJ15&AP15,'Default BW IR-Formatted by LS'!$AB$4:$AF$83,5,FALSE),VLOOKUP(AH15&AJ15&AQ15&AP15,'Default BW IR-Formatted by LS'!$S$4:$X$124,6,FALSE)),VLOOKUP(AO15,INDIRECT("'Default BW IR-Formatted by age'!"&VLOOKUP(AH15&AJ15&AQ15,Index!$A$2:$E$151,5,FALSE)),2,TRUE)))))) ->  | BC15: =IF(A15="","",IF(AS15="no","",IF(AG15<>"NR",AG15,IF(OR(L15="mg/L",L15="ppm in mg/L",L15="mg/ml",L15="% in water",L15="% water",L15="g/L",L15="ug/L"),IF(AI15="bird",0.059*BB15^0.67,0.099*BB15^0.9),(((BB15*1000)^VLOOKUP(AH15,Index!$L$2:$N$30,3,FALSE))*VLOOKUP(AH15,Index!$L$2:$N$30,2,FALSE))/1000)))) ->  | BH15: =IF(BF15="X","",IF(AND(ISERROR(BE15)=TRUE,AZ15=""),"X","")) -> 
AI16: =VLOOKUP(AH16,Index!$L$2:$Q$30,6,FALSE) ->  | AK16: 1 | AR16: yes | AS16: yes | BA16: =IF(A16="","",IF(AR16="no","",IF(ISERROR(IF(AF16<>"NR",AF16,IF(AM16="NR",IF(AQ16="B",VLOOKUP(AH16&AJ16&AP16,'Default BW IR-Formatted by LS'!$AB$4:$AF$83,5,FALSE),VLOOKUP(AH16&AJ16&AQ16&AP16,'Default BW IR-Formatted by LS'!$S$4:$X$124,6,FALSE)),VLOOKUP(AO16,INDIRECT("'Default BW IR-Formatted by age'!"&VLOOKUP(AH16&AJ16&AQ16,Index!$A$2:$E$151,5,FALSE)),2,TRUE))))=TRUE,"ERROR",IF(AF16<>"NR",AF16,IF(AM16="NR",IF(AQ16="B",VLOOKUP(AH16&AJ16&AP16,'Default BW IR-Formatted by LS'!$AB$4:$AF$83,5,FALSE),VLOOKUP(AH16&AJ16&AQ16&AP16,'Default BW IR-Formatted by LS'!$S$4:$X$124,6,FALSE)),VLOOKUP(AO16,INDIRECT("'Default BW IR-Formatted by age'!"&VLOOKUP(AH16&AJ16&AQ16,Index!$A$2:$E$151,5,FALSE)),2,TRUE)))))) ->  | BC16: =IF(A16="","",IF(AS16="no","",IF(AG16<>"NR",AG16,IF(OR(L16="mg/L",L16="ppm in mg/L",L16="mg/ml",L16="% in water",L16="% water",L16="g/L",L16="ug/L"),IF(AI16="bird",0.059*BB16^0.67,0.099*BB16^0.9),(((BB16*1000)^VLOOKUP(AH16,Index!$L$2:$N$30,3,FALSE))*VLOOKUP(AH16,Index!$L$2:$N$30,2,FALSE))/1000)))) -> 
AI17: =VLOOKUP(AH17,Index!$L$2:$Q$30,6,FALSE) ->  | AK17: 1 | AR17: yes | AS17: yes | BA17: =IF(A17="","",IF(AR17="no","",IF(ISERROR(IF(AF17<>"NR",AF17,IF(AM17="NR",IF(AQ17="B",VLOOKUP(AH17&AJ17&AP17,'Default BW IR-Formatted by LS'!$AB$4:$AF$83,5,FALSE),VLOOKUP(AH17&AJ17&AQ17&AP17,'Default BW IR-Formatted by LS'!$S$4:$X$124,6,FALSE)),VLOOKUP(AO17,INDIRECT("'Default BW IR-Formatted by age'!"&VLOOKUP(AH17&AJ17&AQ17,Index!$A$2:$E$151,5,FALSE)),2,TRUE))))=TRUE,"ERROR",IF(AF17<>"NR",AF17,IF(AM17="NR",IF(AQ17="B",VLOOKUP(AH17&AJ17&AP17,'Default BW IR-Formatted by LS'!$AB$4:$AF$83,5,FALSE),VLOOKUP(AH17&AJ17&AQ17&AP17,'Default BW IR-Formatted by LS'!$S$4:$X$124,6,FALSE)),VLOOKUP(AO17,INDIRECT("'Default BW IR-Formatted by age'!"&VLOOKUP(AH17&AJ17&AQ17,Index!$A$2:$E$151,5,FALSE)),2,TRUE)))))) ->  | BC17: =IF(A17="","",IF(AS17="no","",IF(AG17<>"NR",AG17,IF(OR(L17="mg/L",L17="ppm in mg/L",L17="mg/ml",L17="% in water",L17="% water",L17="g/L",L17="ug/L"),IF(AI17="bird",0.059*BB17^0.67,0.099*BB17^0.9),(((BB17*1000)^VLOOKUP(AH17,Index!$L$2:$N$30,3,FALSE))*VLOOKUP(AH17,Index!$L$2:$N$30,2,FALSE))/1000)))) -> 
AI18: =VLOOKUP(AH18,Index!$L$2:$Q$30,6,FALSE) ->  | AK18: 1 | AR18: yes | AS18: yes | BA18: =IF(A18="","",IF(AR18="no","",IF(ISERROR(IF(AF18<>"NR",AF18,IF(AM18="NR",IF(AQ18="B",VLOOKUP(AH18&AJ18&AP18,'Default BW IR-Formatted by LS'!$AB$4:$AF$83,5,FALSE),VLOOKUP(AH18&AJ18&AQ18&AP18,'Default BW IR-Formatted by LS'!$S$4:$X$124,6,FALSE)),VLOOKUP(AO18,INDIRECT("'Default BW IR-Formatted by age'!"&VLOOKUP(AH18&AJ18&AQ18,Index!$A$2:$E$151,5,FALSE)),2,TRUE))))=TRUE,"ERROR",IF(AF18<>"NR",AF18,IF(AM18="NR",IF(AQ18="B",VLOOKUP(AH18&AJ18&AP18,'Default BW IR-Formatted by LS'!$AB$4:$AF$83,5,FALSE),VLOOKUP(AH18&AJ18&AQ18&AP18,'Default BW IR-Formatted by LS'!$S$4:$X$124,6,FALSE)),VLOOKUP(AO18,INDIRECT("'Default BW IR-Formatted by age'!"&VLOOKUP(AH18&AJ18&AQ18,Index!$A$2:$E$151,5,FALSE)),2,TRUE)))))) ->  | BC18: =IF(A18="","",IF(AS18="no","",IF(AG18<>"NR",AG18,IF(OR(L18="mg/L",L18="ppm in mg/L",L18="mg/ml",L18="% in water",L18="% water",L18="g/L",L18="ug/L"),IF(AI18="bird",0.059*BB18^0.67,0.099*BB18^0.9),(((BB18*1000)^VLOOKUP(AH18,Index!$L$2:$N$30,3,FALSE))*VLOOKUP(AH18,Index!$L$2:$N$30,2,FALSE))/1000)))) -> 
AI19: =VLOOKUP(AH19,Index!$L$2:$Q$30,6,FALSE) ->  | AK19: 1 | AR19: yes | AS19: yes | BA19: =IF(A19="","",IF(AR19="no","",IF(ISERROR(IF(AF19<>"NR",AF19,IF(AM19="NR",IF(AQ19="B",VLOOKUP(AH19&AJ19&AP19,'Default BW IR-Formatted by LS'!$AB$4:$AF$83,5,FALSE),VLOOKUP(AH19&AJ19&AQ19&AP19,'Default BW IR-Formatted by LS'!$S$4:$X$124,6,FALSE)),VLOOKUP(AO19,INDIRECT("'Default BW IR-Formatted by age'!"&VLOOKUP(AH19&AJ19&AQ19,Index!$A$2:$E$151,5,FALSE)),2,TRUE))))=TRUE,"ERROR",IF(AF19<>"NR",AF19,IF(AM19="NR",IF(AQ19="B",VLOOKUP(AH19&AJ19&AP19,'Default BW IR-Formatted by LS'!$AB$4:$AF$83,5,FALSE),VLOOKUP(AH19&AJ19&AQ19&AP19,'Default BW IR-Formatted by LS'!$S$4:$X$124,6,FALSE)),VLOOKUP(AO19,INDIRECT("'Default BW IR-Formatted by age'!"&VLOOKUP(AH19&AJ19&AQ19,Index!$A$2:$E$151,5,FALSE)),2,TRUE)))))) ->  | BC19: =IF(A19="","",IF(AS19="no","",IF(AG19<>"NR",AG19,IF(OR(L19="mg/L",L19="ppm in mg/L",L19="mg/ml",L19="% in water",L19="% water",L19="g/L",L19="ug/L"),IF(AI19="bird",0.059*BB19^0.67,0.099*BB19^0.9),(((BB19*1000)^VLOOKUP(AH19,Index!$L$2:$N$30,3,FALSE))*VLOOKUP(AH19,Index!$L$2:$N$30,2,FALSE))/1000)))) -> 
AI20: =VLOOKUP(AH20,Index!$L$2:$Q$30,6,FALSE) ->  | AK20: 1 | AR20: yes | AS20: yes | BA20: =IF(A20="","",IF(AR20="no","",IF(ISERROR(IF(AF20<>"NR",AF20,IF(AM20="NR",IF(AQ20="B",VLOOKUP(AH20&AJ20&AP20,'Default BW IR-Formatted by LS'!$AB$4:$AF$83,5,FALSE),VLOOKUP(AH20&AJ20&AQ20&AP20,'Default BW IR-Formatted by LS'!$S$4:$X$124,6,FALSE)),VLOOKUP(AO20,INDIRECT("'Default BW IR-Formatted by age'!"&VLOOKUP(AH20&AJ20&AQ20,Index!$A$2:$E$151,5,FALSE)),2,TRUE))))=TRUE,"ERROR",IF(AF20<>"NR",AF20,IF(AM20="NR",IF(AQ20="B",VLOOKUP(AH20&AJ20&AP20,'Default BW IR-Formatted by LS'!$AB$4:$AF$83,5,FALSE),VLOOKUP(AH20&AJ20&AQ20&AP20,'Default BW IR-Formatted by LS'!$S$4:$X$124,6,FALSE)),VLOOKUP(AO20,INDIRECT("'Default BW IR-Formatted by age'!"&VLOOKUP(AH20&AJ20&AQ20,Index!$A$2:$E$151,5,FALSE)),2,TRUE)))))) ->  | BC20: =IF(A20="","",IF(AS20="no","",IF(AG20<>"NR",AG20,IF(OR(L20="mg/L",L20="ppm in mg/L",L20="mg/ml",L20="% in water",L20="% water",L20="g/L",L20="ug/L"),IF(AI20="bird",0.059*BB20^0.67,0.099*BB20^0.9),(((BB20*1000)^VLOOKUP(AH20,Index!$L$2:$N$30,3,FALSE))*VLOOKUP(AH20,Index!$L$2:$N$30,2,FALSE))/1000)))) -> 
AI21: =VLOOKUP(AH21,Index!$L$2:$Q$30,6,FALSE) ->  | AK21: 1 | AR21: yes | AS21: yes | BA21: =IF(A21="","",IF(AR21="no","",IF(ISERROR(IF(AF21<>"NR",AF21,IF(AM21="NR",IF(AQ21="B",VLOOKUP(AH21&AJ21&AP21,'Default BW IR-Formatted by LS'!$AB$4:$AF$83,5,FALSE),VLOOKUP(AH21&AJ21&AQ21&AP21,'Default BW IR-Formatted by LS'!$S$4:$X$124,6,FALSE)),VLOOKUP(AO21,INDIRECT("'Default BW IR-Formatted by age'!"&VLOOKUP(AH21&AJ21&AQ21,Index!$A$2:$E$151,5,FALSE)),2,TRUE))))=TRUE,"ERROR",IF(AF21<>"NR",AF21,IF(AM21="NR",IF(AQ21="B",VLOOKUP(AH21&AJ21&AP21,'Default BW IR-Formatted by LS'!$AB$4:$AF$83,5,FALSE),VLOOKUP(AH21&AJ21&AQ21&AP21,'Default BW IR-Formatted by LS'!$S$4:$X$124,6,FALSE)),VLOOKUP(AO21,INDIRECT("'Default BW IR-Formatted by age'!"&VLOOKUP(AH21&AJ21&AQ21,Index!$A$2:$E$151,5,FALSE)),2,TRUE)))))) ->  | BC21: =IF(A21="","",IF(AS21="no","",IF(AG21<>"NR",AG21,IF(OR(L21="mg/L",L21="ppm in mg/L",L21="mg/ml",L21="% in water",L21="% water",L21="g/L",L21="ug/L"),IF(AI21="bird",0.059*BB21^0.67,0.099*BB21^0.9),(((BB21*1000)^VLOOKUP(AH21,Index!$L$2:$N$30,3,FALSE))*VLOOKUP(AH21,Index!$L$2:$N$30,2,FALSE))/1000)))) -> 
AI22: =VLOOKUP(AH22,Index!$L$2:$Q$30,6,FALSE) ->  | AK22: 1 | AR22: yes | AS22: yes | BA22: =IF(A22="","",IF(AR22="no","",IF(ISERROR(IF(AF22<>"NR",AF22,IF(AM22="NR",IF(AQ22="B",VLOOKUP(AH22&AJ22&AP22,'Default BW IR-Formatted by LS'!$AB$4:$AF$83,5,FALSE),VLOOKUP(AH22&AJ22&AQ22&AP22,'Default BW IR-Formatted by LS'!$S$4:$X$124,6,FALSE)),VLOOKUP(AO22,INDIRECT("'Default BW IR-Formatted by age'!"&VLOOKUP(AH22&AJ22&AQ22,Index!$A$2:$E$151,5,FALSE)),2,TRUE))))=TRUE,"ERROR",IF(AF22<>"NR",AF22,IF(AM22="NR",IF(AQ22="B",VLOOKUP(AH22&AJ22&AP22,'Default BW IR-Formatted by LS'!$AB$4:$AF$83,5,FALSE),VLOOKUP(AH22&AJ22&AQ22&AP22,'Default BW IR-Formatted by LS'!$S$4:$X$124,6,FALSE)),VLOOKUP(AO22,INDIRECT("'Default BW IR-Formatted by age'!"&VLOOKUP(AH22&AJ22&AQ22,Index!$A$2:$E$151,5,FALSE)),2,TRUE)))))) ->  | BC22: =IF(A22="","",IF(AS22="no","",IF(AG22<>"NR",AG22,IF(OR(L22="mg/L",L22="ppm in mg/L",L22="mg/ml",L22="% in water",L22="% water",L22="g/L",L22="ug/L"),IF(AI22="bird",0.059*BB22^0.67,0.099*BB22^0.9),(((BB22*1000)^VLOOKUP(AH22,Index!$L$2:$N$30,3,FALSE))*VLOOKUP(AH22,Index!$L$2:$N$30,2,FALSE))/1000)))) -> 
AI23: =VLOOKUP(AH23,Index!$L$2:$Q$30,6,FALSE) ->  | AK23: 1 | AR23: yes | AS23: yes | BA23: =IF(A23="","",IF(AR23="no","",IF(ISERROR(IF(AF23<>"NR",AF23,IF(AM23="NR",IF(AQ23="B",VLOOKUP(AH23&AJ23&AP23,'Default BW IR-Formatted by LS'!$AB$4:$AF$83,5,FALSE),VLOOKUP(AH23&AJ23&AQ23&AP23,'Default BW IR-Formatted by LS'!$S$4:$X$124,6,FALSE)),VLOOKUP(AO23,INDIRECT("'Default BW IR-Formatted by age'!"&VLOOKUP(AH23&AJ23&AQ23,Index!$A$2:$E$151,5,FALSE)),2,TRUE))))=TRUE,"ERROR",IF(AF23<>"NR",AF23,IF(AM23="NR",IF(AQ23="B",VLOOKUP(AH23&AJ23&AP23,'Default BW IR-Formatted by LS'!$AB$4:$AF$83,5,FALSE),VLOOKUP(AH23&AJ23&AQ23&AP23,'Default BW IR-Formatted by LS'!$S$4:$X$124,6,FALSE)),VLOOKUP(AO23,INDIRECT("'Default BW IR-Formatted by age'!"&VLOOKUP(AH23&AJ23&AQ23,Index!$A$2:$E$151,5,FALSE)),2,TRUE)))))) ->  | BC23: =IF(A23="","",IF(AS23="no","",IF(AG23<>"NR",AG23,IF(OR(L23="mg/L",L23="ppm in mg/L",L23="mg/ml",L23="% in water",L23="% water",L23="g/L",L23="ug/L"),IF(AI23="bird",0.059*BB23^0.67,0.099*BB23^0.9),(((BB23*1000)^VLOOKUP(AH23,Index!$L$2:$N$30,3,FALSE))*VLOOKUP(AH23,Index!$L$2:$N$30,2,FALSE))/1000)))) -> 
AI24: =VLOOKUP(AH24,Index!$L$2:$Q$30,6,FALSE) ->  | AK24: 1 | AR24: yes | AS24: yes | BA24: =IF(A24="","",IF(AR24="no","",IF(ISERROR(IF(AF24<>"NR",AF24,IF(AM24="NR",IF(AQ24="B",VLOOKUP(AH24&AJ24&AP24,'Default BW IR-Formatted by LS'!$AB$4:$AF$83,5,FALSE),VLOOKUP(AH24&AJ24&AQ24&AP24,'Default BW IR-Formatted by LS'!$S$4:$X$124,6,FALSE)),VLOOKUP(AO24,INDIRECT("'Default BW IR-Formatted by age'!"&VLOOKUP(AH24&AJ24&AQ24,Index!$A$2:$E$151,5,FALSE)),2,TRUE))))=TRUE,"ERROR",IF(AF24<>"NR",AF24,IF(AM24="NR",IF(AQ24="B",VLOOKUP(AH24&AJ24&AP24,'Default BW IR-Formatted by LS'!$AB$4:$AF$83,5,FALSE),VLOOKUP(AH24&AJ24&AQ24&AP24,'Default BW IR-Formatted by LS'!$S$4:$X$124,6,FALSE)),VLOOKUP(AO24,INDIRECT("'Default BW IR-Formatted by age'!"&VLOOKUP(AH24&AJ24&AQ24,Index!$A$2:$E$151,5,FALSE)),2,TRUE)))))) ->  | BC24: =IF(A24="","",IF(AS24="no","",IF(AG24<>"NR",AG24,IF(OR(L24="mg/L",L24="ppm in mg/L",L24="mg/ml",L24="% in water",L24="% water",L24="g/L",L24="ug/L"),IF(AI24="bird",0.059*BB24^0.67,0.099*BB24^0.9),(((BB24*1000)^VLOOKUP(AH24,Index!$L$2:$N$30,3,FALSE))*VLOOKUP(AH24,Index!$L$2:$N$30,2,FALSE))/1000)))) -> 
AI25: =VLOOKUP(AH25,Index!$L$2:$Q$30,6,FALSE) ->  | AK25: 1 | AR25: yes | AS25: yes | BA25: =IF(A25="","",IF(AR25="no","",IF(ISERROR(IF(AF25<>"NR",AF25,IF(AM25="NR",IF(AQ25="B",VLOOKUP(AH25&AJ25&AP25,'Default BW IR-Formatted by LS'!$AB$4:$AF$83,5,FALSE),VLOOKUP(AH25&AJ25&AQ25&AP25,'Default BW IR-Formatted by LS'!$S$4:$X$124,6,FALSE)),VLOOKUP(AO25,INDIRECT("'Default BW IR-Formatted by age'!"&VLOOKUP(AH25&AJ25&AQ25,Index!$A$2:$E$151,5,FALSE)),2,TRUE))))=TRUE,"ERROR",IF(AF25<>"NR",AF25,IF(AM25="NR",IF(AQ25="B",VLOOKUP(AH25&AJ25&AP25,'Default BW IR-Formatted by LS'!$AB$4:$AF$83,5,FALSE),VLOOKUP(AH25&AJ25&AQ25&AP25,'Default BW IR-Formatted by LS'!$S$4:$X$124,6,FALSE)),VLOOKUP(AO25,INDIRECT("'Default BW IR-Formatted by age'!"&VLOOKUP(AH25&AJ25&AQ25,Index!$A$2:$E$151,5,FALSE)),2,TRUE)))))) ->  | BC25: =IF(A25="","",IF(AS25="no","",IF(AG25<>"NR",AG25,IF(OR(L25="mg/L",L25="ppm in mg/L",L25="mg/ml",L25="% in water",L25="% water",L25="g/L",L25="ug/L"),IF(AI25="bird",0.059*BB25^0.67,0.099*BB25^0.9),(((BB25*1000)^VLOOKUP(AH25,Index!$L$2:$N$30,3,FALSE))*VLOOKUP(AH25,Index!$L$2:$N$30,2,FALSE))/1000)))) -> 
AI26: =VLOOKUP(AH26,Index!$L$2:$Q$30,6,FALSE) ->  | AK26: 1 | AR26: yes | AS26: yes | BA26: =IF(A26="","",IF(AR26="no","",IF(ISERROR(IF(AF26<>"NR",AF26,IF(AM26="NR",IF(AQ26="B",VLOOKUP(AH26&AJ26&AP26,'Default BW IR-Formatted by LS'!$AB$4:$AF$83,5,FALSE),VLOOKUP(AH26&AJ26&AQ26&AP26,'Default BW IR-Formatted by LS'!$S$4:$X$124,6,FALSE)),VLOOKUP(AO26,INDIRECT("'Default BW IR-Formatted by age'!"&VLOOKUP(AH26&AJ26&AQ26,Index!$A$2:$E$151,5,FALSE)),2,TRUE))))=TRUE,"ERROR",IF(AF26<>"NR",AF26,IF(AM26="NR",IF(AQ26="B",VLOOKUP(AH26&AJ26&AP26,'Default BW IR-Formatted by LS'!$AB$4:$AF$83,5,FALSE),VLOOKUP(AH26&AJ26&AQ26&AP26,'Default BW IR-Formatted by LS'!$S$4:$X$124,6,FALSE)),VLOOKUP(AO26,INDIRECT("'Default BW IR-Formatted by age'!"&VLOOKUP(AH26&AJ26&AQ26,Index!$A$2:$E$151,5,FALSE)),2,TRUE)))))) ->  | BC26: =IF(A26="","",IF(AS26="no","",IF(AG26<>"NR",AG26,IF(OR(L26="mg/L",L26="ppm in mg/L",L26="mg/ml",L26="% in water",L26="% water",L26="g/L",L26="ug/L"),IF(AI26="bird",0.059*BB26^0.67,0.099*BB26^0.9),(((BB26*1000)^VLOOKUP(AH26,Index!$L$2:$N$30,3,FALSE))*VLOOKUP(AH26,Index!$L$2:$N$30,2,FALSE))/1000)))) -> 
AI27: =VLOOKUP(AH27,Index!$L$2:$Q$30,6,FALSE) ->  | AK27: 1 | AR27: yes | AS27: yes | BA27: =IF(A27="","",IF(AR27="no","",IF(ISERROR(IF(AF27<>"NR",AF27,IF(AM27="NR",IF(AQ27="B",VLOOKUP(AH27&AJ27&AP27,'Default BW IR-Formatted by LS'!$AB$4:$AF$83,5,FALSE),VLOOKUP(AH27&AJ27&AQ27&AP27,'Default BW IR-Formatted by LS'!$S$4:$X$124,6,FALSE)),VLOOKUP(AO27,INDIRECT("'Default BW IR-Formatted by age'!"&VLOOKUP(AH27&AJ27&AQ27,Index!$A$2:$E$151,5,FALSE)),2,TRUE))))=TRUE,"ERROR",IF(AF27<>"NR",AF27,IF(AM27="NR",IF(AQ27="B",VLOOKUP(AH27&AJ27&AP27,'Default BW IR-Formatted by LS'!$AB$4:$AF$83,5,FALSE),VLOOKUP(AH27&AJ27&AQ27&AP27,'Default BW IR-Formatted by LS'!$S$4:$X$124,6,FALSE)),VLOOKUP(AO27,INDIRECT("'Default BW IR-Formatted by age'!"&VLOOKUP(AH27&AJ27&AQ27,Index!$A$2:$E$151,5,FALSE)),2,TRUE)))))) ->  | BC27: =IF(A27="","",IF(AS27="no","",IF(AG27<>"NR",AG27,IF(OR(L27="mg/L",L27="ppm in mg/L",L27="mg/ml",L27="% in water",L27="% water",L27="g/L",L27="ug/L"),IF(AI27="bird",0.059*BB27^0.67,0.099*BB27^0.9),(((BB27*1000)^VLOOKUP(AH27,Index!$L$2:$N$30,3,FALSE))*VLOOKUP(AH27,Index!$L$2:$N$30,2,FALSE))/1000)))) -> 
AI28: =VLOOKUP(AH28,Index!$L$2:$Q$30,6,FALSE) ->  | AK28: 1 | AR28: yes | AS28: yes | BA28: =IF(A28="","",IF(AR28="no","",IF(ISERROR(IF(AF28<>"NR",AF28,IF(AM28="NR",IF(AQ28="B",VLOOKUP(AH28&AJ28&AP28,'Default BW IR-Formatted by LS'!$AB$4:$AF$83,5,FALSE),VLOOKUP(AH28&AJ28&AQ28&AP28,'Default BW IR-Formatted by LS'!$S$4:$X$124,6,FALSE)),VLOOKUP(AO28,INDIRECT("'Default BW IR-Formatted by age'!"&VLOOKUP(AH28&AJ28&AQ28,Index!$A$2:$E$151,5,FALSE)),2,TRUE))))=TRUE,"ERROR",IF(AF28<>"NR",AF28,IF(AM28="NR",IF(AQ28="B",VLOOKUP(AH28&AJ28&AP28,'Default BW IR-Formatted by LS'!$AB$4:$AF$83,5,FALSE),VLOOKUP(AH28&AJ28&AQ28&AP28,'Default BW IR-Formatted by LS'!$S$4:$X$124,6,FALSE)),VLOOKUP(AO28,INDIRECT("'Default BW IR-Formatted by age'!"&VLOOKUP(AH28&AJ28&AQ28,Index!$A$2:$E$151,5,FALSE)),2,TRUE)))))) ->  | BC28: =IF(A28="","",IF(AS28="no","",IF(AG28<>"NR",AG28,IF(OR(L28="mg/L",L28="ppm in mg/L",L28="mg/ml",L28="% in water",L28="% water",L28="g/L",L28="ug/L"),IF(AI28="bird",0.059*BB28^0.67,0.099*BB28^0.9),(((BB28*1000)^VLOOKUP(AH28,Index!$L$2:$N$30,3,FALSE))*VLOOKUP(AH28,Index!$L$2:$N$30,2,FALSE))/1000)))) -> 
AI29: =VLOOKUP(AH29,Index!$L$2:$Q$30,6,FALSE) ->  | AK29: 1 | AR29: yes | AS29: yes | BA29: =IF(A29="","",IF(AR29="no","",IF(ISERROR(IF(AF29<>"NR",AF29,IF(AM29="NR",IF(AQ29="B",VLOOKUP(AH29&AJ29&AP29,'Default BW IR-Formatted by LS'!$AB$4:$AF$83,5,FALSE),VLOOKUP(AH29&AJ29&AQ29&AP29,'Default BW IR-Formatted by LS'!$S$4:$X$124,6,FALSE)),VLOOKUP(AO29,INDIRECT("'Default BW IR-Formatted by age'!"&VLOOKUP(AH29&AJ29&AQ29,Index!$A$2:$E$151,5,FALSE)),2,TRUE))))=TRUE,"ERROR",IF(AF29<>"NR",AF29,IF(AM29="NR",IF(AQ29="B",VLOOKUP(AH29&AJ29&AP29,'Default BW IR-Formatted by LS'!$AB$4:$AF$83,5,FALSE),VLOOKUP(AH29&AJ29&AQ29&AP29,'Default BW IR-Formatted by LS'!$S$4:$X$124,6,FALSE)),VLOOKUP(AO29,INDIRECT("'Default BW IR-Formatted by age'!"&VLOOKUP(AH29&AJ29&AQ29,Index!$A$2:$E$151,5,FALSE)),2,TRUE)))))) ->  | BC29: =IF(A29="","",IF(AS29="no","",IF(AG29<>"NR",AG29,IF(OR(L29="mg/L",L29="ppm in mg/L",L29="mg/ml",L29="% in water",L29="% water",L29="g/L",L29="ug/L"),IF(AI29="bird",0.059*BB29^0.67,0.099*BB29^0.9),(((BB29*1000)^VLOOKUP(AH29,Index!$L$2:$N$30,3,FALSE))*VLOOKUP(AH29,Index!$L$2:$N$30,2,FALSE))/1000)))) -> 
AI30: =VLOOKUP(AH30,Index!$L$2:$Q$30,6,FALSE) ->  | AK30: 1 | AR30: yes | AS30: yes | BA30: =IF(A30="","",IF(AR30="no","",IF(ISERROR(IF(AF30<>"NR",AF30,IF(AM30="NR",IF(AQ30="B",VLOOKUP(AH30&AJ30&AP30,'Default BW IR-Formatted by LS'!$AB$4:$AF$83,5,FALSE),VLOOKUP(AH30&AJ30&AQ30&AP30,'Default BW IR-Formatted by LS'!$S$4:$X$124,6,FALSE)),VLOOKUP(AO30,INDIRECT("'Default BW IR-Formatted by age'!"&VLOOKUP(AH30&AJ30&AQ30,Index!$A$2:$E$151,5,FALSE)),2,TRUE))))=TRUE,"ERROR",IF(AF30<>"NR",AF30,IF(AM30="NR",IF(AQ30="B",VLOOKUP(AH30&AJ30&AP30,'Default BW IR-Formatted by LS'!$AB$4:$AF$83,5,FALSE),VLOOKUP(AH30&AJ30&AQ30&AP30,'Default BW IR-Formatted by LS'!$S$4:$X$124,6,FALSE)),VLOOKUP(AO30,INDIRECT("'Default BW IR-Formatted by age'!"&VLOOKUP(AH30&AJ30&AQ30,Index!$A$2:$E$151,5,FALSE)),2,TRUE)))))) ->  | BC30: =IF(A30="","",IF(AS30="no","",IF(AG30<>"NR",AG30,IF(OR(L30="mg/L",L30="ppm in mg/L",L30="mg/ml",L30="% in water",L30="% water",L30="g/L",L30="ug/L"),IF(AI30="bird",0.059*BB30^0.67,0.099*BB30^0.9),(((BB30*1000)^VLOOKUP(AH30,Index!$L$2:$N$30,3,FALSE))*VLOOKUP(AH30,Index!$L$2:$N$30,2,FALSE))/1000)))) -> 
AI31: =VLOOKUP(AH31,Index!$L$2:$Q$30,6,FALSE) ->  | AK31: 1 | AR31: yes | AS31: yes | BA31: =IF(A31="","",IF(AR31="no","",IF(ISERROR(IF(AF31<>"NR",AF31,IF(AM31="NR",IF(AQ31="B",VLOOKUP(AH31&AJ31&AP31,'Default BW IR-Formatted by LS'!$AB$4:$AF$83,5,FALSE),VLOOKUP(AH31&AJ31&AQ31&AP31,'Default BW IR-Formatted by LS'!$S$4:$X$124,6,FALSE)),VLOOKUP(AO31,INDIRECT("'Default BW IR-Formatted by age'!"&VLOOKUP(AH31&AJ31&AQ31,Index!$A$2:$E$151,5,FALSE)),2,TRUE))))=TRUE,"ERROR",IF(AF31<>"NR",AF31,IF(AM31="NR",IF(AQ31="B",VLOOKUP(AH31&AJ31&AP31,'Default BW IR-Formatted by LS'!$AB$4:$AF$83,5,FALSE),VLOOKUP(AH31&AJ31&AQ31&AP31,'Default BW IR-Formatted by LS'!$S$4:$X$124,6,FALSE)),VLOOKUP(AO31,INDIRECT("'Default BW IR-Formatted by age'!"&VLOOKUP(AH31&AJ31&AQ31,Index!$A$2:$E$151,5,FALSE)),2,TRUE)))))) ->  | BC31: =IF(A31="","",IF(AS31="no","",IF(AG31<>"NR",AG31,IF(OR(L31="mg/L",L31="ppm in mg/L",L31="mg/ml",L31="% in water",L31="% water",L31="g/L",L31="ug/L"),IF(AI31="bird",0.059*BB31^0.67,0.099*BB31^0.9),(((BB31*1000)^VLOOKUP(AH31,Index!$L$2:$N$30,3,FALSE))*VLOOKUP(AH31,Index!$L$2:$N$30,2,FALSE))/1000)))) -> 
AI32: =VLOOKUP(AH32,Index!$L$2:$Q$30,6,FALSE) ->  | AK32: 1 | AR32: yes | AS32: yes | BA32: =IF(A32="","",IF(AR32="no","",IF(ISERROR(IF(AF32<>"NR",AF32,IF(AM32="NR",IF(AQ32="B",VLOOKUP(AH32&AJ32&AP32,'Default BW IR-Formatted by LS'!$AB$4:$AF$83,5,FALSE),VLOOKUP(AH32&AJ32&AQ32&AP32,'Default BW IR-Formatted by LS'!$S$4:$X$124,6,FALSE)),VLOOKUP(AO32,INDIRECT("'Default BW IR-Formatted by age'!"&VLOOKUP(AH32&AJ32&AQ32,Index!$A$2:$E$151,5,FALSE)),2,TRUE))))=TRUE,"ERROR",IF(AF32<>"NR",AF32,IF(AM32="NR",IF(AQ32="B",VLOOKUP(AH32&AJ32&AP32,'Default BW IR-Formatted by LS'!$AB$4:$AF$83,5,FALSE),VLOOKUP(AH32&AJ32&AQ32&AP32,'Default BW IR-Formatted by LS'!$S$4:$X$124,6,FALSE)),VLOOKUP(AO32,INDIRECT("'Default BW IR-Formatted by age'!"&VLOOKUP(AH32&AJ32&AQ32,Index!$A$2:$E$151,5,FALSE)),2,TRUE)))))) ->  | BC32: =IF(A32="","",IF(AS32="no","",IF(AG32<>"NR",AG32,IF(OR(L32="mg/L",L32="ppm in mg/L",L32="mg/ml",L32="% in water",L32="% water",L32="g/L",L32="ug/L"),IF(AI32="bird",0.059*BB32^0.67,0.099*BB32^0.9),(((BB32*1000)^VLOOKUP(AH32,Index!$L$2:$N$30,3,FALSE))*VLOOKUP(AH32,Index!$L$2:$N$30,2,FALSE))/1000)))) -> 
AI33: =VLOOKUP(AH33,Index!$L$2:$Q$30,6,FALSE) ->  | AK33: 1 | AR33: yes | AS33: yes | BA33: =IF(A33="","",IF(AR33="no","",IF(ISERROR(IF(AF33<>"NR",AF33,IF(AM33="NR",IF(AQ33="B",VLOOKUP(AH33&AJ33&AP33,'Default BW IR-Formatted by LS'!$AB$4:$AF$83,5,FALSE),VLOOKUP(AH33&AJ33&AQ33&AP33,'Default BW IR-Formatted by LS'!$S$4:$X$124,6,FALSE)),VLOOKUP(AO33,INDIRECT("'Default BW IR-Formatted by age'!"&VLOOKUP(AH33&AJ33&AQ33,Index!$A$2:$E$151,5,FALSE)),2,TRUE))))=TRUE,"ERROR",IF(AF33<>"NR",AF33,IF(AM33="NR",IF(AQ33="B",VLOOKUP(AH33&AJ33&AP33,'Default BW IR-Formatted by LS'!$AB$4:$AF$83,5,FALSE),VLOOKUP(AH33&AJ33&AQ33&AP33,'Default BW IR-Formatted by LS'!$S$4:$X$124,6,FALSE)),VLOOKUP(AO33,INDIRECT("'Default BW IR-Formatted by age'!"&VLOOKUP(AH33&AJ33&AQ33,Index!$A$2:$E$151,5,FALSE)),2,TRUE)))))) ->  | BC33: =IF(A33="","",IF(AS33="no","",IF(AG33<>"NR",AG33,IF(OR(L33="mg/L",L33="ppm in mg/L",L33="mg/ml",L33="% in water",L33="% water",L33="g/L",L33="ug/L"),IF(AI33="bird",0.059*BB33^0.67,0.099*BB33^0.9),(((BB33*1000)^VLOOKUP(AH33,Index!$L$2:$N$30,3,FALSE))*VLOOKUP(AH33,Index!$L$2:$N$30,2,FALSE))/1000)))) -> 
AI34: =VLOOKUP(AH34,Index!$L$2:$Q$30,6,FALSE) ->  | AK34: 1 | AR34: yes | AS34: yes | BA34: =IF(A34="","",IF(AR34="no","",IF(ISERROR(IF(AF34<>"NR",AF34,IF(AM34="NR",IF(AQ34="B",VLOOKUP(AH34&AJ34&AP34,'Default BW IR-Formatted by LS'!$AB$4:$AF$83,5,FALSE),VLOOKUP(AH34&AJ34&AQ34&AP34,'Default BW IR-Formatted by LS'!$S$4:$X$124,6,FALSE)),VLOOKUP(AO34,INDIRECT("'Default BW IR-Formatted by age'!"&VLOOKUP(AH34&AJ34&AQ34,Index!$A$2:$E$151,5,FALSE)),2,TRUE))))=TRUE,"ERROR",IF(AF34<>"NR",AF34,IF(AM34="NR",IF(AQ34="B",VLOOKUP(AH34&AJ34&AP34,'Default BW IR-Formatted by LS'!$AB$4:$AF$83,5,FALSE),VLOOKUP(AH34&AJ34&AQ34&AP34,'Default BW IR-Formatted by LS'!$S$4:$X$124,6,FALSE)),VLOOKUP(AO34,INDIRECT("'Default BW IR-Formatted by age'!"&VLOOKUP(AH34&AJ34&AQ34,Index!$A$2:$E$151,5,FALSE)),2,TRUE)))))) ->  | BC34: =IF(A34="","",IF(AS34="no","",IF(AG34<>"NR",AG34,IF(OR(L34="mg/L",L34="ppm in mg/L",L34="mg/ml",L34="% in water",L34="% water",L34="g/L",L34="ug/L"),IF(AI34="bird",0.059*BB34^0.67,0.099*BB34^0.9),(((BB34*1000)^VLOOKUP(AH34,Index!$L$2:$N$30,3,FALSE))*VLOOKUP(AH34,Index!$L$2:$N$30,2,FALSE))/1000)))) -> 
AI35: =VLOOKUP(AH35,Index!$L$2:$Q$30,6,FALSE) ->  | AK35: 1 | AR35: yes | AS35: yes | BA35: =IF(A35="","",IF(AR35="no","",IF(ISERROR(IF(AF35<>"NR",AF35,IF(AM35="NR",IF(AQ35="B",VLOOKUP(AH35&AJ35&AP35,'Default BW IR-Formatted by LS'!$AB$4:$AF$83,5,FALSE),VLOOKUP(AH35&AJ35&AQ35&AP35,'Default BW IR-Formatted by LS'!$S$4:$X$124,6,FALSE)),VLOOKUP(AO35,INDIRECT("'Default BW IR-Formatted by age'!"&VLOOKUP(AH35&AJ35&AQ35,Index!$A$2:$E$151,5,FALSE)),2,TRUE))))=TRUE,"ERROR",IF(AF35<>"NR",AF35,IF(AM35="NR",IF(AQ35="B",VLOOKUP(AH35&AJ35&AP35,'Default BW IR-Formatted by LS'!$AB$4:$AF$83,5,FALSE),VLOOKUP(AH35&AJ35&AQ35&AP35,'Default BW IR-Formatted by LS'!$S$4:$X$124,6,FALSE)),VLOOKUP(AO35,INDIRECT("'Default BW IR-Formatted by age'!"&VLOOKUP(AH35&AJ35&AQ35,Index!$A$2:$E$151,5,FALSE)),2,TRUE)))))) ->  | BC35: =IF(A35="","",IF(AS35="no","",IF(AG35<>"NR",AG35,IF(OR(L35="mg/L",L35="ppm in mg/L",L35="mg/ml",L35="% in water",L35="% water",L35="g/L",L35="ug/L"),IF(AI35="bird",0.059*BB35^0.67,0.099*BB35^0.9),(((BB35*1000)^VLOOKUP(AH35,Index!$L$2:$N$30,3,FALSE))*VLOOKUP(AH35,Index!$L$2:$N$30,2,FALSE))/1000)))) -> 
AI36: =VLOOKUP(AH36,Index!$L$2:$Q$30,6,FALSE) ->  | AK36: 1 | AR36: yes | AS36: yes | BA36: =IF(A36="","",IF(AR36="no","",IF(ISERROR(IF(AF36<>"NR",AF36,IF(AM36="NR",IF(AQ36="B",VLOOKUP(AH36&AJ36&AP36,'Default BW IR-Formatted by LS'!$AB$4:$AF$83,5,FALSE),VLOOKUP(AH36&AJ36&AQ36&AP36,'Default BW IR-Formatted by LS'!$S$4:$X$124,6,FALSE)),VLOOKUP(AO36,INDIRECT("'Default BW IR-Formatted by age'!"&VLOOKUP(AH36&AJ36&AQ36,Index!$A$2:$E$151,5,FALSE)),2,TRUE))))=TRUE,"ERROR",IF(AF36<>"NR",AF36,IF(AM36="NR",IF(AQ36="B",VLOOKUP(AH36&AJ36&AP36,'Default BW IR-Formatted by LS'!$AB$4:$AF$83,5,FALSE),VLOOKUP(AH36&AJ36&AQ36&AP36,'Default BW IR-Formatted by LS'!$S$4:$X$124,6,FALSE)),VLOOKUP(AO36,INDIRECT("'Default BW IR-Formatted by age'!"&VLOOKUP(AH36&AJ36&AQ36,Index!$A$2:$E$151,5,FALSE)),2,TRUE)))))) ->  | BC36: =IF(A36="","",IF(AS36="no","",IF(AG36<>"NR",AG36,IF(OR(L36="mg/L",L36="ppm in mg/L",L36="mg/ml",L36="% in water",L36="% water",L36="g/L",L36="ug/L"),IF(AI36="bird",0.059*BB36^0.67,0.099*BB36^0.9),(((BB36*1000)^VLOOKUP(AH36,Index!$L$2:$N$30,3,FALSE))*VLOOKUP(AH36,Index!$L$2:$N$30,2,FALSE))/1000)))) -> 
AI37: =VLOOKUP(AH37,Index!$L$2:$Q$30,6,FALSE) ->  | AK37: 1 | AR37: yes | AS37: yes | BA37: =IF(A37="","",IF(AR37="no","",IF(ISERROR(IF(AF37<>"NR",AF37,IF(AM37="NR",IF(AQ37="B",VLOOKUP(AH37&AJ37&AP37,'Default BW IR-Formatted by LS'!$AB$4:$AF$83,5,FALSE),VLOOKUP(AH37&AJ37&AQ37&AP37,'Default BW IR-Formatted by LS'!$S$4:$X$124,6,FALSE)),VLOOKUP(AO37,INDIRECT("'Default BW IR-Formatted by age'!"&VLOOKUP(AH37&AJ37&AQ37,Index!$A$2:$E$151,5,FALSE)),2,TRUE))))=TRUE,"ERROR",IF(AF37<>"NR",AF37,IF(AM37="NR",IF(AQ37="B",VLOOKUP(AH37&AJ37&AP37,'Default BW IR-Formatted by LS'!$AB$4:$AF$83,5,FALSE),VLOOKUP(AH37&AJ37&AQ37&AP37,'Default BW IR-Formatted by LS'!$S$4:$X$124,6,FALSE)),VLOOKUP(AO37,INDIRECT("'Default BW IR-Formatted by age'!"&VLOOKUP(AH37&AJ37&AQ37,Index!$A$2:$E$151,5,FALSE)),2,TRUE)))))) ->  | BC37: =IF(A37="","",IF(AS37="no","",IF(AG37<>"NR",AG37,IF(OR(L37="mg/L",L37="ppm in mg/L",L37="mg/ml",L37="% in water",L37="% water",L37="g/L",L37="ug/L"),IF(AI37="bird",0.059*BB37^0.67,0.099*BB37^0.9),(((BB37*1000)^VLOOKUP(AH37,Index!$L$2:$N$30,3,FALSE))*VLOOKUP(AH37,Index!$L$2:$N$30,2,FALSE))/1000)))) -> 
AI38: =VLOOKUP(AH38,Index!$L$2:$Q$30,6,FALSE) ->  | AK38: 1 | AR38: yes | AS38: yes | BA38: =IF(A38="","",IF(AR38="no","",IF(ISERROR(IF(AF38<>"NR",AF38,IF(AM38="NR",IF(AQ38="B",VLOOKUP(AH38&AJ38&AP38,'Default BW IR-Formatted by LS'!$AB$4:$AF$83,5,FALSE),VLOOKUP(AH38&AJ38&AQ38&AP38,'Default BW IR-Formatted by LS'!$S$4:$X$124,6,FALSE)),VLOOKUP(AO38,INDIRECT("'Default BW IR-Formatted by age'!"&VLOOKUP(AH38&AJ38&AQ38,Index!$A$2:$E$151,5,FALSE)),2,TRUE))))=TRUE,"ERROR",IF(AF38<>"NR",AF38,IF(AM38="NR",IF(AQ38="B",VLOOKUP(AH38&AJ38&AP38,'Default BW IR-Formatted by LS'!$AB$4:$AF$83,5,FALSE),VLOOKUP(AH38&AJ38&AQ38&AP38,'Default BW IR-Formatted by LS'!$S$4:$X$124,6,FALSE)),VLOOKUP(AO38,INDIRECT("'Default BW IR-Formatted by age'!"&VLOOKUP(AH38&AJ38&AQ38,Index!$A$2:$E$151,5,FALSE)),2,TRUE)))))) ->  | BB38: =IF(OR(ISERROR(BA38)=TRUE,BA38="ERROR"),AX38,BA38) ->  | BC38: =IF(A38="","",IF(AS38="no","",IF(AG38<>"NR",AG38,IF(OR(L38="mg/L",L38="ppm in mg/L",L38="mg/ml",L38="% in water",L38="% water",L38="g/L",L38="ug/L"),IF(AI38="bird",0.059*BB38^0.67,0.099*BB38^0.9),(((BB38*1000)^VLOOKUP(AH38,Index!$L$2:$N$30,3,FALSE))*VLOOKUP(AH38,Index!$L$2:$N$30,2,FALSE))/1000)))) -> 
AI39: =VLOOKUP(AH39,Index!$L$2:$Q$30,6,FALSE) ->  | AK39: 1 | AR39: yes | AS39: yes | BA39: =IF(A39="","",IF(AR39="no","",IF(ISERROR(IF(AF39<>"NR",AF39,IF(AM39="NR",IF(AQ39="B",VLOOKUP(AH39&AJ39&AP39,'Default BW IR-Formatted by LS'!$AB$4:$AF$83,5,FALSE),VLOOKUP(AH39&AJ39&AQ39&AP39,'Default BW IR-Formatted by LS'!$S$4:$X$124,6,FALSE)),VLOOKUP(AO39,INDIRECT("'Default BW IR-Formatted by age'!"&VLOOKUP(AH39&AJ39&AQ39,Index!$A$2:$E$151,5,FALSE)),2,TRUE))))=TRUE,"ERROR",IF(AF39<>"NR",AF39,IF(AM39="NR",IF(AQ39="B",VLOOKUP(AH39&AJ39&AP39,'Default BW IR-Formatted by LS'!$AB$4:$AF$83,5,FALSE),VLOOKUP(AH39&AJ39&AQ39&AP39,'Default BW IR-Formatted by LS'!$S$4:$X$124,6,FALSE)),VLOOKUP(AO39,INDIRECT("'Default BW IR-Formatted by age'!"&VLOOKUP(AH39&AJ39&AQ39,Index!$A$2:$E$151,5,FALSE)),2,TRUE)))))) ->  | BC39: =IF(A39="","",IF(AS39="no","",IF(AG39<>"NR",AG39,IF(OR(L39="mg/L",L39="ppm in mg/L",L39="mg/ml",L39="% in water",L39="% water",L39="g/L",L39="ug/L"),IF(AI39="bird",0.059*BB39^0.67,0.099*BB39^0.9),(((BB39*1000)^VLOOKUP(AH39,Index!$L$2:$N$30,3,FALSE))*VLOOKUP(AH39,Index!$L$2:$N$30,2,FALSE))/1000)))) -> 
AI40: =VLOOKUP(AH40,Index!$L$2:$Q$30,6,FALSE) ->  | AK40: 1 | AR40: yes | AS40: yes | BA40: =IF(A40="","",IF(AR40="no","",IF(ISERROR(IF(AF40<>"NR",AF40,IF(AM40="NR",IF(AQ40="B",VLOOKUP(AH40&AJ40&AP40,'Default BW IR-Formatted by LS'!$AB$4:$AF$83,5,FALSE),VLOOKUP(AH40&AJ40&AQ40&AP40,'Default BW IR-Formatted by LS'!$S$4:$X$124,6,FALSE)),VLOOKUP(AO40,INDIRECT("'Default BW IR-Formatted by age'!"&VLOOKUP(AH40&AJ40&AQ40,Index!$A$2:$E$151,5,FALSE)),2,TRUE))))=TRUE,"ERROR",IF(AF40<>"NR",AF40,IF(AM40="NR",IF(AQ40="B",VLOOKUP(AH40&AJ40&AP40,'Default BW IR-Formatted by LS'!$AB$4:$AF$83,5,FALSE),VLOOKUP(AH40&AJ40&AQ40&AP40,'Default BW IR-Formatted by LS'!$S$4:$X$124,6,FALSE)),VLOOKUP(AO40,INDIRECT("'Default BW IR-Formatted by age'!"&VLOOKUP(AH40&AJ40&AQ40,Index!$A$2:$E$151,5,FALSE)),2,TRUE)))))) ->  | BC40: =IF(A40="","",IF(AS40="no","",IF(AG40<>"NR",AG40,IF(OR(L40="mg/L",L40="ppm in mg/L",L40="mg/ml",L40="% in water",L40="% water",L40="g/L",L40="ug/L"),IF(AI40="bird",0.059*BB40^0.67,0.099*BB40^0.9),(((BB40*1000)^VLOOKUP(AH40,Index!$L$2:$N$30,3,FALSE))*VLOOKUP(AH40,Index!$L$2:$N$30,2,FALSE))/1000)))) -> 
AI41: =VLOOKUP(AH41,Index!$L$2:$Q$30,6,FALSE) ->  | AK41: 1 | AR41: yes | AS41: yes | BA41: =IF(A41="","",IF(AR41="no","",IF(ISERROR(IF(AF41<>"NR",AF41,IF(AM41="NR",IF(AQ41="B",VLOOKUP(AH41&AJ41&AP41,'Default BW IR-Formatted by LS'!$AB$4:$AF$83,5,FALSE),VLOOKUP(AH41&AJ41&AQ41&AP41,'Default BW IR-Formatted by LS'!$S$4:$X$124,6,FALSE)),VLOOKUP(AO41,INDIRECT("'Default BW IR-Formatted by age'!"&VLOOKUP(AH41&AJ41&AQ41,Index!$A$2:$E$151,5,FALSE)),2,TRUE))))=TRUE,"ERROR",IF(AF41<>"NR",AF41,IF(AM41="NR",IF(AQ41="B",VLOOKUP(AH41&AJ41&AP41,'Default BW IR-Formatted by LS'!$AB$4:$AF$83,5,FALSE),VLOOKUP(AH41&AJ41&AQ41&AP41,'Default BW IR-Formatted by LS'!$S$4:$X$124,6,FALSE)),VLOOKUP(AO41,INDIRECT("'Default BW IR-Formatted by age'!"&VLOOKUP(AH41&AJ41&AQ41,Index!$A$2:$E$151,5,FALSE)),2,TRUE)))))) ->  | BC41: =IF(A41="","",IF(AS41="no","",IF(AG41<>"NR",AG41,IF(OR(L41="mg/L",L41="ppm in mg/L",L41="mg/ml",L41="% in water",L41="% water",L41="g/L",L41="ug/L"),IF(AI41="bird",0.059*BB41^0.67,0.099*BB41^0.9),(((BB41*1000)^VLOOKUP(AH41,Index!$L$2:$N$30,3,FALSE))*VLOOKUP(AH41,Index!$L$2:$N$30,2,FALSE))/1000)))) -> 
AI42: =VLOOKUP(AH42,Index!$L$2:$Q$30,6,FALSE) ->  | AK42: 1 | AR42: yes | AS42: yes | BA42: =IF(A42="","",IF(AR42="no","",IF(ISERROR(IF(AF42<>"NR",AF42,IF(AM42="NR",IF(AQ42="B",VLOOKUP(AH42&AJ42&AP42,'Default BW IR-Formatted by LS'!$AB$4:$AF$83,5,FALSE),VLOOKUP(AH42&AJ42&AQ42&AP42,'Default BW IR-Formatted by LS'!$S$4:$X$124,6,FALSE)),VLOOKUP(AO42,INDIRECT("'Default BW IR-Formatted by age'!"&VLOOKUP(AH42&AJ42&AQ42,Index!$A$2:$E$151,5,FALSE)),2,TRUE))))=TRUE,"ERROR",IF(AF42<>"NR",AF42,IF(AM42="NR",IF(AQ42="B",VLOOKUP(AH42&AJ42&AP42,'Default BW IR-Formatted by LS'!$AB$4:$AF$83,5,FALSE),VLOOKUP(AH42&AJ42&AQ42&AP42,'Default BW IR-Formatted by LS'!$S$4:$X$124,6,FALSE)),VLOOKUP(AO42,INDIRECT("'Default BW IR-Formatted by age'!"&VLOOKUP(AH42&AJ42&AQ42,Index!$A$2:$E$151,5,FALSE)),2,TRUE)))))) ->  | BC42: =IF(A42="","",IF(AS42="no","",IF(AG42<>"NR",AG42,IF(OR(L42="mg/L",L42="ppm in mg/L",L42="mg/ml",L42="% in water",L42="% water",L42="g/L",L42="ug/L"),IF(AI42="bird",0.059*BB42^0.67,0.099*BB42^0.9),(((BB42*1000)^VLOOKUP(AH42,Index!$L$2:$N$30,3,FALSE))*VLOOKUP(AH42,Index!$L$2:$N$30,2,FALSE))/1000)))) -> 
AI43: =VLOOKUP(AH43,Index!$L$2:$Q$30,6,FALSE) ->  | AK43: 1 | AR43: yes | AS43: yes | BA43: =IF(A43="","",IF(AR43="no","",IF(ISERROR(IF(AF43<>"NR",AF43,IF(AM43="NR",IF(AQ43="B",VLOOKUP(AH43&AJ43&AP43,'Default BW IR-Formatted by LS'!$AB$4:$AF$83,5,FALSE),VLOOKUP(AH43&AJ43&AQ43&AP43,'Default BW IR-Formatted by LS'!$S$4:$X$124,6,FALSE)),VLOOKUP(AO43,INDIRECT("'Default BW IR-Formatted by age'!"&VLOOKUP(AH43&AJ43&AQ43,Index!$A$2:$E$151,5,FALSE)),2,TRUE))))=TRUE,"ERROR",IF(AF43<>"NR",AF43,IF(AM43="NR",IF(AQ43="B",VLOOKUP(AH43&AJ43&AP43,'Default BW IR-Formatted by LS'!$AB$4:$AF$83,5,FALSE),VLOOKUP(AH43&AJ43&AQ43&AP43,'Default BW IR-Formatted by LS'!$S$4:$X$124,6,FALSE)),VLOOKUP(AO43,INDIRECT("'Default BW IR-Formatted by age'!"&VLOOKUP(AH43&AJ43&AQ43,Index!$A$2:$E$151,5,FALSE)),2,TRUE)))))) ->  | BC43: =IF(A43="","",IF(AS43="no","",IF(AG43<>"NR",AG43,IF(OR(L43="mg/L",L43="ppm in mg/L",L43="mg/ml",L43="% in water",L43="% water",L43="g/L",L43="ug/L"),IF(AI43="bird",0.059*BB43^0.67,0.099*BB43^0.9),(((BB43*1000)^VLOOKUP(AH43,Index!$L$2:$N$30,3,FALSE))*VLOOKUP(AH43,Index!$L$2:$N$30,2,FALSE))/1000)))) -> 
AI44: =VLOOKUP(AH44,Index!$L$2:$Q$30,6,FALSE) ->  | AK44: 1 | AR44: yes | AS44: yes | BA44: =IF(A44="","",IF(AR44="no","",IF(ISERROR(IF(AF44<>"NR",AF44,IF(AM44="NR",IF(AQ44="B",VLOOKUP(AH44&AJ44&AP44,'Default BW IR-Formatted by LS'!$AB$4:$AF$83,5,FALSE),VLOOKUP(AH44&AJ44&AQ44&AP44,'Default BW IR-Formatted by LS'!$S$4:$X$124,6,FALSE)),VLOOKUP(AO44,INDIRECT("'Default BW IR-Formatted by age'!"&VLOOKUP(AH44&AJ44&AQ44,Index!$A$2:$E$151,5,FALSE)),2,TRUE))))=TRUE,"ERROR",IF(AF44<>"NR",AF44,IF(AM44="NR",IF(AQ44="B",VLOOKUP(AH44&AJ44&AP44,'Default BW IR-Formatted by LS'!$AB$4:$AF$83,5,FALSE),VLOOKUP(AH44&AJ44&AQ44&AP44,'Default BW IR-Formatted by LS'!$S$4:$X$124,6,FALSE)),VLOOKUP(AO44,INDIRECT("'Default BW IR-Formatted by age'!"&VLOOKUP(AH44&AJ44&AQ44,Index!$A$2:$E$151,5,FALSE)),2,TRUE)))))) ->  | BC44: =IF(A44="","",IF(AS44="no","",IF(AG44<>"NR",AG44,IF(OR(L44="mg/L",L44="ppm in mg/L",L44="mg/ml",L44="% in water",L44="% water",L44="g/L",L44="ug/L"),IF(AI44="bird",0.059*BB44^0.67,0.099*BB44^0.9),(((BB44*1000)^VLOOKUP(AH44,Index!$L$2:$N$30,3,FALSE))*VLOOKUP(AH44,Index!$L$2:$N$30,2,FALSE))/1000)))) -> 
AI45: =VLOOKUP(AH45,Index!$L$2:$Q$30,6,FALSE) ->  | AK45: 1 | AR45: yes | AS45: yes | BA45: =IF(A45="","",IF(AR45="no","",IF(ISERROR(IF(AF45<>"NR",AF45,IF(AM45="NR",IF(AQ45="B",VLOOKUP(AH45&AJ45&AP45,'Default BW IR-Formatted by LS'!$AB$4:$AF$83,5,FALSE),VLOOKUP(AH45&AJ45&AQ45&AP45,'Default BW IR-Formatted by LS'!$S$4:$X$124,6,FALSE)),VLOOKUP(AO45,INDIRECT("'Default BW IR-Formatted by age'!"&VLOOKUP(AH45&AJ45&AQ45,Index!$A$2:$E$151,5,FALSE)),2,TRUE))))=TRUE,"ERROR",IF(AF45<>"NR",AF45,IF(AM45="NR",IF(AQ45="B",VLOOKUP(AH45&AJ45&AP45,'Default BW IR-Formatted by LS'!$AB$4:$AF$83,5,FALSE),VLOOKUP(AH45&AJ45&AQ45&AP45,'Default BW IR-Formatted by LS'!$S$4:$X$124,6,FALSE)),VLOOKUP(AO45,INDIRECT("'Default BW IR-Formatted by age'!"&VLOOKUP(AH45&AJ45&AQ45,Index!$A$2:$E$151,5,FALSE)),2,TRUE)))))) ->  | BC45: =IF(A45="","",IF(AS45="no","",IF(AG45<>"NR",AG45,IF(OR(L45="mg/L",L45="ppm in mg/L",L45="mg/ml",L45="% in water",L45="% water",L45="g/L",L45="ug/L"),IF(AI45="bird",0.059*BB45^0.67,0.099*BB45^0.9),(((BB45*1000)^VLOOKUP(AH45,Index!$L$2:$N$30,3,FALSE))*VLOOKUP(AH45,Index!$L$2:$N$30,2,FALSE))/1000)))) -> 
AI46: =VLOOKUP(AH46,Index!$L$2:$Q$30,6,FALSE) ->  | AK46: 1 | AR46: yes | AS46: yes | BA46: =IF(A46="","",IF(AR46="no","",IF(ISERROR(IF(AF46<>"NR",AF46,IF(AM46="NR",IF(AQ46="B",VLOOKUP(AH46&AJ46&AP46,'Default BW IR-Formatted by LS'!$AB$4:$AF$83,5,FALSE),VLOOKUP(AH46&AJ46&AQ46&AP46,'Default BW IR-Formatted by LS'!$S$4:$X$124,6,FALSE)),VLOOKUP(AO46,INDIRECT("'Default BW IR-Formatted by age'!"&VLOOKUP(AH46&AJ46&AQ46,Index!$A$2:$E$151,5,FALSE)),2,TRUE))))=TRUE,"ERROR",IF(AF46<>"NR",AF46,IF(AM46="NR",IF(AQ46="B",VLOOKUP(AH46&AJ46&AP46,'Default BW IR-Formatted by LS'!$AB$4:$AF$83,5,FALSE),VLOOKUP(AH46&AJ46&AQ46&AP46,'Default BW IR-Formatted by LS'!$S$4:$X$124,6,FALSE)),VLOOKUP(AO46,INDIRECT("'Default BW IR-Formatted by age'!"&VLOOKUP(AH46&AJ46&AQ46,Index!$A$2:$E$151,5,FALSE)),2,TRUE)))))) ->  | BC46: =IF(A46="","",IF(AS46="no","",IF(AG46<>"NR",AG46,IF(OR(L46="mg/L",L46="ppm in mg/L",L46="mg/ml",L46="% in water",L46="% water",L46="g/L",L46="ug/L"),IF(AI46="bird",0.059*BB46^0.67,0.099*BB46^0.9),(((BB46*1000)^VLOOKUP(AH46,Index!$L$2:$N$30,3,FALSE))*VLOOKUP(AH46,Index!$L$2:$N$30,2,FALSE))/1000)))) -> 
AI47: =VLOOKUP(AH47,Index!$L$2:$Q$30,6,FALSE) ->  | AK47: 1 | AR47: yes | AS47: yes | BA47: =IF(A47="","",IF(AR47="no","",IF(ISERROR(IF(AF47<>"NR",AF47,IF(AM47="NR",IF(AQ47="B",VLOOKUP(AH47&AJ47&AP47,'Default BW IR-Formatted by LS'!$AB$4:$AF$83,5,FALSE),VLOOKUP(AH47&AJ47&AQ47&AP47,'Default BW IR-Formatted by LS'!$S$4:$X$124,6,FALSE)),VLOOKUP(AO47,INDIRECT("'Default BW IR-Formatted by age'!"&VLOOKUP(AH47&AJ47&AQ47,Index!$A$2:$E$151,5,FALSE)),2,TRUE))))=TRUE,"ERROR",IF(AF47<>"NR",AF47,IF(AM47="NR",IF(AQ47="B",VLOOKUP(AH47&AJ47&AP47,'Default BW IR-Formatted by LS'!$AB$4:$AF$83,5,FALSE),VLOOKUP(AH47&AJ47&AQ47&AP47,'Default BW IR-Formatted by LS'!$S$4:$X$124,6,FALSE)),VLOOKUP(AO47,INDIRECT("'Default BW IR-Formatted by age'!"&VLOOKUP(AH47&AJ47&AQ47,Index!$A$2:$E$151,5,FALSE)),2,TRUE)))))) ->  | BC47: =IF(A47="","",IF(AS47="no","",IF(AG47<>"NR",AG47,IF(OR(L47="mg/L",L47="ppm in mg/L",L47="mg/ml",L47="% in water",L47="% water",L47="g/L",L47="ug/L"),IF(AI47="bird",0.059*BB47^0.67,0.099*BB47^0.9),(((BB47*1000)^VLOOKUP(AH47,Index!$L$2:$N$30,3,FALSE))*VLOOKUP(AH47,Index!$L$2:$N$30,2,FALSE))/1000)))) -> 
AI48: =VLOOKUP(AH48,Index!$L$2:$Q$30,6,FALSE) ->  | AK48: 1 | AR48: yes | AS48: yes | BA48: =IF(A48="","",IF(AR48="no","",IF(ISERROR(IF(AF48<>"NR",AF48,IF(AM48="NR",IF(AQ48="B",VLOOKUP(AH48&AJ48&AP48,'Default BW IR-Formatted by LS'!$AB$4:$AF$83,5,FALSE),VLOOKUP(AH48&AJ48&AQ48&AP48,'Default BW IR-Formatted by LS'!$S$4:$X$124,6,FALSE)),VLOOKUP(AO48,INDIRECT("'Default BW IR-Formatted by age'!"&VLOOKUP(AH48&AJ48&AQ48,Index!$A$2:$E$151,5,FALSE)),2,TRUE))))=TRUE,"ERROR",IF(AF48<>"NR",AF48,IF(AM48="NR",IF(AQ48="B",VLOOKUP(AH48&AJ48&AP48,'Default BW IR-Formatted by LS'!$AB$4:$AF$83,5,FALSE),VLOOKUP(AH48&AJ48&AQ48&AP48,'Default BW IR-Formatted by LS'!$S$4:$X$124,6,FALSE)),VLOOKUP(AO48,INDIRECT("'Default BW IR-Formatted by age'!"&VLOOKUP(AH48&AJ48&AQ48,Index!$A$2:$E$151,5,FALSE)),2,TRUE)))))) ->  | BC48: =IF(A48="","",IF(AS48="no","",IF(AG48<>"NR",AG48,IF(OR(L48="mg/L",L48="ppm in mg/L",L48="mg/ml",L48="% in water",L48="% water",L48="g/L",L48="ug/L"),IF(AI48="bird",0.059*BB48^0.67,0.099*BB48^0.9),(((BB48*1000)^VLOOKUP(AH48,Index!$L$2:$N$30,3,FALSE))*VLOOKUP(AH48,Index!$L$2:$N$30,2,FALSE))/1000)))) -> 
AI49: =VLOOKUP(AH49,Index!$L$2:$Q$30,6,FALSE) ->  | AK49: 1 | AR49: yes | AS49: yes | BA49: =IF(A49="","",IF(AR49="no","",IF(ISERROR(IF(AF49<>"NR",AF49,IF(AM49="NR",IF(AQ49="B",VLOOKUP(AH49&AJ49&AP49,'Default BW IR-Formatted by LS'!$AB$4:$AF$83,5,FALSE),VLOOKUP(AH49&AJ49&AQ49&AP49,'Default BW IR-Formatted by LS'!$S$4:$X$124,6,FALSE)),VLOOKUP(AO49,INDIRECT("'Default BW IR-Formatted by age'!"&VLOOKUP(AH49&AJ49&AQ49,Index!$A$2:$E$151,5,FALSE)),2,TRUE))))=TRUE,"ERROR",IF(AF49<>"NR",AF49,IF(AM49="NR",IF(AQ49="B",VLOOKUP(AH49&AJ49&AP49,'Default BW IR-Formatted by LS'!$AB$4:$AF$83,5,FALSE),VLOOKUP(AH49&AJ49&AQ49&AP49,'Default BW IR-Formatted by LS'!$S$4:$X$124,6,FALSE)),VLOOKUP(AO49,INDIRECT("'Default BW IR-Formatted by age'!"&VLOOKUP(AH49&AJ49&AQ49,Index!$A$2:$E$151,5,FALSE)),2,TRUE)))))) ->  | BC49: =IF(A49="","",IF(AS49="no","",IF(AG49<>"NR",AG49,IF(OR(L49="mg/L",L49="ppm in mg/L",L49="mg/ml",L49="% in water",L49="% water",L49="g/L",L49="ug/L"),IF(AI49="bird",0.059*BB49^0.67,0.099*BB49^0.9),(((BB49*1000)^VLOOKUP(AH49,Index!$L$2:$N$30,3,FALSE))*VLOOKUP(AH49,Index!$L$2:$N$30,2,FALSE))/1000)))) -> 
AI50: =VLOOKUP(AH50,Index!$L$2:$Q$30,6,FALSE) ->  | AK50: 1 | AR50: yes | AS50: yes | BA50: =IF(A50="","",IF(AR50="no","",IF(ISERROR(IF(AF50<>"NR",AF50,IF(AM50="NR",IF(AQ50="B",VLOOKUP(AH50&AJ50&AP50,'Default BW IR-Formatted by LS'!$AB$4:$AF$83,5,FALSE),VLOOKUP(AH50&AJ50&AQ50&AP50,'Default BW IR-Formatted by LS'!$S$4:$X$124,6,FALSE)),VLOOKUP(AO50,INDIRECT("'Default BW IR-Formatted by age'!"&VLOOKUP(AH50&AJ50&AQ50,Index!$A$2:$E$151,5,FALSE)),2,TRUE))))=TRUE,"ERROR",IF(AF50<>"NR",AF50,IF(AM50="NR",IF(AQ50="B",VLOOKUP(AH50&AJ50&AP50,'Default BW IR-Formatted by LS'!$AB$4:$AF$83,5,FALSE),VLOOKUP(AH50&AJ50&AQ50&AP50,'Default BW IR-Formatted by LS'!$S$4:$X$124,6,FALSE)),VLOOKUP(AO50,INDIRECT("'Default BW IR-Formatted by age'!"&VLOOKUP(AH50&AJ50&AQ50,Index!$A$2:$E$151,5,FALSE)),2,TRUE)))))) ->  | BC50: =IF(A50="","",IF(AS50="no","",IF(AG50<>"NR",AG50,IF(OR(L50="mg/L",L50="ppm in mg/L",L50="mg/ml",L50="% in water",L50="% water",L50="g/L",L50="ug/L"),IF(AI50="bird",0.059*BB50^0.67,0.099*BB50^0.9),(((BB50*1000)^VLOOKUP(AH50,Index!$L$2:$N$30,3,FALSE))*VLOOKUP(AH50,Index!$L$2:$N$30,2,FALSE))/1000)))) -> 
AI51: =VLOOKUP(AH51,Index!$L$2:$Q$30,6,FALSE) ->  | AK51: 1 | AR51: yes | AS51: yes | BA51: =IF(A51="","",IF(AR51="no","",IF(ISERROR(IF(AF51<>"NR",AF51,IF(AM51="NR",IF(AQ51="B",VLOOKUP(AH51&AJ51&AP51,'Default BW IR-Formatted by LS'!$AB$4:$AF$83,5,FALSE),VLOOKUP(AH51&AJ51&AQ51&AP51,'Default BW IR-Formatted by LS'!$S$4:$X$124,6,FALSE)),VLOOKUP(AO51,INDIRECT("'Default BW IR-Formatted by age'!"&VLOOKUP(AH51&AJ51&AQ51,Index!$A$2:$E$151,5,FALSE)),2,TRUE))))=TRUE,"ERROR",IF(AF51<>"NR",AF51,IF(AM51="NR",IF(AQ51="B",VLOOKUP(AH51&AJ51&AP51,'Default BW IR-Formatted by LS'!$AB$4:$AF$83,5,FALSE),VLOOKUP(AH51&AJ51&AQ51&AP51,'Default BW IR-Formatted by LS'!$S$4:$X$124,6,FALSE)),VLOOKUP(AO51,INDIRECT("'Default BW IR-Formatted by age'!"&VLOOKUP(AH51&AJ51&AQ51,Index!$A$2:$E$151,5,FALSE)),2,TRUE)))))) ->  | BC51: =IF(A51="","",IF(AS51="no","",IF(AG51<>"NR",AG51,IF(OR(L51="mg/L",L51="ppm in mg/L",L51="mg/ml",L51="% in water",L51="% water",L51="g/L",L51="ug/L"),IF(AI51="bird",0.059*BB51^0.67,0.099*BB51^0.9),(((BB51*1000)^VLOOKUP(AH51,Index!$L$2:$N$30,3,FALSE))*VLOOKUP(AH51,Index!$L$2:$N$30,2,FALSE))/1000)))) -> 
AI52: =VLOOKUP(AH52,Index!$L$2:$Q$30,6,FALSE) ->  | AK52: 1 | AR52: yes | AS52: yes | BA52: =IF(A52="","",IF(AR52="no","",IF(ISERROR(IF(AF52<>"NR",AF52,IF(AM52="NR",IF(AQ52="B",VLOOKUP(AH52&AJ52&AP52,'Default BW IR-Formatted by LS'!$AB$4:$AF$83,5,FALSE),VLOOKUP(AH52&AJ52&AQ52&AP52,'Default BW IR-Formatted by LS'!$S$4:$X$124,6,FALSE)),VLOOKUP(AO52,INDIRECT("'Default BW IR-Formatted by age'!"&VLOOKUP(AH52&AJ52&AQ52,Index!$A$2:$E$151,5,FALSE)),2,TRUE))))=TRUE,"ERROR",IF(AF52<>"NR",AF52,IF(AM52="NR",IF(AQ52="B",VLOOKUP(AH52&AJ52&AP52,'Default BW IR-Formatted by LS'!$AB$4:$AF$83,5,FALSE),VLOOKUP(AH52&AJ52&AQ52&AP52,'Default BW IR-Formatted by LS'!$S$4:$X$124,6,FALSE)),VLOOKUP(AO52,INDIRECT("'Default BW IR-Formatted by age'!"&VLOOKUP(AH52&AJ52&AQ52,Index!$A$2:$E$151,5,FALSE)),2,TRUE)))))) ->  | BC52: =IF(A52="","",IF(AS52="no","",IF(AG52<>"NR",AG52,IF(OR(L52="mg/L",L52="ppm in mg/L",L52="mg/ml",L52="% in water",L52="% water",L52="g/L",L52="ug/L"),IF(AI52="bird",0.059*BB52^0.67,0.099*BB52^0.9),(((BB52*1000)^VLOOKUP(AH52,Index!$L$2:$N$30,3,FALSE))*VLOOKUP(AH52,Index!$L$2:$N$30,2,FALSE))/1000)))) -> 
AI53: =VLOOKUP(AH53,Index!$L$2:$Q$30,6,FALSE) ->  | AK53: 1 | AR53: yes | AS53: yes | BA53: =IF(A53="","",IF(AR53="no","",IF(ISERROR(IF(AF53<>"NR",AF53,IF(AM53="NR",IF(AQ53="B",VLOOKUP(AH53&AJ53&AP53,'Default BW IR-Formatted by LS'!$AB$4:$AF$83,5,FALSE),VLOOKUP(AH53&AJ53&AQ53&AP53,'Default BW IR-Formatted by LS'!$S$4:$X$124,6,FALSE)),VLOOKUP(AO53,INDIRECT("'Default BW IR-Formatted by age'!"&VLOOKUP(AH53&AJ53&AQ53,Index!$A$2:$E$151,5,FALSE)),2,TRUE))))=TRUE,"ERROR",IF(AF53<>"NR",AF53,IF(AM53="NR",IF(AQ53="B",VLOOKUP(AH53&AJ53&AP53,'Default BW IR-Formatted by LS'!$AB$4:$AF$83,5,FALSE),VLOOKUP(AH53&AJ53&AQ53&AP53,'Default BW IR-Formatted by LS'!$S$4:$X$124,6,FALSE)),VLOOKUP(AO53,INDIRECT("'Default BW IR-Formatted by age'!"&VLOOKUP(AH53&AJ53&AQ53,Index!$A$2:$E$151,5,FALSE)),2,TRUE)))))) ->  | BC53: =IF(A53="","",IF(AS53="no","",IF(AG53<>"NR",AG53,IF(OR(L53="mg/L",L53="ppm in mg/L",L53="mg/ml",L53="% in water",L53="% water",L53="g/L",L53="ug/L"),IF(AI53="bird",0.059*BB53^0.67,0.099*BB53^0.9),(((BB53*1000)^VLOOKUP(AH53,Index!$L$2:$N$30,3,FALSE))*VLOOKUP(AH53,Index!$L$2:$N$30,2,FALSE))/1000)))) -> 
AI54: =VLOOKUP(AH54,Index!$L$2:$Q$30,6,FALSE) ->  | AK54: 1 | AR54: yes | AS54: yes | BA54: =IF(A54="","",IF(AR54="no","",IF(ISERROR(IF(AF54<>"NR",AF54,IF(AM54="NR",IF(AQ54="B",VLOOKUP(AH54&AJ54&AP54,'Default BW IR-Formatted by LS'!$AB$4:$AF$83,5,FALSE),VLOOKUP(AH54&AJ54&AQ54&AP54,'Default BW IR-Formatted by LS'!$S$4:$X$124,6,FALSE)),VLOOKUP(AO54,INDIRECT("'Default BW IR-Formatted by age'!"&VLOOKUP(AH54&AJ54&AQ54,Index!$A$2:$E$151,5,FALSE)),2,TRUE))))=TRUE,"ERROR",IF(AF54<>"NR",AF54,IF(AM54="NR",IF(AQ54="B",VLOOKUP(AH54&AJ54&AP54,'Default BW IR-Formatted by LS'!$AB$4:$AF$83,5,FALSE),VLOOKUP(AH54&AJ54&AQ54&AP54,'Default BW IR-Formatted by LS'!$S$4:$X$124,6,FALSE)),VLOOKUP(AO54,INDIRECT("'Default BW IR-Formatted by age'!"&VLOOKUP(AH54&AJ54&AQ54,Index!$A$2:$E$151,5,FALSE)),2,TRUE)))))) ->  | BC54: =IF(A54="","",IF(AS54="no","",IF(AG54<>"NR",AG54,IF(OR(L54="mg/L",L54="ppm in mg/L",L54="mg/ml",L54="% in water",L54="% water",L54="g/L",L54="ug/L"),IF(AI54="bird",0.059*BB54^0.67,0.099*BB54^0.9),(((BB54*1000)^VLOOKUP(AH54,Index!$L$2:$N$30,3,FALSE))*VLOOKUP(AH54,Index!$L$2:$N$30,2,FALSE))/1000)))) -> 
AI55: =VLOOKUP(AH55,Index!$L$2:$Q$30,6,FALSE) ->  | AK55: 1 | AR55: yes | AS55: yes | BA55: =IF(A55="","",IF(AR55="no","",IF(ISERROR(IF(AF55<>"NR",AF55,IF(AM55="NR",IF(AQ55="B",VLOOKUP(AH55&AJ55&AP55,'Default BW IR-Formatted by LS'!$AB$4:$AF$83,5,FALSE),VLOOKUP(AH55&AJ55&AQ55&AP55,'Default BW IR-Formatted by LS'!$S$4:$X$124,6,FALSE)),VLOOKUP(AO55,INDIRECT("'Default BW IR-Formatted by age'!"&VLOOKUP(AH55&AJ55&AQ55,Index!$A$2:$E$151,5,FALSE)),2,TRUE))))=TRUE,"ERROR",IF(AF55<>"NR",AF55,IF(AM55="NR",IF(AQ55="B",VLOOKUP(AH55&AJ55&AP55,'Default BW IR-Formatted by LS'!$AB$4:$AF$83,5,FALSE),VLOOKUP(AH55&AJ55&AQ55&AP55,'Default BW IR-Formatted by LS'!$S$4:$X$124,6,FALSE)),VLOOKUP(AO55,INDIRECT("'Default BW IR-Formatted by age'!"&VLOOKUP(AH55&AJ55&AQ55,Index!$A$2:$E$151,5,FALSE)),2,TRUE)))))) ->  | BC55: =IF(A55="","",IF(AS55="no","",IF(AG55<>"NR",AG55,IF(OR(L55="mg/L",L55="ppm in mg/L",L55="mg/ml",L55="% in water",L55="% water",L55="g/L",L55="ug/L"),IF(AI55="bird",0.059*BB55^0.67,0.099*BB55^0.9),(((BB55*1000)^VLOOKUP(AH55,Index!$L$2:$N$30,3,FALSE))*VLOOKUP(AH55,Index!$L$2:$N$30,2,FALSE))/1000)))) -> 
AI56: =VLOOKUP(AH56,Index!$L$2:$Q$30,6,FALSE) ->  | AK56: 1 | AR56: yes | AS56: yes | BA56: =IF(A56="","",IF(AR56="no","",IF(ISERROR(IF(AF56<>"NR",AF56,IF(AM56="NR",IF(AQ56="B",VLOOKUP(AH56&AJ56&AP56,'Default BW IR-Formatted by LS'!$AB$4:$AF$83,5,FALSE),VLOOKUP(AH56&AJ56&AQ56&AP56,'Default BW IR-Formatted by LS'!$S$4:$X$124,6,FALSE)),VLOOKUP(AO56,INDIRECT("'Default BW IR-Formatted by age'!"&VLOOKUP(AH56&AJ56&AQ56,Index!$A$2:$E$151,5,FALSE)),2,TRUE))))=TRUE,"ERROR",IF(AF56<>"NR",AF56,IF(AM56="NR",IF(AQ56="B",VLOOKUP(AH56&AJ56&AP56,'Default BW IR-Formatted by LS'!$AB$4:$AF$83,5,FALSE),VLOOKUP(AH56&AJ56&AQ56&AP56,'Default BW IR-Formatted by LS'!$S$4:$X$124,6,FALSE)),VLOOKUP(AO56,INDIRECT("'Default BW IR-Formatted by age'!"&VLOOKUP(AH56&AJ56&AQ56,Index!$A$2:$E$151,5,FALSE)),2,TRUE)))))) ->  | BC56: =IF(A56="","",IF(AS56="no","",IF(AG56<>"NR",AG56,IF(OR(L56="mg/L",L56="ppm in mg/L",L56="mg/ml",L56="% in water",L56="% water",L56="g/L",L56="ug/L"),IF(AI56="bird",0.059*BB56^0.67,0.099*BB56^0.9),(((BB56*1000)^VLOOKUP(AH56,Index!$L$2:$N$30,3,FALSE))*VLOOKUP(AH56,Index!$L$2:$N$30,2,FALSE))/1000)))) -> 
AI57: =VLOOKUP(AH57,Index!$L$2:$Q$30,6,FALSE) ->  | AK57: 1 | AR57: yes | AS57: yes | BA57: =IF(A57="","",IF(AR57="no","",IF(ISERROR(IF(AF57<>"NR",AF57,IF(AM57="NR",IF(AQ57="B",VLOOKUP(AH57&AJ57&AP57,'Default BW IR-Formatted by LS'!$AB$4:$AF$83,5,FALSE),VLOOKUP(AH57&AJ57&AQ57&AP57,'Default BW IR-Formatted by LS'!$S$4:$X$124,6,FALSE)),VLOOKUP(AO57,INDIRECT("'Default BW IR-Formatted by age'!"&VLOOKUP(AH57&AJ57&AQ57,Index!$A$2:$E$151,5,FALSE)),2,TRUE))))=TRUE,"ERROR",IF(AF57<>"NR",AF57,IF(AM57="NR",IF(AQ57="B",VLOOKUP(AH57&AJ57&AP57,'Default BW IR-Formatted by LS'!$AB$4:$AF$83,5,FALSE),VLOOKUP(AH57&AJ57&AQ57&AP57,'Default BW IR-Formatted by LS'!$S$4:$X$124,6,FALSE)),VLOOKUP(AO57,INDIRECT("'Default BW IR-Formatted by age'!"&VLOOKUP(AH57&AJ57&AQ57,Index!$A$2:$E$151,5,FALSE)),2,TRUE)))))) ->  | BC57: =IF(A57="","",IF(AS57="no","",IF(AG57<>"NR",AG57,IF(OR(L57="mg/L",L57="ppm in mg/L",L57="mg/ml",L57="% in water",L57="% water",L57="g/L",L57="ug/L"),IF(AI57="bird",0.059*BB57^0.67,0.099*BB57^0.9),(((BB57*1000)^VLOOKUP(AH57,Index!$L$2:$N$30,3,FALSE))*VLOOKUP(AH57,Index!$L$2:$N$30,2,FALSE))/1000)))) -> 
AI58: =VLOOKUP(AH58,Index!$L$2:$Q$30,6,FALSE) ->  | AK58: 1 | AR58: yes | AS58: yes | BA58: =IF(A58="","",IF(AR58="no","",IF(ISERROR(IF(AF58<>"NR",AF58,IF(AM58="NR",IF(AQ58="B",VLOOKUP(AH58&AJ58&AP58,'Default BW IR-Formatted by LS'!$AB$4:$AF$83,5,FALSE),VLOOKUP(AH58&AJ58&AQ58&AP58,'Default BW IR-Formatted by LS'!$S$4:$X$124,6,FALSE)),VLOOKUP(AO58,INDIRECT("'Default BW IR-Formatted by age'!"&VLOOKUP(AH58&AJ58&AQ58,Index!$A$2:$E$151,5,FALSE)),2,TRUE))))=TRUE,"ERROR",IF(AF58<>"NR",AF58,IF(AM58="NR",IF(AQ58="B",VLOOKUP(AH58&AJ58&AP58,'Default BW IR-Formatted by LS'!$AB$4:$AF$83,5,FALSE),VLOOKUP(AH58&AJ58&AQ58&AP58,'Default BW IR-Formatted by LS'!$S$4:$X$124,6,FALSE)),VLOOKUP(AO58,INDIRECT("'Default BW IR-Formatted by age'!"&VLOOKUP(AH58&AJ58&AQ58,Index!$A$2:$E$151,5,FALSE)),2,TRUE)))))) ->  | BC58: =IF(A58="","",IF(AS58="no","",IF(AG58<>"NR",AG58,IF(OR(L58="mg/L",L58="ppm in mg/L",L58="mg/ml",L58="% in water",L58="% water",L58="g/L",L58="ug/L"),IF(AI58="bird",0.059*BB58^0.67,0.099*BB58^0.9),(((BB58*1000)^VLOOKUP(AH58,Index!$L$2:$N$30,3,FALSE))*VLOOKUP(AH58,Index!$L$2:$N$30,2,FALSE))/1000)))) -> 
AI59: =VLOOKUP(AH59,Index!$L$2:$Q$30,6,FALSE) ->  | AK59: 1 | AR59: yes | AS59: yes | BA59: =IF(A59="","",IF(AR59="no","",IF(ISERROR(IF(AF59<>"NR",AF59,IF(AM59="NR",IF(AQ59="B",VLOOKUP(AH59&AJ59&AP59,'Default BW IR-Formatted by LS'!$AB$4:$AF$83,5,FALSE),VLOOKUP(AH59&AJ59&AQ59&AP59,'Default BW IR-Formatted by LS'!$S$4:$X$124,6,FALSE)),VLOOKUP(AO59,INDIRECT("'Default BW IR-Formatted by age'!"&VLOOKUP(AH59&AJ59&AQ59,Index!$A$2:$E$151,5,FALSE)),2,TRUE))))=TRUE,"ERROR",IF(AF59<>"NR",AF59,IF(AM59="NR",IF(AQ59="B",VLOOKUP(AH59&AJ59&AP59,'Default BW IR-Formatted by LS'!$AB$4:$AF$83,5,FALSE),VLOOKUP(AH59&AJ59&AQ59&AP59,'Default BW IR-Formatted by LS'!$S$4:$X$124,6,FALSE)),VLOOKUP(AO59,INDIRECT("'Default BW IR-Formatted by age'!"&VLOOKUP(AH59&AJ59&AQ59,Index!$A$2:$E$151,5,FALSE)),2,TRUE)))))) ->  | BC59: =IF(A59="","",IF(AS59="no","",IF(AG59<>"NR",AG59,IF(OR(L59="mg/L",L59="ppm in mg/L",L59="mg/ml",L59="% in water",L59="% water",L59="g/L",L59="ug/L"),IF(AI59="bird",0.059*BB59^0.67,0.099*BB59^0.9),(((BB59*1000)^VLOOKUP(AH59,Index!$L$2:$N$30,3,FALSE))*VLOOKUP(AH59,Index!$L$2:$N$30,2,FALSE))/1000)))) -> 
AI60: =VLOOKUP(AH60,Index!$L$2:$Q$30,6,FALSE) ->  | AK60: 1 | AR60: yes | AS60: yes | BA60: =IF(A60="","",IF(AR60="no","",IF(ISERROR(IF(AF60<>"NR",AF60,IF(AM60="NR",IF(AQ60="B",VLOOKUP(AH60&AJ60&AP60,'Default BW IR-Formatted by LS'!$AB$4:$AF$83,5,FALSE),VLOOKUP(AH60&AJ60&AQ60&AP60,'Default BW IR-Formatted by LS'!$S$4:$X$124,6,FALSE)),VLOOKUP(AO60,INDIRECT("'Default BW IR-Formatted by age'!"&VLOOKUP(AH60&AJ60&AQ60,Index!$A$2:$E$151,5,FALSE)),2,TRUE))))=TRUE,"ERROR",IF(AF60<>"NR",AF60,IF(AM60="NR",IF(AQ60="B",VLOOKUP(AH60&AJ60&AP60,'Default BW IR-Formatted by LS'!$AB$4:$AF$83,5,FALSE),VLOOKUP(AH60&AJ60&AQ60&AP60,'Default BW IR-Formatted by LS'!$S$4:$X$124,6,FALSE)),VLOOKUP(AO60,INDIRECT("'Default BW IR-Formatted by age'!"&VLOOKUP(AH60&AJ60&AQ60,Index!$A$2:$E$151,5,FALSE)),2,TRUE)))))) ->  | BC60: =IF(A60="","",IF(AS60="no","",IF(AG60<>"NR",AG60,IF(OR(L60="mg/L",L60="ppm in mg/L",L60="mg/ml",L60="% in water",L60="% water",L60="g/L",L60="ug/L"),IF(AI60="bird",0.059*BB60^0.67,0.099*BB60^0.9),(((BB60*1000)^VLOOKUP(AH60,Index!$L$2:$N$30,3,FALSE))*VLOOKUP(AH60,Index!$L$2:$N$30,2,FALSE))/1000)))) -> 
AI61: =VLOOKUP(AH61,Index!$L$2:$Q$30,6,FALSE) ->  | AK61: 1 | AR61: yes | AS61: yes | BA61: =IF(A61="","",IF(AR61="no","",IF(ISERROR(IF(AF61<>"NR",AF61,IF(AM61="NR",IF(AQ61="B",VLOOKUP(AH61&AJ61&AP61,'Default BW IR-Formatted by LS'!$AB$4:$AF$83,5,FALSE),VLOOKUP(AH61&AJ61&AQ61&AP61,'Default BW IR-Formatted by LS'!$S$4:$X$124,6,FALSE)),VLOOKUP(AO61,INDIRECT("'Default BW IR-Formatted by age'!"&VLOOKUP(AH61&AJ61&AQ61,Index!$A$2:$E$151,5,FALSE)),2,TRUE))))=TRUE,"ERROR",IF(AF61<>"NR",AF61,IF(AM61="NR",IF(AQ61="B",VLOOKUP(AH61&AJ61&AP61,'Default BW IR-Formatted by LS'!$AB$4:$AF$83,5,FALSE),VLOOKUP(AH61&AJ61&AQ61&AP61,'Default BW IR-Formatted by LS'!$S$4:$X$124,6,FALSE)),VLOOKUP(AO61,INDIRECT("'Default BW IR-Formatted by age'!"&VLOOKUP(AH61&AJ61&AQ61,Index!$A$2:$E$151,5,FALSE)),2,TRUE)))))) ->  | BC61: =IF(A61="","",IF(AS61="no","",IF(AG61<>"NR",AG61,IF(OR(L61="mg/L",L61="ppm in mg/L",L61="mg/ml",L61="% in water",L61="% water",L61="g/L",L61="ug/L"),IF(AI61="bird",0.059*BB61^0.67,0.099*BB61^0.9),(((BB61*1000)^VLOOKUP(AH61,Index!$L$2:$N$30,3,FALSE))*VLOOKUP(AH61,Index!$L$2:$N$30,2,FALSE))/1000)))) -> 
AI62: =VLOOKUP(AH62,Index!$L$2:$Q$30,6,FALSE) ->  | AK62: 1 | AR62: yes | AS62: yes | BA62: =IF(A62="","",IF(AR62="no","",IF(ISERROR(IF(AF62<>"NR",AF62,IF(AM62="NR",IF(AQ62="B",VLOOKUP(AH62&AJ62&AP62,'Default BW IR-Formatted by LS'!$AB$4:$AF$83,5,FALSE),VLOOKUP(AH62&AJ62&AQ62&AP62,'Default BW IR-Formatted by LS'!$S$4:$X$124,6,FALSE)),VLOOKUP(AO62,INDIRECT("'Default BW IR-Formatted by age'!"&VLOOKUP(AH62&AJ62&AQ62,Index!$A$2:$E$151,5,FALSE)),2,TRUE))))=TRUE,"ERROR",IF(AF62<>"NR",AF62,IF(AM62="NR",IF(AQ62="B",VLOOKUP(AH62&AJ62&AP62,'Default BW IR-Formatted by LS'!$AB$4:$AF$83,5,FALSE),VLOOKUP(AH62&AJ62&AQ62&AP62,'Default BW IR-Formatted by LS'!$S$4:$X$124,6,FALSE)),VLOOKUP(AO62,INDIRECT("'Default BW IR-Formatted by age'!"&VLOOKUP(AH62&AJ62&AQ62,Index!$A$2:$E$151,5,FALSE)),2,TRUE)))))) ->  | BC62: =IF(A62="","",IF(AS62="no","",IF(AG62<>"NR",AG62,IF(OR(L62="mg/L",L62="ppm in mg/L",L62="mg/ml",L62="% in water",L62="% water",L62="g/L",L62="ug/L"),IF(AI62="bird",0.059*BB62^0.67,0.099*BB62^0.9),(((BB62*1000)^VLOOKUP(AH62,Index!$L$2:$N$30,3,FALSE))*VLOOKUP(AH62,Index!$L$2:$N$30,2,FALSE))/1000)))) -> 
AI63: =VLOOKUP(AH63,Index!$L$2:$Q$30,6,FALSE) ->  | AK63: 1 | AR63: yes | AS63: yes | BA63: =IF(A63="","",IF(AR63="no","",IF(ISERROR(IF(AF63<>"NR",AF63,IF(AM63="NR",IF(AQ63="B",VLOOKUP(AH63&AJ63&AP63,'Default BW IR-Formatted by LS'!$AB$4:$AF$83,5,FALSE),VLOOKUP(AH63&AJ63&AQ63&AP63,'Default BW IR-Formatted by LS'!$S$4:$X$124,6,FALSE)),VLOOKUP(AO63,INDIRECT("'Default BW IR-Formatted by age'!"&VLOOKUP(AH63&AJ63&AQ63,Index!$A$2:$E$151,5,FALSE)),2,TRUE))))=TRUE,"ERROR",IF(AF63<>"NR",AF63,IF(AM63="NR",IF(AQ63="B",VLOOKUP(AH63&AJ63&AP63,'Default BW IR-Formatted by LS'!$AB$4:$AF$83,5,FALSE),VLOOKUP(AH63&AJ63&AQ63&AP63,'Default BW IR-Formatted by LS'!$S$4:$X$124,6,FALSE)),VLOOKUP(AO63,INDIRECT("'Default BW IR-Formatted by age'!"&VLOOKUP(AH63&AJ63&AQ63,Index!$A$2:$E$151,5,FALSE)),2,TRUE)))))) ->  | BC63: =IF(A63="","",IF(AS63="no","",IF(AG63<>"NR",AG63,IF(OR(L63="mg/L",L63="ppm in mg/L",L63="mg/ml",L63="% in water",L63="% water",L63="g/L",L63="ug/L"),IF(AI63="bird",0.059*BB63^0.67,0.099*BB63^0.9),(((BB63*1000)^VLOOKUP(AH63,Index!$L$2:$N$30,3,FALSE))*VLOOKUP(AH63,Index!$L$2:$N$30,2,FALSE))/1000)))) -> 
AI64: =VLOOKUP(AH64,Index!$L$2:$Q$30,6,FALSE) ->  | AK64: 1 | AR64: yes | AS64: yes | BA64: =IF(A64="","",IF(AR64="no","",IF(ISERROR(IF(AF64<>"NR",AF64,IF(AM64="NR",IF(AQ64="B",VLOOKUP(AH64&AJ64&AP64,'Default BW IR-Formatted by LS'!$AB$4:$AF$83,5,FALSE),VLOOKUP(AH64&AJ64&AQ64&AP64,'Default BW IR-Formatted by LS'!$S$4:$X$124,6,FALSE)),VLOOKUP(AO64,INDIRECT("'Default BW IR-Formatted by age'!"&VLOOKUP(AH64&AJ64&AQ64,Index!$A$2:$E$151,5,FALSE)),2,TRUE))))=TRUE,"ERROR",IF(AF64<>"NR",AF64,IF(AM64="NR",IF(AQ64="B",VLOOKUP(AH64&AJ64&AP64,'Default BW IR-Formatted by LS'!$AB$4:$AF$83,5,FALSE),VLOOKUP(AH64&AJ64&AQ64&AP64,'Default BW IR-Formatted by LS'!$S$4:$X$124,6,FALSE)),VLOOKUP(AO64,INDIRECT("'Default BW IR-Formatted by age'!"&VLOOKUP(AH64&AJ64&AQ64,Index!$A$2:$E$151,5,FALSE)),2,TRUE)))))) ->  | BC64: =IF(A64="","",IF(AS64="no","",IF(AG64<>"NR",AG64,IF(OR(L64="mg/L",L64="ppm in mg/L",L64="mg/ml",L64="% in water",L64="% water",L64="g/L",L64="ug/L"),IF(AI64="bird",0.059*BB64^0.67,0.099*BB64^0.9),(((BB64*1000)^VLOOKUP(AH64,Index!$L$2:$N$30,3,FALSE))*VLOOKUP(AH64,Index!$L$2:$N$30,2,FALSE))/1000)))) -> 
AI65: =VLOOKUP(AH65,Index!$L$2:$Q$30,6,FALSE) ->  | AK65: 1 | AR65: yes | AS65: yes | BA65: =IF(A65="","",IF(AR65="no","",IF(ISERROR(IF(AF65<>"NR",AF65,IF(AM65="NR",IF(AQ65="B",VLOOKUP(AH65&AJ65&AP65,'Default BW IR-Formatted by LS'!$AB$4:$AF$83,5,FALSE),VLOOKUP(AH65&AJ65&AQ65&AP65,'Default BW IR-Formatted by LS'!$S$4:$X$124,6,FALSE)),VLOOKUP(AO65,INDIRECT("'Default BW IR-Formatted by age'!"&VLOOKUP(AH65&AJ65&AQ65,Index!$A$2:$E$151,5,FALSE)),2,TRUE))))=TRUE,"ERROR",IF(AF65<>"NR",AF65,IF(AM65="NR",IF(AQ65="B",VLOOKUP(AH65&AJ65&AP65,'Default BW IR-Formatted by LS'!$AB$4:$AF$83,5,FALSE),VLOOKUP(AH65&AJ65&AQ65&AP65,'Default BW IR-Formatted by LS'!$S$4:$X$124,6,FALSE)),VLOOKUP(AO65,INDIRECT("'Default BW IR-Formatted by age'!"&VLOOKUP(AH65&AJ65&AQ65,Index!$A$2:$E$151,5,FALSE)),2,TRUE)))))) ->  | BC65: =IF(A65="","",IF(AS65="no","",IF(AG65<>"NR",AG65,IF(OR(L65="mg/L",L65="ppm in mg/L",L65="mg/ml",L65="% in water",L65="% water",L65="g/L",L65="ug/L"),IF(AI65="bird",0.059*BB65^0.67,0.099*BB65^0.9),(((BB65*1000)^VLOOKUP(AH65,Index!$L$2:$N$30,3,FALSE))*VLOOKUP(AH65,Index!$L$2:$N$30,2,FALSE))/1000)))) -> 
AI66: =VLOOKUP(AH66,Index!$L$2:$Q$30,6,FALSE) ->  | AK66: 1 | AR66: yes | AS66: yes | BA66: =IF(A66="","",IF(AR66="no","",IF(ISERROR(IF(AF66<>"NR",AF66,IF(AM66="NR",IF(AQ66="B",VLOOKUP(AH66&AJ66&AP66,'Default BW IR-Formatted by LS'!$AB$4:$AF$83,5,FALSE),VLOOKUP(AH66&AJ66&AQ66&AP66,'Default BW IR-Formatted by LS'!$S$4:$X$124,6,FALSE)),VLOOKUP(AO66,INDIRECT("'Default BW IR-Formatted by age'!"&VLOOKUP(AH66&AJ66&AQ66,Index!$A$2:$E$151,5,FALSE)),2,TRUE))))=TRUE,"ERROR",IF(AF66<>"NR",AF66,IF(AM66="NR",IF(AQ66="B",VLOOKUP(AH66&AJ66&AP66,'Default BW IR-Formatted by LS'!$AB$4:$AF$83,5,FALSE),VLOOKUP(AH66&AJ66&AQ66&AP66,'Default BW IR-Formatted by LS'!$S$4:$X$124,6,FALSE)),VLOOKUP(AO66,INDIRECT("'Default BW IR-Formatted by age'!"&VLOOKUP(AH66&AJ66&AQ66,Index!$A$2:$E$151,5,FALSE)),2,TRUE)))))) ->  | BC66: =IF(A66="","",IF(AS66="no","",IF(AG66<>"NR",AG66,IF(OR(L66="mg/L",L66="ppm in mg/L",L66="mg/ml",L66="% in water",L66="% water",L66="g/L",L66="ug/L"),IF(AI66="bird",0.059*BB66^0.67,0.099*BB66^0.9),(((BB66*1000)^VLOOKUP(AH66,Index!$L$2:$N$30,3,FALSE))*VLOOKUP(AH66,Index!$L$2:$N$30,2,FALSE))/1000)))) -> 
AI67: =VLOOKUP(AH67,Index!$L$2:$Q$30,6,FALSE) ->  | AK67: 1 | AR67: yes | AS67: yes | BA67: =IF(A67="","",IF(AR67="no","",IF(ISERROR(IF(AF67<>"NR",AF67,IF(AM67="NR",IF(AQ67="B",VLOOKUP(AH67&AJ67&AP67,'Default BW IR-Formatted by LS'!$AB$4:$AF$83,5,FALSE),VLOOKUP(AH67&AJ67&AQ67&AP67,'Default BW IR-Formatted by LS'!$S$4:$X$124,6,FALSE)),VLOOKUP(AO67,INDIRECT("'Default BW IR-Formatted by age'!"&VLOOKUP(AH67&AJ67&AQ67,Index!$A$2:$E$151,5,FALSE)),2,TRUE))))=TRUE,"ERROR",IF(AF67<>"NR",AF67,IF(AM67="NR",IF(AQ67="B",VLOOKUP(AH67&AJ67&AP67,'Default BW IR-Formatted by LS'!$AB$4:$AF$83,5,FALSE),VLOOKUP(AH67&AJ67&AQ67&AP67,'Default BW IR-Formatted by LS'!$S$4:$X$124,6,FALSE)),VLOOKUP(AO67,INDIRECT("'Default BW IR-Formatted by age'!"&VLOOKUP(AH67&AJ67&AQ67,Index!$A$2:$E$151,5,FALSE)),2,TRUE)))))) ->  | BC67: =IF(A67="","",IF(AS67="no","",IF(AG67<>"NR",AG67,IF(OR(L67="mg/L",L67="ppm in mg/L",L67="mg/ml",L67="% in water",L67="% water",L67="g/L",L67="ug/L"),IF(AI67="bird",0.059*BB67^0.67,0.099*BB67^0.9),(((BB67*1000)^VLOOKUP(AH67,Index!$L$2:$N$30,3,FALSE))*VLOOKUP(AH67,Index!$L$2:$N$30,2,FALSE))/1000)))) -> 
AI68: =VLOOKUP(AH68,Index!$L$2:$Q$30,6,FALSE) ->  | AK68: 1 | AR68: yes | AS68: yes | BA68: =IF(A68="","",IF(AR68="no","",IF(ISERROR(IF(AF68<>"NR",AF68,IF(AM68="NR",IF(AQ68="B",VLOOKUP(AH68&AJ68&AP68,'Default BW IR-Formatted by LS'!$AB$4:$AF$83,5,FALSE),VLOOKUP(AH68&AJ68&AQ68&AP68,'Default BW IR-Formatted by LS'!$S$4:$X$124,6,FALSE)),VLOOKUP(AO68,INDIRECT("'Default BW IR-Formatted by age'!"&VLOOKUP(AH68&AJ68&AQ68,Index!$A$2:$E$151,5,FALSE)),2,TRUE))))=TRUE,"ERROR",IF(AF68<>"NR",AF68,IF(AM68="NR",IF(AQ68="B",VLOOKUP(AH68&AJ68&AP68,'Default BW IR-Formatted by LS'!$AB$4:$AF$83,5,FALSE),VLOOKUP(AH68&AJ68&AQ68&AP68,'Default BW IR-Formatted by LS'!$S$4:$X$124,6,FALSE)),VLOOKUP(AO68,INDIRECT("'Default BW IR-Formatted by age'!"&VLOOKUP(AH68&AJ68&AQ68,Index!$A$2:$E$151,5,FALSE)),2,TRUE)))))) ->  | BC68: =IF(A68="","",IF(AS68="no","",IF(AG68<>"NR",AG68,IF(OR(L68="mg/L",L68="ppm in mg/L",L68="mg/ml",L68="% in water",L68="% water",L68="g/L",L68="ug/L"),IF(AI68="bird",0.059*BB68^0.67,0.099*BB68^0.9),(((BB68*1000)^VLOOKUP(AH68,Index!$L$2:$N$30,3,FALSE))*VLOOKUP(AH68,Index!$L$2:$N$30,2,FALSE))/1000)))) -> 
AI69: =VLOOKUP(AH69,Index!$L$2:$Q$30,6,FALSE) ->  | AK69: 1 | AR69: yes | AS69: yes | BA69: =IF(A69="","",IF(AR69="no","",IF(ISERROR(IF(AF69<>"NR",AF69,IF(AM69="NR",IF(AQ69="B",VLOOKUP(AH69&AJ69&AP69,'Default BW IR-Formatted by LS'!$AB$4:$AF$83,5,FALSE),VLOOKUP(AH69&AJ69&AQ69&AP69,'Default BW IR-Formatted by LS'!$S$4:$X$124,6,FALSE)),VLOOKUP(AO69,INDIRECT("'Default BW IR-Formatted by age'!"&VLOOKUP(AH69&AJ69&AQ69,Index!$A$2:$E$151,5,FALSE)),2,TRUE))))=TRUE,"ERROR",IF(AF69<>"NR",AF69,IF(AM69="NR",IF(AQ69="B",VLOOKUP(AH69&AJ69&AP69,'Default BW IR-Formatted by LS'!$AB$4:$AF$83,5,FALSE),VLOOKUP(AH69&AJ69&AQ69&AP69,'Default BW IR-Formatted by LS'!$S$4:$X$124,6,FALSE)),VLOOKUP(AO69,INDIRECT("'Default BW IR-Formatted by age'!"&VLOOKUP(AH69&AJ69&AQ69,Index!$A$2:$E$151,5,FALSE)),2,TRUE)))))) ->  | BC69: =IF(A69="","",IF(AS69="no","",IF(AG69<>"NR",AG69,IF(OR(L69="mg/L",L69="ppm in mg/L",L69="mg/ml",L69="% in water",L69="% water",L69="g/L",L69="ug/L"),IF(AI69="bird",0.059*BB69^0.67,0.099*BB69^0.9),(((BB69*1000)^VLOOKUP(AH69,Index!$L$2:$N$30,3,FALSE))*VLOOKUP(AH69,Index!$L$2:$N$30,2,FALSE))/1000)))) -> 
AI70: =VLOOKUP(AH70,Index!$L$2:$Q$30,6,FALSE) ->  | AK70: 1 | AR70: yes | AS70: yes | BA70: =IF(A70="","",IF(AR70="no","",IF(ISERROR(IF(AF70<>"NR",AF70,IF(AM70="NR",IF(AQ70="B",VLOOKUP(AH70&AJ70&AP70,'Default BW IR-Formatted by LS'!$AB$4:$AF$83,5,FALSE),VLOOKUP(AH70&AJ70&AQ70&AP70,'Default BW IR-Formatted by LS'!$S$4:$X$124,6,FALSE)),VLOOKUP(AO70,INDIRECT("'Default BW IR-Formatted by age'!"&VLOOKUP(AH70&AJ70&AQ70,Index!$A$2:$E$151,5,FALSE)),2,TRUE))))=TRUE,"ERROR",IF(AF70<>"NR",AF70,IF(AM70="NR",IF(AQ70="B",VLOOKUP(AH70&AJ70&AP70,'Default BW IR-Formatted by LS'!$AB$4:$AF$83,5,FALSE),VLOOKUP(AH70&AJ70&AQ70&AP70,'Default BW IR-Formatted by LS'!$S$4:$X$124,6,FALSE)),VLOOKUP(AO70,INDIRECT("'Default BW IR-Formatted by age'!"&VLOOKUP(AH70&AJ70&AQ70,Index!$A$2:$E$151,5,FALSE)),2,TRUE)))))) ->  | BB70: =IF(OR(ISERROR(BA70)=TRUE,BA70="ERROR"),AX70,BA70) ->  | BC70: =IF(A70="","",IF(AS70="no","",IF(AG70<>"NR",AG70,IF(OR(L70="mg/L",L70="ppm in mg/L",L70="mg/ml",L70="% in water",L70="% water",L70="g/L",L70="ug/L"),IF(AI70="bird",0.059*BB70^0.67,0.099*BB70^0.9),(((BB70*1000)^VLOOKUP(AH70,Index!$L$2:$N$30,3,FALSE))*VLOOKUP(AH70,Index!$L$2:$N$30,2,FALSE))/1000)))) -> 
AH71: =IF(A71="","",TRIM(LEFT(G71,FIND("(",G71)-2))) ->  | AI71: =VLOOKUP(AH71,Index!$L$2:$Q$30,6,FALSE) ->  | AJ71: =IF(A71="","",IF(OR(H71="",H71="unspecified"),"unspecified",H71)) ->  | AK71: 1 | AL71: =IF(A71="","",IF(ISERROR(FIND("-",T71))=TRUE,T71,LEFT(T71,FIND("-",T71)-1))) ->  | AM71: =IF(A71="","",IF(ISERROR(FIND("-",T71))=TRUE,T71,RIGHT(T71,LEN(T71)-FIND("-",T71)))) ->  | AN71: =IF(A71="","",IF(U71="NR","NR",AL71*IF(U71="d",1,IF(U71="mo",30.5,IF(U71="w",7,IF(U71="yr",365,"ERROR")))))) ->  | AO71: =IF(A71="","",IF(U71="NR","NR",AM71*IF(U71="d",1,IF(U71="mo",30.5,IF(U71="w",7,IF(U71="yr",365,"ERROR")))))) ->  | AP71: =IF(A71="","",IF(V71="JV","juvenile","adult")) ->  | AQ71: =IF(A71="","",IF(W71="M","M",IF(W71="F","F","B"))) ->  | AR71: =IF(AF71<>"NR","yes",IF(OR(L71="mg/kg bw/d",L71="mg/kg/bw/d",L71="mg/kg/d",L71="ug/g bw/d",L71="ug/kg bw/d",L71="g/kg bw/d",L71="mg/g bw/d"),"no","yes")) -> yes | AS71: =IF(AG71<>"NR","yes",IF(AR71="no","no",IF(OR(L71="mg/org/d",L71="mg/d",L71="g/d",L71="g/org/d",L71="g/org/day",L71="ug/org/d"),"no","yes"))) -> yes | AT71: =BB71 ->  | AU71: =IF(BC71="","",sigfig(BC71,4)) ->  | AV71: =IF(BI71="","",IF(AND(BI71>=10,BI71<10000),MROUND(BI71,1),sigfig(BI71,2))) ->  | AW71: =IF(BJ71="","",IF(AND(BJ71>=10,BJ71<10000),MROUND(BJ71,1),sigfig(BJ71,2))) ->  | BA71: =IF(A71="","",IF(AR71="no","",IF(ISERROR(IF(AF71<>"NR",AF71,IF(AM71="NR",IF(AQ71="B",VLOOKUP(AH71&AJ71&AP71,'Default BW IR-Formatted by LS'!$AB$4:$AF$83,5,FALSE),VLOOKUP(AH71&AJ71&AQ71&AP71,'Default BW IR-Formatted by LS'!$S$4:$X$124,6,FALSE)),VLOOKUP(AO71,INDIRECT("'Default BW IR-Formatted by age'!"&VLOOKUP(AH71&AJ71&AQ71,Index!$A$2:$E$151,5,FALSE)),2,TRUE))))=TRUE,"ERROR",IF(AF71<>"NR",AF71,IF(AM71="NR",IF(AQ71="B",VLOOKUP(AH71&AJ71&AP71,'Default BW IR-Formatted by LS'!$AB$4:$AF$83,5,FALSE),VLOOKUP(AH71&AJ71&AQ71&AP71,'Default BW IR-Formatted by LS'!$S$4:$X$124,6,FALSE)),VLOOKUP(AO71,INDIRECT("'Default BW IR-Formatted by age'!"&VLOOKUP(AH71&AJ71&AQ71,Index!$A$2:$E$151,5,FALSE)),2,TRUE)))))) ->  | BC71: =IF(A71="","",IF(AS71="no","",IF(AG71<>"NR",AG71,IF(OR(L71="mg/L",L71="ppm in mg/L",L71="mg/ml",L71="% in water",L71="% water",L71="g/L",L71="ug/L"),IF(AI71="bird",0.059*BB71^0.67,0.099*BB71^0.9),(((BB71*1000)^VLOOKUP(AH71,Index!$L$2:$N$30,3,FALSE))*VLOOKUP(AH71,Index!$L$2:$N$30,2,FALSE))/1000)))) ->  | BD71: =IF(AD71="","",IF(OR(L71="mg/kg bw/d",L71="mg/kg/bw/d",L71="mg/kg/d",L71="ug/g bw/d"),F71/100*AD71*AK71,IF(OR(L71="mg/org/d",L71="mg/d"),F71/100*AD71/BB71*AK71,IF(OR(L71="mg/kg diet",L71="mg/L",L71="ppm in mg/kg",L71="mg/kg",L71="ug/g diet",L71="ug/g",L71="ppm in mg/L"),F71/100*AD71*BC71/BB71*AK71,IF(OR(L71="mg/ml",L71="mg/g",L71="g/L",L71="g/kg diet",L71="mg/g diet"),F71/100*(AD71*1000)*BC71/BB71*AK71,IF(OR(L71="% in diet", L71="% in water", L71="% water"),F71/100*(AD71*10000)*BC71/BB71*AK71,IF( L71="ug/kg bw/d",F71/100*AD71/1000*AK71,IF(OR(L71="g/kg bw/d",L71="mg/g bw/d"),F71/100*AD71*1000*AK71,IF(OR(L71="g/d",L71="g/org/d",L71="g/org/day"),F71/100*AD71*1000/BB71*AK71,IF(OR(L71="ug/kg",L71="ng/g diet",L71="ug/kg diet",L71="ug/L"),F71/100*AD71/1000*BC71/BB71*AK71,IF(L71="ug/org/d",F71/100*AD71/1000/BB71*AK71,NA()))))))))))) ->  | BE71: =IF(AE71="","",IF(OR(L71="mg/kg bw/d",L71="mg/kg/bw/d",L71="mg/kg/d",L71="ug/g bw/d"),F71/100*AE71*AK71,IF(OR(L71="mg/org/d",L71="mg/d"),F71/100*AE71/BB71*AK71,IF(OR(L71="mg/kg diet",L71="mg/L",L71="ppm in mg/kg",L71="mg/kg",L71="ug/g diet",L71="ug/g",L71="ppm in mg/L"),F71/100*AE71*BC71/BB71*AK71,IF(OR(L71="mg/ml",L71="mg/g",L71="g/L",L71="g/kg diet",L71="mg/g diet"),F71/100*(AE71*1000)*BC71/BB71*AK71,IF(OR(L71="% in diet", L71="% in water", L71="% water"),F71/100*(AE71*10000)*BC71/BB71*AK71,IF( L71="ug/kg bw/d",F71/100*AE71/1000*AK71,IF(OR(L71="g/kg bw/d",L71="mg/g bw/d"),F71/100*AE71*1000*AK71,IF(OR(L71="g/d",L71="g/org/d",L71="g/org/day"),F71/100*AE71*1000/BB71*AK71,IF(OR(L71="ug/kg",L71="ng/g diet",L71="ug/kg diet",L71="ug/L"),F71/100*AE71/1000*BC71/BB71*AK71,IF(L71="ug/org/d",F71/100*AE71/1000/BB71*AK71,NA()))))))))))) ->  | BF71: =IF(AND(OR(ISERROR(BA71)=TRUE,BA71="ERROR"),AX71=""),"X","") ->  | BG71: =IF(BF71="X","",IF(AND(ISERROR(BD71)=TRUE,AY71=""),"X","")) ->  | BH71: =IF(BF71="X","",IF(AND(ISERROR(BE71)=TRUE,AZ71=""),"X","")) ->  | BI71: =IF(ISNUMBER(AY71)=TRUE,AY71,BD71) ->  | BJ71: =IF(ISNUMBER(AZ71)=TRUE,AZ71,BE71) -> 
AI72: =VLOOKUP(AH72,Index!$L$2:$Q$30,6,FALSE) ->  | AK72: 1 | AR72: yes | AS72: yes | BA72: =IF(A72="","",IF(AR72="no","",IF(ISERROR(IF(AF72<>"NR",AF72,IF(AM72="NR",IF(AQ72="B",VLOOKUP(AH72&AJ72&AP72,'Default BW IR-Formatted by LS'!$AB$4:$AF$83,5,FALSE),VLOOKUP(AH72&AJ72&AQ72&AP72,'Default BW IR-Formatted by LS'!$S$4:$X$124,6,FALSE)),VLOOKUP(AO72,INDIRECT("'Default BW IR-Formatted by age'!"&VLOOKUP(AH72&AJ72&AQ72,Index!$A$2:$E$151,5,FALSE)),2,TRUE))))=TRUE,"ERROR",IF(AF72<>"NR",AF72,IF(AM72="NR",IF(AQ72="B",VLOOKUP(AH72&AJ72&AP72,'Default BW IR-Formatted by LS'!$AB$4:$AF$83,5,FALSE),VLOOKUP(AH72&AJ72&AQ72&AP72,'Default BW IR-Formatted by LS'!$S$4:$X$124,6,FALSE)),VLOOKUP(AO72,INDIRECT("'Default BW IR-Formatted by age'!"&VLOOKUP(AH72&AJ72&AQ72,Index!$A$2:$E$151,5,FALSE)),2,TRUE)))))) ->  | BC72: =IF(A72="","",IF(AS72="no","",IF(AG72<>"NR",AG72,IF(OR(L72="mg/L",L72="ppm in mg/L",L72="mg/ml",L72="% in water",L72="% water",L72="g/L",L72="ug/L"),IF(AI72="bird",0.059*BB72^0.67,0.099*BB72^0.9),(((BB72*1000)^VLOOKUP(AH72,Index!$L$2:$N$30,3,FALSE))*VLOOKUP(AH72,Index!$L$2:$N$30,2,FALSE))/1000)))) -> 
AI73: =VLOOKUP(AH73,Index!$L$2:$Q$30,6,FALSE) ->  | AK73: 1 | AR73: yes | AS73: yes | BA73: =IF(A73="","",IF(AR73="no","",IF(ISERROR(IF(AF73<>"NR",AF73,IF(AM73="NR",IF(AQ73="B",VLOOKUP(AH73&AJ73&AP73,'Default BW IR-Formatted by LS'!$AB$4:$AF$83,5,FALSE),VLOOKUP(AH73&AJ73&AQ73&AP73,'Default BW IR-Formatted by LS'!$S$4:$X$124,6,FALSE)),VLOOKUP(AO73,INDIRECT("'Default BW IR-Formatted by age'!"&VLOOKUP(AH73&AJ73&AQ73,Index!$A$2:$E$151,5,FALSE)),2,TRUE))))=TRUE,"ERROR",IF(AF73<>"NR",AF73,IF(AM73="NR",IF(AQ73="B",VLOOKUP(AH73&AJ73&AP73,'Default BW IR-Formatted by LS'!$AB$4:$AF$83,5,FALSE),VLOOKUP(AH73&AJ73&AQ73&AP73,'Default BW IR-Formatted by LS'!$S$4:$X$124,6,FALSE)),VLOOKUP(AO73,INDIRECT("'Default BW IR-Formatted by age'!"&VLOOKUP(AH73&AJ73&AQ73,Index!$A$2:$E$151,5,FALSE)),2,TRUE)))))) ->  | BC73: =IF(A73="","",IF(AS73="no","",IF(AG73<>"NR",AG73,IF(OR(L73="mg/L",L73="ppm in mg/L",L73="mg/ml",L73="% in water",L73="% water",L73="g/L",L73="ug/L"),IF(AI73="bird",0.059*BB73^0.67,0.099*BB73^0.9),(((BB73*1000)^VLOOKUP(AH73,Index!$L$2:$N$30,3,FALSE))*VLOOKUP(AH73,Index!$L$2:$N$30,2,FALSE))/1000)))) -> 

Sheet Figure
M1: User Inputs and Instructions:
X2: hide | Y2: hide | Z2: hide
M3: Enter desired Figure number in yellow cell (can be numeric or character value): | T3: 1 | X3: ="Figure "&T3&". "&S4&" TRV Derivation for "&P5 -> Figure 1. Mammalian TRV Derivation for 1,1-dichloroethane
M4: Select derivation type (mammalian or avian) from dropdown in yellow cell: | S4: Mammalian
M5: Enter chemical name in yellow cell: | P5: 1,1-dichloroethane
M7: The geometric mean of the NOAEL values for growth and reproductive effects is: | T7: ='For Figure by EG'!BU3 -> 2236.413354 | X7: =sigfig(T7,3) -> 2240
M8: Should the geometric mean of the NOAEL values for growth and reproductive effects be plotted in this figure?
M9: select "yes" or "no" from the dropdown in yellow cell: | Q9: yes | R9: =IF(Q9="yes","<This will display as a horizontal arrow bar>","") -> <This will display as a horizontal arrow bar>
M10: Should the selected TRV be plotted in this figure?
M11: select "yes" or "no" from the dropdown in yellow cell: | Q11: yes | R11: =IF(Q11="yes","<This will display as a dark black circle around the Result point>","") -> <This will display as a dark black circle around the Result point>
M12: =IF(Q11="yes","Enter the Result number from Data Entry table that is the source of the TRV value in the yellow cell:","") -> Enter the Result number from Data Entry table that is the source of the TRV value in the yellow cell: | V12: 7
M13: =IF(Q11="no","","Select TRV type (NOAEL or LOAEL) from the drop down in yellow cell:") -> Select TRV type (NOAEL or LOAEL) from the drop down in yellow cell: | S13: NOAEL
M14: =IF(Q11="no","","TRV = ") -> TRV = | N14: =IF(Q11="no","",VLOOKUP(V12,Calculator!B6:AW73,AC14,FALSE)) -> 1189 | AC14: =IF(S13="NOAEL",47,48) -> 47 | AE14: for label
AC15: x | AD15: =IF('For Figure'!A4="",Figure!AE15,IF(Q11="no",NA(),VLOOKUP(V12,'For Figure'!B4:I71,8,FALSE))) -> 2.25 | AE15: 0.5
M16: Figure Notes/Instructions: | AC16: y | AD16: =IF('For Figure'!A4="",Figure!AE16,IF(Q11="no",NA(),N14)) -> 1189 | AE16: 0.5
L17: ● | M17: Once data is pasted into the 'Calculator' tab this figure should automatically populate.
L18: ● | M18: The x-axis will need to be adjusted so that the max value = | Q18: ='For Figure'!O4 -> 2.75
M19: This can be done by right-clicking on the figure outside of the x and y axes, and selecting "Format Chart Area"
M20: In the 'Chart Options' drop down list at the top of the "Format Chart Area" pop-up select "Horizontal (Value) Axis"
M21: Select the 'Axis Options Icon'
M23: Then select "Axis Options"
A24: Result number | C24: 1) 10 - Rat, MORT | F24: Effect Measure Key: | J24: Lowest-Observed Adverse Effect Dose | M24: Edit the value under "Bounds", "Maximum" to be: | Q24: ='For Figure'!O4 -> 2.75
F25: BDWT - body weight changes | H25: =IF('For Figure'!R24=0,"",'For Figure'!R24) ->  | L25: ● | M25: Text boxes pointing to/providing the Geometric Mean and the TRV will need to be manually added.
A26: Reference number | C26: Test Species | E26: Effect Measure | F26: GBHV - behavioral changes | H26: =IF('For Figure'!R25=0,"",'For Figure'!R25) ->  | J26: Paired values from same study when joined by line
A27: Test Species Key | C27: Rat - Rat | F27: MORT - mortality
C28: Mou - Mouse | E28: =IF('For Figure'!R17=0,"",'For Figure'!R17) ->  | H28: =IF('For Figure'!R26=0,"",'For Figure'!R26) -> 
A29: Wildlife TRV Derivation Process | J29: No-Observed Adverse Effect Dose
A30: 1) There are at least three results available for two test species within the growth, reproduction, and mortality effect groups.
A31: There are enough data to derive a TRV.
A32: 2) There are at least three NOAEL results available in the growth effect group for calculation of a geometric mean (there are no data in the reproduction effect group).
A33: =IF(Q9="no","","3) The geometric mean of the NOAEL values for growth and reproductive effects equals "&X7&" mg "&P5&"/kg BW/day, which is greater than the lowest bounded LOAEL of 1429 mg 1,1-dichloroethane/kg BW/day for growth or survival.") -> 3) The geometric mean of the NOAEL values for growth and reproductive effects equals 2240 mg 1,1-dichloroethane/kg BW/day, which is greater than the lowest bounded LOAEL of 1429 mg 1,1-dichloroethane/kg BW/day for growth or survival.
A34: =IF(Q11="no","","4) The "&S4&" wildlife TRV for "&P5&" is equal to "&N14&" mg "&P5&"/kg BW/day, which is the highest bounded NOAEL below the lowest bounded LOAEL for growth or survival.") -> 4) The Mammalian wildlife TRV for 1,1-dichloroethane is equal to 1189 mg 1,1-dichloroethane/kg BW/day, which is the highest bounded NOAEL below the lowest bounded LOAEL for growth or survival.

Sheet Default BW IR-Formatted by age (hidden)
A1: Body Weight Values in this tab are from Table 20 of Attachment 4-3 of the EcoSSLs | C1: General Organism Type | D1: Specific Organism Type | E1: Sex | F1: SRC_Sex | G1: Age | H1: Lifestage | K1: Day Lookup | L1: Default BW (kg) | M1: Reference | N1: SRC Notes | O1: SRC Day Lookup References
C2: cat | D2: unspecified | E2: M | F2: M | G2: weaning to 90 days | H2: juvenile | K2: =4*7 -> 28 | L2: 1.72 | M2: USEPA, 1987 | N2: Weaning usually begins at 4 weeks | O2: multiple: https://pets.webmd.com/cats/weaning-kitten https://bestselfcleaninglitterbox.com/what-age-are-kittens-weaned/ https://www.topdogforsale.com/ https://www.pawtracks.com/getting-started/when-kittens-leave-their-mom/
C3: cat | D3: unspecified | E3: M | F3: M | G3: 90 days to 1 year | H3: sexually mature | K3: 90 | L3: 3.66 | M3: USEPA, 1987 | O3: multiple: https://www.thesprucepets.com/the-cat-mating-game-552391 https://www.petmd.com/cat/care/what-age-are-cats-fully-grown https://pets.thenest.com/cat-reach-sexual-maturity-9770.html https://www.hepper.com/when-do-male-cats-become-sexually-active/ https://pets.thenest.com/cats-sexually-mature-6826.html https://cat-world.com/mating-in-cats/
C4: cat | D4: unspecified | E4: M | F4: M | G4: 1 year or older | H4: adult | K4: 365 | L4: 4 | M4: USEPA, 1987 | O4: multiple: https://thediscerningcat.com/when-is-a-cat-an-adult/ https://www.petmd.com/cat/care/what-age-are-cats-fully-grown https://www.animalwised.com/when-is-a-cat-an-adult-and-when-do-they-stop-growing-3170.html
C5: cat | D5: unspecified | F5: M | K5: 25550 | L5: ERROR
C6: cat | D6: unspecified | E6: F | F6: F | G6: weaning to 90 days | H6: juvenile | K6: =8*7 -> 56 | L6: 1.49 | M6: USEPA, 1987 | O6: multiple: https://pets.webmd.com/cats/weaning-kitten https://bestselfcleaninglitterbox.com/what-age-are-kittens-weaned/ https://www.topdogforsale.com/ https://www.pawtracks.com/getting-started/when-kittens-leave-their-mom/
C7: cat | D7: unspecified | E7: F | F7: F | G7: 90 days to 1 year | H7: sexually mature | K7: 182 | L7: 2.96 | M7: USEPA, 1987 | O7: multiple: https://www.thesprucepets.com/the-cat-mating-game-552391 https://www.petmd.com/cat/care/what-age-are-cats-fully-grown https://pets.thenest.com/cat-reach-sexual-maturity-9770.html https://www.hepper.com/when-do-male-cats-become-sexually-active/ https://pets.thenest.com/cats-sexually-mature-6826.html https://cat-world.com/mating-in-cats/
C8: cat | D8: unspecified | E8: F | F8: F | G8: 1 year or older | H8: adult | K8: 365 | L8: 3.1 | M8: USEPA, 1987 | O8: multiple: https://thediscerningcat.com/when-is-a-cat-an-adult/ https://www.petmd.com/cat/care/what-age-are-cats-fully-grown https://www.animalwised.com/when-is-a-cat-an-adult-and-when-do-they-stop-growing-3170.html
C9: cat | D9: unspecified | F9: F | K9: 25550 | L9: ERROR
C10: cat | D10: unspecified | F10: B | G10: weaning to 90 days | H10: juvenile | K10: =8*7 -> 56 | L10: 1.72 | M10: USEPA, 1987 | O10: multiple: https://pets.webmd.com/cats/weaning-kitten https://bestselfcleaninglitterbox.com/what-age-are-kittens-weaned/ https://www.topdogforsale.com/ https://www.pawtracks.com/getting-started/when-kittens-leave-their-mom/
C11: cat | D11: unspecified | F11: B | G11: 90 days to 1 year | H11: sexually mature | K11: 182 | L11: 3.66 | M11: USEPA, 1987 | O11: multiple: https://www.thesprucepets.com/the-cat-mating-game-552391 https://www.petmd.com/cat/care/what-age-are-cats-fully-grown https://pets.thenest.com/cat-reach-sexual-maturity-9770.html https://www.hepper.com/when-do-male-cats-become-sexually-active/ https://pets.thenest.com/cats-sexually-mature-6826.html https://cat-world.com/mating-in-cats/
C12: cat | D12: unspecified | F12: B | G12: 1 year or older | H12: adult | K12: 365 | L12: 4 | M12: USEPA, 1987 | O12: multiple: https://thediscerningcat.com/when-is-a-cat-an-adult/ https://www.petmd.com/cat/care/what-age-are-cats-fully-grown https://www.animalwised.com/when-is-a-cat-an-adult-and-when-do-they-stop-growing-3170.html
C13: cat | D13: unspecified | F13: B | K13: 25550 | L13: ERROR
C14: cattle | D14: Beef | E14: BH | F14: M | G14: weaning | H14: juvenile | K14: 182 | L14: 220 | M14: Jurgens, 1972 | N14: Weaning occurs anywhere from 45 to 305 days, depending on the farming practices used; ideal/typical seems to be about 6-8 months, and recommendation is not less than 140 days (https://www.beefmagazine.com/weaning/when-best-time-wean-it-might-be-younger-you-think) | O14: multiple: https://extension.oregonstate.edu/animals-livestock/beef/strategies-easing-weaning-process-beef-calves https://beef.unl.edu/cattleproduction/earlyweaning https://www.beefmagazine.com/weaning/when-best-time-wean-it-might-be-younger-you-think https://agreenerworld.org/wp-content/uploads/2018/05/TAFS-21-Weaning-Age-in-Beef-Cattle-v1.pdf https://www.beefmagazine.com/americancowman/beef-and-business/consider-cow-needs-weaning https://extension.umd.edu/resource/weaning-tips-and-vaccination-programs-beef-calves https://www.agribeef.com/blog/cattle-weaning-why-do-we-have-to-wean-our-cattle/
C15: cattle | D15: Beef | F15: M | K15: =6*30 -> 180 | L15: ERROR
C16: cattle | D16: Beef | E16: BH | F16: M | G16: > 1 year | H16: adult | K16: 366 | L16: 454 | M16: Jurgens, 1972 | N16: Cattle reach sexual maturity around 7 to 10 months but are not bred until 13 to 15 months or even older, depending on what they are raised for | O16: multiple: https://www.wikihow.com/Know-when-a-Heifer-or-Cow-Is-Ready-to-Be-Bred#:~:text=Even%20though%20the%20early%20maturing%20breeds%20do%20reach,of%20age%20before%20you%20can%20breed%20them.%20 https://www.how-to-raise-livestock.com/long-take-cow-mature/
C17: cattle | D17: Beef | F17: M | K17: 25550 | L17: ERROR
C18: cattle | D18: Beef | E18: BH | F18: F | G18: weaning | H18: juvenile | K18: 140 | L18: 220 | M18: Jurgens, 1972 | N18: Weaning occurs anywhere from 45 to 305 days, depending on the farming practices used; ideal/typical seems to be about 6-8 months, and recommendation is not less than 140 days (https://www.beefmagazine.com/weaning/when-best-time-wean-it-might-be-younger-you-think) | O18: multiple: https://extension.oregonstate.edu/animals-livestock/beef/strategies-easing-weaning-process-beef-calves https://beef.unl.edu/cattleproduction/earlyweaning https://www.beefmagazine.com/weaning/when-best-time-wean-it-might-be-younger-you-think https://agreenerworld.org/wp-content/uploads/2018/05/TAFS-21-Weaning-Age-in-Beef-Cattle-v1.pdf https://www.beefmagazine.com/americancowman/beef-and-business/consider-cow-needs-weaning https://extension.umd.edu/resource/weaning-tips-and-vaccination-programs-beef-calves https://www.agribeef.com/blog/cattle-weaning-why-do-we-have-to-wean-our-cattle/
C19: cattle | D19: Beef | F19: F | K19: =6*30 -> 180 | L19: ERROR
C20: cattle | D20: Beef | E20: F | F20: F | G20: Lactating/> 1 year | H20: lactation | K20: 366 | L20: 454 | M20: Jurgens, 1972 | N20: Age=Pregnant, Lifestage = gestation excluded (409kg); Cattle reach sexual maturity around 7 to 10 months but are not bred until 13 to 15 months or even older, depending on what they are raised for | O20: multiple: https://www.wikihow.com/Know-when-a-Heifer-or-Cow-Is-Ready-to-Be-Bred#:~:text=Even%20though%20the%20early%20maturing%20breeds%20do%20reach,of%20age%20before%20you%20can%20breed%20them.%20 https://www.how-to-raise-livestock.com/long-take-cow-mature/
C21: cattle | D21: Beef | F21: F | K21: 25550 | L21: ERROR
C22: cattle | D22: Beef | E22: BH | F22: B | G22: weaning | H22: juvenile | K22: 140 | L22: 220 | M22: Jurgens, 1972 | N22: Weaning occurs anywhere from 45 to 305 days, depending on the farming practices used; ideal/typical seems to be about 6-8 months, and recommendation is not less than 140 days (https://www.beefmagazine.com/weaning/when-best-time-wean-it-might-be-younger-you-think) | O22: multiple: https://extension.oregonstate.edu/animals-livestock/beef/strategies-easing-weaning-process-beef-calves https://beef.unl.edu/cattleproduction/earlyweaning https://www.beefmagazine.com/weaning/when-best-time-wean-it-might-be-younger-you-think https://agreenerworld.org/wp-content/uploads/2018/05/TAFS-21-Weaning-Age-in-Beef-Cattle-v1.pdf https://www.beefmagazine.com/americancowman/beef-and-business/consider-cow-needs-weaning https://extension.umd.edu/resource/weaning-tips-and-vaccination-programs-beef-calves https://www.agribeef.com/blog/cattle-weaning-why-do-we-have-to-wean-our-cattle/
C23: cattle | D23: Beef | F23: B | K23: =6*30 -> 180 | L23: ERROR
C24: cattle | D24: Beef | E24: BH | F24: B | G24: > 1 year | H24: Adult | K24: 366 | L24: 454 | M24: Jurgens, 1972 | N24: Cattle reach sexual maturity around 7 to 10 months but are not bred until 13 to 15 months or even older, depending on what they are raised for | O24: multiple: https://www.wikihow.com/Know-when-a-Heifer-or-Cow-Is-Ready-to-Be-Bred#:~:text=Even%20though%20the%20early%20maturing%20breeds%20do%20reach,of%20age%20before%20you%20can%20breed%20them.%20 https://www.how-to-raise-livestock.com/long-take-cow-mature/
C25: cattle | D25: Beef | F25: B | K25: 25550 | L25: ERROR
C26: cattle | D26: Fresian | E26: F | F26: F | G26: 10 months | H26: juvenile | K26: 300 | L26: 99 | M26: Maro et al., 1980
C27: cattle | D27: Fresian | E27: F | F27: F | K27: 331 | L27: ERROR
C28: cattle | D28: Holstein | E28: F | F28: F | G28: Lactating, 58 months | H28: Adult | K28: =58*30 -> 1740 | L28: 680 | M28: NRC (2001)
C29: cattle | D29: Holstein | E29: F | F29: F | K29: 25550 | L29: ERROR
C30: cattle | D30: Jersey | E30: F | F30: F | G30: Lactating, 58 months | H30: Adult | K30: =58*30 -> 1740 | L30: 454 | M30: NRC (2001)
C31: cattle | D31: Jersey | E31: F | F31: F | K31: 25550 | L31: ERROR
C32: cattle | D32: unspecified | F32: M | K32: 3 | L32: 67
C33: cattle | D33: unspecified | E33: BH | F33: M | G33: 3 to 7 days | H33: juvenile | K33: 8 | L33: ERROR | M33: USEPA, 2005
C34: cattle | D34: unspecified | F34: M | K34: =6*7-1 -> 41 | L34: ERROR
C35: cattle | D35: unspecified | E35: BH | F35: M | G35: 6 to 8 weeks | H35: juvenile | K35: =6*7 -> 42 | L35: 119 | M35: USEPA, 2005
C36: cattle | D36: unspecified | E36: BH | F36: M | G36: 8 to 10 weeks | H36: juvenile | K36: =8*7 -> 56 | L36: 137 | M36: USEPA, 2005
C37: cattle | D37: unspecified | F37: M | K37: =11*7 -> 77 | L37: ERROR
C38: cattle | D38: unspecified | E38: BH | F38: M | G38: 13 to 16 weeks | H38: juvenile | K38: =13*7 -> 91 | L38: 198 | M38: USEPA, 2005
C39: cattle | D39: unspecified | F39: M | K39: =17*7 -> 119 | L39: ERROR
C40: cattle | D40: unspecified | E40: BH | F40: M | G40: 22 to 51 weeks | H40: juvenile | K40: =22*7 -> 154 | L40: 260 | M40: USEPA, 2005
C41: cattle | D41: unspecified | E41: BH | F41: M | K41: =52*7 -> 364 | L41: ERROR | M41: Jurgens, 1972
C42: cattle | D42: unspecified | F42: F | K42: 3 | L42: 67
C43: cattle | D43: unspecified | E43: BH | F43: F | G43: 3 to 7 days | H43: juvenile | K43: 8 | L43: ERROR | M43: USEPA, 2005
C44: cattle | D44: unspecified | F44: F | K44: =6*7-1 -> 41 | L44: ERROR
C45: cattle | D45: unspecified | E45: BH | F45: F | G45: 6 to 8 weeks | H45: juvenile | K45: =6*7 -> 42 | L45: 119 | M45: USEPA, 2005
C46: cattle | D46: unspecified | E46: BH | F46: F | G46: 8 to 10 weeks | H46: juvenile | K46: =8*7 -> 56 | L46: 137 | M46: USEPA, 2005
C47: cattle | D47: unspecified | F47: F | K47: =11*7 -> 77 | L47: ERROR
C48: cattle | D48: unspecified | E48: BH | F48: F | G48: 13 to 16 weeks | H48: juvenile | K48: =13*7 -> 91 | L48: 198 | M48: USEPA, 2005
C49: cattle | D49: unspecified | F49: F | K49: =17*7 -> 119 | L49: ERROR
C50: cattle | D50: unspecified | E50: BH | F50: F | G50: 22 to 51 weeks | H50: juvenile | K50: =22*7 -> 154 | L50: 260 | M50: USEPA, 2005
C51: cattle | D51: unspecified | E51: BH | F51: F | K51: =52*7 -> 364 | L51: ERROR | M51: Jurgens, 1972
C52: cattle | D52: unspecified | F52: B | K52: 3 | L52: 67
C53: cattle | D53: unspecified | E53: BH | F53: B | G53: 3 to 7 days | H53: juvenile | K53: 8 | L53: ERROR | M53: USEPA, 2005
C54: cattle | D54: unspecified | F54: B | K54: =6*7-1 -> 41 | L54: ERROR
C55: cattle | D55: unspecified | E55: BH | F55: B | G55: 6 to 8 weeks | H55: juvenile | K55: =6*7 -> 42 | L55: 119 | M55: USEPA, 2005
C56: cattle | D56: unspecified | E56: BH | F56: B | G56: 8 to 10 weeks | H56: juvenile | K56: =8*7 -> 56 | L56: 137 | M56: USEPA, 2005
C57: cattle | D57: unspecified | F57: B | K57: =11*7 -> 77 | L57: ERROR
C58: cattle | D58: unspecified | E58: BH | F58: B | G58: 13 to 16 weeks | H58: juvenile | K58: =13*7 -> 91 | L58: 198 | M58: USEPA, 2005
C59: cattle | D59: unspecified | F59: B | K59: =17*7 -> 119 | L59: ERROR
C60: cattle | D60: unspecified | E60: BH | F60: B | G60: 22 to 51 weeks | H60: juvenile | K60: =22*7 -> 154 | L60: 260 | M60: USEPA, 2005
C61: cattle | D61: unspecified | E61: BH | F61: B | K61: =52*7 -> 364 | L61: ERROR | M61: Jurgens, 1972
C62: chicken | D62: domestic | E62: BH | F62: M | G62: 1 day | H62: juvenile | K62: 1 | L62: 0.0397 | M62: Diaz et al 1994
C63: chicken | D63: domestic | F63: M | K63: 2 | L63: ERROR
C64: chicken | D64: domestic | E64: BH | F64: M | G64: 3 days | H64: juvenile | K64: 3 | L64: 0.0543 | M64: Franson and Custer, 1982
C65: chicken | D65: domestic | F65: M | K65: 4 | L65: ERROR
C66: chicken | D66: domestic | E66: BH | F66: M | G66: 7 days | H66: juvenile | K66: 7 | L66: 0.084 | M66: Southern and Baker, 1981
C67: chicken | D67: domestic | F67: M | K67: 8 | L67: ERROR
C68: chicken | D68: domestic | E68: BH | F68: M | G68: 14 days | H68: juvenile | K68: 14 | L68: 0.328 | M68: Southern and Baker, 1981
C69: chicken | D69: domestic | F69: M | K69: 15 | L69: ERROR
C70: chicken | D70: domestic | E70: BH | F70: M | G70: 20 days | H70: juvenile | K70: 20 | L70: 0.564 | M70: Donaldson and McGowan, 1989
C71: chicken | D71: domestic | F71: M | K71: 21 | L71: ERROR
C72: chicken | D72: domestic | E72: BH | F72: M | G72: 28 days | H72: juvenile | K72: 28 | L72: 1.042 | M72: Diaz et al., 1994
C73: chicken | D73: domestic | F73: M | K73: 29 | L73: ERROR
C74: chicken | D74: domestic | E74: BH | F74: F | G74: 1 day | H74: juvenile | K74: 1 | L74: 0.0397 | M74: Diaz et al 1994
C75: chicken | D75: domestic | F75: F | K75: 2 | L75: ERROR
C76: chicken | D76: domestic | E76: BH | F76: F | G76: 3 days | H76: juvenile | K76: 3 | L76: 0.0543 | M76: Franson and Custer, 1982
C77: chicken | D77: domestic | F77: F | K77: 4 | L77: ERROR
C78: chicken | D78: domestic | E78: BH | F78: F | G78: 7 days | H78: juvenile | K78: 7 | L78: 0.084 | M78: Southern and Baker, 1981
C79: chicken | D79: domestic | F79: F | K79: 8 | L79: ERROR
C80: chicken | D80: domestic | E80: BH | F80: F | G80: 14 days | H80: juvenile | K80: 14 | L80: 0.328 | M80: Southern and Baker, 1981
C81: chicken | D81: domestic | F81: F | K81: 15 | L81: ERROR
C82: chicken | D82: domestic | E82: BH | F82: F | G82: 20 days | H82: juvenile | K82: 20 | L82: 0.564 | M82: Donaldson and McGowan, 1989
C83: chicken | D83: domestic | F83: F | K83: 21 | L83: ERROR
C84: chicken | D84: domestic | E84: BH | F84: F | G84: 28 days | H84: juvenile | K84: 28 | L84: 1.042 | M84: Diaz et al., 1994
C85: chicken | D85: domestic | F85: F | K85: 29 | L85: ERROR
C86: chicken | D86: domestic | E86: BH | F86: B | G86: 1 day | H86: juvenile | K86: 1 | L86: 0.0397 | M86: Diaz et al 1994
C87: chicken | D87: domestic | F87: B | K87: 2 | L87: ERROR
C88: chicken | D88: domestic | E88: BH | F88: B | G88: 3 days | H88: juvenile | K88: 3 | L88: 0.0543 | M88: Franson and Custer, 1982
C89: chicken | D89: domestic | F89: B | K89: 4 | L89: ERROR
C90: chicken | D90: domestic | E90: BH | F90: B | G90: 7 days | H90: juvenile | K90: 7 | L90: 0.084 | M90: Southern and Baker, 1981
C91: chicken | D91: domestic | F91: B | K91: 8 | L91: ERROR
C92: chicken | D92: domestic | E92: BH | F92: B | G92: 14 days | H92: juvenile | K92: 14 | L92: 0.328 | M92: Southern and Baker, 1981
C93: chicken | D93: domestic | F93: B | K93: 15 | L93: ERROR
C94: chicken | D94: domestic | E94: BH | F94: B | G94: 20 days | H94: juvenile | K94: 20 | L94: 0.564 | M94: Donaldson and McGowan, 1989
C95: chicken | D95: domestic | F95: B | K95: 21 | L95: ERROR
C96: chicken | D96: domestic | E96: BH | F96: B | G96: 28 days | H96: juvenile | K96: 28 | L96: 1.042 | M96: Diaz et al., 1994
C97: chicken | D97: domestic | F97: B | K97: 29 | L97: ERROR
C98: chicken | D98: unspecified | E98: M | F98: M | G98: Older than 30 days | H98: adult | K98: 31 | L98: 1.3 | M98: Donaldson and McGowan, 1989
C99: chicken | D99: unspecified | F99: M | K99: 25550 | L99: ERROR
C100: chicken | D100: unspecified | E100: F | F100: F | G100: Older than 30 days | H100: adult | K100: 31 | L100: 1.6 | M100: Donaldson and McGowan, 1989
C101: chicken | D101: unspecified | F101: F | K101: 25550 | L101: ERROR
C102: chicken | D102: unspecified | E102: F | F102: B | G102: Older than 30 days | H102: adult | K102: 31 | L102: 1.6 | M102: Donaldson and McGowan, 1989
C103: chicken | D103: unspecified | F103: B | K103: 25550 | L103: ERROR
C104: dog | D104: unspecified | E104: M | F104: M | G104: weaning to 90 days | K104: 21 | L104: 2.4 | N104: It is important to note that while weaning begins at 3 to 4 weeks, puppies are not completely weaned until 6 to 8 weeks. Most breeds reach sexual maturity between 6 and 18 months, with full sexual maturity around 1 yr. | O104: multiple: https://www.petmd.com/dog/puppycenter/nutrition/evr_dg_weaning_puppies_from_their_mother#:~:text=The%20weaning%20process%20should%20begin%20at%203-4%20weeks,will%20naturally%20seek%20an%20alternate%20source%20of%20food. https://winpropet.com/blogs/news/weaning-puppies https://ourpetshealth.com/info/how-to-wean-a-puppy https://proactivepetproducts.com/weaning-in-dog-puppies/ https://vcahospitals.com/know-your-pet/breeding-for-dog-owners-caring-from-birth-to-weaning
C105: dog | D105: unspecified | E105: M | F105: M | G105: 90 days to 1 year | H105: juvenile | K105: 90 | L105: 10.8 | M105: USEPA, 1987
C106: dog | D106: unspecified | E106: M | F106: M | G106: 1 year or older | H106: sexually mature | K106: 366 | L106: 14 | M106: USEPA, 1987
C107: dog | D107: unspecified | E107: M | F107: M | H107: adult | K107: 25550 | L107: ERROR | M107: USEPA, 1987
C108: dog | D108: unspecified | E108: F | F108: F | G108: weaning to 90 days | K108: =3*7 -> 21 | L108: 1.97 | N108: It is important to note that while weaning begins at 3 to 4 weeks, puppies are not completely weaned until 6 to 8 weeks. Most breeds reach sexual maturity between 6 and 18 months, with full sexual maturity around 1 yr. | O108: multiple: https://www.petmd.com/dog/puppycenter/nutrition/evr_dg_weaning_puppies_from_their_mother#:~:text=The%20weaning%20process%20should%20begin%20at%203-4%20weeks,will%20naturally%20seek%20an%20alternate%20source%20of%20food. https://winpropet.com/blogs/news/weaning-puppies https://ourpetshealth.com/info/how-to-wean-a-puppy https://proactivepetproducts.com/weaning-in-dog-puppies/ https://vcahospitals.com/know-your-pet/breeding-for-dog-owners-caring-from-birth-to-weaning
C109: dog | D109: unspecified | E109: F | F109: F | G109: 90 days to 1 year | H109: juvenile | K109: 90 | L109: 10.1 | M109: USEPA, 1987
C110: dog | D110: unspecified | E110: F | F110: F | G110: 1 year or older | H110: sexually mature | K110: 366 | L110: 14 | M110: USEPA, 1987 | O110: multiple: https://www.guidedog.org/PuppyRaising/PuppyRaiserManual/CareAndHealth/Sexual_Maturity.aspx https://www.akc.org/expert-advice/health/sexual-maturity-in-puppies-what-to-expect/ https://newdogowners.com/when-does-a-dog-become-sexually-active/ https://pmcofedmond.com/pet-education/puppy-dog-vet/dog-stages-of-life/
C111: dog | D111: unspecified | E111: F | F111: F | H111: adult | K111: 25550 | L111: ERROR | M111: USEPA, 1987
C112: dog | D112: unspecified | E112: M | F112: B | G112: weaning to 90 days | K112: 21 | L112: 2.4 | N112: It is important to note that while weaning begins at 3 to 4 weeks, puppies are not completely weaned until 6 to 8 weeks. Most breeds reach sexual maturity between 6 and 18 months, with full sexual maturity around 1 yr. | O112: multiple: https://www.petmd.com/dog/puppycenter/nutrition/evr_dg_weaning_puppies_from_their_mother#:~:text=The%20weaning%20process%20should%20begin%20at%203-4%20weeks,will%20naturally%20seek%20an%20alternate%20source%20of%20food. https://winpropet.com/blogs/news/weaning-puppies https://ourpetshealth.com/info/how-to-wean-a-puppy https://proactivepetproducts.com/weaning-in-dog-puppies/ https://vcahospitals.com/know-your-pet/breeding-for-dog-owners-caring-from-birth-to-weaning
C113: dog | D113: unspecified | E113: M | F113: B | G113: 90 days to 1 year | H113: juvenile | K113: 90 | L113: 10.8 | M113: USEPA, 1987
C114: dog | D114: unspecified | E114: M | F114: B | G114: 1 year or older | H114: sexually mature | K114: 366 | L114: 14 | M114: USEPA, 1987 | O114: multiple: https://www.guidedog.org/PuppyRaising/PuppyRaiserManual/CareAndHealth/Sexual_Maturity.aspx https://www.akc.org/expert-advice/health/sexual-maturity-in-puppies-what-to-expect/ https://newdogowners.com/when-does-a-dog-become-sexually-active/ https://pmcofedmond.com/pet-education/puppy-dog-vet/dog-stages-of-life/
C115: dog | D115: unspecified | E115: M | F115: B | H115: adult | K115: 25550 | L115: ERROR | M115: USEPA, 1987
C116: dove | D116: ringed turtle | E116: B | F116: B | G116: 0 days | H116: juvenile | K116: 0 | L116: 0.01 | M116: Carriere et al., 1986
C117: dove | D117: ringed turtle | F117: B | K117: 1 | L117: ERROR
C118: dove | D118: ringed turtle | E118: B | F118: B | G118: 7 days | H118: juvenile | K118: 7 | L118: 0.057 | M118: Carriere et al., 1986; Kendall and Scanlon, 1981
C119: dove | D119: ringed turtle | F119: B | K119: 8 | L119: ERROR
C120: dove | D120: ringed turtle | E120: B | F120: B | G120: 14 days | H120: juvenile | K120: 14 | L120: 0.092 | M120: Carriere et al., 1986; Kendall and Scanlon, 1981
C121: dove | D121: ringed turtle | F121: B | K121: 15 | L121: ERROR
C122: dove | D122: ringed turtle | E122: B | F122: B | G122: 21 days | H122: juvenile | K122: 21 | L122: 0.117 | M122: Carriere et al., 1986; Kendall and Scanlon, 1981
C123: dove | D123: ringed turtle | F123: B | K123: 22 | L123: ERROR
C124: dove | D124: ringed turtle | E124: B | F124: B | G124: 28 days | H124: juvenile | K124: 28 | L124: 0.134 | M124: Carriere et al., 1986
C125: dove | D125: ringed turtle | E125: B | F125: B | G125: Adult | H125: adult | K125: 29 | L125: 0.144 | M125: Carriere et al., 1986; Kendall and Scanlon, 1981; Keith and Mitchell, 1993
C126: dove | D126: ringed turtle | E126: B | F126: B | K126: 25550 | L126: ERROR
C127: dove | D127: ringed turtle | E127: B | F127: M | G127: 0 days | H127: juvenile | K127: 0 | L127: 0.01 | M127: Carriere et al., 1986
C128: dove | D128: ringed turtle | F128: M | K128: 1 | L128: ERROR
C129: dove | D129: ringed turtle | E129: B | F129: M | G129: 7 days | H129: juvenile | K129: 7 | L129: 0.057 | M129: Carriere et al., 1986; Kendall and Scanlon, 1981
C130: dove | D130: ringed turtle | F130: M | K130: 8 | L130: ERROR
C131: dove | D131: ringed turtle | E131: B | F131: M | G131: 14 days | H131: juvenile | K131: 14 | L131: 0.092 | M131: Carriere et al., 1986; Kendall and Scanlon, 1981
C132: dove | D132: ringed turtle | F132: M | K132: 15 | L132: ERROR
C133: dove | D133: ringed turtle | E133: B | F133: M | G133: 21 days | H133: juvenile | K133: 21 | L133: 0.117 | M133: Carriere et al., 1986; Kendall and Scanlon, 1981
C134: dove | D134: ringed turtle | F134: M | K134: 22 | L134: ERROR
C135: dove | D135: ringed turtle | E135: B | F135: M | G135: 28 days | H135: juvenile | K135: 28 | L135: 0.134 | M135: Carriere et al., 1986
C136: dove | D136: ringed turtle | E136: B | F136: M | G136: Adult | H136: adult | K136: 29 | L136: 0.144 | M136: Carriere et al., 1986; Kendall and Scanlon, 1981; Keith and Mitchell, 1993
C137: dove | D137: ringed turtle | E137: B | F137: M | K137: 25550 | L137: ERROR
C138: dove | D138: ringed turtle | E138: B | F138: F | G138: 0 days | H138: juvenile | K138: 0 | L138: 0.01 | M138: Carriere et al., 1986
C139: dove | D139: ringed turtle | F139: F | K139: 1 | L139: ERROR
C140: dove | D140: ringed turtle | E140: B | F140: F | G140: 7 days | H140: juvenile | K140: 7 | L140: 0.057 | M140: Carriere et al., 1986; Kendall and Scanlon, 1981
C141: dove | D141: ringed turtle | F141: F | K141: 8 | L141: ERROR
C142: dove | D142: ringed turtle | E142: B | F142: F | G142: 14 days | H142: juvenile | K142: 14 | L142: 0.092 | M142: Carriere et al., 1986; Kendall and Scanlon, 1981
C143: dove | D143: ringed turtle | F143: F | K143: 15 | L143: ERROR
C144: dove | D144: ringed turtle | E144: B | F144: F | G144: 21 days | H144: juvenile | K144: 21 | L144: 0.117 | M144: Carriere et al., 1986; Kendall and Scanlon, 1981
C145: dove | D145: ringed turtle | F145: F | K145: 22 | L145: ERROR
C146: dove | D146: ringed turtle | E146: B | F146: F | G146: 28 days | H146: juvenile | K146: 28 | L146: 0.134 | M146: Carriere et al., 1986
C147: dove | D147: ringed turtle | E147: B | F147: F | G147: Adult | H147: adult | K147: 29 | L147: 0.144 | M147: Carriere et al., 1986; Kendall and Scanlon, 1981; Keith and Mitchell, 1993
C148: dove | D148: ringed turtle | E148: B | F148: F | K148: 25550 | L148: ERROR
C149: duck | D149: mallard | E149: JV | F149: F | G149: 10 days | H149: juvenile | K149: 10 | L149: 0.092
C150: duck | D150: mallard | F150: F | K150: 11 | L150: ERROR
C151: duck | D151: mallard | E151: JV | F151: F | G151: 30 days | H151: juvenile | K151: 30 | L151: 0.46 | M151: USEPA, 1993
C152: duck | D152: mallard | F152: F | K152: 31 | L152: ERROR
C153: duck | D153: mallard | E153: F | F153: F | G153: Adult | H153: adult | K153: =12*7 -> 84 | L153: 1.1 | M153: USEPA, 1993 | N153: Resource sindicate mallards reach adulthood at 14 months (426 days) | O153: https://en.wikipedia.org/wiki/Mallard#:~:text=The%20adulthood%20age%20for%20mallards%20is%20fourteen%20months%2C,that%20can%20be%20confused%20with%20the%20female%20mallard.
C154: duck | D154: mallard | F154: F | K154: 25550 | L154: ERROR | M154: USEPA, 1993 | N154: This resource says 12 to 14 weeks | O154: How Long Does It Take for Mallards to Mature? (mom.com)
C155: duck | D155: mallard | E155: JV | F155: M | G155: 10 days | H155: juvenile | K155: 10 | L155: 0.092
C156: duck | D156: mallard | F156: M | K156: 11 | L156: ERROR
C157: duck | D157: mallard | E157: JV | F157: M | G157: 30 days | H157: juvenile | K157: 30 | L157: 0.46 | M157: USEPA, 1993
C158: duck | D158: mallard | F158: M | K158: 31 | L158: ERROR
C159: duck | D159: mallard | E159: M | F159: M | G159: Adult | H159: adult | K159: =12*7 -> 84 | L159: 1.2 | M159: USEPA, 1993 | N159: Resourcesindicate mallards reach adulthood at 14 months (426 days) | O159: https://en.wikipedia.org/wiki/Mallard#:~:text=The%20adulthood%20age%20for%20mallards%20is%20fourteen%20months%2C,that%20can%20be%20confused%20with%20the%20female%20mallard.
C160: duck | D160: mallard | F160: M | K160: 25550 | L160: ERROR | M160: USEPA, 1993 | N160: This resource says 12 to 14 weeks | O160: How Long Does It Take for Mallards to Mature? (mom.com)
C161: duck | D161: mallard | E161: JV | F161: B | G161: 10 days | H161: juvenile | K161: 10 | L161: 0.092
C162: duck | D162: mallard | F162: B | K162: 11 | L162: ERROR
C163: duck | D163: mallard | E163: JV | F163: B | G163: 30 days | H163: juvenile | K163: 30 | L163: 0.46 | M163: USEPA, 1993
C164: duck | D164: mallard | F164: B | K164: 31 | L164: ERROR
C165: duck | D165: mallard | E165: M | F165: B | G165: Adult | H165: adult | K165: =12*7 -> 84 | L165: 1.2 | M165: USEPA, 1993 | N165: Resourcesindicate mallards reach adulthood at 14 months (426 days) | O165: https://en.wikipedia.org/wiki/Mallard#:~:text=The%20adulthood%20age%20for%20mallards%20is%20fourteen%20months%2C,that%20can%20be%20confused%20with%20the%20female%20mallard.
C166: duck | D166: mallard | F166: B | K166: 25550 | L166: ERROR | M166: USEPA, 1993 | N166: This resource says 12 to 14 weeks | O166: How Long Does It Take for Mallards to Mature? (mom.com)
C167: duck | D167: white pekin | E167: B | F167: F | G167: 0 days | H167: juvenile | K167: 0 | L167: 0.06 | M167: NRC, 1994
C168: duck | D168: white pekin | F168: F | K168: 1 | L168: ERROR
C169: duck | D169: white pekin | E169: B | F169: F | G169: 7 days | H169: juvenile | K169: 7 | L169: 0.27 | M169: NRC, 1994
C170: duck | D170: white pekin | F170: F | K170: 8 | L170: ERROR
C171: duck | D171: white pekin | E171: F | F171: F | G171: 14 days | H171: juvenile | K171: 14 | L171: 0.74 | M171: NRC, 1994
C172: duck | D172: white pekin | F172: F | K172: 15 | L172: ERROR
C173: duck | D173: white pekin | E173: F | F173: F | G173: 21 days | H173: juvenile | K173: 21 | L173: 1.28 | M173: NRC, 1994
C174: duck | D174: white pekin | F174: F | K174: 22 | L174: ERROR
C175: duck | D175: white pekin | E175: F | F175: F | G175: 28 days | H175: juvenile | K175: 28 | L175: 1.82 | M175: NRC, 1994
C176: duck | D176: white pekin | F176: F | K176: 29 | L176: ERROR
C177: duck | D177: white pekin | E177: F | F177: F | G177: 35 days | H177: juvenile | K177: 35 | L177: 2.3 | M177: NRC, 1994
C178: duck | D178: white pekin | F178: F | K178: 36 | L178: ERROR
C179: duck | D179: white pekin | E179: F | F179: F | G179: 42 days | H179: juvenile | K179: 42 | L179: 2.73 | M179: NRC, 1994
C180: duck | D180: white pekin | F180: F | K180: 43 | L180: ERROR
C181: duck | D181: white pekin | E181: F | F181: F | G181: 49 days | H181: juvenile | K181: 49 | L181: 3.06 | M181: NRC, 1994
C182: duck | D182: white pekin | F182: F | K182: 50 | L182: ERROR
C183: duck | D183: white pekin | E183: F | F183: F | G183: 56 days | H183: juvenile | K183: 56 | L183: 3.29 | M183: NRC, 1994
C184: duck | D184: white pekin | F184: F | K184: 57 | L184: ERROR
C185: duck | D185: white pekin | E185: B | F185: M | G185: 0 days | H185: juvenile | K185: 0 | L185: 0.06 | M185: NRC, 1994
C186: duck | D186: white pekin | F186: M | K186: 1 | L186: ERROR
C187: duck | D187: white pekin | E187: B | F187: M | G187: 7 days | H187: juvenile | K187: 7 | L187: 0.27 | M187: NRC, 1994
C188: duck | D188: white pekin | F188: M | K188: 8 | L188: ERROR
C189: duck | D189: white pekin | E189: M | F189: M | G189: 14 days | H189: juvenile | K189: 14 | L189: 0.78 | M189: NRC, 1994
C190: duck | D190: white pekin | F190: M | K190: 15 | L190: ERROR
C191: duck | D191: white pekin | E191: M | F191: M | G191: 21 days | H191: juvenile | K191: 21 | L191: 1.38 | M191: NRC, 1994
C192: duck | D192: white pekin | F192: M | K192: 22 | L192: ERROR
C193: duck | D193: white pekin | E193: M | F193: M | G193: 28 days | H193: juvenile | K193: 28 | L193: 1.96 | M193: NRC, 1994
C194: duck | D194: white pekin | F194: M | K194: 29 | L194: ERROR
C195: duck | D195: white pekin | E195: M | F195: M | G195: 35 days | H195: juvenile | K195: 35 | L195: 2.49 | M195: NRC, 1994
C196: duck | D196: white pekin | F196: M | K196: 36 | L196: ERROR
C197: duck | D197: white pekin | E197: M | F197: M | G197: 42 days | H197: juvenile | K197: 42 | L197: 2.96 | M197: NRC, 1994
C198: duck | D198: white pekin | F198: M | K198: 43 | L198: ERROR
C199: duck | D199: white pekin | E199: M | F199: M | G199: 49 days | H199: juvenile | K199: 49 | L199: 3.34 | M199: NRC, 1994
C200: duck | D200: white pekin | F200: M | K200: 50 | L200: ERROR
... 531 more rows

Sheet Default BW IR-Formatted by LS (hidden)
C1: Table 20. Default Body Weights | T1: For "Male" or "Femaile" - by Lifestage | AC1: For "Both" - by Lifestage
A2: Nagy 2001 Group | B2: Comments | C2: General Organism Type | D2: Specific Organism Type | E2: Sex | F2: SRC_Sex | G2: Age | H2: Lifestage | I2: SRC_Lifestage | J2: Default BW (kg) | K2: Reference | L2: BW (g) | M2: a | N2: b | O2: BWb | P2: FIR (g FMI/day) | Q2: Default FIR (kg/day) | X2: Values | AF2: Values
A3: Carnivora | C3: cat | D3: unspecified | E3: M | F3: M | G3: weaning to 90 days | H3: juvenile | I3: juvenile | J3: 1.72 | K3: USEPA, 1987 | L3: =J3*1000 -> 1720 | M3: 0.348 | N3: 0.859 | O3: =L3^N3 -> 601.6153878 | P3: =M3*O3 -> 209.362155 | Q3: =P3/1000 -> 0.209362155 | S3: Lookup | T3: General Organism Type | U3: Specific Organism Type | V3: SRC_Sex | W3: SRC_Lifestage | X3: Max of Default BW (kg) | Y3: Max of Default FIR (kg/day) | AB3: Lookup | AC3: General Organism Type | AD3: Specific Organism Type | AE3: SRC_Lifestage | AF3: Max of Default BW (kg) | AG3: Max of Default FIR (kg/day)
A4: Carnivora | C4: cat | D4: unspecified | E4: M | F4: M | G4: 90 days to 1 year | H4: sexually mature | I4: juvenile | J4: 3.66 | K4: USEPA, 1987 | L4: =J4*1000 -> 3660 | M4: 0.348 | N4: 0.859 | O4: =L4^N4 -> 1150.880555 | P4: =M4*O4 -> 400.5064331 | Q4: =P4/1000 -> 0.4005064331 | S4: =T4&U4&V4&W4 -> catunspecifiedFadult | T4: cat | U4: unspecified | V4: F | W4: adult | X4: 3.1 | Y4: 0.3472633408 | AB4: =AC4&AD4&AE4 -> catunspecifiedadult | AC4: cat | AD4: unspecified | AE4: adult | AF4: 4 | AG4: 0.4322637099
A5: Carnivora | C5: cat | D5: unspecified | E5: M | F5: M | G5: 1 year or older | H5: adult | I5: adult | J5: 4 | K5: USEPA, 1987 | L5: =J5*1000 -> 4000 | M5: 0.348 | N5: 0.859 | O5: 1242.137097 | P5: 432.2637099 | Q5: 0.4322637099 | S5: =T5&U5&V5&W5 -> catunspecifiedFjuvenile | T5: cat | U5: unspecified | V5: F | W5: juvenile | X5: 2.96 | Y5: 0.3337481167 | AB5: =AC5&AD5&AE5 -> catunspecifiedjuvenile | AC5: cat | AD5: unspecified | AE5: juvenile | AF5: 3.66 | AG5: 0.4005064331
A6: Carnivora | C6: cat | D6: unspecified | E6: F | F6: F | G6: weaning to 90 days | H6: juvenile | I6: juvenile | J6: 1.49 | K6: USEPA, 1987 | L6: 1490 | M6: 0.348 | N6: 0.859 | O6: 531.8228641 | P6: 185.0743567 | Q6: 0.1850743567 | S6: catunspecifiedMadult | T6: cat | U6: unspecified | V6: M | W6: adult | X6: 4 | Y6: 0.4322637099 | AB6: cattleBeefadult | AC6: cattle | AD6: Beef | AE6: adult | AF6: 454 | AG6: 9.302624413
A7: Carnivora | C7: cat | D7: unspecified | E7: F | F7: F | G7: 90 days to 1 year | H7: sexually mature | I7: juvenile | J7: 2.96 | K7: USEPA, 1987 | L7: 2960 | M7: 0.348 | N7: 0.859 | O7: 959.0463124 | P7: 333.7481167 | Q7: 0.3337481167 | S7: catunspecifiedMjuvenile | T7: cat | U7: unspecified | V7: M | W7: juvenile | X7: 3.66 | Y7: 0.4005064331 | AB7: cattleBeefjuvenile | AC7: cattle | AD7: Beef | AE7: juvenile | AF7: 220 | AG7: 5.902226272
A8: Carnivora | C8: cat | D8: unspecified | E8: F | F8: F | G8: 1 year or older | H8: adult | I8: adult | J8: 3.1 | K8: USEPA, 1987 | L8: 3100 | M8: 0.348 | N8: 0.859 | O8: 997.8831631 | P8: 347.2633408 | Q8: 0.3472633408 | S8: cattleBeefFadult | T8: cattle | U8: Beef | V8: F | W8: adult | X8: 454 | Y8: 9.302624413 | AB8: cattleFresianjuvenile | AC8: cattle | AD8: Fresian | AE8: juvenile | AF8: 99 | AG8: 3.574648254
A9: Herbivores | C9: cattle | D9: unspecified | E9: BH | F9: B | G9: 3 to 7 days | H9: juvenile | I9: juvenile | J9: 67 | K9: USEPA, 2005 | L9: 67000 | M9: 2.606 | N9: 0.628 | O9: 1073.433083 | P9: 2797.366615 | Q9: 2.797366615 | S9: cattleFresianFjuvenile | T9: cattle | U9: Fresian | V9: F | W9: juvenile | X9: 99 | Y9: 3.574648254 | AB9: cattleHolsteinadult | AC9: cattle | AD9: Holstein | AE9: adult | AF9: 680 | AG9: 11.98919458
A10: Herbivores | C10: cattle | D10: unspecified | E10: BH | F10: B | G10: 6 to 8 weeks | H10: juvenile | I10: juvenile | J10: 119 | K10: USEPA, 2005 | L10: 119000 | M10: 2.606 | N10: 0.628 | O10: 1539.726171 | P10: 4012.526403 | Q10: 4.012526403 | S10: cattleHolsteinFadult | T10: cattle | U10: Holstein | V10: F | W10: adult | X10: 680 | Y10: 11.98919458 | AB10: cattleJerseyadult | AC10: cattle | AD10: Jersey | AE10: adult | AF10: 454 | AG10: 9.302624413
A11: Herbivores | C11: cattle | D11: unspecified | E11: BH | F11: B | G11: 8 to 10 weeks | H11: juvenile | I11: juvenile | J11: 137 | K11: USEPA, 2005 | L11: 137000 | M11: 2.606 | N11: 0.628 | O11: 1682.133718 | P11: 4383.640468 | Q11: 4.383640468 | S11: cattleJerseyFadult | T11: cattle | U11: Jersey | V11: F | W11: adult | X11: 454 | Y11: 9.302624413 | AB11: cattleunspecifiedjuvenile | AC11: cattle | AD11: unspecified | AE11: juvenile | AF11: 260 | AG11: 6.555075134
A12: Herbivores | C12: cattle | D12: unspecified | E12: BH | F12: B | G12: 13 to 16 weeks | H12: juvenile | I12: juvenile | J12: 198 | K12: USEPA, 2005 | L12: 198000 | M12: 2.606 | N12: 0.628 | O12: 2119.852968 | P12: 5524.336834 | Q12: 5.524336834 | S12: chickenunspecifiedFadult | T12: chicken | U12: unspecified | V12: F | W12: adult | X12: 1.6 | Y12: 0.3330877984 | AB12: chickendomesticjuvenile | AC12: chicken | AD12: domestic | AE12: juvenile | AF12: 1.042 | AG12: 0.2478739653
A13: Herbivores | C13: cattle | D13: unspecified | E13: BH | F13: B | G13: 22 to 51 weeks | H13: juvenile | I13: juvenile | J13: 260 | K13: USEPA, 2005 | L13: 260000 | M13: 2.606 | N13: 0.628 | O13: 2515.378025 | P13: 6555.075134 | Q13: 6.555075134 | S13: chickenunspecifiedMadult | T13: chicken | U13: unspecified | V13: M | W13: adult | X13: 1.3 | Y13: 0.2886868659 | AB13: chickenunspecifiedadult | AC13: chicken | AD13: unspecified | AE13: adult | AF13: 1.6 | AG13: 0.3330877984
A14: Herbivores | C14: cattle | D14: Beef | E14: BH | F14: B | G14: weaning | H14: juvenile | I14: juvenile | J14: 220 | K14: Jurgens, 1972 | L14: 220000 | M14: 2.606 | N14: 0.628 | O14: 2264.860427 | P14: 5902.226272 | Q14: 5.902226272 | S14: dogunspecifiedFadult | T14: dog | U14: unspecified | V14: F | W14: adult | X14: 14 | Y14: 1.267953207 | AB14: dogunspecifiedadult | AC14: dog | AD14: unspecified | AE14: adult | AF14: 14 | AG14: 1.267953207
A15: Herbivores | C15: cattle | D15: Beef | E15: F | F15: F | G15: Pregnant | H15: gestation | I15: adult | J15: 409 | K15: Jurgens, 1972 | L15: 409000 | M15: 2.606 | N15: 0.628 | O15: 3343.199071 | P15: 8712.376778 | Q15: 8.712376778 | S15: dogunspecifiedFjuvenile | T15: dog | U15: unspecified | V15: F | W15: juvenile | X15: 10.1 | Y15: 0.9578363268 | AB15: dogunspecifiedjuvenile | AC15: dog | AD15: unspecified | AE15: juvenile | AF15: 10.8 | AG15: 1.014589235
A16: Herbivores | C16: cattle | D16: Beef | E16: F | F16: F | G16: Lactating | H16: lactation | I16: adult | J16: 454 | K16: Jurgens, 1972 | L16: 454000 | M16: 2.606 | N16: 0.628 | O16: 3569.694709 | P16: 9302.624413 | Q16: 9.302624413 | S16: dogunspecifiedMadult | T16: dog | U16: unspecified | V16: M | W16: adult | X16: 14 | Y16: 1.267953207 | AB16: doveringed turtleadult | AC16: dove | AD16: ringed turtle | AE16: adult | AF16: 0.144 | AG16: 0.06339161453
A17: Herbivores | C17: cattle | D17: Beef | E17: BH | F17: B | G17: > 1 year | H17: Adult | I17: Adult | J17: 454 | K17: Jurgens, 1972 | L17: 454000 | M17: 2.606 | N17: 0.628 | O17: 3569.694709 | P17: 9302.624413 | Q17: 9.302624413 | S17: dogunspecifiedMjuvenile | T17: dog | U17: unspecified | V17: M | W17: juvenile | X17: 10.8 | Y17: 1.014589235 | AB17: doveringed turtlejuvenile | AC17: dove | AD17: ringed turtle | AE17: juvenile | AF17: 0.134 | AG17: 0.06032471268
A18: Herbivores | C18: cattle | D18: Fresian | E18: F | F18: F | G18: 10 months | H18: juvenile | I18: juvenile | J18: 99 | K18: Maro et al., 1980 | L18: 99000 | M18: 2.606 | N18: 0.628 | O18: 1371.699253 | P18: 3574.648254 | Q18: 3.574648254 | S18: duckmallardFadult | T18: duck | U18: mallard | V18: F | W18: adult | X18: 1.1 | Y18: 0.1690168062 | AB18: duckmallardadult | AC18: duck | AD18: mallard | AE18: adult | AF18: 1.2 | AG18: 0.1784938753
A19: Herbivores | C19: cattle | D19: Holstein | E19: F | F19: F | G19: Lactating, 58 months | H19: Adult | I19: Adult | J19: 680 | K19: NRC (2001) | L19: 680000 | M19: 2.606 | N19: 0.628 | O19: 4600.611887 | P19: 11989.19458 | Q19: 11.98919458 | S19: duckmallardMadult | T19: duck | U19: mallard | V19: M | W19: adult | X19: 1.2 | Y19: 0.1784938753 | AB19: duckmallardjuvenile | AC19: duck | AD19: mallard | AE19: juvenile | AF19: 0.46 | AG19: 0.0978421163
A20: Herbivores | C20: cattle | D20: Jersey | E20: F | F20: F | G20: Lactating, 58 months | H20: Adult | I20: Adult | J20: 454 | K20: NRC (2001) | L20: 454000 | M20: 2.606 | N20: 0.628 | O20: 3569.694709 | P20: 9302.624413 | Q20: 9.302624413 | S20: duckwhite pekinFjuvenile | T20: duck | U20: white pekin | V20: F | W20: juvenile | X20: 3.29 | Y20: 0.335937515 | AB20: duckwhite pekinjuvenile | AC20: duck | AD20: white pekin | AE20: juvenile | AF20: 3.61 | AG20: 0.3560686131
A21: All birds | B21: A | C21: chicken | D21: unspecified | E21: M | F21: M | G21: Older than 30 days | H21: adult | I21: adult | J21: 1.3 | K21: USEPA, 1987 | L21: 1300 | M21: 2.065 | N21: 0.689 | O21: 139.7999351 | P21: 288.6868659 | Q21: 0.2886868659 | S21: duckwhite pekinMjuvenile | T21: duck | U21: white pekin | V21: M | W21: juvenile | X21: 3.61 | Y21: 0.3560686131 | AB21: eaglebald eagleadult | AC21: eagle | AD21: bald eagle | AE21: adult | AF21: 5.35 | AG21: 0.9191157912
A22: All birds | B22: A | C22: chicken | D22: unspecified | E22: F | F22: F | G22: Older than 30 days | H22: adult | I22: adult | J22: 1.6 | K22: USEPA, 1987 | L22: 1600 | M22: 2.065 | N22: 0.689 | O22: 161.3015973 | P22: 333.0877984 | Q22: 0.3330877984 | S22: eaglebald eagleFadult | T22: eagle | U22: bald eagle | V22: F | W22: adult | X22: 5.35 | Y22: 0.9191157912 | AB22: finchzebra finchadult | AC22: finch | AD22: zebra finch | AE22: adult | AF22: 12 | AG22: 0.729619979
A23: All birds | B23: A | C23: chicken | D23: domestic | E23: BH | F23: B | G23: 1 day | H23: juvenile | I23: juvenile | J23: 0.0397 | K23: Diaz et al 1994 | L23: 39.7 | M23: 2.065 | N23: 0.689 | O23: 12.63475018 | P23: 26.09075911 | Q23: 0.02609075911 | S23: eaglebald eagleMadult | T23: eagle | U23: bald eagle | V23: M | W23: adult | X23: 4.13 | Y23: 0.7737875665 | AB23: gerbilunspecifiedadult | AC23: gerbil | AD23: unspecified | AE23: adult | AF23: 0.1 | AG23: 0.03143238433
A24: All birds | B24: A | C24: chicken | D24: domestic | E24: BH | F24: B | G24: 3 days | H24: juvenile | I24: juvenile | J24: 0.0543 | K24: Franson and Custer, 1982 | L24: 54.3 | M24: 2.065 | N24: 0.689 | O24: 15.67750986 | P24: 32.37405786 | Q24: 0.03237405786 | S24: gerbilunspecifiedFadult | T24: gerbil | U24: unspecified | V24: F | W24: adult | X24: 0.09 | Y24: 0.02869742002 | AB24: gerbilunspecifiedjuvenile | AC24: gerbil | AD24: unspecified | AE24: juvenile | AF24: 0.084 | AG24: 0.02703675896
A25: All birds | B25: A | C25: chicken | D25: domestic | E25: BH | F25: B | G25: 7 days | H25: juvenile | I25: juvenile | J25: 0.084 | K25: Southern and Baker, 1981 | L25: 84 | M25: 2.065 | N25: 0.689 | O25: 21.17524423 | P25: 43.72687934 | Q25: 0.04372687934 | S25: gerbilunspecifiedFjuvenile | T25: gerbil | U25: unspecified | V25: F | W25: juvenile | X25: 0.073 | Y25: 0.02394904926 | AB25: guinea pigunspecifiedadult | AC25: guinea pig | AD25: unspecified | AE25: adult | AF25: 1 | AG25: 0.2298144467
A26: All birds | B26: A | C26: chicken | D26: domestic | E26: BH | F26: B | G26: 14 days | H26: juvenile | I26: juvenile | J26: 0.328 | K26: Southern and Baker, 1981 | L26: 328 | M26: 2.065 | N26: 0.689 | O26: 54.12988175 | P26: 111.7782058 | Q26: 0.1117782058 | S26: gerbilunspecifiedMadult | T26: gerbil | U26: unspecified | V26: M | W26: adult | X26: 0.1 | Y26: 0.03143238433 | AB26: guinea pigunspecifiedjuvenile | AC26: guinea pig | AD26: unspecified | AE26: juvenile | AF26: 0.89 | AG26: 0.2078022721
A27: All birds | B27: A | C27: chicken | D27: domestic | E27: BH | F27: B | G27: 20 days | H27: juvenile | I27: juvenile | J27: 0.564 | K27: Donaldson and McGowan, 1989 | L27: 564 | M27: 2.065 | N27: 0.689 | O27: 78.63779052 | P27: 162.3870374 | Q27: 0.1623870374 | S27: gerbilunspecifiedMjuvenile | T27: gerbil | U27: unspecified | V27: M | W27: juvenile | X27: 0.084 | Y27: 0.02703675896 | AB27: hamsterChinese & Djungarainadult | AC27: hamster | AD27: Chinese & Djungarain | AE27: adult | AF27: 0.04 | AG27: 0.01424154671
A28: All birds | B28: A | C28: chicken | D28: domestic | E28: BH | F28: B | G28: 28 days | H28: juvenile | I28: juvenile | J28: 1.042 | K28: Diaz et al., 1994 | L28: 1042 | M28: 2.065 | N28: 0.689 | O28: 120.0358186 | P28: 247.8739653 | Q28: 0.2478739653 | S28: guinea pigunspecifiedFadult | T28: guinea pig | U28: unspecified | V28: F | W28: adult | X28: 0.9 | Y28: 0.2098180537 | AB28: hamsterChinese & Djungarainjuvenile | AC28: hamster | AD28: Chinese & Djungarain | AE28: juvenile | AF28: 0.041 | AG28: 0.01454864605
A29: Carnivora | C29: dog | D29: unspecified | E29: M | F29: M | G29: weaning to 90 days | H29: juvenile | I29: juvenile | J29: 2.4 | K29: USEPA, 1987 | L29: 2400 | M29: 0.348 | N29: 0.859 | O29: 800.9427169 | P29: 278.7280655 | Q29: 0.2787280655 | S29: guinea pigunspecifiedFjuvenile | T29: guinea pig | U29: unspecified | V29: F | W29: juvenile | X29: 0.86 | Y29: 0.2017362706 | AB29: hamstergolden Syrianadult | AC29: hamster | AD29: golden Syrian | AE29: adult | AF29: 0.16 | AG29: 0.04717772462
A30: Carnivora | C30: dog | D30: unspecified | E30: M | F30: M | G30: 90 days to 1 year | H30: sexually mature | I30: juvenile | J30: 10.8 | K30: USEPA, 1987 | L30: 10800 | M30: 0.348 | N30: 0.859 | O30: 2915.486307 | P30: 1014.589235 | Q30: 1.014589235 | S30: guinea pigunspecifiedMadult | T30: guinea pig | U30: unspecified | V30: M | W30: adult | X30: 1 | Y30: 0.2298144467 | AB30: hamstergolden Syrianjuvenile | AC30: hamster | AD30: golden Syrian | AE30: juvenile | AF30: 0.145 | AG30: 0.04333105668
A31: Carnivora | C31: dog | D31: unspecified | E31: M | F31: M | G31: 1 year or older | H31: adult | I31: adult | J31: 14 | K31: USEPA, 1987 | L31: 14000 | M31: 0.348 | N31: 0.859 | O31: 3643.543699 | P31: 1267.953207 | Q31: 1.267953207 | S31: guinea pigunspecifiedMjuvenile | T31: guinea pig | U31: unspecified | V31: M | W31: juvenile | X31: 0.89 | Y31: 0.2078022721 | AB31: hamsterunspecifiedadult | AC31: hamster | AD31: unspecified | AE31: adult | AF31: 1.03 | AG31: 0.2357592212
A32: Carnivora | C32: dog | D32: unspecified | E32: F | F32: F | G32: weaning to 90 days | H32: juvenile | I32: juvenile | J32: 1.97 | K32: USEPA, 1987 | L32: 1970 | M32: 0.348 | N32: 0.859 | O32: 675.9996768 | P32: 235.2478875 | Q32: 0.2352478875 | S32: hamsterChinese & DjungarainFadult | T32: hamster | U32: Chinese & Djungarain | V32: F | W32: adult | X32: 0.035 | Y32: 0.01268972225 | AB32: hamsterunspecifiedjuvenile | AC32: hamster | AD32: unspecified | AE32: juvenile | AF32: 0.5025 | AG32: 0.1268115723
A33: Carnivora | C33: dog | D33: unspecified | E33: F | F33: F | G33: 90 days to 1 year | H33: sexually mature | I33: juvenile | J33: 10.1 | K33: USEPA, 1987 | L33: 10100 | M33: 0.348 | N33: 0.859 | O33: 2752.403238 | P33: 957.8363268 | Q33: 0.9578363268 | S33: hamsterChinese & DjungarainFjuvenile | T33: hamster | U33: Chinese & Djungarain | V33: F | W33: juvenile | X33: 0.038 | Y33: 0.0136241794 | AB33: horseunspecifiedadult | AC33: horse | AD33: unspecified | AE33: adult | AF33: 498.95 | AG33: 20.15666065
A34: Carnivora | C34: dog | D34: unspecified | E34: F | F34: F | G34: 1 year or older | H34: adult | I34: adult | J34: 14 | K34: USEPA, 1987 | L34: 14000 | M34: 0.348 | N34: 0.859 | O34: 3643.543699 | P34: 1267.953207 | Q34: 1.267953207 | S34: hamsterChinese & DjungarainMadult | T34: hamster | U34: Chinese & Djungarain | V34: M | W34: adult | X34: 0.04 | Y34: 0.01424154671 | AB34: horseunspecifiedjuvenile | AC34: horse | AD34: unspecified | AE34: juvenile | AF34: 408.23 | AG34: 17.26036611
A35: All birds | B35: B | C35: dove | D35: ringed turtle | E35: B | F35: B | G35: 0 days | H35: juvenile | I35: juvenile | J35: 0.01 | K35: Carriere et al., 1986 | L35: 10 | M35: 2.065 | N35: 0.689 | O35: 4.886523593 | P35: 10.09067122 | Q35: 0.01009067122 | S35: hamsterChinese & DjungarainMjuvenile | T35: hamster | U35: Chinese & Djungarain | V35: M | W35: juvenile | X35: 0.041 | Y35: 0.01454864605 | AB35: kestrelAmericanadult | AC35: kestrel | AD35: American | AE35: adult | AF35: 0.138 | AG35: 0.08072992614
A36: All birds | B36: B | C36: dove | D36: ringed turtle | E36: B | F36: B | G36: 7 days | H36: juvenile | I36: juvenile | J36: 0.057 | K36: Carriere et al., 1986; Kendall and Scanlon, 1981 | L36: 57 | M36: 2.065 | N36: 0.689 | O36: 16.21055095 | P36: 33.47478771 | Q36: 0.03347478771 | S36: hamstergolden SyrianFadult | T36: hamster | U36: golden Syrian | V36: F | W36: adult | X36: 0.16 | Y36: 0.04717772462 | AB36: minkunspecifiedadult | AC36: mink | AD36: unspecified | AE36: adult | AF36: 1.18 | AG36: 0.1514697429
A37: All birds | B37: B | C37: dove | D37: ringed turtle | E37: B | F37: B | G37: 14 days | H37: juvenile | I37: juvenile | J37: 0.092 | K37: Carriere et al., 1986; Kendall and Scanlon, 1981 | L37: 92 | M37: 2.065 | N37: 0.689 | O37: 22.54497785 | P37: 46.55537927 | Q37: 0.04655537927 | S37: hamstergolden SyrianFjuvenile | T37: hamster | U37: golden Syrian | V37: F | W37: juvenile | X37: 0.145 | Y37: 0.04333105668 | AB37: minkunspecifiedjuvenile | AC37: mink | AD37: unspecified | AE37: juvenile | AF37: 1.02 | AG37: 0.1336493317
A38: All birds | B38: B | C38: dove | D38: ringed turtle | E38: B | F38: B | G38: 21 days | H38: juvenile | I38: juvenile | J38: 0.117 | K38: Carriere et al., 1986; Kendall and Scanlon, 1981 | L38: 117 | M38: 2.065 | N38: 0.689 | O38: 26.60602892 | P38: 54.94144971 | Q38: 0.05494144971 | S38: hamstergolden SyrianMadult | T38: hamster | U38: golden Syrian | V38: M | W38: adult | X38: 0.15 | Y38: 0.04461903506 | AB38: mouseB6C3F1adult | AC38: mouse | AD38: B6C3F1 | AE38: adult | AF38: 0.04 | AG38: 0.01424154671
A39: All birds | B39: B | C39: dove | D39: ringed turtle | E39: B | F39: B | G39: 28 days | H39: juvenile | I39: juvenile | J39: 0.134 | K39: Carriere et al., 1986 | L39: 134 | M39: 2.065 | N39: 0.689 | O39: 29.21293592 | P39: 60.32471268 | Q39: 0.06032471268 | S39: hamstergolden SyrianMjuvenile | T39: hamster | U39: golden Syrian | V39: M | W39: juvenile | X39: 0.134 | Y39: 0.04047584013 | AB39: mouseB6C3F1juvenile | AC39: mouse | AD39: B6C3F1 | AE39: juvenile | AF39: 0.0373 | AG39: 0.01340706629
A40: All birds | B40: B | C40: dove | D40: ringed turtle | E40: B | F40: B | G40: Adult | H40: adult | I40: adult | J40: 0.144 | K40: Carriere et al., 1986; Kendall and Scanlon, 1981; Keith and Mitchell, 1993 | L40: 144 | M40: 2.065 | N40: 0.689 | O40: 30.69811842 | P40: 63.39161453 | Q40: 0.06339161453 | S40: hamsterunspecifiedFadult | T40: hamster | U40: unspecified | V40: F | W40: adult | X40: 1.03 | Y40: 0.2357592212 | AB40: mouseBAF1adult | AC40: mouse | AD40: BAF1 | AE40: adult | AF40: 0.035 | AG40: 0.01268972225
A41: Omnivorous birds | C41: duck | D41: mallard | E41: F | F41: F | G41: Adult | H41: adult | I41: adult | J41: 1.1 | K41: USEPA, 1993 | L41: 1100 | M41: 2.094 | N41: 0.627 | O41: 80.71480718 | P41: 169.0168062 | Q41: 0.1690168062 | S41: hamsterunspecifiedFjuvenile | T41: hamster | U41: unspecified | V41: F | W41: juvenile | X41: 0.5025 | Y41: 0.1268115723 | AB41: mouseBAF1juvenile | AC41: mouse | AD41: BAF1 | AE41: juvenile | AF41: 0.0261 | AG41: 0.009848151578
A42: Omnivorous birds | C42: duck | D42: mallard | E42: M | F42: M | G42: Adult | H42: adult | I42: adult | J42: 1.2 | K42: USEPA, 1993 | L42: 1200 | M42: 2.094 | N42: 0.627 | O42: 85.24062812 | P42: 178.4938753 | Q42: 0.1784938753 | S42: hamsterunspecifiedMadult | T42: hamster | U42: unspecified | V42: M | W42: adult | X42: 0.095 | Y42: 0.03006979872 | AB42: mousedeer mouseadult | AC42: mouse | AD42: deer mouse | AE42: adult | AF42: 0.02 | AG42: 0.007824691833
A43: Omnivorous birds | C43: duck | D43: mallard | E43: JV | F43: B | G43: 10 days | H43: juvenile | I43: juvenile | J43: 0.092 | K43: USEPA, 1993 | L43: 92 | M43: 2.094 | N43: 0.627 | O43: 17.03314987 | P43: 35.66741583 | Q43: 0.03566741583 | S43: hamsterunspecifiedMjuvenile | T43: hamster | U43: unspecified | V43: M | W43: juvenile | X43: 0.0875 | Y43: 0.0280073671 | AB43: mouseunspecifiedadult | AC43: mouse | AD43: unspecified | AE43: adult | AF43: 0.0375 | AG43: 0.01346915471
A44: Omnivorous birds | C44: duck | D44: mallard | E44: JV | F44: B | G44: 30 days | H44: juvenile | I44: juvenile | J44: 0.46 | K44: USEPA, 1993 | L44: 460 | M44: 2.094 | N44: 0.627 | O44: 46.72498391 | P44: 97.8421163 | Q44: 0.0978421163 | S44: horseunspecifiedMjuvenile | T44: horse | U44: unspecified | V44: M | W44: juvenile | X44: 408.23 | Y44: 17.26036611 | AB44: mouseunspecifiedjuvenile | AC44: mouse | AD44: unspecified | AE44: juvenile | AF44: 0.0317 | AG44: 0.01164910416
A45: Omnivorous birds | C45: duck | D45: white pekin | E45: B | F45: B | G45: 0 days | H45: juvenile | I45: juvenile | J45: 0.06 | K45: NRC, 1994 | L45: 60 | M45: 2.094 | N45: 0.627 | O45: 13.0286925 | P45: 27.28208209 | Q45: 0.02728208209 | S45: kestrelAmericanFadult | T45: kestrel | U45: American | V45: F | W45: adult | X45: 0.138 | Y45: 0.08072992614 | AB45: owlbarn owladult | AC45: owl | AD45: barn owl | AE45: adult | AF45: 0.568 | AG45: 0.2068505147
A46: Omnivorous birds | C46: duck | D46: white pekin | E46: B | F46: B | G46: 7 days | H46: juvenile | I46: juvenile | J46: 0.27 | K46: NRC, 1994 | L46: 270 | M46: 2.094 | N46: 0.627 | O46: 33.45531167 | P46: 70.05542264 | Q46: 0.07005542264 | S46: kestrelAmericanMadult | T46: kestrel | U46: American | V46: M | W46: adult | X46: 0.114 | Y46: 0.07109788617 | AB46: pheasantring-neckedadult | AC46: pheasant | AD46: ring-necked | AE46: adult | AF46: 1.3 | AG46: 0.2886868659
A47: Omnivorous birds | C47: duck | D47: white pekin | E47: M | F47: M | G47: 14 days | H47: juvenile | I47: juvenile | J47: 0.78 | K47: NRC, 1994 | L47: 780 | M47: 2.094 | N47: 0.627 | O47: 65.06438302 | P47: 136.244818 | Q47: 0.136244818 | S47: minkunspecifiedFadult | T47: mink | U47: unspecified | V47: F | W47: adult | X47: 0.596 | Y47: 0.08423950012 | AB47: pigminiatureadult | AC47: pig | AD47: miniature | AE47: adult | AF47: 72.5 | AG47: 4.537971682
A48: Omnivorous birds | C48: duck | D48: white pekin | E48: F | F48: F | G48: 14 days | H48: juvenile | I48: juvenile | J48: 0.74 | K48: NRC, 1994 | L48: 740 | M48: 2.094 | N48: 0.627 | O48: 62.95181968 | P48: 131.8211104 | Q48: 0.1318211104 | S48: minkunspecifiedFjuvenile | T48: mink | U48: unspecified | V48: F | W48: juvenile | X48: 0.583 | Y48: 0.08265869272 | AB48: pigunspecifiedadult | AC48: pig | AD48: unspecified | AE48: adult | AF48: 152 | AG48: 8.042398636
A49: Omnivorous birds | C49: duck | D49: white pekin | E49: M | F49: M | G49: 21 days | H49: juvenile | I49: juvenile | J49: 1.38 | K49: NRC, 1994 | L49: 1380 | M49: 2.094 | N49: 0.627 | O49: 93.0473882 | P49: 194.8412309 | Q49: 0.1948412309 | S49: minkunspecifiedMadult | T49: mink | U49: unspecified | V49: M | W49: adult | X49: 1.18 | Y49: 0.1514697429 | AB49: pigunspecifiedjuvenile | AC49: pig | AD49: unspecified | AE49: juvenile | AF49: 61 | AG49: 3.970822416
A50: Omnivorous birds | C50: duck | D50: white pekin | E50: F | F50: F | G50: 21 days | H50: juvenile | I50: juvenile | J50: 1.28 | K50: NRC, 1994 | L50: 1280 | M50: 2.094 | N50: 0.627 | O50: 88.76068618 | P50: 185.8648769 | Q50: 0.1858648769 | S50: minkunspecifiedMjuvenile | T50: mink | U50: unspecified | V50: M | W50: juvenile | X50: 1.02 | Y50: 0.1336493317 | AB50: pigeonpigeonadult | AC50: pigeon | AD50: pigeon | AE50: adult | AF50: 0.369 | AG50: 0.1212275204
A51: Omnivorous birds | C51: duck | D51: white pekin | E51: M | F51: M | G51: 28 days | H51: juvenile | I51: juvenile | J51: 1.96 | K51: NRC, 1994 | L51: 1960 | M51: 2.094 | N51: 0.627 | O51: 115.9430062 | P51: 242.784655 | Q51: 0.242784655 | S51: mouseB6C3F1Fadult | T51: mouse | U51: B6C3F1 | V51: F | W51: adult | X51: 0.035 | Y51: 0.01268972225 | AB51: quailbobwhiteadult | AC51: quail | AD51: bobwhite | AE51: adult | AF51: 0.17 | AG51: 0.07107213517
A52: Omnivorous birds | C52: duck | D52: white pekin | E52: F | F52: F | G52: 28 days | H52: juvenile | I52: juvenile | J52: 1.82 | K52: NRC, 1994 | L52: 1820 | M52: 2.094 | N52: 0.627 | O52: 110.6788812 | P52: 231.7615772 | Q52: 0.2317615772 | S52: mouseB6C3F1Fjuvenile | T52: mouse | U52: B6C3F1 | V52: F | W52: juvenile | X52: 0.0353 | Y52: 0.01278364411 | AB52: quailbobwhitejuvenile | AC52: quail | AD52: bobwhite | AE52: juvenile | AF52: 0.04 | AG52: 0.02622644283
A53: Omnivorous birds | C53: duck | D53: white pekin | E53: M | F53: M | G53: 35 days | H53: juvenile | I53: juvenile | J53: 2.49 | K53: NRC, 1994 | L53: 2490 | M53: 2.094 | N53: 0.627 | O53: 134.7153211 | P53: 282.0938824 | Q53: 0.2820938824 | S53: mouseB6C3F1Madult | T53: mouse | U53: B6C3F1 | V53: M | W53: adult | X53: 0.04 | Y53: 0.01424154671 | AB53: quailJapaneseadult | AC53: quail | AD53: Japanese | AE53: adult | AF53: 0.135 | AG53: 0.06063453097
A54: Omnivorous birds | C54: duck | D54: white pekin | E54: F | F54: F | G54: 35 days | H54: juvenile | I54: juvenile | J54: 2.3 | K54: NRC, 1994 | L54: 2300 | M54: 2.094 | N54: 0.627 | O54: 128.175008 | P54: 268.3984667 | Q54: 0.2683984667 | S54: mouseB6C3F1Mjuvenile | T54: mouse | U54: B6C3F1 | V54: M | W54: juvenile | X54: 0.0373 | Y54: 0.01340706629 | AB54: quailJapanesejuvenile | AC54: quail | AD54: Japanese | AE54: juvenile | AF54: 0.132 | AG54: 0.05970290929
A55: Omnivorous birds | C55: duck | D55: white pekin | E55: M | F55: M | G55: 42 days | H55: juvenile | I55: juvenile | J55: 2.96 | K55: NRC, 1994 | L55: 2960 | M55: 2.094 | N55: 0.627 | O55: 150.141207 | P55: 314.3956874 | Q55: 0.3143956874 | S55: mouseBAF1Fadult | T55: mouse | U55: BAF1 | V55: F | W55: adult | X55: 0.03 | Y55: 0.01110734062 | AB55: rabbitunspecifiedadult | AC55: rabbit | AD55: unspecified | AE55: adult | AF55: 4.1 | AG55: 0.4926090925
A56: Omnivorous birds | C56: duck | D56: white pekin | E56: F | F56: F | G56: 42 days | H56: juvenile | I56: juvenile | J56: 2.73 | K56: NRC, 1994 | L56: 2730 | M56: 2.094 | N56: 0.627 | O56: 142.7164321 | P56: 298.8482087 | Q56: 0.2988482087 | S56: mouseBAF1Fjuvenile | T56: mouse | U56: BAF1 | V56: F | W56: juvenile | X56: 0.0222 | Y56: 0.00856300694 | AB56: rabbitunspecifiedjuvenile | AC56: rabbit | AD56: unspecified | AE56: juvenile | AF56: 3.93 | AG56: 0.4767447771
A57: Omnivorous birds | C57: duck | D57: white pekin | E57: M | F57: M | G57: 49 days | H57: juvenile | I57: juvenile | J57: 3.34 | K57: NRC, 1994 | L57: 3340 | M57: 2.094 | N57: 0.627 | O57: 161.953014 | P57: 339.1296112 | Q57: 0.3391296112 | S57: mouseBAF1Madult | T57: mouse | U57: BAF1 | V57: M | W57: adult | X57: 0.035 | Y57: 0.01268972225 | AB57: ratFischer 344adult | AC57: rat | AD57: Fischer 344 | AE57: adult | AF57: 0.4 | AG57: 0.1041255141
A58: Omnivorous birds | C58: duck | D58: white pekin | E58: F | F58: F | G58: 49 days | H58: juvenile | I58: juvenile | J58: 3.06 | K58: NRC, 1994 | L58: 3060 | M58: 2.094 | N58: 0.627 | O58: 153.3018283 | P58: 321.0140285 | Q58: 0.3210140285 | S58: mouseBAF1Mjuvenile | T58: mouse | U58: BAF1 | V58: M | W58: juvenile | X58: 0.0261 | Y58: 0.009848151578 | AB58: ratFischer 344juvenile | AC58: rat | AD58: Fischer 344 | AE58: juvenile | AF58: 0.38 | AG58: 0.09961170037
A59: Omnivorous birds | C59: duck | D59: white pekin | E59: M | F59: M | G59: 56 days | H59: juvenile | I59: juvenile | J59: 3.61 | K59: NRC, 1994 | L59: 3610 | M59: 2.094 | N59: 0.627 | O59: 170.0423176 | P59: 356.0686131 | Q59: 0.3560686131 | S59: mousedeer mouseFadult | T59: mouse | U59: deer mouse | V59: F | W59: adult | X59: 0.019 | Y59: 0.007485493495 | AB59: ratLong-Evansadult | AC59: rat | AD59: Long-Evans | AE59: adult | AF59: 0.5 | AG59: 0.126266287
A60: Omnivorous birds | C60: duck | D60: white pekin | E60: F | F60: F | G60: 56 days | H60: juvenile | I60: juvenile | J60: 3.29 | K60: NRC, 1994 | L60: 3290 | M60: 2.094 | N60: 0.627 | O60: 160.4286127 | P60: 335.937515 | Q60: 0.335937515 | S60: mousedeer mouseMadult | T60: mouse | U60: deer mouse | V60: M | W60: adult | X60: 0.02 | Y60: 0.007824691833 | AB60: ratLong-Evansjuvenile | AC60: rat | AD60: Long-Evans | AE60: juvenile | AF60: 0.472 | AG60: 0.1201332463
A61: Carnivorous birds | C61: eagle | D61: bald eagle | E61: M | F61: M | G61: Adult | H61: adult | I61: adult | J61: 4.13 | K61: Dunning, 1993 | L61: 4130 | M61: 3.048 | N61: 0.665 | O61: 253.8673118 | P61: 773.7875665 | Q61: 0.7737875665 | S61: mouseunspecifiedFadult | T61: mouse | U61: unspecified | V61: F | W61: adult | X61: 0.0325 | Y61: 0.0119026743 | AB61: ratOsborne-Mendeladult | AC61: rat | AD61: Osborne-Mendel | AE61: adult | AF61: 0.55 | AG61: 0.1371041781
A62: Carnivorous birds | C62: eagle | D62: bald eagle | E62: F | F62: F | G62: Adult | H62: adult | I62: adult | J62: 5.35 | K62: Dunning, 1993 | L62: 5350 | M62: 3.048 | N62: 0.665 | O62: 301.5471756 | P62: 919.1157912 | Q62: 0.9191157912 | S62: mouseunspecifiedFjuvenile | T62: mouse | U62: unspecified | V62: F | W62: juvenile | X62: 0.02875 | Y62: 0.01070632512 | AB62: ratOsborne-Mendeljuvenile | AC62: rat | AD62: Osborne-Mendel | AE62: juvenile | AF62: 0.514 | AG62: 0.1293151658
A63: Passerines | C63: finch | D63: zebra finch | E63: B | F63: B | G63: Adult | H63: adult | I63: adult | J63: 12 | K63: Dunning, 1993 | L63: 12000 | M63: 2.438 | N63: 0.607 | O63: 299.2698847 | P63: 729.619979 | Q63: 0.729619979 | S63: mouseunspecifiedMadult | T63: mouse | U63: unspecified | V63: M | W63: adult | X63: 0.0375 | Y63: 0.01346915471 | AB63: ratSprague-Dawleyadult | AC63: rat | AD63: Sprague-Dawley | AE63: adult | AF63: 0.6 | AG63: 0.1478087031
A64: Rodentia | C64: gerbil | D64: unspecified | E64: M | F64: M | G64: weaning to 90 days | H64: juvenile | I64: juvenile | J64: 0.048 | K64: USEPA, 1987 | L64: 48 | M64: 0.588 | N64: 0.864 | O64: 28.35256985 | P64: 16.67131107 | Q64: 0.01667131107 | S64: mouseunspecifiedMjuvenile | T64: mouse | U64: unspecified | V64: M | W64: juvenile | X64: 0.0317 | Y64: 0.01164910416 | AB64: ratSprague-Dawleyjuvenile | AC64: rat | AD64: Sprague-Dawley | AE64: juvenile | AF64: 0.523 | AG64: 0.1312691839
A65: Rodentia | C65: gerbil | D65: unspecified | E65: M | F65: M | G65: 90 days to 1 year | H65: juvenile | I65: juvenile | J65: 0.084 | K65: USEPA, 1987 | L65: 84 | M65: 0.588 | N65: 0.864 | O65: 45.98088259 | P65: 27.03675896 | Q65: 0.02703675896 | S65: owlbarn owlFadult | T65: owl | U65: barn owl | V65: F | W65: adult | X65: 0.568 | Y65: 0.2068505147 | AB65: ratunspecifiedadult | AC65: rat | AD65: unspecified | AE65: adult | AF65: 0.51 | AG65: 0.1284452233
A66: Rodentia | C66: gerbil | D66: unspecified | E66: M | F66: M | G66: 1 year or older | H66: adult | I66: adult | J66: 0.1 | K66: USEPA, 1987 | L66: 100 | M66: 0.588 | N66: 0.864 | O66: 53.45643594 | P66: 31.43238433 | Q66: 0.03143238433 | S66: owlbarn owlMadult | T66: owl | U66: barn owl | V66: M | W66: adult | X66: 0.479 | Y66: 0.1846877452 | AB66: ratunspecifiedjuvenile | AC66: rat | AD66: unspecified | AE66: juvenile | AF66: 0.4702 | AG66: 0.1197373146
A67: Rodentia | C67: gerbil | D67: unspecified | E67: F | F67: F | G67: weaning to 90 days | H67: juvenile | I67: juvenile | J67: 0.04 | K67: USEPA, 1987 | L67: 40 | M67: 0.588 | N67: 0.864 | O67: 24.22031753 | P67: 14.24154671 | Q67: 0.01424154671 | S67: pheasantring-neckedFadult | T67: pheasant | U67: ring-necked | V67: F | W67: adult | X67: 0.95 | Y67: 0.2325796004 | AB67: ratWistaradult | AC67: rat | AD67: Wistar | AE67: adult | AF67: 0.5 | AG67: 0.126266287
A68: Rodentia | C68: gerbil | D68: unspecified | E68: F | F68: F | G68: 90 days to 1 year | H68: juvenile | I68: juvenile | J68: 0.073 | K68: USEPA, 1987 | L68: 73 | M68: 0.588 | N68: 0.864 | O68: =L68^N68 -> 40.72967561 | P68: =M68*O68 -> 23.94904926 | Q68: =P68/1000 -> 0.02394904926 | S68: pheasantring-neckedMadult | T68: pheasant | U68: ring-necked | V68: M | W68: adult | X68: 1.3 | Y68: 0.2886868659 | AB68: ratWistarjuvenile | AC68: rat | AD68: Wistar | AE68: juvenile | AF68: 0.462 | AG68: 0.1179310032
A69: Rodentia | C69: gerbil | D69: unspecified | E69: F | F69: F | G69: 1 year or older | H69: adult | I69: adult | J69: 0.09 | K69: USEPA, 1987 | L69: =J69*1000 -> 90 | M69: 0.588 | N69: 0.864 | O69: 48.80513609 | P69: 28.69742002 | Q69: 0.02869742002 | S69: =T69&U69&V69&W69 -> pigminiatureFadult | T69: pig | U69: miniature | V69: F | W69: adult | X69: 72.5 | Y69: 4.537971682 | AB69: =AC69&AD69&AE69 -> sheepChun forestadult | AC69: sheep | AD69: Chun forest | AE69: adult | AF69: 91.5 | AG69: 5.432490908
A70: Rodentia | C70: guinea pig | D70: unspecified | E70: M | F70: M | G70: weaning to 90 days | H70: juvenile | I70: juvenile | J70: 0.48 | K70: USEPA, 1987 | L70: 480 | M70: 0.588 | N70: 0.864 | O70: 207.2967194 | P70: 121.890471 | Q70: 0.121890471 | S70: pigminiatureMadult | T70: pig | U70: miniature | V70: M | W70: adult | X70: 72.5 | Y70: 4.537971682 | AB70: sheepChun forestjuvenile | AC70: sheep | AD70: Chun forest | AE70: juvenile | AF70: 24 | AG70: 1.930739992
A71: Rodentia | C71: guinea pig | D71: unspecified | E71: M | F71: M | G71: 90 days to 1 year | H71: juvenile | I71: juvenile | J71: 0.89 | K71: USEPA, 1987 | L71: 890 | M71: 0.588 | N71: 0.864 | O71: 353.4052247 | P71: 207.8022721 | Q71: 0.2078022721 | S71: pigunspecifiedFadult | T71: pig | U71: unspecified | V71: F | W71: adult | X71: 152 | Y71: 8.042398636 | AB71: sheepDalaadult | AC71: sheep | AD71: Dala | AE71: adult | AF71: 115 | AG71: 6.482461304
A72: Rodentia | C72: guinea pig | D72: unspecified | E72: M | F72: M | G72: 1 year or older | H72: adult | I72: adult | J72: 1 | K72: USEPA, 1987 | L72: 1000 | M72: 0.588 | N72: 0.864 | O72: 390.8408958 | P72: 229.8144467 | Q72: 0.2298144467 | S72: pigeonpigeonFadult | T72: pigeon | U72: pigeon | V72: F | W72: adult | X72: 0.34 | Y72: 0.1145800559 | AB72: sheepdomesticjuvenile | AC72: sheep | AD72: domestic | AE72: juvenile | AF72: 46.81 | AG72: 3.235878988
A73: Rodentia | C73: guinea pig | D73: unspecified | E73: F | F73: F | G73: weaning to 90 days | H73: juvenile | I73: juvenile | J73: 0.39 | K73: USEPA, 1987 | L73: 390 | M73: 0.588 | N73: 0.864 | O73: 173.2526238 | P73: 101.8725428 | Q73: 0.1018725428 | S73: pigeonpigeonMadult | T73: pigeon | U73: pigeon | V73: M | W73: adult | X73: 0.369 | Y73: 0.1212275204 | AB73: sheepOld Norseadult | AC73: sheep | AD73: Old Norse | AE73: adult | AF73: 43 | AG73: 3.030341815
A74: Rodentia | C74: guinea pig | D74: unspecified | E74: F | F74: F | G74: 90 days to 1 year | H74: juvenile | I74: juvenile | J74: 0.86 | K74: USEPA, 1987 | L74: 860 | M74: 0.588 | N74: 0.864 | O74: 343.0888956 | P74: 201.7362706 | Q74: 0.2017362706 | S74: quailbobwhiteFadult | T74: quail | U74: bobwhite | V74: F | W74: adult | X74: 0.17 | Y74: 0.07107213517 | AB74: sheepunspecifiedadult | AC74: sheep | AD74: unspecified | AE74: adult | AF74: 70 | AG74: 4.416531043
A75: Rodentia | C75: guinea pig | D75: unspecified | E75: F | F75: F | G75: 1 year or older | H75: adult | I75: adult | J75: 0.9 | K75: USEPA, 1987 | L75: 900 | M75: 0.588 | N75: 0.864 | O75: 356.8334247 | P75: 209.8180537 | Q75: 0.2098180537 | S75: quailbobwhiteMadult | T75: quail | U75: bobwhite | V75: M | W75: adult | X75: 0.16 | Y75: 0.06816457387 | AB75: sheepunspecifiedjuvenile | AC75: sheep | AD75: unspecified | AE75: juvenile | AF75: 59.1 | AG75: 3.874874358
A76: Rodentia | C76: hamster | D76: golden Syrian | E76: M | F76: M | G76: weaning to 90 days | H76: juvenile | I76: juvenile | J76: 0.097 | K76: USEPA, 1987 | L76: 97 | M76: 0.588 | N76: 0.864 | O76: 52.06798588 | P76: 30.6159757 | Q76: 0.0306159757 | S76: quailJapaneseFadult | T76: quail | U76: Japanese | V76: F | W76: adult | X76: 0.1 | Y76: 0.04930830299 | AB76: shrewshort-tailedadult | AC76: shrew | AD76: short-tailed | AE76: adult | AF76: 0.017 | AG76: 0.006799628635
A77: Rodentia | C77: hamster | D77: golden Syrian | E77: M | F77: M | G77: 90 days to 1 year | H77: juvenile | I77: juvenile | J77: 0.134 | K77: USEPA, 1987 | L77: 134 | M77: 0.588 | N77: 0.864 | O77: 68.8364628 | P77: 40.47584013 | Q77: 0.04047584013 | S77: quailJapaneseMadult | T77: quail | U77: Japanese | V77: M | W77: adult | X77: 0.09 | Y77: 0.04585568073 | AB77: sparrowwhite-throatedadult | AC77: sparrow | AD77: white-throated | AE77: adult | AF77: 0.0259 | AG77: 0.01757545828
A78: Rodentia | C78: hamster | D78: golden Syrian | E78: M | F78: M | G78: 1 year or older | H78: adult | I78: adult | J78: 0.15 | K78: USEPA, 1987 | L78: 150 | M78: 0.588 | N78: 0.864 | O78: 75.88271269 | P78: 44.61903506 | Q78: 0.04461903506 | S78: rabbitunspecifiedFadult | T78: rabbit | U78: unspecified | V78: F | W78: adult | X78: 4.1 | Y78: 0.4926090925 | AB78: starlingstarlingadult | AC78: starling | AD78: starling | AE78: adult | AF78: 0.0847 | AG78: 0.03607936882
A79: Rodentia | C79: hamster | D79: golden Syrian | E79: F | F79: F | G79: weaning to 90 days | H79: juvenile | I79: juvenile | J79: 0.095 | K79: USEPA, 1987 | L79: 95 | M79: 0.588 | N79: 0.864 | O79: 51.13911347 | P79: 30.06979872 | Q79: 0.03006979872 | S79: rabbitunspecifiedFjuvenile | T79: rabbit | U79: unspecified | V79: F | W79: juvenile | X79: 3.93 | Y79: 0.4767447771 | AB79: turkeydomesticadult | AC79: turkey | AD79: domestic | AE79: adult | AF79: 24.5 | AG79: 2.183008809
A80: Rodentia | C80: hamster | D80: golden Syrian | E80: F | F80: F | G80: 90 days to 1 year | H80: juvenile | I80: juvenile | J80: 0.145 | K80: USEPA, 1987 | L80: 145 | M80: 0.588 | N80: 0.864 | O80: 73.69227327 | P80: 43.33105668 | Q80: 0.04333105668 | S80: rabbitunspecifiedMadult | T80: rabbit | U80: unspecified | V80: M | W80: adult | X80: 4 | Y80: 0.4832956383 | AB80: turkeydomesticjuvenile | AC80: turkey | AD80: domestic | AE80: juvenile | AF80: 23.2 | AG80: 2.102525528
A81: Rodentia | C81: hamster | D81: golden Syrian | E81: F | F81: F | G81: 1 year or older | H81: adult | I81: adult | J81: 0.16 | K81: USEPA, 1987 | L81: 160 | M81: 0.588 | N81: 0.864 | O81: 80.23422555 | P81: 47.17772462 | Q81: 0.04717772462 | S81: rabbitunspecifiedMjuvenile | T81: rabbit | U81: unspecified | V81: M | W81: juvenile | X81: 3.76 | Y81: 0.4607238626 | AB81: volemeadow voleadult | AC81: vole | AD81: meadow vole | AE81: adult | AF81: 0.043 | AG81: 0.01515982094
A82: Rodentia | C82: hamster | D82: Chinese & Djungarain | E82: M | F82: M | G82: weaning to 90 days | H82: juvenile | I82: juvenile | J82: 0.03 | K82: USEPA, 1987 | L82: 30 | M82: 0.588 | N82: 0.864 | O82: 18.89003506 | P82: 11.10734062 | Q82: 0.01110734062 | S82: ratFischer 344Fadult | T82: rat | U82: Fischer 344 | V82: F | W82: adult | X82: 0.25 | Y82: 0.06937412102 | AB82: voleprairie voleadult | AC82: vole | AD82: prairie vole | AE82: adult | AF82: 0.042 | AG82: 0.01485472831
A83: Rodentia | C83: hamster | D83: Chinese & Djungarain | E83: M | F83: M | G83: 90 days to 1 year | H83: juvenile | I83: juvenile | J83: 0.041 | K83: USEPA, 1987 | L83: 41 | M83: 0.588 | N83: 0.864 | O83: 24.74259533 | P83: 14.54864605 | Q83: 0.01454864605 | S83: ratFischer 344Fjuvenile | T83: rat | U83: Fischer 344 | V83: F | W83: juvenile | X83: 0.229 | Y83: 0.06430950738 | AB83: blackbirdred wingedadult | AC83: blackbird | AD83: red winged | AE83: adult | AF83: 0.0636 | AG83: 0.0303202076
A84: Rodentia | C84: hamster | D84: Chinese & Djungarain | E84: M | F84: M | G84: 1 year or older | H84: adult | I84: adult | J84: 0.04 | K84: USEPA, 1987 | L84: 40 | M84: 0.588 | N84: 0.864 | O84: 24.22031753 | P84: 14.24154671 | Q84: 0.01424154671 | S84: ratFischer 344Madult | T84: rat | U84: Fischer 344 | V84: M | W84: adult | X84: 0.4 | Y84: 0.1041255141
A85: Rodentia | C85: hamster | D85: Chinese & Djungarain | E85: F | F85: F | G85: weaning to 90 days | H85: juvenile | I85: juvenile | J85: 0.025 | K85: USEPA, 1987 | L85: 25 | M85: 0.588 | N85: 0.864 | O85: 16.13690222 | P85: 9.488498506 | Q85: 0.009488498506 | S85: ratFischer 344Mjuvenile | T85: rat | U85: Fischer 344 | V85: M | W85: juvenile | X85: 0.38 | Y85: 0.09961170037
A86: Rodentia | C86: hamster | D86: Chinese & Djungarain | E86: F | F86: F | G86: 90 days to 1 year | H86: juvenile | I86: juvenile | J86: 0.038 | K86: USEPA, 1987 | L86: 38 | M86: 0.588 | N86: 0.864 | O86: 23.17037312 | P86: 13.6241794 | Q86: 0.0136241794 | S86: ratLong-EvansFadult | T86: rat | U86: Long-Evans | V86: F | W86: adult | X86: 0.35 | Y86: 0.09277951894
A87: Rodentia | C87: hamster | D87: Chinese & Djungarain | E87: F | F87: F | G87: 1 year or older | H87: adult | I87: adult | J87: 0.035 | K87: USEPA, 1987 | L87: 35 | M87: 0.588 | N87: 0.864 | O87: 21.58116029 | P87: 12.68972225 | Q87: 0.01268972225 | S87: ratLong-EvansFjuvenile | T87: rat | U87: Long-Evans | V87: F | W87: juvenile | X87: 0.344 | Y87: 0.09140370931
A88: Rodentia | C88: hamster | D88: unspecified | E88: M | F88: M | G88: weaning to 90 days | H88: juvenile | I88: juvenile | J88: 0.0635 | K88: USEPA, 1987 | L88: 63.5 | M88: 0.588 | N88: 0.864 | O88: 36.10742341 | P88: 21.23116496 | Q88: 0.02123116496 | S88: ratLong-EvansMadult | T88: rat | U88: Long-Evans | V88: M | W88: adult | X88: 0.5 | Y88: 0.126266287
A89: Rodentia | C89: hamster | D89: unspecified | E89: M | F89: M | G89: 90 days to 1 year | H89: juvenile | I89: juvenile | J89: 0.0875 | K89: USEPA, 1987 | L89: 87.5 | M89: 0.588 | N89: 0.864 | O89: 47.63157671 | P89: 28.0073671 | Q89: 0.0280073671 | S89: ratLong-EvansMjuvenile | T89: rat | U89: Long-Evans | V89: M | W89: juvenile | X89: 0.472 | Y89: 0.1201332463
A90: Rodentia | C90: hamster | D90: unspecified | E90: M | F90: M | G90: 1 year or older | H90: adult | I90: adult | J90: 0.095 | K90: USEPA, 1987 | L90: 95 | M90: 0.588 | N90: 0.864 | O90: 51.13911347 | P90: 30.06979872 | Q90: 0.03006979872 | S90: ratOsborne-MendelFadult | T90: rat | U90: Osborne-Mendel | V90: F | W90: adult | X90: 0.4 | Y90: 0.1041255141
A91: Rodentia | C91: hamster | D91: unspecified | E91: F | F91: F | G91: weaning to 90 days | H91: juvenile | I91: juvenile | J91: 0.2425 | K91: USEPA, 1987 | L91: 242.5 | M91: 0.588 | N91: 0.864 | O91: 114.9187639 | P91: 67.57223317 | Q91: 0.06757223317 | S91: ratOsborne-MendelFjuvenile | T91: rat | U91: Osborne-Mendel | V91: F | W91: juvenile | X91: 0.389 | Y91: 0.1016468165
A92: Rodentia | C92: hamster | D92: unspecified | E92: F | F92: F | G92: 90 days to 1 year | H92: juvenile | I92: juvenile | J92: 0.5025 | K92: USEPA, 1987 | L92: 502.5 | M92: 0.588 | N92: 0.864 | O92: 215.6659392 | P92: 126.8115723 | Q92: 0.1268115723 | S92: ratOsborne-MendelMadult | T92: rat | U92: Osborne-Mendel | V92: M | W92: adult | X92: 0.55 | Y92: 0.1371041781
A93: Rodentia | C93: hamster | D93: unspecified | E93: F | F93: F | G93: 1 year or older | H93: adult | I93: adult | J93: 1.03 | K93: USEPA, 1987 | L93: 1030 | M93: 0.588 | N93: 0.864 | O93: 400.9510565 | P93: 235.7592212 | Q93: 0.2357592212 | S93: ratOsborne-MendelMjuvenile | T93: rat | U93: Osborne-Mendel | V93: M | W93: juvenile | X93: 0.514 | Y93: 0.1293151658
A94: All mammals | C94: horse | D94: unspecified | E94: B | F94: B | G94: > 2 year | H94: adult | I94: adult | J94: 498.95 | K94: Jurgens, 1993 | L94: 498950 | M94: 0.794 | N94: 0.773 | O94: 25386.22248 | P94: 20156.66065 | Q94: 20.15666065 | S94: ratSprague-DawleyFadult | T94: rat | U94: Sprague-Dawley | V94: F | W94: adult | X94: 0.35 | Y94: 0.09277951894
A95: All mammals | C95: horse | D95: unspecified | E95: M | F95: M | G95: 2 to 5 months | H95: foal | I95: juvenile | J95: 181.44 | K95: Jurgens, 1993 | L95: 181440 | M95: 0.794 | N95: 0.773 | O95: 11614.50319 | P95: 9221.915536 | Q95: 9.221915536 | S95: ratSprague-DawleyFjuvenile | T95: rat | U95: Sprague-Dawley | V95: F | W95: juvenile | X95: 0.338 | Y95: 0.09002463208
A96: All mammals | C96: horse | D96: unspecified | E96: M | F96: M | G96: 5 to 12 months | H96: weanling | I96: juvenile | J96: 317.51 | K96: Jurgens, 1993 | L96: 317510 | M96: 0.794 | N96: 0.773 | O96: 17900.22444 | P96: 14212.77821 | Q96: 14.21277821 | S96: ratSprague-DawleyMadult | T96: rat | U96: Sprague-Dawley | V96: M | W96: adult | X96: 0.6 | Y96: 0.1478087031
A97: All mammals | C97: horse | D97: unspecified | E97: M | F97: M | G97: 12 to 24 months | H97: yearling | I97: juvenile | J97: 408.23 | K97: Jurgens, 1993 | L97: 408230 | M97: 0.794 | N97: 0.773 | O97: 21738.49636 | P97: 17260.36611 | Q97: 17.26036611 | S97: ratSprague-DawleyMjuvenile | T97: rat | U97: Sprague-Dawley | V97: M | W97: juvenile | X97: 0.523 | Y97: 0.1312691839
A98: Carnivorous birds | C98: kestrel | D98: American | E98: F | F98: F | G98: unspecified | H98: adult | I98: adult | J98: 0.132 | K98: Dunning, 1993 | L98: 132 | M98: 3.048 | N98: 0.665 | O98: 25.71471198 | P98: 78.3784421 | Q98: 0.0783784421 | S98: ratunspecifiedFadult | T98: rat | U98: unspecified | V98: F | W98: adult | X98: 0.4 | Y98: 0.1041255141
A99: Carnivorous birds | C99: kestrel | D99: American | E99: M | F99: M | G99: unspecified | H99: adult | I99: adult | J99: 0.114 | K99: Dunning, 1993 | L99: 114 | M99: 3.048 | N99: 0.665 | O99: 23.32607814 | P99: 71.09788617 | Q99: 0.07109788617 | S99: ratunspecifiedFjuvenile | T99: rat | U99: unspecified | V99: F | W99: juvenile | X99: 0.3846 | Y99: 0.1006526802
A100: Carnivorous birds | C100: kestrel | D100: American | E100: F | F100: F | G100: unspecified | H100: egg-laying | I100: adult | J100: 0.138 | K100: Dunning, 1993 | L100: 138 | M100: 3.048 | N100: 0.665 | O100: 26.48619624 | P100: 80.72992614 | Q100: 0.08072992614 | S100: ratunspecifiedMadult | T100: rat | U100: unspecified | V100: M | W100: adult | X100: 0.51 | Y100: 0.1284452233
A101: Carnivorous birds | C101: kestrel | D101: American | E101: F | F101: F | G101: unspecified | H101: incubating | I101: adult | J101: 0.119 | K101: Dunning, 1993 | L101: 119 | M101: 3.048 | N101: 0.665 | O101: 24.00151907 | P101: 73.15663012 | Q101: 0.07315663012 | S101: ratunspecifiedMjuvenile | T101: rat | U101: unspecified | V101: M | W101: juvenile | X101: 0.4702 | Y101: 0.1197373146
A102: Carnivora | C102: mink | D102: unspecified | E102: M | F102: M | G102: weaning to 49 days | H102: juvenile | I102: juvenile | J102: 1.02 | K102: USEPA 1993 | L102: 1020 | M102: 0.348 | N102: 0.859 | O102: 384.0498038 | P102: 133.6493317 | Q102: 0.1336493317 | S102: ratWistarFadult | T102: rat | U102: Wistar | V102: F | W102: adult | X102: 0.32 | Y102: 0.08586712208
A103: Carnivora | C103: mink | D103: unspecified | E103: F | F103: F | G103: weaning to 49 days | H103: juvenile | I103: juvenile | J103: 0.583 | K103: USEPA 1993 | L103: 583 | M103: 0.348 | N103: 0.859 | O103: 237.5249791 | P103: 82.65869272 | Q103: 0.08265869272 | S103: ratWistarFjuvenile | T103: rat | U103: Wistar | V103: F | W103: juvenile | X103: 0.297 | Y103: 0.08050797411
A104: Carnivora | C104: mink | D104: unspecified | E104: M | F104: M | G104: > 1 year | H104: adult | I104: adult | J104: 1.18 | K104: USEPA 1993 | L104: 1180 | M104: 0.348 | N104: 0.859 | O104: 435.2578819 | P104: 151.4697429 | Q104: 0.1514697429 | S104: ratWistarMadult | T104: rat | U104: Wistar | V104: M | W104: adult | X104: 0.5 | Y104: 0.126266287
A105: Carnivora | C105: mink | D105: unspecified | E105: F | F105: F | G105: > 1 year | H105: adult | I105: adult | J105: 0.596 | K105: USEPA 1993 | L105: 596 | M105: 0.348 | N105: 0.859 | O105: 242.0675291 | P105: 84.23950012 | Q105: 0.08423950012 | S105: ratWistarMjuvenile | T105: rat | U105: Wistar | V105: M | W105: juvenile | X105: 0.462 | Y105: 0.1179310032
A106: Rodentia | C106: mouse | D106: BAF1 | E106: M | F106: M | G106: weaning to 90 days | H106: juvenile | I106: juvenile | J106: 0.0223 | K106: USEPA, 1987 | L106: 22.3 | M106: 0.588 | N106: 0.864 | O106: 14.61959702 | P106: 8.596323047 | Q106: 0.008596323047 | S106: sheepChun forestFadult | T106: sheep | U106: Chun forest | V106: F | W106: adult | X106: 73 | Y106: 4.562144883
A107: Rodentia | C107: mouse | D107: BAF1 | E107: M | F107: M | G107: 90 days to 1 year | H107: juvenile | I107: juvenile | J107: 0.0261 | K107: USEPA, 1987 | L107: 26.1 | M107: 0.588 | N107: 0.864 | O107: 16.74855711 | P107: 9.848151578 | Q107: 0.009848151578 | S107: sheepChun forestMadult | T107: sheep | U107: Chun forest | V107: M | W107: adult | X107: 91.5 | Y107: 5.432490908
A108: Rodentia | C108: mouse | D108: BAF1 | E108: M | F108: M | G108: 1 year or older | H108: adult | I108: adult | J108: 0.035 | K108: USEPA, 1987 | L108: 35 | M108: 0.588 | N108: 0.864 | O108: 21.58116029 | P108: 12.68972225 | Q108: 0.01268972225 | S108: sheepDalaFadult | T108: sheep | U108: Dala | V108: F | W108: adult | X108: 80 | Y108: 4.896762745
A109: Rodentia | C109: mouse | D109: BAF1 | E109: F | F109: F | G109: weaning to 90 days | H109: juvenile | I109: juvenile | J109: 0.0204 | K109: USEPA, 1987 | L109: 20.4 | M109: 0.588 | N109: 0.864 | O109: 13.53693877 | P109: 7.959719999 | Q109: 0.007959719999 | S109: sheepDalaMadult | T109: sheep | U109: Dala | V109: M | W109: adult | X109: 115 | Y109: 6.482461304
A110: Rodentia | C110: mouse | D110: BAF1 | E110: F | F110: F | G110: 90 days to 1 year | H110: juvenile | I110: juvenile | J110: 0.0222 | K110: USEPA, 1987 | L110: 22.2 | M110: 0.588 | N110: 0.864 | O110: 14.56293697 | P110: 8.56300694 | Q110: 0.00856300694 | S110: sheepOld NorseFadult | T110: sheep | U110: Old Norse | V110: F | W110: adult | X110: 32 | Y110: 2.41157868
A111: Rodentia | C111: mouse | D111: BAF1 | E111: F | F111: F | G111: 1 year or older | H111: adult | I111: adult | J111: 0.03 | K111: USEPA, 1987 | L111: 30 | M111: 0.588 | N111: 0.864 | O111: 18.89003506 | P111: 11.10734062 | Q111: 0.01110734062 | S111: sheepOld NorseMadult | T111: sheep | U111: Old Norse | V111: M | W111: adult | X111: 43 | Y111: 3.030341815
A112: Rodentia | C112: mouse | D112: B6C3F1 | E112: M | F112: M | G112: weaning to 90 days | H112: juvenile | I112: juvenile | J112: 0.0316 | K112: USEPA, 1987 | L112: 31.6 | M112: 0.588 | N112: 0.864 | O112: 19.75739304 | P112: 11.6173471 | Q112: 0.0116173471 | S112: sheepunspecifiedFadult | T112: sheep | U112: unspecified | V112: F | W112: adult | X112: 70 | Y112: 4.416531043
A113: Rodentia | C113: mouse | D113: B6C3F1 | E113: M | F113: M | G113: 90 days to 1 year | H113: juvenile | I113: juvenile | J113: 0.0373 | K113: USEPA, 1987 | L113: 37.3 | M113: 0.588 | N113: 0.864 | O113: 22.80113315 | P113: 13.40706629 | Q113: 0.01340706629 | S113: shrewshort-tailedFadult | T113: shrew | U113: short-tailed | V113: F | W113: adult | X113: 0.017 | Y113: 0.006799628635
A114: Rodentia | C114: mouse | D114: B6C3F1 | E114: M | F114: M | G114: 1 year or older | H114: adult | I114: adult | J114: 0.04 | K114: USEPA, 1987 | L114: 40 | M114: 0.588 | N114: 0.864 | O114: 24.22031753 | P114: 14.24154671 | Q114: 0.01424154671 | S114: shrewshort-tailedMadult | T114: shrew | U114: short-tailed | V114: M | W114: adult | X114: 0.017 | Y114: 0.006799628635
A115: Rodentia | C115: mouse | D115: B6C3F1 | E115: F | F115: F | G115: weaning to 90 days | H115: juvenile | I115: juvenile | J115: 0.0246 | K115: USEPA, 1987 | L115: 24.6 | M115: 0.588 | N115: 0.864 | O115: 15.9135815 | P115: 9.357185919 | Q115: 0.009357185919 | S115: starlingstarlingFadult | T115: starling | U115: starling | V115: F | W115: adult | X115: 0.0799 | Y115: 0.03482407555
A116: Rodentia | C116: mouse | D116: B6C3F1 | E116: F | F116: F | G116: 90 days to 1 year | H116: juvenile | I116: juvenile | J116: 0.0353 | K116: USEPA, 1987 | L116: 35.3 | M116: 0.588 | N116: 0.864 | O116: 21.74089134 | P116: 12.78364411 | Q116: 0.01278364411 | S116: starlingstarlingMadult | T116: starling | U116: starling | V116: M | W116: adult | X116: 0.0847 | Y116: 0.03607936882
A117: Rodentia | C117: mouse | D117: B6C3F1 | E117: F | F117: F | G117: 1 year or older | H117: adult | I117: adult | J117: 0.035 | K117: USEPA, 1987 | L117: 35 | M117: 0.588 | N117: 0.864 | O117: 21.58116029 | P117: 12.68972225 | Q117: 0.01268972225 | S117: turkeydomesticFadult | T117: turkey | U117: domestic | V117: F | W117: adult | X117: 10.6 | Y117: 1.225619881
A118: Rodentia | C118: mouse | D118: deer mouse | E118: M | F118: M | G118: Adult | H118: adult | I118: adult | J118: 0.02 | K118: USEPA, 1993 | L118: 20 | M118: 0.588 | N118: 0.864 | O118: 13.30729904 | P118: 7.824691833 | Q118: 0.007824691833 | S118: turkeydomesticFjuvenile | T118: turkey | U118: domestic | V118: F | W118: juvenile | X118: 11.5 | Y118: 1.296405509
A119: Rodentia | C119: mouse | D119: deer mouse | E119: F | F119: F | G119: Adult | H119: adult | I119: adult | J119: 0.019 | K119: USEPA, 1993 | L119: 19 | M119: 0.588 | N119: 0.864 | O119: 12.73043111 | P119: 7.485493495 | Q119: 0.007485493495 | S119: turkeydomesticMadult | T119: turkey | U119: domestic | V119: M | W119: adult | X119: 24.5 | Y119: 2.183008809
A120: Rodentia | C120: mouse | D120: unspecified | E120: M | F120: M | G120: weaning to 90 days | H120: juvenile | I120: juvenile | J120: 0.02695 | K120: USEPA, 1987 | L120: 26.95 | M120: 0.588 | N120: 0.864 | O120: 17.21879585 | P120: 10.12465196 | Q120: 0.01012465196 | S120: turkeydomesticMjuvenile | T120: turkey | U120: domestic | V120: M | W120: juvenile | X120: 23.2 | Y120: 2.102525528
A121: Rodentia | C121: mouse | D121: unspecified | E121: M | F121: M | G121: 90 days to 1 year | H121: juvenile | I121: juvenile | J121: 0.0317 | K121: USEPA, 1987 | L121: 31.7 | M121: 0.588 | N121: 0.864 | O121: 19.81140164 | P121: 11.64910416 | Q121: 0.01164910416 | S121: volemeadow voleFadult | T121: vole | U121: meadow vole | V121: F | W121: adult | X121: 0.039 | Y121: 0.01393340133
A122: Rodentia | C122: mouse | D122: unspecified | E122: M | F122: M | G122: 1 year or older | H122: adult | I122: adult | J122: 0.0375 | K122: USEPA, 1987 | L122: 37.5 | M122: 0.588 | N122: 0.864 | O122: 22.9067257 | P122: 13.46915471 | Q122: 0.01346915471 | S122: volemeadow voleMadult | T122: vole | U122: meadow vole | V122: M | W122: adult | X122: 0.043 | Y122: 0.01515982094
A123: Rodentia | C123: mouse | D123: unspecified | E123: F | F123: F | G123: weaning to 90 days | H123: juvenile | I123: juvenile | J123: 0.0225 | K123: USEPA, 1987 | L123: 22.5 | M123: 0.588 | N123: 0.864 | O123: 14.73281365 | P123: 8.662894426 | Q123: 0.008662894426 | S123: blackbirdred wingedFadult | T123: blackbird | U123: red winged | V123: F | W123: adult | X123: 0.0415 | Y123: 0.02339854735
A124: Rodentia | C124: mouse | D124: unspecified | E124: F | F124: F | G124: 90 days to 1 year | H124: juvenile | I124: juvenile | J124: 0.02875 | K124: USEPA, 1987 | L124: 28.75 | M124: 0.588 | N124: 0.864 | O124: 18.20803592 | P124: 10.70632512 | Q124: 0.01070632512 | S124: blackbirdred wingedMadult | T124: blackbird | U124: red winged | V124: M | W124: adult | X124: 0.0636 | Y124: 0.0303202076
A125: Rodentia | C125: mouse | D125: unspecified | E125: F | F125: F | G125: 1 year or older | H125: adult | I125: adult | J125: 0.0325 | K125: USEPA, 1987 | L125: 32.5 | M125: 0.588 | N125: 0.864 | O125: 20.24264337 | P125: 11.9026743 | Q125: 0.0119026743
A126: All birds | B126: A | C126: pheasant | D126: ring-necked | E126: F | F126: F | G126: Adult | H126: adult | I126: adult | J126: 0.95 | K126: Dunning, 1993 | L126: 950 | M126: 2.065 | N126: 0.689 | O126: 112.6293464 | P126: 232.5796004 | Q126: 0.2325796004
A127: All birds | B127: A | C127: pheasant | D127: ring-necked | E127: M | F127: M | G127: Adult | H127: adult | I127: adult | J127: 1.3 | K127: Dunning, 1993 | L127: 1300 | M127: 2.065 | N127: 0.689 | O127: 139.7999351 | P127: 288.6868659 | Q127: 0.2886868659
A128: Carnivorous birds | C128: owl | D128: barn owl | E128: M | F128: M | G128: Adult | H128: adult | I128: adult | J128: 0.479 | K128: Dunning, 1993 | L128: 479 | M128: 3.048 | N128: 0.665 | O128: 60.59309225 | P128: 184.6877452 | Q128: 0.1846877452
A129: Carnivorous birds | C129: owl | D129: barn owl | E129: F | F129: F | G129: Adult | H129: adult | I129: adult | J129: 0.568 | K129: Dunning, 1993 | L129: 568 | M129: 3.048 | N129: 0.665 | O129: 67.8643421 | P129: 206.8505147 | Q129: 0.2068505147
A130: All birds | B130: B | C130: pigeon | D130: pigeon | E130: F | F130: F | G130: Adult | H130: adult | I130: adult | J130: 0.34 | K130: Dunning, 1993 | L130: 340 | M130: 2.065 | N130: 0.689 | O130: 55.48670988 | P130: 114.5800559 | Q130: 0.1145800559
A131: All birds | B131: B | C131: pigeon | D131: pigeon | E131: M | F131: M | G131: Adult | H131: adult | I131: adult | J131: 0.369 | K131: Dunning, 1993 | L131: 369 | M131: 2.065 | N131: 0.689 | O131: 58.70582103 | P131: 121.2275204 | Q131: 0.1212275204
A132: All mammals | C132: pig | D132: miniature | E132: M | F132: M | G132: Adult | H132: adult | I132: adult | J132: 72.5 | K132: USEPA, 1987 | L132: 72500 | M132: 0.794 | N132: 0.773 | O132: =L132^N132 -> 5715.329575 | P132: =M132*O132 -> 4537.971682 | Q132: =P132/1000 -> 4.537971682
A133: All mammals | C133: pig | D133: miniature | E133: F | F133: F | G133: Adult | H133: adult | I133: adult | J133: 72.5 | K133: USEPA, 1987 | L133: =J133*1000 -> 72500 | M133: 0.794 | N133: 0.773 | O133: 5715.329575 | P133: 4537.971682 | Q133: 4.537971682
A134: All mammals | C134: pig | D134: unspecified | E134: BH | F134: B | G134: 1 d | H134: juvenile | I134: juvenile | J134: 1.2 | K134: Spears et al, 1984 | L134: 1200 | M134: 0.794 | N134: 0.773 | O134: 239.997713 | P134: 190.5581841 | Q134: 0.1905581841
A135: All mammals | C135: pig | D135: unspecified | E135: BH | F135: B | G135: 21 to 25 days | H135: juvenile | I135: juvenile | J135: 6.6 | K135: USEPA 2005 | L135: 6600 | M135: 0.794 | N135: 0.773 | O135: 896.4115882 | P135: 711.750801 | Q135: 0.711750801
A136: All mammals | C136: pig | D136: unspecified | E136: BH | F136: B | G136: 26 to 29 days | H136: juvenile | I136: juvenile | J136: 7.9 | K136: USEPA 2005 | L136: 7900 | M136: 0.794 | N136: 0.773 | O136: 1030.067635 | P136: 817.8737019 | Q136: 0.8178737019
A137: All mammals | C137: pig | D137: unspecified | E137: BH | F137: B | G137: 30 TO 35 days | H137: juvenile | I137: juvenile | J137: 9.3 | K137: USEPA 2005 | L137: 9300 | M137: 0.794 | N137: 0.773 | O137: 1168.523146 | P137: 927.8073778 | Q137: 0.9278073778
A138: All mammals | C138: pig | D138: unspecified | E138: BH | F138: B | G138: 36 to 66 days | H138: juvenile | I138: juvenile | J138: 31.5 | K138: USEPA 2005 | L138: 31500 | M138: 0.794 | N138: 0.773 | O138: 3000.50295 | P138: 2382.399342 | Q138: 2.382399342
A139: All mammals | C139: pig | D139: unspecified | E139: BH | F139: B | G139: 67 to 150 days | H139: juvenile | I139: juvenile | J139: 61 | K139: USEPA 2005 | L139: 61000 | M139: 0.794 | N139: 0.773 | O139: 5001.035788 | P139: 3970.822416 | Q139: 3.970822416
A140: All mammals | C140: pig | D140: unspecified | E140: BH | F140: B | G140: 151 to 299 days | H140: juvenile | I140: juvenile | J140: 61 | K140: USEPA 2005 | L140: 61000 | M140: 0.794 | N140: 0.773 | O140: 5001.035788 | P140: 3970.822416 | Q140: 3.970822416
A141: All mammals | C141: pig | D141: unspecified | E141: BH | F141: B | G141: > 299 days | H141: adult | I141: adult | J141: 104 | K141: USEPA 2005 | L141: 104000 | M141: 0.794 | N141: 0.773 | O141: 7553.822426 | P141: 5997.735006 | Q141: 5.997735006
A142: All mammals | C142: pig | D142: unspecified | E142: F | F142: F | G142: Adult | H142: Gestation | I142: adult | J142: 152 | K142: Cromwell et al., 1993 | L142: 152000 | M142: 0.794 | N142: 0.773 | O142: 10128.96554 | P142: 8042.398636 | Q142: 8.042398636
A143: All birds | B143: A | C143: quail | D143: Japanese | E143: F | F143: F | G143: Adult | H143: adult | I143: adult | J143: 0.1 | K143: Dunning, 1993 | L143: 100 | M143: 2.065 | N143: 0.689 | O143: 23.87811283 | P143: 49.30830299 | Q143: 0.04930830299
A144: All birds | B144: A | C144: quail | D144: Japanese | E144: M | F144: M | G144: Adult | H144: adult | I144: adult | J144: 0.09 | K144: Dunning, 1993 | L144: 90 | M144: 2.065 | N144: 0.689 | O144: 22.20614079 | P144: 45.85568073 | Q144: 0.04585568073
A145: All birds | B145: A | C145: quail | D145: Japanese | E145: BH | F145: B | G145: 0 to 1 days | H145: juvenile | I145: juvenile | J145: 0.07045 | K145: USEPA, 2005 | L145: 70.45 | M145: 2.065 | N145: 0.689 | O145: 18.75815012 | P145: 38.73558 | Q145: 0.03873558
A146: All birds | B146: A | C146: quail | D146: Japanese | E146: BH | F146: B | G146: 7 to 8 days | H146: juvenile | I146: juvenile | J146: 0.103 | K146: USEPA, 2005 | L146: 103 | M146: 2.065 | N146: 0.689 | O146: 24.36940063 | P146: 50.32281231 | Q146: 0.05032281231
A147: All birds | B147: A | C147: quail | D147: Japanese | E147: BH | F147: B | G147: 14 to 28 days | H147: juvenile | I147: juvenile | J147: 0.12 | K147: USEPA, 2005 | L147: 120 | M147: 2.065 | N147: 0.689 | O147: 27.07421532 | P147: 55.90825464 | Q147: 0.05590825464
A148: All birds | B148: A | C148: quail | D148: Japanese | E148: BH | F148: B | G148: 29 to 59 days | H148: juvenile | I148: juvenile | J148: 0.132 | K148: USEPA, 2005 | L148: 132 | M148: 2.065 | N148: 0.689 | O148: 28.91182048 | P148: 59.70290929 | Q148: 0.05970290929
A149: All birds | B149: A | C149: quail | D149: Japanese | E149: BH | F149: B | G149: 60 to 154 days | H149: juvenile | I149: adult | J149: 0.135 | K149: USEPA, 2005 | L149: 135 | M149: 2.065 | N149: 0.689 | O149: 29.36296899 | P149: 60.63453097 | Q149: 0.06063453097
A150: All birds | B150: A | C150: quail | D150: bobwhite | E150: F | F150: F | G150: Adult | H150: adult | I150: adult | J150: 0.17 | K150: USEPA, 1993 | L150: 170 | M150: 2.065 | N150: 0.689 | O150: 34.41749887 | P150: 71.07213517 | Q150: 0.07107213517
A151: All birds | B151: A | C151: quail | D151: bobwhite | E151: M | F151: M | G151: Adult | H151: adult | I151: adult | J151: 0.16 | K151: USEPA, 1993 | L151: 160 | M151: 2.065 | N151: 0.689 | O151: 33.00947887 | P151: 68.16457387 | Q151: 0.06816457387
A152: All birds | B152: A | C152: quail | D152: bobwhite | E152: JV | F152: B | G152: 10 days | H152: juvenile | I152: juvenile | J152: 0.012 | K152: USEPA, 1993 | L152: 12 | M152: 2.065 | N152: 0.689 | O152: 5.540588274 | P152: 11.44131479 | Q152: 0.01144131479
A153: All birds | B153: A | C153: quail | D153: bobwhite | E153: BH | F153: B | G153: 18 days | H153: juvenile | I153: juvenile | J153: 0.034 | K153: Landis Assoc.Inc, 1985 | L153: 34 | M153: 2.065 | N153: 0.689 | O153: 11.35504799 | P153: 23.44817409 | Q153: 0.02344817409
A154: All birds | B154: A | C154: quail | D154: bobwhite | E154: JV | F154: B | G154: 30 days | H154: juvenile | I154: juvenile | J154: 0.04 | K154: USEPA, 1993 | L154: 40 | M154: 2.065 | N154: 0.689 | O154: 12.70045658 | P154: 26.22644283 | Q154: 0.02622644283
A155: All mammals | C155: rabbit | D155: unspecified | E155: M | F155: M | G155: weaning to 90 days | H155: juvenile | I155: juvenile | J155: 2.86 | K155: USEPA, 1987 | L155: 2860 | M155: 0.794 | N155: 0.773 | O155: 469.6463415 | P155: 372.8991952 | Q155: 0.3728991952
A156: All mammals | C156: rabbit | D156: unspecified | E156: M | F156: M | G156: 90 days to 1 year | H156: juvenile | I156: juvenile | J156: 3.76 | K156: USEPA, 1987 | L156: 3760 | M156: 0.794 | N156: 0.773 | O156: 580.2567539 | P156: 460.7238626 | Q156: 0.4607238626
A157: All mammals | C157: rabbit | D157: unspecified | E157: M | F157: M | G157: 1 year or older | H157: adult | I157: adult | J157: 4 | K157: USEPA, 1987 | L157: 4000 | M157: 0.794 | N157: 0.773 | O157: 608.684683 | P157: 483.2956383 | Q157: 0.4832956383
A158: All mammals | C158: rabbit | D158: unspecified | E158: F | F158: F | G158: weaning to 90 days | H158: juvenile | I158: juvenile | J158: 3.1 | K158: USEPA, 1987 | L158: 3100 | M158: 0.794 | N158: 0.773 | O158: 499.830311 | P158: 396.8652669 | Q158: 0.3968652669
A159: All mammals | C159: rabbit | D159: unspecified | E159: F | F159: F | G159: 90 days to 1 year | H159: juvenile | I159: juvenile | J159: 3.93 | K159: USEPA, 1987 | L159: 3930 | M159: 0.794 | N159: 0.773 | O159: 600.434228 | P159: 476.7447771 | Q159: 0.4767447771
A160: All mammals | C160: rabbit | D160: unspecified | E160: F | F160: F | G160: 1 year or older | H160: adult | I160: adult | J160: 4.1 | K160: USEPA, 1987 | L160: 4100 | M160: 0.794 | N160: 0.773 | O160: 620.4144741 | P160: 492.6090925 | Q160: 0.4926090925
A161: Rodentia | C161: rat | D161: Fischer 344 | E161: M | F161: M | G161: weaning to 90 days | H161: juvenile | I161: juvenile | J161: 0.18 | K161: USEPA, 1987 | L161: 180 | M161: 0.588 | N161: 0.864 | O161: 88.82913732 | P161: 52.23153275 | Q161: 0.05223153275
A162: Rodentia | C162: rat | D162: Fischer 344 | E162: M | F162: M | G162: 90 days to 1 year | H162: juvenile | I162: juvenile | J162: 0.38 | K162: USEPA, 1987 | L162: 380 | M162: 0.588 | N162: 0.864 | O162: 169.4076537 | P162: 99.61170037 | Q162: 0.09961170037
A163: Rodentia | C163: rat | D163: Fischer 344 | E163: M | F163: M | G163: 1 year or older | H163: adult | I163: adult | J163: 0.4 | K163: USEPA, 1987 | L163: 400 | M163: 0.588 | N163: 0.864 | O163: 177.0842076 | P163: 104.1255141 | Q163: 0.1041255141
A164: Rodentia | C164: rat | D164: Fischer 344 | E164: F | F164: F | G164: weaning to 90 days | H164: juvenile | I164: juvenile | J164: 0.124 | K164: USEPA, 1987 | L164: 124 | M164: 0.588 | N164: 0.864 | O164: 64.37486569 | P164: 37.85242103 | Q164: 0.03785242103
A165: Rodentia | C165: rat | D165: Fischer 344 | E165: F | F165: F | G165: 90 days to 1 year | H165: juvenile | I165: juvenile | J165: 0.229 | K165: USEPA, 1987 | L165: 229 | M165: 0.588 | N165: 0.864 | O165: 109.3699105 | P165: 64.30950738 | Q165: 0.06430950738
A166: Rodentia | C166: rat | D166: Fischer 344 | E166: F | F166: F | G166: 1 year or older | H166: adult | I166: adult | J166: 0.25 | K166: USEPA, 1987 | L166: 250 | M166: 0.588 | N166: 0.864 | O166: 117.983199 | P166: 69.37412102 | Q166: 0.06937412102
A167: Rodentia | C167: rat | D167: Long-Evans | E167: M | F167: M | G167: weaning to 90 days | H167: juvenile | I167: juvenile | J167: 0.248 | K167: USEPA, 1987 | L167: 248 | M167: 0.588 | N167: 0.864 | O167: 117.1672542 | P167: 68.89434544 | Q167: 0.06889434544
A168: Rodentia | C168: rat | D168: Long-Evans | E168: M | F168: M | G168: 90 days to 1 year | H168: juvenile | I168: juvenile | J168: 0.472 | K168: USEPA, 1987 | L168: 472 | M168: 0.588 | N168: 0.864 | O168: 204.308242 | P168: 120.1332463 | Q168: 0.1201332463
A169: Rodentia | C169: rat | D169: Long-Evans | E169: M | F169: M | G169: 1 year or older | H169: adult | I169: adult | J169: 0.5 | K169: USEPA, 1987 | L169: 500 | M169: 0.588 | N169: 0.864 | O169: 214.7385834 | P169: 126.266287 | Q169: 0.126266287
A170: Rodentia | C170: rat | D170: Long-Evans | E170: F | F170: F | G170: weaning to 90 days | H170: juvenile | I170: juvenile | J170: 0.179 | K170: USEPA, 1987 | L170: 179 | M170: 0.588 | N170: 0.864 | O170: 88.40259605 | P170: 51.98072647 | Q170: 0.05198072647
A171: Rodentia | C171: rat | D171: Long-Evans | E171: F | F171: F | G171: 90 days to 1 year | H171: juvenile | I171: juvenile | J171: 0.344 | K171: USEPA, 1987 | L171: 344 | M171: 0.588 | N171: 0.864 | O171: 155.4484852 | P171: 91.40370931 | Q171: 0.09140370931
A172: Rodentia | C172: rat | D172: Long-Evans | E172: F | F172: F | G172: 1 year or older | H172: adult | I172: adult | J172: 0.35 | K172: USEPA, 1987 | L172: 350 | M172: 0.588 | N172: 0.864 | O172: 157.7882975 | P172: 92.77951894 | Q172: 0.09277951894
A173: Rodentia | C173: rat | D173: Osborne-Mendel | E173: M | F173: M | G173: weaning to 90 days | H173: juvenile | I173: juvenile | J173: 0.263 | K173: USEPA, 1987 | L173: 263 | M173: 0.588 | N173: 0.864 | O173: 123.2655639 | P173: 72.48015155 | Q173: 0.07248015155
A174: Rodentia | C174: rat | D174: Osborne-Mendel | E174: M | F174: M | G174: 90 days to 1 year | H174: juvenile | I174: juvenile | J174: 0.514 | K174: USEPA, 1987 | L174: 514 | M174: 0.588 | N174: 0.864 | O174: 219.9237513 | P174: 129.3151658 | Q174: 0.1293151658
A175: Rodentia | C175: rat | D175: Osborne-Mendel | E175: M | F175: M | G175: 1 year or older | H175: adult | I175: adult | J175: 0.55 | K175: USEPA, 1987 | L175: 550 | M175: 0.588 | N175: 0.864 | O175: 233.170371 | P175: 137.1041781 | Q175: 0.1371041781
A176: Rodentia | C176: rat | D176: Osborne-Mendel | E176: F | F176: F | G176: weaning to 90 days | H176: juvenile | I176: juvenile | J176: 0.201 | K176: USEPA, 1987 | L176: 201 | M176: 0.588 | N176: 0.864 | O176: 97.71503538 | P176: 57.4564408 | Q176: 0.0574564408
A177: Rodentia | C177: rat | D177: Osborne-Mendel | E177: F | F177: F | G177: 90 days to 1 year | H177: juvenile | I177: juvenile | J177: 0.389 | K177: USEPA, 1987 | L177: 389 | M177: 0.588 | N177: 0.864 | O177: 172.8687356 | P177: 101.6468165 | Q177: 0.1016468165
A178: Rodentia | C178: rat | D178: Osborne-Mendel | E178: F | F178: F | G178: 1 year or older | H178: adult | I178: adult | J178: 0.4 | K178: USEPA, 1987 | L178: 400 | M178: 0.588 | N178: 0.864 | O178: 177.0842076 | P178: 104.1255141 | Q178: 0.1041255141
A179: Rodentia | C179: rat | D179: Sprague-Dawley | E179: M | F179: M | G179: weaning to 90 days | H179: juvenile | I179: juvenile | J179: 0.267 | K179: USEPA, 1987 | L179: 267 | M179: 0.588 | N179: 0.864 | O179: 124.8836921 | P179: 73.43161095 | Q179: 0.07343161095
A180: Rodentia | C180: rat | D180: Sprague-Dawley | E180: M | F180: M | G180: 90 days to 1 year | H180: juvenile | I180: juvenile | J180: 0.523 | K180: USEPA, 1987 | L180: 523 | M180: 0.588 | N180: 0.864 | O180: 223.2469114 | P180: 131.2691839 | Q180: 0.1312691839
A181: Rodentia | C181: rat | D181: Sprague-Dawley | E181: M | F181: M | G181: 1 year or older | H181: adult | I181: adult | J181: 0.6 | K181: USEPA, 1987 | L181: 600 | M181: 0.588 | N181: 0.864 | O181: 251.3753454 | P181: 147.8087031 | Q181: 0.1478087031
A182: Rodentia | C182: rat | D182: Sprague-Dawley | E182: F | F182: F | G182: weaning to 90 days | H182: juvenile | I182: juvenile | J182: 0.204 | K182: USEPA, 1987 | L182: 204 | M182: 0.588 | N182: 0.864 | O182: 98.97385008 | P182: 58.19662385 | Q182: 0.05819662385
A183: Rodentia | C183: rat | D183: Sprague-Dawley | E183: F | F183: F | G183: 90 days to 1 year | H183: juvenile | I183: juvenile | J183: 0.338 | K183: USEPA, 1987 | L183: 338 | M183: 0.588 | N183: 0.864 | O183: 153.1031158 | P183: 90.02463208 | Q183: 0.09002463208
A184: Rodentia | C184: rat | D184: Sprague-Dawley | E184: F | F184: F | G184: 1 year or older | H184: adult | I184: adult | J184: 0.35 | K184: USEPA, 1987 | L184: 350 | M184: 0.588 | N184: 0.864 | O184: 157.7882975 | P184: 92.77951894 | Q184: 0.09277951894
A185: Rodentia | C185: rat | D185: Wistar | E185: M | F185: M | G185: weaning to 90 days | H185: juvenile | I185: juvenile | J185: 0.217 | K185: USEPA, 1987 | L185: 217 | M185: 0.588 | N185: 0.864 | O185: 104.400171 | P185: 61.38730055 | Q185: 0.06138730055
A186: Rodentia | C186: rat | D186: Wistar | E186: M | F186: M | G186: 90 days to 1 year | H186: juvenile | I186: juvenile | J186: 0.462 | K186: USEPA, 1987 | L186: 462 | M186: 0.588 | N186: 0.864 | O186: 200.5629306 | P186: 117.9310032 | Q186: 0.1179310032
A187: Rodentia | C187: rat | D187: Wistar | E187: M | F187: M | G187: 1 year or older | H187: adult | I187: adult | J187: 0.5 | K187: USEPA, 1987 | L187: 500 | M187: 0.588 | N187: 0.864 | O187: 214.7385834 | P187: 126.266287 | Q187: 0.126266287
A188: Rodentia | C188: rat | D188: Wistar | E188: F | F188: F | G188: weaning to 90 days | H188: juvenile | I188: juvenile | J188: 0.156 | K188: USEPA, 1987 | L188: 156 | M188: 0.588 | N188: 0.864 | O188: 78.49819181 | P188: 46.15693678 | Q188: 0.04615693678
A189: Rodentia | C189: rat | D189: Wistar | E189: F | F189: F | G189: 90 days to 1 year | H189: juvenile | I189: juvenile | J189: 0.297 | K189: USEPA, 1987 | L189: 297 | M189: 0.588 | N189: 0.864 | O189: 136.9183233 | P189: 80.50797411 | Q189: 0.08050797411
A190: Rodentia | C190: rat | D190: Wistar | E190: F | F190: F | G190: 1 year or older | H190: adult | I190: adult | J190: 0.32 | K190: USEPA, 1987 | L190: 320 | M190: 0.588 | N190: 0.864 | O190: 146.0325205 | P190: 85.86712208 | Q190: 0.08586712208
A191: Rodentia | C191: rat | D191: unspecified | E191: M | F191: M | G191: weaning to 90 days | H191: juvenile | I191: juvenile | J191: 0.235 | K191: USEPA, 1987 | L191: 235 | M191: 0.588 | N191: 0.864 | O191: 111.8414098 | P191: 65.76274898 | Q191: 0.06576274898
A192: Rodentia | C192: rat | D192: unspecified | E192: M | F192: M | G192: 90 days to 1 year | H192: juvenile | I192: juvenile | J192: 0.4702 | K192: USEPA, 1987 | L192: 470.2 | M192: 0.588 | N192: 0.864 | O192: 203.6348888 | P192: 119.7373146 | Q192: 0.1197373146
A193: Rodentia | C193: rat | D193: unspecified | E193: M | F193: M | G193: 1 year or older | H193: adult | I193: adult | J193: 0.51 | K193: USEPA, 1987 | L193: 510 | M193: 0.588 | N193: 0.864 | O193: 218.4442574 | P193: 128.4452233 | Q193: 0.1284452233
A194: Rodentia | C194: rat | D194: unspecified | E194: F | F194: F | G194: weaning to 90 days | H194: juvenile | I194: juvenile | J194: 0.2024 | K194: USEPA, 1987 | L194: 202.4 | M194: 0.588 | N194: 0.864 | O194: 98.30279793 | P194: 57.80204518 | Q194: 0.05780204518
A195: Rodentia | C195: rat | D195: unspecified | E195: F | F195: F | G195: 90 days to 1 year | H195: juvenile | I195: juvenile | J195: 0.3846 | K195: USEPA, 1987 | L195: 384.6 | M195: 0.588 | N195: 0.864 | O195: 171.1780276 | P195: 100.6526802 | Q195: 0.1006526802
A196: Rodentia | C196: rat | D196: unspecified | E196: F | F196: F | G196: 1 year or older | H196: adult | I196: adult | J196: 0.4 | K196: USEPA, 1987 | L196: 400 | M196: 0.588 | N196: 0.864 | O196: =L196^N196 -> 177.0842076 | P196: =M196*O196 -> 104.1255141 | Q196: =P196/1000 -> 0.1041255141
A197: Passerines | C197: blackbird | D197: red winged | E197: M | F197: M | G197: not specified | H197: adult | I197: adult | J197: 0.0636 | K197: Dunning, 1993 | L197: =J197*1000 -> 63.6 | M197: 2.438 | N197: 0.607 | O197: 12.43650845 | P197: 30.3202076 | Q197: 0.0303202076
A198: Passerines | C198: blackbird | D198: red winged | E198: F | F198: F | G198: not specified | H198: adult | I198: adult | J198: 0.0415 | K198: Dunning, 1993 | L198: 41.5 | M198: 2.438 | N198: 0.607 | O198: 9.597435336 | P198: 23.39854735 | Q198: 0.02339854735
A199: All mammals | C199: sheep | D199: domestic | E199: BH | F199: B | G199: 1 week | H199: juvenile | I199: juvenile | J199: 46.81 | K199: Steinheim et al., 2002 | L199: 46810 | M199: 0.794 | N199: 0.773 | O199: 4075.414343 | P199: 3235.878988 | Q199: 3.235878988
A200: All mammals | C200: sheep | D200: unspecified | E200: BH | F200: B | G200: 112 to 189 days | H200: juvenile | I200: juvenile | J200: 34 | K200: USEPA, 2005 | L200: 34000 | M200: 0.794 | N200: 0.773 | O200: 3182.974819 | P200: 2527.282006 | Q200: 2.527282006
... 82 more rows

Sheet Index (hidden)
A1: Lookup | B1: General Organism Type | C1: Specific Organism Type | D1: SRC_Sex | E1: BW Range | F1: IR Range | I1: For FIR--> | J1: Nagy 2001 Group | K1: Comments | L1: General Organism Type | M1: a | N1: b | O1: Code | P1: For Figure | Q1: Bird or Mammal? | S1: Accumulation | T1: Accumulation (ACC) | V1: yes | W1: NOAEL | X1: Mammalian
A2: =B2&C2&D2 -> catunspecifiedM | B2: cat | C2: unspecified | D2: M | E2: K2:L5 | F2: K2:S5 | J2: Carnivora | L2: cat | M2: 0.348 | N2: 0.859 | O2: Cat | P2: =O2&" - "&PROPER(L2) -> Cat - Cat | Q2: mammal | S2: Behavior | T2: Behavior (BEH) | V2: no | W2: LOAEL | X2: Avian
A3: =B3&C3&D3 -> catunspecifiedF | B3: cat | C3: unspecified | D3: F | E3: K6:L9 | F3: K6:S9 | J3: Herbivores | L3: cattle | M3: 2.606 | N3: 0.628 | O3: Ctl | P3: =O3&" - "&PROPER(L3) -> Ctl - Cattle | Q3: mammal | S3: Biochemical | T3: Biochemical (BIO)
A4: catunspecifiedB | B4: cat | C4: unspecified | D4: B | E4: K10:L13 | F4: K10:S13 | J4: All birds | K4: A | L4: chicken | M4: 2.065 | N4: 0.689 | O4: Chi | P4: Chi - Chicken | Q4: bird | S4: Growth | T4: Growth (GRO)
A5: cattleBeefM | B5: cattle | C5: Beef | D5: M | E5: K14:L17 | F5: K14:S17 | J5: Carnivora | L5: dog | M5: 0.348 | N5: 0.859 | O5: Dog | P5: Dog - Dog | Q5: mammal | S5: Pathology | T5: Pathology (PTH)
A6: cattleBeefF | B6: cattle | C6: Beef | D6: F | E6: K18:L21 | F6: K18:S21 | J6: All birds | K6: B | L6: dove | M6: 2.065 | N6: 0.689 | O6: Dov | P6: Dov - Dove | Q6: bird | S6: Population | T6: Population (POP)
A7: cattleBeefB | B7: cattle | C7: Beef | D7: B | E7: K22:L25 | F7: K22:S25 | J7: Omnivorous birds | L7: duck | M7: 2.094 | N7: 0.627 | O7: Duc | P7: Duc - Duck | Q7: bird | S7: Physiology | T7: Physiology (PHY)
A8: cattleFresianF | B8: cattle | C8: Fresian | D8: F | E8: K26:L27 | F8: K26:S27 | J8: Carnivorous birds | L8: eagle | M8: 3.048 | N8: 0.665 | O8: Eag | P8: Eag - Eagle | Q8: bird | S8: Reproduction | T8: Reproduction (REP)
A9: cattleHolsteinF | B9: cattle | C9: Holstein | D9: F | E9: K28:L29 | F9: K28:S29 | J9: Passerines | L9: finch | M9: 2.438 | N9: 0.607 | O9: Fin | P9: Fin - Finch | Q9: bird | S9: Survival | T9: Survival (SUR)
A10: cattleJerseyF | B10: cattle | C10: Jersey | D10: F | E10: K30:L31 | F10: K30:S31 | J10: Rodentia | L10: gerbil | M10: 0.588 | N10: 0.864 | O10: Ger | P10: Ger - Gerbil | Q10: mammal | S10: Data Not Used
A11: cattleunspecifiedM | B11: cattle | C11: unspecified | D11: M | E11: K32:L41 | F11: K32:S41 | J11: Rodentia | L11: guinea pig | M11: 0.588 | N11: 0.864 | O11: GP | P11: GP - Guinea Pig | Q11: mammal
A12: cattleunspecifiedF | B12: cattle | C12: unspecified | D12: F | E12: K42:L51 | F12: K42:S51 | J12: Rodentia | L12: hamster | M12: 0.588 | N12: 0.864 | O12: Ham | P12: Ham - Hamster | Q12: mammal
A13: cattleunspecifiedB | B13: cattle | C13: unspecified | D13: B | E13: K52:L61 | F13: K52:S61 | J13: All mammals | L13: horse | M13: 0.794 | N13: 0.773 | O13: Hor | P13: Hor - Horse | Q13: mammal
A14: chickendomesticM | B14: chicken | C14: domestic | D14: M | E14: K62:L73 | F14: K62:S73 | J14: Carnivorous birds | L14: kestrel | M14: 3.048 | N14: 0.665 | O14: Kes | P14: Kes - Kestrel | Q14: bird
A15: chickendomesticF | B15: chicken | C15: domestic | D15: F | E15: K74:L85 | F15: K74:S85 | J15: Carnivora | L15: mink | M15: 0.348 | N15: 0.859 | O15: Min | P15: Min - Mink | Q15: mammal
A16: chickendomesticB | B16: chicken | C16: domestic | D16: B | E16: K86:L97 | F16: K86:S97 | J16: Rodentia | L16: mouse | M16: 0.588 | N16: 0.864 | O16: Mou | P16: Mou - Mouse | Q16: mammal
A17: chickenunspecifiedM | B17: chicken | C17: unspecified | D17: M | E17: K98:L99 | F17: K98:S99 | J17: All birds | K17: A | L17: pheasant | M17: 2.065 | N17: 0.689 | O17: Phe | P17: Phe - Pheasant | Q17: bird
A18: chickenunspecifiedF | B18: chicken | C18: unspecified | D18: F | E18: K100:L101 | F18: K100:S101 | J18: Carnivorous birds | L18: owl | M18: 3.048 | N18: 0.665 | O18: Owl | P18: Owl - Owl | Q18: bird
A19: chickenunspecifiedB | B19: chicken | C19: unspecified | D19: B | E19: K102:L103 | F19: K102:S103 | J19: All birds | K19: B | L19: pigeon | M19: 2.065 | N19: 0.689 | O19: Pin | P19: Pin - Pigeon | Q19: bird
A20: dogunspecifiedM | B20: dog | C20: unspecified | D20: M | E20: K104:L107 | F20: K104:S107 | J20: All mammals | L20: pig | M20: 0.794 | N20: 0.773 | O20: Pig | P20: Pig - Pig | Q20: mammal
A21: dogunspecifiedF | B21: dog | C21: unspecified | D21: F | E21: L108:L111 | F21: S108:S111 | J21: All birds | K21: A | L21: quail | M21: 2.065 | N21: 0.689 | O21: Qua | P21: Qua - Quail | Q21: bird
A22: dogunspecifiedB | B22: dog | C22: unspecified | D22: B | E22: K112:L115 | F22: K112:S115 | J22: All mammals | L22: rabbit | M22: 0.794 | N22: 0.773 | O22: Rab | P22: Rab - Rabbit | Q22: mammal
A23: doveringed turtleB | B23: dove | C23: ringed turtle | D23: B | E23: K116:L126 | F23: K116:S126 | J23: Rodentia | L23: rat | M23: 0.588 | N23: 0.864 | O23: Rat | P23: Rat - Rat | Q23: mammal
A24: doveringed turtleM | B24: dove | C24: ringed turtle | D24: M | E24: K127:L137 | F24: K127:S137 | J24: Passerines | L24: blackbird | M24: 2.438 | N24: 0.607 | O24: Blk | P24: Blk - Blackbird | Q24: bird
A25: doveringed turtleF | B25: dove | C25: ringed turtle | D25: F | E25: K138:L148 | F25: K138:S148 | J25: All mammals | L25: sheep | M25: 0.794 | N25: 0.773 | O25: She | P25: She - Sheep | Q25: mammal
A26: duckmallardF | B26: duck | C26: mallard | D26: F | E26: K149:L154 | F26: K149:S154 | J26: Rodentia | L26: shrew | M26: 0.588 | N26: 0.864 | O26: Shr | P26: Shr - Shrew | Q26: mammal
A27: duckmallardM | B27: duck | C27: mallard | D27: M | E27: K155:L1560 | F27: K155:S160 | J27: Passerines | L27: sparrow | M27: 2.438 | N27: 0.607 | O27: Spa | P27: Spa - Sparrow | Q27: bird
A28: duckmallardB | B28: duck | C28: mallard | D28: B | E28: K161:L166 | F28: K161:S166 | J28: Passerines | L28: starling | M28: 2.438 | N28: 0.607 | O28: Sta | P28: Sta - Starling | Q28: bird
A29: duckwhite pekinF | B29: duck | C29: white pekin | D29: F | E29: K167:L184 | F29: K167:S184 | J29: All birds | K29: A | L29: turkey | M29: 2.065 | N29: 0.689 | O29: Tur | P29: Tur - Turkey | Q29: bird
A30: duckwhite pekinM | B30: duck | C30: white pekin | D30: M | E30: K185:L202 | F30: K185:S202 | J30: Rodentia | L30: vole | M30: 0.588 | N30: 0.864 | O30: Vol | P30: Vol - Vole | Q30: mammal
A31: duckwhite pekinB | B31: duck | C31: white pekin | D31: B | E31: K203:L220 | F31: K203:S220
A32: eaglebald eagleB | B32: eagle | C32: bald eagle | D32: B | E32: K221:L222 | F32: K221:S222
A33: eaglebald eagleM | B33: eagle | C33: bald eagle | D33: M | E33: K223:L224 | F33: K223:S224
A34: eaglebald eagleF | B34: eagle | C34: bald eagle | D34: F | E34: K225:L226 | F34: K225:S226
A35: finchzebra finchB | B35: finch | C35: zebra finch | D35: B | E35: K227:L228 | F35: K227:S228
A36: finchzebra finchM | B36: finch | C36: zebra finch | D36: M | E36: K229:L230 | F36: K229:S230
A37: finchzebra finchF | B37: finch | C37: zebra finch | D37: F | E37: K231:L232 | F37: K231:S232
A38: gerbilunspecifiedM | B38: gerbil | C38: unspecified | D38: M | E38: K233:L236 | F38: K233:S236
A39: gerbilunspecifiedF | B39: gerbil | C39: unspecified | D39: F | E39: K237:L240 | F39: K237:S240
A40: gerbilunspecifiedB | B40: gerbil | C40: unspecified | D40: B | E40: K241:L244 | F40: K241:S244
A41: guinea pigunspecifiedM | B41: guinea pig | C41: unspecified | D41: M | E41: K245:L248 | F41: K245:S248
A42: guinea pigunspecifiedF | B42: guinea pig | C42: unspecified | D42: F | E42: K249:L252 | F42: K249:S252
A43: guinea pigunspecifiedB | B43: guinea pig | C43: unspecified | D43: B | E43: K253:L256 | F43: K253:S256
A44: hamstergolden SyrianM | B44: hamster | C44: golden Syrian | D44: M | E44: K257:L260 | F44: K257:S260
A45: hamstergolden SyrianF | B45: hamster | C45: golden Syrian | D45: F | E45: K261:L264 | F45: K261:S264
A46: hamstergolden SyrianB | B46: hamster | C46: golden Syrian | D46: B | E46: K265:L268 | F46: K265:S268
A47: hamsterChinese & DjungarainM | B47: hamster | C47: Chinese & Djungarain | D47: M | E47: K269:L272 | F47: K269:S272
A48: hamsterChinese & DjungarainF | B48: hamster | C48: Chinese & Djungarain | D48: F | E48: K273:L276 | F48: K273:S276
A49: hamsterChinese & DjungarainB | B49: hamster | C49: Chinese & Djungarain | D49: B | E49: K277:L280 | F49: K277:S280
A50: hamsterunspecifiedM | B50: hamster | C50: unspecified | D50: M | E50: K281:L284 | F50: K281:S284
A51: hamsterunspecifiedF | B51: hamster | C51: unspecified | D51: F | E51: K285:L288 | F51: K285:S288
A52: hamsterunspecifiedB | B52: hamster | C52: unspecified | D52: B | E52: K289:L292 | F52: K289:S292
A53: horseunspecifiedM | B53: horse | C53: unspecified | D53: M | E53: K293:L297 | F53: K293:S297
A54: horseunspecifiedB | B54: horse | C54: unspecified | D54: B | E54: K298:L302 | F54: K298:S302
A55: horseunspecifiedF | B55: horse | C55: unspecified | D55: F | E55: K303:L304 | F55: K303:S304
A56: kestrelAmericanF | B56: kestrel | C56: American | D56: F | E56: K305:L306 | F56: K305:S306
A57: kestrelAmericanM | B57: kestrel | C57: American | D57: M | E57: K307:L308 | F57: K307:S308
A58: kestrelAmericanB | B58: kestrel | C58: American | D58: B | E58: K309:L310 | F58: K309:S310
A59: minkunspecifiedM | B59: mink | C59: unspecified | D59: M | E59: K311:L314 | F59: K311:S314
A60: minkunspecifiedF | B60: mink | C60: unspecified | D60: F | E60: K315:L318 | F60: K315:S318
A61: minkunspecifiedB | B61: mink | C61: unspecified | D61: B | E61: K319:L322 | F61: K319:S322
A62: mouseBAF1M | B62: mouse | C62: BAF1 | D62: M | E62: K323:L326 | F62: K323:S326
A63: mouseBAF1F | B63: mouse | C63: BAF1 | D63: F | E63: K327:L330 | F63: K327:S330
A64: mouseBAF1B | B64: mouse | C64: BAF1 | D64: B | E64: K331:L334 | F64: K331:S334
A65: mouseB6C3F1M | B65: mouse | C65: B6C3F1 | D65: M | E65: K335:L338 | F65: K335:S338
A66: mouseB6C3F1F | B66: mouse | C66: B6C3F1 | D66: F | E66: K339:L342 | F66: K339:S342
A67: mouseB6C3F1B | B67: mouse | C67: B6C3F1 | D67: B | E67: K343:L346 | F67: K343:S346
A68: mousedeer mouseM | B68: mouse | C68: deer mouse | D68: M | E68: K347:L348 | F68: K347:S348
A69: mousedeer mouseF | B69: mouse | C69: deer mouse | D69: F | E69: K349:L350 | F69: K349:S350
A70: mousedeer mouseB | B70: mouse | C70: deer mouse | D70: B | E70: K351:L352 | F70: K351:S352
A71: =B71&C71&D71 -> mouseunspecifiedM | B71: mouse | C71: unspecified | D71: M | E71: K353:L356 | F71: K353:S356
A72: mouseunspecifiedF | B72: mouse | C72: unspecified | D72: F | E72: K357:L360 | F72: K357:S360
A73: mouseunspecifiedB | B73: mouse | C73: unspecified | D73: B | E73: K361:L364 | F73: K361:S364
A74: pheasantring-neckedF | B74: pheasant | C74: ring-necked | D74: F | E74: K365:L366 | F74: K365:S366
A75: pheasantring-neckedM | B75: pheasant | C75: ring-necked | D75: M | E75: K367:L368 | F75: K367:S368
A76: pheasantring-neckedB | B76: pheasant | C76: ring-necked | D76: B | E76: K369:L370 | F76: K369:S370
A77: owlbarn owlM | B77: owl | C77: barn owl | D77: M | E77: K371:L372 | F77: K371:S372
A78: owlbarn owlF | B78: owl | C78: barn owl | D78: F | E78: K373:L374 | F78: K373:S374
A79: owlbarn owlB | B79: owl | C79: barn owl | D79: B | E79: K375:L376 | F79: K375:S376
A80: pigeonpigeonF | B80: pigeon | C80: pigeon | D80: F | E80: K377:L378 | F80: K377:S378
A81: pigeonpigeonM | B81: pigeon | C81: pigeon | D81: M | E81: K379:L380 | F81: K379:S380
A82: pigeonpigeonB | B82: pigeon | C82: pigeon | D82: B | E82: K381:L382 | F82: K381:S382
A83: pigminiatureM | B83: pig | C83: miniature | D83: M | E83: K383:L384 | F83: K383:S384
A84: pigminiatureF | B84: pig | C84: miniature | D84: F | E84: K385:L386 | F84: K385:S386
A85: pigminiatureB | B85: pig | C85: miniature | D85: B | E85: K387:L388 | F85: K387:S388
A86: pigunspecifiedB | B86: pig | C86: unspecified | D86: B | E86: K389:L397 | F86: K389:S397
A87: pigunspecifiedF | B87: pig | C87: unspecified | D87: F | E87: K398:L406 | F87: K398:S406
A88: pigunspecifiedM | B88: pig | C88: unspecified | D88: M | E88: K407:L415 | F88: K407:S415
A89: quailJapaneseF | B89: quail | C89: Japanese | D89: F | E89: K416:L422 | F89: K416:S422
A90: quailJapaneseB | B90: quail | C90: Japanese | D90: B | E90: K423:L429 | F90: K423:S429
A91: quailJapaneseM | B91: quail | C91: Japanese | D91: M | E91: K430:L436 | F91: K430:S436
A92: quailbobwhiteF | B92: quail | C92: bobwhite | D92: F | E92: K437:L444 | F92: K437:S444
A93: quailbobwhiteB | B93: quail | C93: bobwhite | D93: B | E93: K445:L452 | F93: K445:S452
A94: quailbobwhiteM | B94: quail | C94: bobwhite | D94: M | E94: K453:L460 | F94: K453:S460
A95: rabbitunspecifiedM | B95: rabbit | C95: unspecified | D95: M | E95: K461:L464 | F95: K461:S464
A96: rabbitunspecifiedF | B96: rabbit | C96: unspecified | D96: F | E96: K465:L468 | F96: K465:S468
A97: rabbitunspecifiedB | B97: rabbit | C97: unspecified | D97: B | E97: K469:L472 | F97: K469:S472
A98: ratFischer 344M | B98: rat | C98: Fischer 344 | D98: M | E98: K473:L476 | F98: K473:S476
A99: ratFischer 344F | B99: rat | C99: Fischer 344 | D99: F | E99: K477:L480 | F99: K477:S480
A100: ratFischer 344B | B100: rat | C100: Fischer 344 | D100: B | E100: K481:L484 | F100: K481:S484
A101: ratLong-EvansM | B101: rat | C101: Long-Evans | D101: M | E101: K485:L488 | F101: K485:S488
A102: ratLong-EvansF | B102: rat | C102: Long-Evans | D102: F | E102: K489:L492 | F102: K489:S492
A103: ratLong-EvansB | B103: rat | C103: Long-Evans | D103: B | E103: K493:L496 | F103: K493:S496
A104: ratOsborne-MendelM | B104: rat | C104: Osborne-Mendel | D104: M | E104: K497:L500 | F104: K497:S500
A105: ratOsborne-MendelF | B105: rat | C105: Osborne-Mendel | D105: F | E105: K501:L504 | F105: K501:S504
A106: ratOsborne-MendelB | B106: rat | C106: Osborne-Mendel | D106: B | E106: K505:L508 | F106: K505:S508
A107: ratSprague-DawleyM | B107: rat | C107: Sprague-Dawley | D107: M | E107: K509:L512 | F107: K509:S512
A108: ratSprague-DawleyF | B108: rat | C108: Sprague-Dawley | D108: F | E108: K513:L516 | F108: K513:S516
A109: ratSprague-DawleyB | B109: rat | C109: Sprague-Dawley | D109: B | E109: K517:L520 | F109: K517:S520
A110: ratWistarM | B110: rat | C110: Wistar | D110: M | E110: K521:L524 | F110: K521:S524
A111: ratWistarF | B111: rat | C111: Wistar | D111: F | E111: K525:L528 | F111: K525:S528
A112: ratWistarB | B112: rat | C112: Wistar | D112: B | E112: K529:L532 | F112: K529:S532
A113: ratunspecifiedM | B113: rat | C113: unspecified | D113: M | E113: K533:L536 | F113: K533:S536
A114: ratunspecifiedF | B114: rat | C114: unspecified | D114: F | E114: K537:L540 | F114: K537:S540
A115: ratunspecifiedB | B115: rat | C115: unspecified | D115: B | E115: K541:L544 | F115: K541:S544
A116: blackbirdRed wingedM | B116: blackbird | C116: Red winged | D116: M | E116: K545:L546 | F116: K545:S546
A117: blackbirdRed wingedF | B117: blackbird | C117: Red winged | D117: F | E117: K547:L548 | F117: K547:S548
A118: blackbirdRed wingedB | B118: blackbird | C118: Red winged | D118: B | E118: K549:L550 | F118: K549:S550
A119: sheepdomesticB | B119: sheep | C119: domestic | D119: B | E119: K551:L552 | F119: K551:S552
A120: sheepdomesticM | B120: sheep | C120: domestic | D120: M | E120: K553:L554 | F120: K553:S554
A121: sheepdomesticF | B121: sheep | C121: domestic | D121: F | E121: K555:L556 | F121: K555:S556
A122: sheepunspecifiedF | B122: sheep | C122: unspecified | D122: F | E122: K557:L561 | F122: K557:S561
A123: sheepunspecifiedM | B123: sheep | C123: unspecified | D123: M | E123: K562:L566 | F123: K562:S566
A124: sheepunspecifiedB | B124: sheep | C124: unspecified | D124: B | E124: K567:L571 | F124: K567:S571
A125: sheepClun forestM | B125: sheep | C125: Clun forest | D125: M | E125: K572:L574 | F125: K572:S574
A126: sheepClun forestF | B126: sheep | C126: Clun forest | D126: F | E126: K575:L577 | F126: K575:S577
A127: sheepClun forestB | B127: sheep | C127: Clun forest | D127: B | E127: K578:L580 | F127: K578:S580
A128: sheepDalaM | B128: sheep | C128: Dala | D128: M | E128: K581:L582 | F128: K581:S582
A129: sheepDalaF | B129: sheep | C129: Dala | D129: F | E129: K583:L584 | F129: K583:S584
A130: sheepDalaB | B130: sheep | C130: Dala | D130: B | E130: K585:L586 | F130: K585:S586
A131: sheepOld NorseM | B131: sheep | C131: Old Norse | D131: M | E131: K587:L588 | F131: K587:S588
A132: sheepOld NorseF | B132: sheep | C132: Old Norse | D132: F | E132: K589:L590 | F132: K589:S590
A133: sheepOld NorseB | B133: sheep | C133: Old Norse | D133: B | E133: K591:L592 | F133: K591:S592
A134: shrewshort-tailedM | B134: shrew | C134: short-tailed | D134: M | E134: K593:L594 | F134: K593:S594
A135: shrewshort-tailedF | B135: shrew | C135: short-tailed | D135: F | E135: K595:L596 | F135: K595:S596
A136: shrewshort-tailedB | B136: shrew | C136: short-tailed | D136: B | E136: K597:L598 | F136: K597:S598
A137: =B137&C137&D137 -> sparrowwhite-throatedB | B137: sparrow | C137: white-throated | D137: B | E137: K599:L600 | F137: K599:S600
A138: sparrowwhite-throatedM | B138: sparrow | C138: white-throated | D138: M | E138: K601:L602 | F138: K601:S602
A139: sparrowwhite-throatedF | B139: sparrow | C139: white-throated | D139: F | E139: K603:L604 | F139: K603:S604
A140: starlingstarlingM | B140: starling | C140: starling | D140: M | E140: K605:L606 | F140: K605:S606
A141: starlingstarlingF | B141: starling | C141: starling | D141: F | E141: K607:L608 | F141: K607:S608
A142: starlingstarlingB | B142: starling | C142: starling | D142: B | E142: K609:L610 | F142: K609:S610
A143: turkeydomesticF | B143: turkey | C143: domestic | D143: F | E143: K611:L647 | F143: K611:S647
A144: turkeydomesticB | B144: turkey | C144: domestic | D144: B | E144: K648:L683 | F144: K648:S683
A145: turkeydomesticM | B145: turkey | C145: domestic | D145: M | E145: K684:L719 | F145: K684:S719
A146: voleprairie voleB | B146: vole | C146: prairie vole | D146: B | E146: K720:L721 | F146: K720:S721
A147: voleprairie voleM | B147: vole | C147: prairie vole | D147: M | E147: K722:L723 | F147: K722:S723
A148: voleprairie voleF | B148: vole | C148: prairie vole | D148: F | E148: K724:L725 | F148: K724:S725
A149: volemeadow voleM | B149: vole | C149: meadow vole | D149: M | E149: K726:L727 | F149: K726:S727
A150: volemeadow voleF | B150: vole | C150: meadow vole | D150: F | E150: K728:L729 | F150: K728:S729
A151: volemeadow voleB | B151: vole | C151: meadow vole | D151: B | E151: K730:L731 | F151: K730:S731

Sheet For Figure (hidden)
A2: Effect Group | B2: Ref | D2: General Organism Type | E2: NOAEL Dose (mg/kg/day)* | F2: LOAEL Dose (mg/kg/day)*
B3: Result # | C3: Ref N. | G3: Test Species for Plotting | H3: Label for plotting | I3: X plot position | J3: NOAEL Dose | K3: LOAEL Dose | L3: Label Position | M3: x-plot position | N3: Max X Plot Position | O3: Round Max X Plot Position | Q3: Unique Effect Groups | R3: Label for Figure | S3: Mid | T3: Min | U3: Max | X3: Effect Group | AB3: Row | AC3: Effect Group | AD3: Result # | AE3: x plot position | AF3: Dose | AG3: Dose Type | AI3: Bound (Paired) NOAEL & LOAEL? | AJ3: REP or GRO? | AK3: REP, GRO, or SUR? | AL3: NOAEL or LOAEL? | AN3: Count of REP, GRO or SUR | AO3: Count of Species for REP, GRO or SUR | AP3: Count of REP or GRO NOAELs | AQ3: Count of REP or GRO LOAELs | AR3: Highest bounded NOAEL below the lowest bounded LOAEL for REP, GRO or MOR | AT3: TRV Derivation
